Workbook

Sheet Log of Prior SAR Models
A1: Effective Dates | B1: Order No. | C1: Modifications | D1: File Names | E1: Notes
A3: 2021-12-30 | B3: 35280 | C3: Avista Cost of Capital | D3: Avoided Cost Model Order No. 35280 ver Dec 30, 2021 Avista Cost of Capital
A4: 2021-06-01 | B4: 35052 | C4: Annual Natural Gas Update | D4: Avoided Cost Model Order No. 35052 ver June 1, 2021 Annual Natural Gas Update
A5: 2021-04-05 | B5: 34966 | C5: PAC's Integration Charges | D5: Avoided Cost Model Order No. 34966 ver April 5, 2021 PAC Integration Charges
A6: 2021-03-31 | B6: 34981 | C6: Avista's Capacity Deficiency Updates | D6: Avoided Cost Model Order No. 34981 ver March 31, 2021 Avista Capacity Deficiency
A7: 2021-02-09 | B7: 34918 | C7: PAC's Capacity Deficiency Updates | D7: Avoided Cost Model Order No. 34918 ver February 9, 2021 PAC Capacity Deficiency
A8: 2021-02-05 | B8: 34913 | C8: IPCO's Energy Storage Published Rates | D8: Avoided Cost Model Order No. 34913 ver February 5, 2021 Energy Storage (linked)
A9: 2022-06-01 | B9: 35422 | C9: Annual Natural Gas Update | D9: Avoided Cost Model Order No. 35422 ver June 1, 2022 Annual Natural Gas Update
A10: 2022-06-01 | B10: 35475 | C10: IPCO's Capacity Deficiency Update with Annual Gas Update | D10: Avoided Cost Model Order No. 35475 ver Retro June 1, 2022 IPCO Capacity Deficiency Update
A11: 2022-07-15 | B11: 35509 | C11: Avista's Capacity Deficiency Updates | D11: Avoided Cost Model Order No. 35509 ver Retro July 15, 2022 Avista Capacity Deficiency Update
A12: 2023-06-01 | B12: 35800 | C12: Annual Natural Gas Update | D12: Avoided Cost Model Order No. 35800 ver June 1, 2023 Annual Natural Gas Update
A13: 2023-09-01 | B13: 36019 | C13: Avista's Capital Structure and Cost | D13: Avoided Cost Model Order No. 36019 ver September 1, 2023 Avista capital structure
A14: 2024-03-28 | B14: 36123 | C14: IPCO's Capital Structure and Cost | D14: Avoided Cost Model Order No. 36123 ver March 28, 2024 IPCO Cost of Capital
A15: 2024-04-03 | B15: 36127 | C15: Avista's Capacity Deficiency Updates | D15: Avoided Cost Model Order No. 36127 ver April 3, 2024 Avista Capacity Deficiency | E15: Avista's published avoided cost rates in this version of SAR Model are retroactively effective from Jan 11, 2024.

Sheet AVOID NEW
B1: AVOIDED COST CALCULATION MODEL | L1: Base Calculations | X1: Resource-Specific Calculations | AK1: Resource-Specific Calculations
B2: Idaho Public Utilities Commission
B3: XX/XX/2024 | AK3: =$E$105 -> IPCO
G4: ENERGY INFORMATION ADMIN (EIA) - ANNUAL ENERGY OUTLOOK | X4: Resource Type | AK4: =TODAY()+1 -> 2024-05-13
B5: 1. Choose Utility | G5: Natural Gas Price Forecast | U5: Surplus Energy Transmission Cost Calcs | AK5: ="Avoided Cost Rates for "&'Input - Capacity Factors'!$C$3&" Projects" -> Avoided Cost Rates for Wind Projects
G6: 2023 REPORT - RELEASE DATE - March 16, 2023 | L6: Year | N6: Energy Rate Calcs | R6: Capacity Rate Calcs | X6: Year | Z6: Energy Rate | AE6: Peak capacity adjustment | AH6: Total Rate | AI6: Fueled Rate | AK6: CONTRACT | AL6: CAL YEAR | AM6: NON-LEVELIZED RATE ($/MWH) | AN6: LEVELIZED RATES ($/MWH)
B7: 2. Choose Contract Type | H7: Real Price | I7: Nominal Price | N7: Gas Price | O7: Fuel Cost | P7: VO&M Cost | Q7: Total | R7: "Tilted" Capital Costs | S7: FO&M Cost | T7: Total | U7: Rate | V7: Losses | Z7: Fuel | AA7: VO&M | AB7: Trans. | AC7: Losses | AD7: Total | AE7: Capital | AF7: FO&M | AG7: Total | AK7: LENGTH | AN7: ON-LINE YEAR
I8: by Year | J8: FUEL COST | L8: No. | M8: Cal | N8: $/MMBtu | O8: $/MWh | P8: $/MWh | Q8: $/MWh | R8: $/MWh | S8: $/MWh | T8: $/MWh | U8: $/MWh | V8: $/MWh | X8: No. | Y8: Cal | Z8: $/MWh | AA8: $/MWh | AB8: $/MWh | AC8: $/MWh | AD8: $/MWh | AE8: $/MWh | AF8: $/MWh | AG8: $/MWh | AH8: $/MWh | AI8: $/MWh | AK8: (YEARS) | AN8: =$D$54 -> 2024 | AO8: =AN8+1 -> 2025 | AP8: =AO8+1 -> 2026 | AQ8: 2027 | AR8: 2028 | AS8: 2029
G9: YEAR | H9: (2022 $ per MMBtu) | I9: ($ per MMBtu) | J9: $/MWh | L9: 1 | M9: =D54 -> 2024 | N9: =IF(ISERROR(VLOOKUP($M9,$G$10:$J$40,3,FALSE)),GROWTH($I$31:$I$40,$G$31:$G$40,M9),VLOOKUP($M9,$G$10:$J$40,3,FALSE)) -> 4.884545 | O9: =N9*$D$36/1000 -> 34.6802695 | P9: =$D$40*(1+$D$47)^(M9-$D$43) -> 2.429830698 | Q9: =P9+O9 -> 37.1101002 | R9: =$R$41*(($D$37-$D$52)/$D$37)*((1+$D$37)^$D$32-1)/((1+$D$37)^$D$32-(1+$D$52)^$D$32)*(1+$D$52)^(M9-$M$41) -> 50.42914933 | S9: =$D$39*(1+$D$47)^($M9-$D$43)*(1000/(365*24))/VLOOKUP('Input - Capacity Factors'!$C$3,'Input - Capacity Factors'!$A:$B,2,FALSE) -> 6.91901471 | T9: =S9+R9 -> 57.34816404 | U9: =-VLOOKUP($E$105,'Input - Transmission'!$A:$C,2)*(1+'Input - Transmission'!$C$11)^('AVOID NEW'!$M9-'Input - Transmission'!$C$10)*12*(1000/(365*24))*(1/VLOOKUP('Input - Capacity Factors'!$C$3,'Input - Capacity Factors'!$A:$D,2,FALSE)) -> -9.213047491 | V9: =-VLOOKUP($E$105,'Input - Transmission'!$A:$C,3)*Q9 -> -1.484404008 | X9: 1 | Y9: =M9 -> 2024 | Z9: =O9 -> 34.6802695 | AA9: =P9 -> 2.429830698 | AB9: =IF(VLOOKUP($Y9,'Input - Load and Resource'!$B$13:$C$42,2,FALSE)>=0,0,0) -> 0 | AC9: =IF(VLOOKUP($Y9,'Input - Load and Resource'!$B$13:$C$42,2,FALSE)>=0,0,0) -> 0 | AD9: =SUM(Z9:AC9) -> 37.1101002 | AE9: =VLOOKUP($Y9,'Input - Load and Resource'!$B$13:$L$42,11,FALSE)*R9 -> 0 | AF9: =VLOOKUP($Y9,'Input - Load and Resource'!$B$13:$L$42,11,FALSE)*S9 -> 0 | AG9: =AF9+AE9 -> 0 | AH9: =AG9+AD9 -> 37.1101002 | AI9: =AA9+AE9+AF9 -> 2.429830698 | AK9: 1 | AL9: =D54 -> 2024 | AM9: =IF('Input - Capacity Factors'!$C$3="Fueled",'AVOID NEW'!AI9,AH9) -> 37.1101002 | AN9: =IF('Input - Capacity Factors'!$C$3="Fueled",-PMT($D$37,$AK9,NPV($D$37,$AI$9:$AI9)),-PMT($D$37,$AK9,NPV($D$37,$AH$9:$AH9))) -> 37.1101002 | AO9: =IF('Input - Capacity Factors'!$C$3="Fueled",-PMT($D$37,$AK9,NPV($D$37,$AI$10:$AI10)),-PMT($D$37,$AK9,NPV($D$37,$AH$10:$AH10))) -> 33.76789301 | AP9: =IF('Input - Capacity Factors'!$C$3="Fueled",-PMT($D$37,$AK9,NPV($D$37,$AI$11:$AI11)),-PMT($D$37,$AK9,NPV($D$37,$AH$11:$AH11))) -> 34.11176508 | AQ9: =IF('Input - Capacity Factors'!$C$3="Fueled",-PMT($D$37,$AK9,NPV($D$37,$AI$12:$AI12)),-PMT($D$37,$AK9,NPV($D$37,$AH$12:$AH12))) -> 32.34444778 | AR9: =IF('Input - Capacity Factors'!$C$3="Fueled",-PMT($D$37,$AK9,NPV($D$37,$AI$13:$AI13)),-PMT($D$37,$AK9,NPV($D$37,$AH$13:$AH13))) -> 32.25270398 | AS9: =IF('Input - Capacity Factors'!$C$3="Fueled",-PMT($D$37,$AK9,NPV($D$37,$AI$14:$AI14)),-PMT($D$37,$AK9,NPV($D$37,$AH$14:$AH14))) -> 32.64339472
B10: 4. Choose specific resource | G10: 2023 | H10: 5.677948 | I10: 5.912665 | J10: =I10*D$36/1000 -> 41.9799215 | L10: 2 | M10: =M9+1 -> 2025 | N10: =IF(ISERROR(VLOOKUP($M10,$G$10:$J$40,3,FALSE)),GROWTH($I$31:$I$40,$G$31:$G$40,M10),VLOOKUP($M10,$G$10:$J$40,3,FALSE)) -> 4.406967 | O10: =N10*$D$36/1000 -> 31.2894657 | P10: =$D$40*(1+$D$47)^(M10-$D$43) -> 2.478427312 | Q10: =P10+O10 -> 33.76789301 | R10: =$R$41*(($D$37-$D$52)/$D$37)*((1+$D$37)^$D$32-1)/((1+$D$37)^$D$32-(1+$D$52)^$D$32)*(1+$D$52)^(M10-$M$41) -> 51.13515742 | S10: =$D$39*(1+$D$47)^($M10-$D$43)*(1000/(365*24))/VLOOKUP('Input - Capacity Factors'!$C$3,'Input - Capacity Factors'!$A:$B,2,FALSE) -> 7.057395004 | T10: =S10+R10 -> 58.19255243 | U10: =-VLOOKUP($E$105,'Input - Transmission'!$A:$C,2)*(1+'Input - Transmission'!$C$11)^('AVOID NEW'!$M10-'Input - Transmission'!$C$10)*12*(1000/(365*24))*(1/VLOOKUP('Input - Capacity Factors'!$C$3,'Input - Capacity Factors'!$A:$D,2,FALSE)) -> -9.39730844 | V10: =-VLOOKUP($E$105,'Input - Transmission'!$A:$C,3)*Q10 -> -1.35071572 | X10: 2 | Y10: =M10 -> 2025 | Z10: =O10 -> 31.2894657 | AA10: =P10 -> 2.478427312 | AB10: =IF(VLOOKUP($Y10,'Input - Load and Resource'!$B$13:$C$42,2,FALSE)>=0,0,0) -> 0 | AC10: =IF(VLOOKUP($Y10,'Input - Load and Resource'!$B$13:$C$42,2,FALSE)>=0,0,0) -> 0 | AD10: =SUM(Z10:AC10) -> 33.76789301 | AE10: =VLOOKUP($Y10,'Input - Load and Resource'!$B$13:$L$42,11,FALSE)*R10 -> 0 | AF10: =VLOOKUP($Y10,'Input - Load and Resource'!$B$13:$L$42,11,FALSE)*S10 -> 0 | AG10: =AF10+AE10 -> 0 | AH10: =AG10+AD10 -> 33.76789301 | AI10: =AA10+AE10+AF10 -> 2.478427312 | AK10: 2 | AL10: =AL9+1 -> 2025 | AM10: =IF('Input - Capacity Factors'!$C$3="Fueled",'AVOID NEW'!AI10,AH10) -> 33.76789301 | AN10: =IF('Input - Capacity Factors'!$C$3="Fueled",-PMT($D$37,$AK10,NPV($D$37,$AI$9:$AI10)),-PMT($D$37,$AK10,NPV($D$37,$AH$9:$AH10))) -> 35.49743165 | AO10: =IF('Input - Capacity Factors'!$C$3="Fueled",-PMT($D$37,$AK10,NPV($D$37,$AI$10:$AI11)),-PMT($D$37,$AK10,NPV($D$37,$AH$10:$AH11))) -> 33.9338168 | AP10: =IF('Input - Capacity Factors'!$C$3="Fueled",-PMT($D$37,$AK10,NPV($D$37,$AI$11:$AI12)),-PMT($D$37,$AK10,NPV($D$37,$AH$11:$AH12))) -> 33.25900615 | AQ10: =IF('Input - Capacity Factors'!$C$3="Fueled",-PMT($D$37,$AK10,NPV($D$37,$AI$12:$AI13)),-PMT($D$37,$AK10,NPV($D$37,$AH$12:$AH13))) -> 32.30017993 | AR10: =IF('Input - Capacity Factors'!$C$3="Fueled",-PMT($D$37,$AK10,NPV($D$37,$AI$13:$AI14)),-PMT($D$37,$AK10,NPV($D$37,$AH$13:$AH14))) -> 32.44121853 | AS10: =IF('Input - Capacity Factors'!$C$3="Fueled",-PMT($D$37,$AK10,NPV($D$37,$AI$14:$AI15)),-PMT($D$37,$AK10,NPV($D$37,$AH$14:$AH15))) -> 33.13833859
G11: 2024 | H11: 4.578878 | I11: 4.884545 | J11: 34.6802695 | L11: 3 | M11: =M10+1 -> 2026 | N11: 4.032576 | O11: 28.6312896 | P11: 2.527995858 | Q11: 31.15928546 | R11: 51.85104963 | S11: =$D$39*(1+$D$47)^($M11-$D$43)*(1000/(365*24))/VLOOKUP('Input - Capacity Factors'!$C$3,'Input - Capacity Factors'!$A:$B,2,FALSE) -> 7.198542904 | T11: 59.04959253 | U11: =-VLOOKUP($E$105,'Input - Transmission'!$A:$C,2)*(1+'Input - Transmission'!$C$11)^('AVOID NEW'!$M11-'Input - Transmission'!$C$10)*12*(1000/(365*24))*(1/VLOOKUP('Input - Capacity Factors'!$C$3,'Input - Capacity Factors'!$A:$D,2,FALSE)) -> -9.585254609 | V11: =-VLOOKUP($E$105,'Input - Transmission'!$A:$C,3)*Q11 -> -1.246371418 | X11: 3 | Y11: 2026 | Z11: 28.6312896 | AA11: 2.527995858 | AB11: =IF(VLOOKUP($Y11,'Input - Load and Resource'!$B$13:$C$42,2,FALSE)>=0,0,0) -> 0 | AC11: =IF(VLOOKUP($Y11,'Input - Load and Resource'!$B$13:$C$42,2,FALSE)>=0,0,0) -> 0 | AD11: 31.15928546 | AE11: =VLOOKUP($Y11,'Input - Load and Resource'!$B$13:$L$42,11,FALSE)*R11 -> 2.592552481 | AF11: =VLOOKUP($Y11,'Input - Load and Resource'!$B$13:$L$42,11,FALSE)*S11 -> 0.3599271452 | AG11: 2.952479627 | AH11: 34.11176508 | AI11: 5.480475485 | AK11: 3 | AL11: =AL10+1 -> 2026 | AM11: =IF('Input - Capacity Factors'!$C$3="Fueled",'AVOID NEW'!AI11,AH11) -> 34.11176508 | AN11: =IF('Input - Capacity Factors'!$C$3="Fueled",-PMT($D$37,$AK11,NPV($D$37,$AI$9:$AI11)),-PMT($D$37,$AK11,NPV($D$37,$AH$9:$AH11))) -> 35.06745587 | AO11: =IF('Input - Capacity Factors'!$C$3="Fueled",-PMT($D$37,$AK11,NPV($D$37,$AI$10:$AI12)),-PMT($D$37,$AK11,NPV($D$37,$AH$10:$AH12))) -> 33.44063164 | AP11: =IF('Input - Capacity Factors'!$C$3="Fueled",-PMT($D$37,$AK11,NPV($D$37,$AI$11:$AI13)),-PMT($D$37,$AK11,NPV($D$37,$AH$11:$AH13))) -> 32.94674809 | AQ11: =IF('Input - Capacity Factors'!$C$3="Fueled",-PMT($D$37,$AK11,NPV($D$37,$AI$12:$AI14)),-PMT($D$37,$AK11,NPV($D$37,$AH$12:$AH14))) -> 32.40668033 | AR11: =IF('Input - Capacity Factors'!$C$3="Fueled",-PMT($D$37,$AK11,NPV($D$37,$AI$13:$AI15)),-PMT($D$37,$AK11,NPV($D$37,$AH$13:$AH15))) -> 32.82224904 | AS11: =IF('Input - Capacity Factors'!$C$3="Fueled",-PMT($D$37,$AK11,NPV($D$37,$AI$14:$AI16)),-PMT($D$37,$AK11,NPV($D$37,$AH$14:$AH16))) -> 33.85164139
G12: 2025 | H12: 4.043263 | I12: 4.406967 | J12: 31.2894657 | L12: 4 | M12: 2027 | N12: 3.770411 | O12: 26.7699181 | P12: 2.578555775 | Q12: 29.34847388 | R12: 52.57696432 | S12: =$D$39*(1+$D$47)^($M12-$D$43)*(1000/(365*24))/VLOOKUP('Input - Capacity Factors'!$C$3,'Input - Capacity Factors'!$A:$B,2,FALSE) -> 7.342513762 | T12: 59.91947809 | U12: =-VLOOKUP($E$105,'Input - Transmission'!$A:$C,2)*(1+'Input - Transmission'!$C$11)^('AVOID NEW'!$M12-'Input - Transmission'!$C$10)*12*(1000/(365*24))*(1/VLOOKUP('Input - Capacity Factors'!$C$3,'Input - Capacity Factors'!$A:$D,2,FALSE)) -> -9.776959701 | V12: =-VLOOKUP($E$105,'Input - Transmission'!$A:$C,3)*Q12 -> -1.173938955 | X12: 4 | Y12: 2027 | Z12: 26.7699181 | AA12: 2.578555775 | AB12: =IF(VLOOKUP($Y12,'Input - Load and Resource'!$B$13:$C$42,2,FALSE)>=0,0,0) -> 0 | AC12: =IF(VLOOKUP($Y12,'Input - Load and Resource'!$B$13:$C$42,2,FALSE)>=0,0,0) -> 0 | AD12: 29.34847388 | AE12: =VLOOKUP($Y12,'Input - Load and Resource'!$B$13:$L$42,11,FALSE)*R12 -> 2.628848216 | AF12: =VLOOKUP($Y12,'Input - Load and Resource'!$B$13:$L$42,11,FALSE)*S12 -> 0.3671256881 | AG12: 2.995973904 | AH12: 32.34444778 | AI12: 5.57452968 | AK12: 4 | AL12: 2027 | AM12: =IF('Input - Capacity Factors'!$C$3="Fueled",'AVOID NEW'!AI12,AH12) -> 32.34444778 | AN12: =IF('Input - Capacity Factors'!$C$3="Fueled",-PMT($D$37,$AK12,NPV($D$37,$AI$9:$AI12)),-PMT($D$37,$AK12,NPV($D$37,$AH$9:$AH12))) -> 34.45639643 | AO12: =IF('Input - Capacity Factors'!$C$3="Fueled",-PMT($D$37,$AK12,NPV($D$37,$AI$10:$AI13)),-PMT($D$37,$AK12,NPV($D$37,$AH$10:$AH13))) -> 33.17405351 | AP12: =IF('Input - Capacity Factors'!$C$3="Fueled",-PMT($D$37,$AK12,NPV($D$37,$AI$11:$AI14)),-PMT($D$37,$AK12,NPV($D$37,$AH$11:$AH14))) -> 32.87867376 | AQ12: =IF('Input - Capacity Factors'!$C$3="Fueled",-PMT($D$37,$AK12,NPV($D$37,$AI$12:$AI15)),-PMT($D$37,$AK12,NPV($D$37,$AH$12:$AH15))) -> 32.68998637 | AR12: =IF('Input - Capacity Factors'!$C$3="Fueled",-PMT($D$37,$AK12,NPV($D$37,$AI$13:$AI16)),-PMT($D$37,$AK12,NPV($D$37,$AH$13:$AH16))) -> 33.40903116 | AS12: =IF('Input - Capacity Factors'!$C$3="Fueled",-PMT($D$37,$AK12,NPV($D$37,$AI$14:$AI17)),-PMT($D$37,$AK12,NPV($D$37,$AH$14:$AH17))) -> 34.71335073
B13: 5. Enter current year | D13: 2024 | G13: 2026 | H13: 3.622533 | I13: 4.032576 | J13: 28.6312896 | L13: 5 | M13: 2028 | N13: 3.744008 | O13: 26.5824568 | P13: 2.630126891 | Q13: 29.21258369 | R13: 53.31304182 | S13: =$D$39*(1+$D$47)^($M13-$D$43)*(1000/(365*24))/VLOOKUP('Input - Capacity Factors'!$C$3,'Input - Capacity Factors'!$A:$B,2,FALSE) -> 7.489364037 | T13: 60.80240586 | U13: =-VLOOKUP($E$105,'Input - Transmission'!$A:$C,2)*(1+'Input - Transmission'!$C$11)^('AVOID NEW'!$M13-'Input - Transmission'!$C$10)*12*(1000/(365*24))*(1/VLOOKUP('Input - Capacity Factors'!$C$3,'Input - Capacity Factors'!$A:$D,2,FALSE)) -> -9.972498895 | V13: =-VLOOKUP($E$105,'Input - Transmission'!$A:$C,3)*Q13 -> -1.168503348 | X13: 5 | Y13: 2028 | Z13: 26.5824568 | AA13: 2.630126891 | AB13: =IF(VLOOKUP($Y13,'Input - Load and Resource'!$B$13:$C$42,2,FALSE)>=0,0,0) -> 0 | AC13: =IF(VLOOKUP($Y13,'Input - Load and Resource'!$B$13:$C$42,2,FALSE)>=0,0,0) -> 0 | AD13: 29.21258369 | AE13: =VLOOKUP($Y13,'Input - Load and Resource'!$B$13:$L$42,11,FALSE)*R13 -> 2.665652091 | AF13: =VLOOKUP($Y13,'Input - Load and Resource'!$B$13:$L$42,11,FALSE)*S13 -> 0.3744682019 | AG13: 3.040120293 | AH13: 32.25270398 | AI13: 5.670247184 | AK13: 5 | AL13: 2028 | AM13: =IF('Input - Capacity Factors'!$C$3="Fueled",'AVOID NEW'!AI13,AH13) -> 32.25270398 | AN13: =IF('Input - Capacity Factors'!$C$3="Fueled",-PMT($D$37,$AK13,NPV($D$37,$AI$9:$AI13)),-PMT($D$37,$AK13,NPV($D$37,$AH$9:$AH13))) -> 34.07507866 | AO13: =IF('Input - Capacity Factors'!$C$3="Fueled",-PMT($D$37,$AK13,NPV($D$37,$AI$10:$AI14)),-PMT($D$37,$AK13,NPV($D$37,$AH$10:$AH14))) -> 33.08223052 | AP13: =IF('Input - Capacity Factors'!$C$3="Fueled",-PMT($D$37,$AK13,NPV($D$37,$AI$11:$AI15)),-PMT($D$37,$AK13,NPV($D$37,$AH$11:$AH15))) -> 33.01545466 | AQ13: =IF('Input - Capacity Factors'!$C$3="Fueled",-PMT($D$37,$AK13,NPV($D$37,$AI$12:$AI16)),-PMT($D$37,$AK13,NPV($D$37,$AH$12:$AH16))) -> 33.1653307 | AR13: =IF('Input - Capacity Factors'!$C$3="Fueled",-PMT($D$37,$AK13,NPV($D$37,$AI$13:$AI17)),-PMT($D$37,$AK13,NPV($D$37,$AH$13:$AH17))) -> 34.15006864 | AS13: =IF('Input - Capacity Factors'!$C$3="Fueled",-PMT($D$37,$AK13,NPV($D$37,$AI$14:$AI18)),-PMT($D$37,$AK13,NPV($D$37,$AH$14:$AH18))) -> 35.65971915
G14: 2027 | H14: 3.315406 | I14: 3.770411 | J14: 26.7699181 | L14: 6 | M14: 2029 | N14: 3.785315 | O14: 26.8757365 | P14: 2.682729429 | Q14: 29.55846593 | R14: 54.05942441 | S14: =$D$39*(1+$D$47)^($M14-$D$43)*(1000/(365*24))/VLOOKUP('Input - Capacity Factors'!$C$3,'Input - Capacity Factors'!$A:$B,2,FALSE) -> 7.639151318 | T14: 61.69857573 | U14: =-VLOOKUP($E$105,'Input - Transmission'!$A:$C,2)*(1+'Input - Transmission'!$C$11)^('AVOID NEW'!$M14-'Input - Transmission'!$C$10)*12*(1000/(365*24))*(1/VLOOKUP('Input - Capacity Factors'!$C$3,'Input - Capacity Factors'!$A:$D,2,FALSE)) -> -10.17194887 | V14: =-VLOOKUP($E$105,'Input - Transmission'!$A:$C,3)*Q14 -> -1.182338637 | X14: 6 | Y14: 2029 | Z14: 26.8757365 | AA14: 2.682729429 | AB14: =IF(VLOOKUP($Y14,'Input - Load and Resource'!$B$13:$C$42,2,FALSE)>=0,0,0) -> 0 | AC14: =IF(VLOOKUP($Y14,'Input - Load and Resource'!$B$13:$C$42,2,FALSE)>=0,0,0) -> 0 | AD14: 29.55846593 | AE14: =VLOOKUP($Y14,'Input - Load and Resource'!$B$13:$L$42,11,FALSE)*R14 -> 2.70297122 | AF14: =VLOOKUP($Y14,'Input - Load and Resource'!$B$13:$L$42,11,FALSE)*S14 -> 0.3819575659 | AG14: 3.084928786 | AH14: 32.64339472 | AI14: 5.767658215 | AK14: 6 | AL14: 2029 | AM14: =IF('Input - Capacity Factors'!$C$3="Fueled",'AVOID NEW'!AI14,AH14) -> 32.64339472 | AN14: =IF('Input - Capacity Factors'!$C$3="Fueled",-PMT($D$37,$AK14,NPV($D$37,$AI$9:$AI14)),-PMT($D$37,$AK14,NPV($D$37,$AH$9:$AH14))) -> 33.87617744 | AO14: =IF('Input - Capacity Factors'!$C$3="Fueled",-PMT($D$37,$AK14,NPV($D$37,$AI$10:$AI15)),-PMT($D$37,$AK14,NPV($D$37,$AH$10:$AH15))) -> 33.16377031 | AP14: =IF('Input - Capacity Factors'!$C$3="Fueled",-PMT($D$37,$AK14,NPV($D$37,$AI$11:$AI16)),-PMT($D$37,$AK14,NPV($D$37,$AH$11:$AH16))) -> 33.35188556 | AQ14: =IF('Input - Capacity Factors'!$C$3="Fueled",-PMT($D$37,$AK14,NPV($D$37,$AI$12:$AI17)),-PMT($D$37,$AK14,NPV($D$37,$AH$12:$AH17))) -> 33.79415665 | AR14: =IF('Input - Capacity Factors'!$C$3="Fueled",-PMT($D$37,$AK14,NPV($D$37,$AI$13:$AI18)),-PMT($D$37,$AK14,NPV($D$37,$AH$13:$AH18))) -> 34.98815095 | AS14: =IF('Input - Capacity Factors'!$C$3="Fueled",-PMT($D$37,$AK14,NPV($D$37,$AI$14:$AI19)),-PMT($D$37,$AK14,NPV($D$37,$AH$14:$AH19))) -> 36.64833179
B15: 6. Enter project nameplate capacity | D15: 0.1 | G15: 2028 | H15: 3.222567 | I15: 3.744008 | J15: 26.5824568 | L15: 7 | M15: 2030 | N15: 3.915825 | O15: 27.8023575 | P15: 2.736384017 | Q15: 30.53874152 | R15: 54.81625635 | S15: =$D$39*(1+$D$47)^($M15-$D$43)*(1000/(365*24))/VLOOKUP('Input - Capacity Factors'!$C$3,'Input - Capacity Factors'!$A:$B,2,FALSE) -> 7.791934345 | T15: 62.6081907 | U15: =-VLOOKUP($E$105,'Input - Transmission'!$A:$C,2)*(1+'Input - Transmission'!$C$11)^('AVOID NEW'!$M15-'Input - Transmission'!$C$10)*12*(1000/(365*24))*(1/VLOOKUP('Input - Capacity Factors'!$C$3,'Input - Capacity Factors'!$A:$D,2,FALSE)) -> -10.37538785 | V15: =-VLOOKUP($E$105,'Input - Transmission'!$A:$C,3)*Q15 -> -1.221549661 | X15: 7 | Y15: 2030 | Z15: 27.8023575 | AA15: 2.736384017 | AB15: =IF(VLOOKUP($Y15,'Input - Load and Resource'!$B$13:$C$42,2,FALSE)>=0,0,0) -> 0 | AC15: =IF(VLOOKUP($Y15,'Input - Load and Resource'!$B$13:$C$42,2,FALSE)>=0,0,0) -> 0 | AD15: 30.53874152 | AE15: =VLOOKUP($Y15,'Input - Load and Resource'!$B$13:$L$42,11,FALSE)*R15 -> 2.740812818 | AF15: =VLOOKUP($Y15,'Input - Load and Resource'!$B$13:$L$42,11,FALSE)*S15 -> 0.3895967172 | AG15: 3.130409535 | AH15: 33.66915105 | AI15: 5.866793552 | AK15: 7 | AL15: 2030 | AM15: =IF('Input - Capacity Factors'!$C$3="Fueled",'AVOID NEW'!AI15,AH15) -> 33.66915105 | AN15: =IF('Input - Capacity Factors'!$C$3="Fueled",-PMT($D$37,$AK15,NPV($D$37,$AI$9:$AI15)),-PMT($D$37,$AK15,NPV($D$37,$AH$9:$AH15))) -> 33.85243479 | AO15: =IF('Input - Capacity Factors'!$C$3="Fueled",-PMT($D$37,$AK15,NPV($D$37,$AI$10:$AI16)),-PMT($D$37,$AK15,NPV($D$37,$AH$10:$AH16))) -> 33.42448201 | AP15: =IF('Input - Capacity Factors'!$C$3="Fueled",-PMT($D$37,$AK15,NPV($D$37,$AI$11:$AI17)),-PMT($D$37,$AK15,NPV($D$37,$AH$11:$AH17))) -> 33.84958173 | AQ15: =IF('Input - Capacity Factors'!$C$3="Fueled",-PMT($D$37,$AK15,NPV($D$37,$AI$12:$AI18)),-PMT($D$37,$AK15,NPV($D$37,$AH$12:$AH18))) -> 34.52680471 | AR15: =IF('Input - Capacity Factors'!$C$3="Fueled",-PMT($D$37,$AK15,NPV($D$37,$AI$13:$AI19)),-PMT($D$37,$AK15,NPV($D$37,$AH$13:$AH19))) -> 35.88126141 | AS15: =IF('Input - Capacity Factors'!$C$3="Fueled",-PMT($D$37,$AK15,NPV($D$37,$AI$14:$AI20)),-PMT($D$37,$AK15,NPV($D$37,$AH$14:$AH20))) -> 37.64882216
B16: (MW) | G16: 2029 | H16: 3.1882 | I16: 3.785315 | J16: 26.8757365 | L16: 8 | M16: 2031 | N16: 4.150618 | O16: 29.4693878 | P16: 2.791111698 | Q16: 32.2604995 | R16: 55.58368394 | S16: =$D$39*(1+$D$47)^($M16-$D$43)*(1000/(365*24))/VLOOKUP('Input - Capacity Factors'!$C$3,'Input - Capacity Factors'!$A:$B,2,FALSE) -> 7.947773031 | T16: 63.53145697 | U16: =-VLOOKUP($E$105,'Input - Transmission'!$A:$C,2)*(1+'Input - Transmission'!$C$11)^('AVOID NEW'!$M16-'Input - Transmission'!$C$10)*12*(1000/(365*24))*(1/VLOOKUP('Input - Capacity Factors'!$C$3,'Input - Capacity Factors'!$A:$D,2,FALSE)) -> -10.58289561 | V16: =-VLOOKUP($E$105,'Input - Transmission'!$A:$C,3)*Q16 -> -1.29041998 | X16: 8 | Y16: 2031 | Z16: 29.4693878 | AA16: 2.791111698 | AB16: =IF(VLOOKUP($Y16,'Input - Load and Resource'!$B$13:$C$42,2,FALSE)>=0,0,0) -> 0 | AC16: =IF(VLOOKUP($Y16,'Input - Load and Resource'!$B$13:$C$42,2,FALSE)>=0,0,0) -> 0 | AD16: 32.2604995 | AE16: =VLOOKUP($Y16,'Input - Load and Resource'!$B$13:$L$42,11,FALSE)*R16 -> 2.779184197 | AF16: =VLOOKUP($Y16,'Input - Load and Resource'!$B$13:$L$42,11,FALSE)*S16 -> 0.3973886516 | AG16: 3.176572849 | AH16: 35.43707235 | AI16: 5.967684546 | AK16: 8 | AL16: 2031 | AM16: =IF('Input - Capacity Factors'!$C$3="Fueled",'AVOID NEW'!AI16,AH16) -> 35.43707235 | AN16: =IF('Input - Capacity Factors'!$C$3="Fueled",-PMT($D$37,$AK16,NPV($D$37,$AI$9:$AI16)),-PMT($D$37,$AK16,NPV($D$37,$AH$9:$AH16))) -> 34.00551753 | AO16: =IF('Input - Capacity Factors'!$C$3="Fueled",-PMT($D$37,$AK16,NPV($D$37,$AI$10:$AI17)),-PMT($D$37,$AK16,NPV($D$37,$AH$10:$AH17))) -> 33.83670355 | AP16: =IF('Input - Capacity Factors'!$C$3="Fueled",-PMT($D$37,$AK16,NPV($D$37,$AI$11:$AI18)),-PMT($D$37,$AK16,NPV($D$37,$AH$11:$AH18))) -> 34.46137396 | AQ16: =IF('Input - Capacity Factors'!$C$3="Fueled",-PMT($D$37,$AK16,NPV($D$37,$AI$12:$AI19)),-PMT($D$37,$AK16,NPV($D$37,$AH$12:$AH19))) -> 35.32368485 | AR16: =IF('Input - Capacity Factors'!$C$3="Fueled",-PMT($D$37,$AK16,NPV($D$37,$AI$13:$AI20)),-PMT($D$37,$AK16,NPV($D$37,$AH$13:$AH20))) -> 36.79812733 | AS16: =IF('Input - Capacity Factors'!$C$3="Fueled",-PMT($D$37,$AK16,NPV($D$37,$AI$14:$AI21)),-PMT($D$37,$AK16,NPV($D$37,$AH$14:$AH21))) -> 38.53698516
G17: 2030 | H17: 3.22611 | I17: 3.915825 | J17: 27.8023575 | L17: 9 | M17: 2032 | N17: 4.453695 | O17: 31.6212345 | P17: 2.846933932 | Q17: 34.46816843 | R17: 56.36185552 | S17: =$D$39*(1+$D$47)^($M17-$D$43)*(1000/(365*24))/VLOOKUP('Input - Capacity Factors'!$C$3,'Input - Capacity Factors'!$A:$B,2,FALSE) -> 8.106728492 | T17: 64.46858401 | U17: =-VLOOKUP($E$105,'Input - Transmission'!$A:$C,2)*(1+'Input - Transmission'!$C$11)^('AVOID NEW'!$M17-'Input - Transmission'!$C$10)*12*(1000/(365*24))*(1/VLOOKUP('Input - Capacity Factors'!$C$3,'Input - Capacity Factors'!$A:$D,2,FALSE)) -> -10.79455352 | V17: =-VLOOKUP($E$105,'Input - Transmission'!$A:$C,3)*Q17 -> -1.378726737 | X17: 9 | Y17: 2032 | Z17: 31.6212345 | AA17: 2.846933932 | AB17: =IF(VLOOKUP($Y17,'Input - Load and Resource'!$B$13:$C$42,2,FALSE)>=0,0,0) -> 0 | AC17: =IF(VLOOKUP($Y17,'Input - Load and Resource'!$B$13:$C$42,2,FALSE)>=0,0,0) -> 0 | AD17: 34.46816843 | AE17: =VLOOKUP($Y17,'Input - Load and Resource'!$B$13:$L$42,11,FALSE)*R17 -> 2.818092776 | AF17: =VLOOKUP($Y17,'Input - Load and Resource'!$B$13:$L$42,11,FALSE)*S17 -> 0.4053364246 | AG17: 3.2234292 | AH17: 37.69159763 | AI17: 6.070363132 | AK17: 9 | AL17: 2032 | AM17: =IF('Input - Capacity Factors'!$C$3="Fueled",'AVOID NEW'!AI17,AH17) -> 37.69159763 | AN17: =IF('Input - Capacity Factors'!$C$3="Fueled",-PMT($D$37,$AK17,NPV($D$37,$AI$9:$AI17)),-PMT($D$37,$AK17,NPV($D$37,$AH$9:$AH17))) -> 34.31010984 | AO17: =IF('Input - Capacity Factors'!$C$3="Fueled",-PMT($D$37,$AK17,NPV($D$37,$AI$10:$AI18)),-PMT($D$37,$AK17,NPV($D$37,$AH$10:$AH18))) -> 34.36108112 | AP17: =IF('Input - Capacity Factors'!$C$3="Fueled",-PMT($D$37,$AK17,NPV($D$37,$AI$11:$AI19)),-PMT($D$37,$AK17,NPV($D$37,$AH$11:$AH19))) -> 35.14841417 | AQ17: =IF('Input - Capacity Factors'!$C$3="Fueled",-PMT($D$37,$AK17,NPV($D$37,$AI$12:$AI20)),-PMT($D$37,$AK17,NPV($D$37,$AH$12:$AH20))) -> 36.15402576 | AR17: =IF('Input - Capacity Factors'!$C$3="Fueled",-PMT($D$37,$AK17,NPV($D$37,$AI$13:$AI21)),-PMT($D$37,$AK17,NPV($D$37,$AH$13:$AH21))) -> 37.6281377 | AS17: =IF('Input - Capacity Factors'!$C$3="Fueled",-PMT($D$37,$AK17,NPV($D$37,$AI$14:$AI22)),-PMT($D$37,$AK17,NPV($D$37,$AH$14:$AH22))) -> 39.33733312
B18: 20-yr Levelized rate | G18: 2031 | H18: 3.343057 | I18: 4.150618 | J18: 29.4693878 | L18: 10 | M18: 2033 | N18: 4.789816 | O18: 34.0076936 | P18: 2.90387261 | Q18: 36.91156621 | R18: 57.15092149 | S18: =$D$39*(1+$D$47)^($M18-$D$43)*(1000/(365*24))/VLOOKUP('Input - Capacity Factors'!$C$3,'Input - Capacity Factors'!$A:$B,2,FALSE) -> 8.268863062 | T18: 65.41978455 | U18: =-VLOOKUP($E$105,'Input - Transmission'!$A:$C,2)*(1+'Input - Transmission'!$C$11)^('AVOID NEW'!$M18-'Input - Transmission'!$C$10)*12*(1000/(365*24))*(1/VLOOKUP('Input - Capacity Factors'!$C$3,'Input - Capacity Factors'!$A:$D,2,FALSE)) -> -11.01044459 | V18: =-VLOOKUP($E$105,'Input - Transmission'!$A:$C,3)*Q18 -> -1.476462648 | X18: 10 | Y18: 2033 | Z18: 34.0076936 | AA18: 2.90387261 | AB18: =IF(VLOOKUP($Y18,'Input - Load and Resource'!$B$13:$C$42,2,FALSE)>=0,0,0) -> 0 | AC18: =IF(VLOOKUP($Y18,'Input - Load and Resource'!$B$13:$C$42,2,FALSE)>=0,0,0) -> 0 | AD18: 36.91156621 | AE18: =VLOOKUP($Y18,'Input - Load and Resource'!$B$13:$L$42,11,FALSE)*R18 -> 2.857546075 | AF18: =VLOOKUP($Y18,'Input - Load and Resource'!$B$13:$L$42,11,FALSE)*S18 -> 0.4134431531 | AG18: 3.270989228 | AH18: 40.18255544 | AI18: 6.174861838 | AK18: 10 | AL18: 2033 | AM18: =IF('Input - Capacity Factors'!$C$3="Fueled",'AVOID NEW'!AI18,AH18) -> 40.18255544 | AN18: =IF('Input - Capacity Factors'!$C$3="Fueled",-PMT($D$37,$AK18,NPV($D$37,$AI$9:$AI18)),-PMT($D$37,$AK18,NPV($D$37,$AH$9:$AH18))) -> 34.73020959 | AO18: =IF('Input - Capacity Factors'!$C$3="Fueled",-PMT($D$37,$AK18,NPV($D$37,$AI$10:$AI19)),-PMT($D$37,$AK18,NPV($D$37,$AH$10:$AH19))) -> 34.96304272 | AP18: =IF('Input - Capacity Factors'!$C$3="Fueled",-PMT($D$37,$AK18,NPV($D$37,$AI$11:$AI20)),-PMT($D$37,$AK18,NPV($D$37,$AH$11:$AH20))) -> 35.87979829 | AQ18: =IF('Input - Capacity Factors'!$C$3="Fueled",-PMT($D$37,$AK18,NPV($D$37,$AI$12:$AI21)),-PMT($D$37,$AK18,NPV($D$37,$AH$12:$AH21))) -> 36.91866268 | AR18: =IF('Input - Capacity Factors'!$C$3="Fueled",-PMT($D$37,$AK18,NPV($D$37,$AI$13:$AI22)),-PMT($D$37,$AK18,NPV($D$37,$AH$13:$AH22))) -> 38.38603441 | AS18: =IF('Input - Capacity Factors'!$C$3="Fueled",-PMT($D$37,$AK18,NPV($D$37,$AI$14:$AI23)),-PMT($D$37,$AK18,NPV($D$37,$AH$14:$AH23))) -> 40.18750439
B19: =TEXT($D$13,"0000")&" on-line date:" -> 2024 on-line date: | D19: =AN28 -> 39.94569256 | G19: 2032 | H19: 3.506787 | I19: 4.453695 | J19: 31.6212345 | L19: 11 | M19: 2034 | N19: 5.140071 | O19: 36.4945041 | P19: 2.961950062 | Q19: 39.45645416 | R19: 57.95103439 | S19: =$D$39*(1+$D$47)^($M19-$D$43)*(1000/(365*24))/VLOOKUP('Input - Capacity Factors'!$C$3,'Input - Capacity Factors'!$A:$B,2,FALSE) -> 8.434240323 | T19: 66.38527472 | U19: =-VLOOKUP($E$105,'Input - Transmission'!$A:$C,2)*(1+'Input - Transmission'!$C$11)^('AVOID NEW'!$M19-'Input - Transmission'!$C$10)*12*(1000/(365*24))*(1/VLOOKUP('Input - Capacity Factors'!$C$3,'Input - Capacity Factors'!$A:$D,2,FALSE)) -> -11.23065348 | V19: =-VLOOKUP($E$105,'Input - Transmission'!$A:$C,3)*Q19 -> -1.578258166 | X19: 11 | Y19: 2034 | Z19: 36.4945041 | AA19: 2.961950062 | AB19: =IF(VLOOKUP($Y19,'Input - Load and Resource'!$B$13:$C$42,2,FALSE)>=0,0,0) -> 0 | AC19: =IF(VLOOKUP($Y19,'Input - Load and Resource'!$B$13:$C$42,2,FALSE)>=0,0,0) -> 0 | AD19: 39.45645416 | AE19: =VLOOKUP($Y19,'Input - Load and Resource'!$B$13:$L$42,11,FALSE)*R19 -> 2.89755172 | AF19: =VLOOKUP($Y19,'Input - Load and Resource'!$B$13:$L$42,11,FALSE)*S19 -> 0.4217120162 | AG19: 3.319263736 | AH19: 42.7757179 | AI19: 6.281213798 | AK19: 11 | AL19: 2034 | AM19: =IF('Input - Capacity Factors'!$C$3="Fueled",'AVOID NEW'!AI19,AH19) -> 42.7757179 | AN19: =IF('Input - Capacity Factors'!$C$3="Fueled",-PMT($D$37,$AK19,NPV($D$37,$AI$9:$AI19)),-PMT($D$37,$AK19,NPV($D$37,$AH$9:$AH19))) -> 35.23331391 | AO19: =IF('Input - Capacity Factors'!$C$3="Fueled",-PMT($D$37,$AK19,NPV($D$37,$AI$10:$AI20)),-PMT($D$37,$AK19,NPV($D$37,$AH$10:$AH20))) -> 35.61395205 | AP19: =IF('Input - Capacity Factors'!$C$3="Fueled",-PMT($D$37,$AK19,NPV($D$37,$AI$11:$AI21)),-PMT($D$37,$AK19,NPV($D$37,$AH$11:$AH21))) -> 36.56533093 | AQ19: =IF('Input - Capacity Factors'!$C$3="Fueled",-PMT($D$37,$AK19,NPV($D$37,$AI$12:$AI22)),-PMT($D$37,$AK19,NPV($D$37,$AH$12:$AH22))) -> 37.62552061 | AR19: =IF('Input - Capacity Factors'!$C$3="Fueled",-PMT($D$37,$AK19,NPV($D$37,$AI$13:$AI23)),-PMT($D$37,$AK19,NPV($D$37,$AH$13:$AH23))) -> 39.1886732 | AS19: =IF('Input - Capacity Factors'!$C$3="Fueled",-PMT($D$37,$AK19,NPV($D$37,$AI$14:$AI24)),-PMT($D$37,$AK19,NPV($D$37,$AH$14:$AH24))) -> 40.89446435
B20: =TEXT($D$13+1,"0000")&" on-line date:" -> 2025 on-line date: | D20: =AO28 -> 40.69619065 | G20: 2033 | H20: 3.684196 | I20: 4.789816 | J20: 34.0076936 | L20: 12 | M20: 2035 | N20: 5.490529 | O20: 38.9827559 | P20: 3.021189064 | Q20: 42.00394496 | R20: 58.76234888 | S20: =$D$39*(1+$D$47)^($M20-$D$43)*(1000/(365*24))/VLOOKUP('Input - Capacity Factors'!$C$3,'Input - Capacity Factors'!$A:$B,2,FALSE) -> 8.60292513 | T20: 67.365274 | U20: =-VLOOKUP($E$105,'Input - Transmission'!$A:$C,2)*(1+'Input - Transmission'!$C$11)^('AVOID NEW'!$M20-'Input - Transmission'!$C$10)*12*(1000/(365*24))*(1/VLOOKUP('Input - Capacity Factors'!$C$3,'Input - Capacity Factors'!$A:$D,2,FALSE)) -> -11.45526655 | V20: =-VLOOKUP($E$105,'Input - Transmission'!$A:$C,3)*Q20 -> -1.680157799 | X20: 12 | Y20: 2035 | Z20: 38.9827559 | AA20: 3.021189064 | AB20: =IF(VLOOKUP($Y20,'Input - Load and Resource'!$B$13:$C$42,2,FALSE)>=0,0,0) -> 0 | AC20: =IF(VLOOKUP($Y20,'Input - Load and Resource'!$B$13:$C$42,2,FALSE)>=0,0,0) -> 0 | AD20: 42.00394496 | AE20: =VLOOKUP($Y20,'Input - Load and Resource'!$B$13:$L$42,11,FALSE)*R20 -> 2.938117444 | AF20: =VLOOKUP($Y20,'Input - Load and Resource'!$B$13:$L$42,11,FALSE)*S20 -> 0.4301462565 | AG20: 3.3682637 | AH20: 45.37220866 | AI20: 6.389452764 | AK20: 12 | AL20: 2035 | AM20: =IF('Input - Capacity Factors'!$C$3="Fueled",'AVOID NEW'!AI20,AH20) -> 45.37220866 | AN20: =IF('Input - Capacity Factors'!$C$3="Fueled",-PMT($D$37,$AK20,NPV($D$37,$AI$9:$AI20)),-PMT($D$37,$AK20,NPV($D$37,$AH$9:$AH20))) -> 35.79191069 | AO20: =IF('Input - Capacity Factors'!$C$3="Fueled",-PMT($D$37,$AK20,NPV($D$37,$AI$10:$AI21)),-PMT($D$37,$AK20,NPV($D$37,$AH$10:$AH21))) -> 36.23259098 | AP20: =IF('Input - Capacity Factors'!$C$3="Fueled",-PMT($D$37,$AK20,NPV($D$37,$AI$11:$AI22)),-PMT($D$37,$AK20,NPV($D$37,$AH$11:$AH22))) -> 37.2075786 | AQ20: =IF('Input - Capacity Factors'!$C$3="Fueled",-PMT($D$37,$AK20,NPV($D$37,$AI$12:$AI23)),-PMT($D$37,$AK20,NPV($D$37,$AH$12:$AH23))) -> 38.37458999 | AR20: =IF('Input - Capacity Factors'!$C$3="Fueled",-PMT($D$37,$AK20,NPV($D$37,$AI$13:$AI24)),-PMT($D$37,$AK20,NPV($D$37,$AH$13:$AH24))) -> 39.86657418 | AS20: =IF('Input - Capacity Factors'!$C$3="Fueled",-PMT($D$37,$AK20,NPV($D$37,$AI$14:$AI25)),-PMT($D$37,$AK20,NPV($D$37,$AH$14:$AH25))) -> 41.66698401
B21: =TEXT($D$13+2,"0000")&" on-line date:" -> 2026 on-line date: | D21: =AP28 -> 41.85106931 | G21: 2034 | H21: 3.861104 | I21: 5.140071 | J21: 36.4945041 | L21: 13 | M21: 2036 | N21: 5.682118 | O21: 40.3430378 | P21: 3.081612845 | Q21: 43.42465064 | R21: 59.58502176 | S21: =$D$39*(1+$D$47)^($M21-$D$43)*(1000/(365*24))/VLOOKUP('Input - Capacity Factors'!$C$3,'Input - Capacity Factors'!$A:$B,2,FALSE) -> 8.774983632 | T21: 68.36000539 | U21: =-VLOOKUP($E$105,'Input - Transmission'!$A:$C,2)*(1+'Input - Transmission'!$C$11)^('AVOID NEW'!$M21-'Input - Transmission'!$C$10)*12*(1000/(365*24))*(1/VLOOKUP('Input - Capacity Factors'!$C$3,'Input - Capacity Factors'!$A:$D,2,FALSE)) -> -11.68437188 | V21: =-VLOOKUP($E$105,'Input - Transmission'!$A:$C,3)*Q21 -> -1.736986026 | X21: 13 | Y21: 2036 | Z21: 40.3430378 | AA21: 3.081612845 | AB21: =IF(VLOOKUP($Y21,'Input - Load and Resource'!$B$13:$C$42,2,FALSE)>=0,0,0) -> 0 | AC21: =IF(VLOOKUP($Y21,'Input - Load and Resource'!$B$13:$C$42,2,FALSE)>=0,0,0) -> 0 | AD21: 43.42465064 | AE21: =VLOOKUP($Y21,'Input - Load and Resource'!$B$13:$L$42,11,FALSE)*R21 -> 2.979251088 | AF21: =VLOOKUP($Y21,'Input - Load and Resource'!$B$13:$L$42,11,FALSE)*S21 -> 0.4387491816 | AG21: 3.41800027 | AH21: 46.84265091 | AI21: 6.499613115 | AK21: 13 | AL21: 2036 | AM21: =IF('Input - Capacity Factors'!$C$3="Fueled",'AVOID NEW'!AI21,AH21) -> 46.84265091 | AN21: =IF('Input - Capacity Factors'!$C$3="Fueled",-PMT($D$37,$AK21,NPV($D$37,$AI$9:$AI21)),-PMT($D$37,$AK21,NPV($D$37,$AH$9:$AH21))) -> 36.33186599 | AO21: =IF('Input - Capacity Factors'!$C$3="Fueled",-PMT($D$37,$AK21,NPV($D$37,$AI$10:$AI22)),-PMT($D$37,$AK21,NPV($D$37,$AH$10:$AH22))) -> 36.81843757 | AP21: =IF('Input - Capacity Factors'!$C$3="Fueled",-PMT($D$37,$AK21,NPV($D$37,$AI$11:$AI23)),-PMT($D$37,$AK21,NPV($D$37,$AH$11:$AH23))) -> 37.89232497 | AQ21: =IF('Input - Capacity Factors'!$C$3="Fueled",-PMT($D$37,$AK21,NPV($D$37,$AI$12:$AI24)),-PMT($D$37,$AK21,NPV($D$37,$AH$12:$AH24))) -> 39.01557548 | AR21: =IF('Input - Capacity Factors'!$C$3="Fueled",-PMT($D$37,$AK21,NPV($D$37,$AI$13:$AI25)),-PMT($D$37,$AK21,NPV($D$37,$AH$13:$AH25))) -> 40.6019208 | AS21: =IF('Input - Capacity Factors'!$C$3="Fueled",-PMT($D$37,$AK21,NPV($D$37,$AI$14:$AI26)),-PMT($D$37,$AK21,NPV($D$37,$AH$14:$AH26))) -> 42.41571176
B22: =TEXT($D$13+3,"0000")&" on-line date:" -> 2027 on-line date: | D22: =AQ28 -> 43.08389442 | G22: 2035 | H22: 4.029991 | I22: 5.490529 | J22: 38.9827559 | L22: 14 | M22: 2037 | N22: 5.860678 | O22: 41.6108138 | P22: 3.143245102 | Q22: 44.7540589 | R22: 60.41921206 | S22: =$D$39*(1+$D$47)^($M22-$D$43)*(1000/(365*24))/VLOOKUP('Input - Capacity Factors'!$C$3,'Input - Capacity Factors'!$A:$B,2,FALSE) -> 8.950483305 | T22: 69.36969537 | U22: =-VLOOKUP($E$105,'Input - Transmission'!$A:$C,2)*(1+'Input - Transmission'!$C$11)^('AVOID NEW'!$M22-'Input - Transmission'!$C$10)*12*(1000/(365*24))*(1/VLOOKUP('Input - Capacity Factors'!$C$3,'Input - Capacity Factors'!$A:$D,2,FALSE)) -> -11.91805932 | V22: =-VLOOKUP($E$105,'Input - Transmission'!$A:$C,3)*Q22 -> -1.790162356 | X22: 14 | Y22: 2037 | Z22: 41.6108138 | AA22: 3.143245102 | AB22: =IF(VLOOKUP($Y22,'Input - Load and Resource'!$B$13:$C$42,2,FALSE)>=0,0,0) -> 0 | AC22: =IF(VLOOKUP($Y22,'Input - Load and Resource'!$B$13:$C$42,2,FALSE)>=0,0,0) -> 0 | AD22: 44.7540589 | AE22: =VLOOKUP($Y22,'Input - Load and Resource'!$B$13:$L$42,11,FALSE)*R22 -> 3.020960603 | AF22: =VLOOKUP($Y22,'Input - Load and Resource'!$B$13:$L$42,11,FALSE)*S22 -> 0.4475241653 | AG22: 3.468484769 | AH22: 48.22254367 | AI22: 6.61172987 | AK22: 14 | AL22: 2037 | AM22: =IF('Input - Capacity Factors'!$C$3="Fueled",'AVOID NEW'!AI22,AH22) -> 48.22254367 | AN22: =IF('Input - Capacity Factors'!$C$3="Fueled",-PMT($D$37,$AK22,NPV($D$37,$AI$9:$AI22)),-PMT($D$37,$AK22,NPV($D$37,$AH$9:$AH22))) -> 36.84999635 | AO22: =IF('Input - Capacity Factors'!$C$3="Fueled",-PMT($D$37,$AK22,NPV($D$37,$AI$10:$AI23)),-PMT($D$37,$AK22,NPV($D$37,$AH$10:$AH23))) -> 37.44604894 | AP22: =IF('Input - Capacity Factors'!$C$3="Fueled",-PMT($D$37,$AK22,NPV($D$37,$AI$11:$AI24)),-PMT($D$37,$AK22,NPV($D$37,$AH$11:$AH24))) -> 38.48496834 | AQ22: =IF('Input - Capacity Factors'!$C$3="Fueled",-PMT($D$37,$AK22,NPV($D$37,$AI$12:$AI25)),-PMT($D$37,$AK22,NPV($D$37,$AH$12:$AH25))) -> 39.70843721 | AR22: =IF('Input - Capacity Factors'!$C$3="Fueled",-PMT($D$37,$AK22,NPV($D$37,$AI$13:$AI26)),-PMT($D$37,$AK22,NPV($D$37,$AH$13:$AH26))) -> 41.31604354 | AS22: =IF('Input - Capacity Factors'!$C$3="Fueled",-PMT($D$37,$AK22,NPV($D$37,$AI$14:$AI27)),-PMT($D$37,$AK22,NPV($D$37,$AH$14:$AH27))) -> 43.10754083
B23: =TEXT($D$13+4,"0000")&" on-line date:" -> 2028 on-line date: | D23: =AR28 -> 44.60873599 | G23: 2036 | H23: 4.076721 | I23: 5.682118 | J23: 40.3430378 | L23: 15 | M23: 2038 | N23: 6.267011 | O23: 44.4957781 | P23: 3.206110004 | Q23: 47.7018881 | R23: 61.26508103 | S23: =$D$39*(1+$D$47)^($M23-$D$43)*(1000/(365*24))/VLOOKUP('Input - Capacity Factors'!$C$3,'Input - Capacity Factors'!$A:$B,2,FALSE) -> 9.129492971 | T23: 70.394574 | U23: =-VLOOKUP($E$105,'Input - Transmission'!$A:$C,2)*(1+'Input - Transmission'!$C$11)^('AVOID NEW'!$M23-'Input - Transmission'!$C$10)*12*(1000/(365*24))*(1/VLOOKUP('Input - Capacity Factors'!$C$3,'Input - Capacity Factors'!$A:$D,2,FALSE)) -> -12.15642051 | V23: =-VLOOKUP($E$105,'Input - Transmission'!$A:$C,3)*Q23 -> -1.908075524 | X23: 15 | Y23: 2038 | Z23: 44.4957781 | AA23: 3.206110004 | AB23: =IF(VLOOKUP($Y23,'Input - Load and Resource'!$B$13:$C$42,2,FALSE)>=0,0,0) -> 0 | AC23: =IF(VLOOKUP($Y23,'Input - Load and Resource'!$B$13:$C$42,2,FALSE)>=0,0,0) -> 0 | AD23: 47.7018881 | AE23: =VLOOKUP($Y23,'Input - Load and Resource'!$B$13:$L$42,11,FALSE)*R23 -> 3.063254052 | AF23: =VLOOKUP($Y23,'Input - Load and Resource'!$B$13:$L$42,11,FALSE)*S23 -> 0.4564746486 | AG23: 3.5197287 | AH23: 51.2216168 | AI23: 6.725838704 | AK23: 15 | AL23: 2038 | AM23: =IF('Input - Capacity Factors'!$C$3="Fueled",'AVOID NEW'!AI23,AH23) -> 51.2216168 | AN23: =IF('Input - Capacity Factors'!$C$3="Fueled",-PMT($D$37,$AK23,NPV($D$37,$AI$9:$AI23)),-PMT($D$37,$AK23,NPV($D$37,$AH$9:$AH23))) -> 37.41111753 | AO23: =IF('Input - Capacity Factors'!$C$3="Fueled",-PMT($D$37,$AK23,NPV($D$37,$AI$10:$AI24)),-PMT($D$37,$AK23,NPV($D$37,$AH$10:$AH24))) -> 37.99449448 | AP23: =IF('Input - Capacity Factors'!$C$3="Fueled",-PMT($D$37,$AK23,NPV($D$37,$AI$11:$AI25)),-PMT($D$37,$AK23,NPV($D$37,$AH$11:$AH25))) -> 39.1265043 | AQ23: =IF('Input - Capacity Factors'!$C$3="Fueled",-PMT($D$37,$AK23,NPV($D$37,$AI$12:$AI26)),-PMT($D$37,$AK23,NPV($D$37,$AH$12:$AH26))) -> 40.38319152 | AR23: =IF('Input - Capacity Factors'!$C$3="Fueled",-PMT($D$37,$AK23,NPV($D$37,$AI$13:$AI27)),-PMT($D$37,$AK23,NPV($D$37,$AH$13:$AH27))) -> 41.97887246 | AS23: =IF('Input - Capacity Factors'!$C$3="Fueled",-PMT($D$37,$AK23,NPV($D$37,$AI$14:$AI28)),-PMT($D$37,$AK23,NPV($D$37,$AH$14:$AH28))) -> 43.72903512
B24: =TEXT($D$13+5,"0000")&" on-line date:" -> 2029 on-line date: | D24: =AS28 -> 46.28356154 | G24: 2037 | H24: 4.112775 | I24: 5.860678 | J24: 41.6108138 | L24: 16 | M24: 2039 | N24: 6.288879 | O24: 44.6510409 | P24: 3.270232204 | Q24: 47.9212731 | R24: 62.12279217 | S24: =$D$39*(1+$D$47)^($M24-$D$43)*(1000/(365*24))/VLOOKUP('Input - Capacity Factors'!$C$3,'Input - Capacity Factors'!$A:$B,2,FALSE) -> 9.31208283 | T24: 71.434875 | U24: =-VLOOKUP($E$105,'Input - Transmission'!$A:$C,2)*(1+'Input - Transmission'!$C$11)^('AVOID NEW'!$M24-'Input - Transmission'!$C$10)*12*(1000/(365*24))*(1/VLOOKUP('Input - Capacity Factors'!$C$3,'Input - Capacity Factors'!$A:$D,2,FALSE)) -> -12.39954892 | V24: =-VLOOKUP($E$105,'Input - Transmission'!$A:$C,3)*Q24 -> -1.916850924 | X24: 16 | Y24: 2039 | Z24: 44.6510409 | AA24: 3.270232204 | AB24: =IF(VLOOKUP($Y24,'Input - Load and Resource'!$B$13:$C$42,2,FALSE)>=0,0,0) -> 0 | AC24: =IF(VLOOKUP($Y24,'Input - Load and Resource'!$B$13:$C$42,2,FALSE)>=0,0,0) -> 0 | AD24: 47.9212731 | AE24: =VLOOKUP($Y24,'Input - Load and Resource'!$B$13:$L$42,11,FALSE)*R24 -> 3.106139608 | AF24: =VLOOKUP($Y24,'Input - Load and Resource'!$B$13:$L$42,11,FALSE)*S24 -> 0.4656041415 | AG24: 3.57174375 | AH24: 51.49301685 | AI24: 6.841975954 | AK24: 16 | AL24: 2039 | AM24: =IF('Input - Capacity Factors'!$C$3="Fueled",'AVOID NEW'!AI24,AH24) -> 51.49301685 | AN24: =IF('Input - Capacity Factors'!$C$3="Fueled",-PMT($D$37,$AK24,NPV($D$37,$AI$9:$AI24)),-PMT($D$37,$AK24,NPV($D$37,$AH$9:$AH24))) -> 37.90576676 | AO24: =IF('Input - Capacity Factors'!$C$3="Fueled",-PMT($D$37,$AK24,NPV($D$37,$AI$10:$AI25)),-PMT($D$37,$AK24,NPV($D$37,$AH$10:$AH25))) -> 38.58889639 | AP24: =IF('Input - Capacity Factors'!$C$3="Fueled",-PMT($D$37,$AK24,NPV($D$37,$AI$11:$AI26)),-PMT($D$37,$AK24,NPV($D$37,$AH$11:$AH26))) -> 39.75400455 | AQ24: =IF('Input - Capacity Factors'!$C$3="Fueled",-PMT($D$37,$AK24,NPV($D$37,$AI$12:$AI27)),-PMT($D$37,$AK24,NPV($D$37,$AH$12:$AH27))) -> 41.0122894 | AR24: =IF('Input - Capacity Factors'!$C$3="Fueled",-PMT($D$37,$AK24,NPV($D$37,$AI$13:$AI28)),-PMT($D$37,$AK24,NPV($D$37,$AH$13:$AH28))) -> 42.577661 | AS24: =IF('Input - Capacity Factors'!$C$3="Fueled",-PMT($D$37,$AK24,NPV($D$37,$AI$14:$AI29)),-PMT($D$37,$AK24,NPV($D$37,$AH$14:$AH29))) -> 44.30285117
G25: 2038 | H25: 4.302787 | I25: 6.267011 | J25: 44.4957781 | L25: 17 | M25: 2040 | N25: 6.754369 | O25: 47.9560199 | P25: 3.335636848 | Q25: 51.29165675 | R25: 62.99251126 | S25: =$D$39*(1+$D$47)^($M25-$D$43)*(1000/(365*24))/VLOOKUP('Input - Capacity Factors'!$C$3,'Input - Capacity Factors'!$A:$B,2,FALSE) -> 9.498324487 | T25: 72.49083574 | U25: =-VLOOKUP($E$105,'Input - Transmission'!$A:$C,2)*(1+'Input - Transmission'!$C$11)^('AVOID NEW'!$M25-'Input - Transmission'!$C$10)*12*(1000/(365*24))*(1/VLOOKUP('Input - Capacity Factors'!$C$3,'Input - Capacity Factors'!$A:$D,2,FALSE)) -> -12.6475399 | V25: =-VLOOKUP($E$105,'Input - Transmission'!$A:$C,3)*Q25 -> -2.05166627 | X25: 17 | Y25: 2040 | Z25: 47.9560199 | AA25: 3.335636848 | AB25: =IF(VLOOKUP($Y25,'Input - Load and Resource'!$B$13:$C$42,2,FALSE)>=0,0,0) -> 0 | AC25: =IF(VLOOKUP($Y25,'Input - Load and Resource'!$B$13:$C$42,2,FALSE)>=0,0,0) -> 0 | AD25: 51.29165675 | AE25: =VLOOKUP($Y25,'Input - Load and Resource'!$B$13:$L$42,11,FALSE)*R25 -> 3.149625563 | AF25: =VLOOKUP($Y25,'Input - Load and Resource'!$B$13:$L$42,11,FALSE)*S25 -> 0.4749162244 | AG25: 3.624541787 | AH25: 54.91619854 | AI25: 6.960178635 | AK25: 17 | AL25: 2040 | AM25: =IF('Input - Capacity Factors'!$C$3="Fueled",'AVOID NEW'!AI25,AH25) -> 54.91619854 | AN25: =IF('Input - Capacity Factors'!$C$3="Fueled",-PMT($D$37,$AK25,NPV($D$37,$AI$9:$AI25)),-PMT($D$37,$AK25,NPV($D$37,$AH$9:$AH25))) -> 38.4452399 | AO25: =IF('Input - Capacity Factors'!$C$3="Fueled",-PMT($D$37,$AK25,NPV($D$37,$AI$10:$AI26)),-PMT($D$37,$AK25,NPV($D$37,$AH$10:$AH26))) -> 39.17248846 | AP25: =IF('Input - Capacity Factors'!$C$3="Fueled",-PMT($D$37,$AK25,NPV($D$37,$AI$11:$AI27)),-PMT($D$37,$AK25,NPV($D$37,$AH$11:$AH27))) -> 40.3419434 | AQ25: =IF('Input - Capacity Factors'!$C$3="Fueled",-PMT($D$37,$AK25,NPV($D$37,$AI$12:$AI28)),-PMT($D$37,$AK25,NPV($D$37,$AH$12:$AH28))) -> 41.58356357 | AR25: =IF('Input - Capacity Factors'!$C$3="Fueled",-PMT($D$37,$AK25,NPV($D$37,$AI$13:$AI29)),-PMT($D$37,$AK25,NPV($D$37,$AH$13:$AH29))) -> 43.13224911 | AS25: =IF('Input - Capacity Factors'!$C$3="Fueled",-PMT($D$37,$AK25,NPV($D$37,$AI$14:$AI30)),-PMT($D$37,$AK25,NPV($D$37,$AH$14:$AH30))) -> 44.84070071
G26: 2039 | H26: 4.225013 | I26: 6.288879 | J26: 44.6510409 | L26: 18 | M26: 2041 | N26: 7.029575 | O26: 49.9099825 | P26: 3.402349585 | Q26: 53.31233208 | R26: 63.87440642 | S26: =$D$39*(1+$D$47)^($M26-$D$43)*(1000/(365*24))/VLOOKUP('Input - Capacity Factors'!$C$3,'Input - Capacity Factors'!$A:$B,2,FALSE) -> 9.688290977 | T26: 73.56269739 | U26: =-VLOOKUP($E$105,'Input - Transmission'!$A:$C,2)*(1+'Input - Transmission'!$C$11)^('AVOID NEW'!$M26-'Input - Transmission'!$C$10)*12*(1000/(365*24))*(1/VLOOKUP('Input - Capacity Factors'!$C$3,'Input - Capacity Factors'!$A:$D,2,FALSE)) -> -12.90049069 | V26: =-VLOOKUP($E$105,'Input - Transmission'!$A:$C,3)*Q26 -> -2.132493283 | X26: 18 | Y26: 2041 | Z26: 49.9099825 | AA26: 3.402349585 | AB26: =IF(VLOOKUP($Y26,'Input - Load and Resource'!$B$13:$C$42,2,FALSE)>=0,0,0) -> 0 | AC26: =IF(VLOOKUP($Y26,'Input - Load and Resource'!$B$13:$C$42,2,FALSE)>=0,0,0) -> 0 | AD26: 53.31233208 | AE26: =VLOOKUP($Y26,'Input - Load and Resource'!$B$13:$L$42,11,FALSE)*R26 -> 3.193720321 | AF26: =VLOOKUP($Y26,'Input - Load and Resource'!$B$13:$L$42,11,FALSE)*S26 -> 0.4844145488 | AG26: 3.67813487 | AH26: 56.99046695 | AI26: 7.080484455 | AK26: 18 | AL26: 2041 | AM26: =IF('Input - Capacity Factors'!$C$3="Fueled",'AVOID NEW'!AI26,AH26) -> 56.99046695 | AN26: =IF('Input - Capacity Factors'!$C$3="Fueled",-PMT($D$37,$AK26,NPV($D$37,$AI$9:$AI26)),-PMT($D$37,$AK26,NPV($D$37,$AH$9:$AH26))) -> 38.97789378 | AO26: =IF('Input - Capacity Factors'!$C$3="Fueled",-PMT($D$37,$AK26,NPV($D$37,$AI$10:$AI27)),-PMT($D$37,$AK26,NPV($D$37,$AH$10:$AH27))) -> 39.72165514 | AP26: =IF('Input - Capacity Factors'!$C$3="Fueled",-PMT($D$37,$AK26,NPV($D$37,$AI$11:$AI28)),-PMT($D$37,$AK26,NPV($D$37,$AH$11:$AH28))) -> 40.87856914 | AQ26: =IF('Input - Capacity Factors'!$C$3="Fueled",-PMT($D$37,$AK26,NPV($D$37,$AI$12:$AI29)),-PMT($D$37,$AK26,NPV($D$37,$AH$12:$AH29))) -> 42.1143764 | AR26: =IF('Input - Capacity Factors'!$C$3="Fueled",-PMT($D$37,$AK26,NPV($D$37,$AI$13:$AI30)),-PMT($D$37,$AK26,NPV($D$37,$AH$13:$AH30))) -> 43.65297227 | AS26: =IF('Input - Capacity Factors'!$C$3="Fueled",-PMT($D$37,$AK26,NPV($D$37,$AI$14:$AI31)),-PMT($D$37,$AK26,NPV($D$37,$AH$14:$AH31))) -> 45.34542424
B27: INPUT | C27: DATA | D27: =$E$105 -> IPCO | G27: 2040 | H27: 4.438752 | I27: 6.754369 | J27: 47.9560199 | L27: 19 | M27: 2042 | N27: 7.195733 | O27: 51.0897043 | P27: 3.470396577 | Q27: 54.56010088 | R27: 64.76864811 | S27: =$D$39*(1+$D$47)^($M27-$D$43)*(1000/(365*24))/VLOOKUP('Input - Capacity Factors'!$C$3,'Input - Capacity Factors'!$A:$B,2,FALSE) -> 9.882056796 | T27: 74.6507049 | U27: =-VLOOKUP($E$105,'Input - Transmission'!$A:$C,2)*(1+'Input - Transmission'!$C$11)^('AVOID NEW'!$M27-'Input - Transmission'!$C$10)*12*(1000/(365*24))*(1/VLOOKUP('Input - Capacity Factors'!$C$3,'Input - Capacity Factors'!$A:$D,2,FALSE)) -> -13.15850051 | V27: =-VLOOKUP($E$105,'Input - Transmission'!$A:$C,3)*Q27 -> -2.182404035 | X27: 19 | Y27: 2042 | Z27: 51.0897043 | AA27: 3.470396577 | AB27: =IF(VLOOKUP($Y27,'Input - Load and Resource'!$B$13:$C$42,2,FALSE)>=0,0,0) -> 0 | AC27: =IF(VLOOKUP($Y27,'Input - Load and Resource'!$B$13:$C$42,2,FALSE)>=0,0,0) -> 0 | AD27: 54.56010088 | AE27: =VLOOKUP($Y27,'Input - Load and Resource'!$B$13:$L$42,11,FALSE)*R27 -> 3.238432405 | AF27: =VLOOKUP($Y27,'Input - Load and Resource'!$B$13:$L$42,11,FALSE)*S27 -> 0.4941028398 | AG27: 3.732535245 | AH27: 58.29263612 | AI27: 7.202931822 | AK27: 19 | AL27: 2042 | AM27: =IF('Input - Capacity Factors'!$C$3="Fueled",'AVOID NEW'!AI27,AH27) -> 58.29263612 | AN27: =IF('Input - Capacity Factors'!$C$3="Fueled",-PMT($D$37,$AK27,NPV($D$37,$AI$9:$AI27)),-PMT($D$37,$AK27,NPV($D$37,$AH$9:$AH27))) -> 39.48167138 | AO27: =IF('Input - Capacity Factors'!$C$3="Fueled",-PMT($D$37,$AK27,NPV($D$37,$AI$10:$AI28)),-PMT($D$37,$AK27,NPV($D$37,$AH$10:$AH28))) -> 40.2251474 | AP27: =IF('Input - Capacity Factors'!$C$3="Fueled",-PMT($D$37,$AK27,NPV($D$37,$AI$11:$AI29)),-PMT($D$37,$AK27,NPV($D$37,$AH$11:$AH29))) -> 41.378992 | AQ27: =IF('Input - Capacity Factors'!$C$3="Fueled",-PMT($D$37,$AK27,NPV($D$37,$AI$12:$AI30)),-PMT($D$37,$AK27,NPV($D$37,$AH$12:$AH30))) -> 42.61379742 | AR27: =IF('Input - Capacity Factors'!$C$3="Fueled",-PMT($D$37,$AK27,NPV($D$37,$AI$13:$AI31)),-PMT($D$37,$AK27,NPV($D$37,$AH$13:$AH31))) -> 44.1422942 | AS27: =IF('Input - Capacity Factors'!$C$3="Fueled",-PMT($D$37,$AK27,NPV($D$37,$AI$14:$AI32)),-PMT($D$37,$AK27,NPV($D$37,$AH$14:$AH32))) -> 45.82645437
B28: DATA | C28: SOURCE | D28: DATA | G28: 2041 | H28: 4.518301 | I28: 7.029575 | J28: 49.9099825 | L28: 20 | M28: 2043 | N28: 7.281394 | O28: 51.6978974 | P28: 3.539804508 | Q28: 55.23770191 | R28: 65.67540918 | S28: =$D$39*(1+$D$47)^($M28-$D$43)*(1000/(365*24))/VLOOKUP('Input - Capacity Factors'!$C$3,'Input - Capacity Factors'!$A:$B,2,FALSE) -> 10.07969793 | T28: 75.75510711 | U28: =-VLOOKUP($E$105,'Input - Transmission'!$A:$C,2)*(1+'Input - Transmission'!$C$11)^('AVOID NEW'!$M28-'Input - Transmission'!$C$10)*12*(1000/(365*24))*(1/VLOOKUP('Input - Capacity Factors'!$C$3,'Input - Capacity Factors'!$A:$D,2,FALSE)) -> -13.42167052 | V28: =-VLOOKUP($E$105,'Input - Transmission'!$A:$C,3)*Q28 -> -2.209508076 | X28: 20 | Y28: 2043 | Z28: 51.6978974 | AA28: 3.539804508 | AB28: =IF(VLOOKUP($Y28,'Input - Load and Resource'!$B$13:$C$42,2,FALSE)>=0,0,0) -> 0 | AC28: =IF(VLOOKUP($Y28,'Input - Load and Resource'!$B$13:$C$42,2,FALSE)>=0,0,0) -> 0 | AD28: 55.23770191 | AE28: =VLOOKUP($Y28,'Input - Load and Resource'!$B$13:$L$42,11,FALSE)*R28 -> 3.283770459 | AF28: =VLOOKUP($Y28,'Input - Load and Resource'!$B$13:$L$42,11,FALSE)*S28 -> 0.5039848966 | AG28: 3.787755356 | AH28: 59.02545726 | AI28: 7.327559864 | AK28: 20 | AL28: 2043 | AM28: =IF('Input - Capacity Factors'!$C$3="Fueled",'AVOID NEW'!AI28,AH28) -> 59.02545726 | AN28: =IF('Input - Capacity Factors'!$C$3="Fueled",-PMT($D$37,$AK28,NPV($D$37,$AI$9:$AI28)),-PMT($D$37,$AK28,NPV($D$37,$AH$9:$AH28))) -> 39.94569256 | AO28: =IF('Input - Capacity Factors'!$C$3="Fueled",-PMT($D$37,$AK28,NPV($D$37,$AI$10:$AI29)),-PMT($D$37,$AK28,NPV($D$37,$AH$10:$AH29))) -> 40.69619065 | AP28: =IF('Input - Capacity Factors'!$C$3="Fueled",-PMT($D$37,$AK28,NPV($D$37,$AI$11:$AI30)),-PMT($D$37,$AK28,NPV($D$37,$AH$11:$AH30))) -> 41.85106931 | AQ28: =IF('Input - Capacity Factors'!$C$3="Fueled",-PMT($D$37,$AK28,NPV($D$37,$AI$12:$AI31)),-PMT($D$37,$AK28,NPV($D$37,$AH$12:$AH31))) -> 43.08389442 | AR28: =IF('Input - Capacity Factors'!$C$3="Fueled",-PMT($D$37,$AK28,NPV($D$37,$AI$13:$AI32)),-PMT($D$37,$AK28,NPV($D$37,$AH$13:$AH32))) -> 44.60873599 | AS28: =IF('Input - Capacity Factors'!$C$3="Fueled",-PMT($D$37,$AK28,NPV($D$37,$AI$14:$AI33)),-PMT($D$37,$AK28,NPV($D$37,$AH$14:$AH33))) -> 46.28356154
C29: N/A | G29: 2042 | H29: 4.522941 | I29: 7.195733 | J29: 51.0897043 | L29: 21 | M29: 2044 | N29: 7.409899 | O29: 52.6102829 | P29: 3.610600598 | Q29: =P29+O29 -> 56.2208835 | R29: 66.59486491 | S29: =$D$39*(1+$D$47)^($M29-$D$43)*(1000/(365*24))/VLOOKUP('Input - Capacity Factors'!$C$3,'Input - Capacity Factors'!$A:$B,2,FALSE) -> 10.28129189 | T29: 76.8761568 | U29: =-VLOOKUP($E$105,'Input - Transmission'!$A:$C,2)*(1+'Input - Transmission'!$C$11)^('AVOID NEW'!$M29-'Input - Transmission'!$C$10)*12*(1000/(365*24))*(1/VLOOKUP('Input - Capacity Factors'!$C$3,'Input - Capacity Factors'!$A:$D,2,FALSE)) -> -13.69010393 | V29: =-VLOOKUP($E$105,'Input - Transmission'!$A:$C,3)*Q29 -> -2.24883534 | X29: 21 | Y29: 2044 | Z29: 52.6102829 | AA29: 3.610600598 | AB29: =IF(VLOOKUP($Y29,'Input - Load and Resource'!$B$13:$C$42,2,FALSE)>=0,0,0) -> 0 | AC29: =IF(VLOOKUP($Y29,'Input - Load and Resource'!$B$13:$C$42,2,FALSE)>=0,0,0) -> 0 | AD29: 56.2208835 | AE29: =VLOOKUP($Y29,'Input - Load and Resource'!$B$13:$L$42,11,FALSE)*R29 -> 3.329743245 | AF29: =VLOOKUP($Y29,'Input - Load and Resource'!$B$13:$L$42,11,FALSE)*S29 -> 0.5140645946 | AG29: 3.84380784 | AH29: 60.06469134 | AI29: 7.454408438 | AK29: 21 | AL29: 2044 | AM29: =IF('Input - Capacity Factors'!$C$3="Fueled",'AVOID NEW'!AI29,AH29) -> 60.06469134 | AN29: Eligibility for these rates is limited to wind and solar projects 100 kW or smaller, and to non-wind and non-solar projects smaller than 10 aMW.
C30: N/A | G30: 2043 | H30: 4.474222 | I30: 7.281394 | J30: 51.6978974 | L30: 22 | M30: 2045 | N30: 7.560362 | O30: 53.6785702 | P30: 3.68281261 | Q30: 57.36138281 | R30: 67.52719302 | S30: =$D$39*(1+$D$47)^($M30-$D$43)*(1000/(365*24))/VLOOKUP('Input - Capacity Factors'!$C$3,'Input - Capacity Factors'!$A:$B,2,FALSE) -> 10.48691773 | T30: 78.01411074 | U30: =-VLOOKUP($E$105,'Input - Transmission'!$A:$C,2)*(1+'Input - Transmission'!$C$11)^('AVOID NEW'!$M30-'Input - Transmission'!$C$10)*12*(1000/(365*24))*(1/VLOOKUP('Input - Capacity Factors'!$C$3,'Input - Capacity Factors'!$A:$D,2,FALSE)) -> -13.96390601 | V30: =-VLOOKUP($E$105,'Input - Transmission'!$A:$C,3)*Q30 -> -2.294455312 | X30: 22 | Y30: 2045 | Z30: 53.6785702 | AA30: 3.68281261 | AB30: =IF(VLOOKUP($Y30,'Input - Load and Resource'!$B$13:$C$42,2,FALSE)>=0,0,0) -> 0 | AC30: =IF(VLOOKUP($Y30,'Input - Load and Resource'!$B$13:$C$42,2,FALSE)>=0,0,0) -> 0 | AD30: 57.36138281 | AE30: =VLOOKUP($Y30,'Input - Load and Resource'!$B$13:$L$42,11,FALSE)*R30 -> 3.376359651 | AF30: =VLOOKUP($Y30,'Input - Load and Resource'!$B$13:$L$42,11,FALSE)*S30 -> 0.5243458864 | AG30: 3.900705537 | AH30: 61.26208835 | AI30: 7.583518148 | AK30: 22 | AL30: 2045 | AM30: =IF('Input - Capacity Factors'!$C$3="Fueled",'AVOID NEW'!AI30,AH30) -> 61.26208835
C31: N/A | G31: 2044 | H31: 4.450418 | I31: 7.409899 | J31: 52.6102829 | L31: 23 | M31: 2046 | N31: 7.704022 | O31: 54.6985562 | P31: 3.756468863 | Q31: 58.45502506 | R31: 68.47257372 | S31: =$D$39*(1+$D$47)^($M31-$D$43)*(1000/(365*24))/VLOOKUP('Input - Capacity Factors'!$C$3,'Input - Capacity Factors'!$A:$B,2,FALSE) -> 10.69665608 | T31: 79.1692298 | U31: =-VLOOKUP($E$105,'Input - Transmission'!$A:$C,2)*(1+'Input - Transmission'!$C$11)^('AVOID NEW'!$M31-'Input - Transmission'!$C$10)*12*(1000/(365*24))*(1/VLOOKUP('Input - Capacity Factors'!$C$3,'Input - Capacity Factors'!$A:$D,2,FALSE)) -> -14.24318413 | V31: =-VLOOKUP($E$105,'Input - Transmission'!$A:$C,3)*Q31 -> -2.338201003 | X31: 23 | Y31: 2046 | Z31: 54.6985562 | AA31: 3.756468863 | AB31: =IF(VLOOKUP($Y31,'Input - Load and Resource'!$B$13:$C$42,2,FALSE)>=0,0,0) -> 0 | AC31: =IF(VLOOKUP($Y31,'Input - Load and Resource'!$B$13:$C$42,2,FALSE)>=0,0,0) -> 0 | AD31: 58.45502506 | AE31: =VLOOKUP($Y31,'Input - Load and Resource'!$B$13:$L$42,11,FALSE)*R31 -> 3.423628686 | AF31: =VLOOKUP($Y31,'Input - Load and Resource'!$B$13:$L$42,11,FALSE)*S31 -> 0.5348328042 | AG31: 3.95846149 | AH31: 62.41348655 | AI31: 7.714930353 | AK31: 23 | AL31: 2046 | AM31: =IF('Input - Capacity Factors'!$C$3="Fueled",'AVOID NEW'!AI31,AH31) -> 62.41348655
B32: "SAR" PLANT LIFE (YEARS): | C32: N/A | D32: 30 | G32: 2045 | H32: 4.437391 | I32: 7.560362 | J32: 53.6785702 | L32: 24 | M32: 2047 | N32: 7.878781 | O32: 55.9393451 | P32: 3.83159824 | Q32: 59.77094334 | R32: 69.43118975 | S32: =$D$39*(1+$D$47)^($M32-$D$43)*(1000/(365*24))/VLOOKUP('Input - Capacity Factors'!$C$3,'Input - Capacity Factors'!$A:$B,2,FALSE) -> 10.9105892 | T32: 80.34177895 | U32: =-VLOOKUP($E$105,'Input - Transmission'!$A:$C,2)*(1+'Input - Transmission'!$C$11)^('AVOID NEW'!$M32-'Input - Transmission'!$C$10)*12*(1000/(365*24))*(1/VLOOKUP('Input - Capacity Factors'!$C$3,'Input - Capacity Factors'!$A:$D,2,FALSE)) -> -14.52804781 | V32: =-VLOOKUP($E$105,'Input - Transmission'!$A:$C,3)*Q32 -> -2.390837734 | X32: 24 | Y32: 2047 | Z32: 55.9393451 | AA32: 3.83159824 | AB32: =IF(VLOOKUP($Y32,'Input - Load and Resource'!$B$13:$C$42,2,FALSE)>=0,0,0) -> 0 | AC32: =IF(VLOOKUP($Y32,'Input - Load and Resource'!$B$13:$C$42,2,FALSE)>=0,0,0) -> 0 | AD32: 59.77094334 | AE32: =VLOOKUP($Y32,'Input - Load and Resource'!$B$13:$L$42,11,FALSE)*R32 -> 3.471559488 | AF32: =VLOOKUP($Y32,'Input - Load and Resource'!$B$13:$L$42,11,FALSE)*S32 -> 0.5455294603 | AG32: 4.017088948 | AH32: 63.78803229 | AI32: 7.848687188 | AK32: 24 | AL32: 2047 | AM32: =IF('Input - Capacity Factors'!$C$3="Fueled",'AVOID NEW'!AI32,AH32) -> 63.78803229
B33: "SAR" PLANT COST ($/kW): | C33: N/A | D33: 1313 | G33: 2046 | H33: 4.41749 | I33: 7.704022 | J33: 54.6985562 | L33: 25 | M33: 2048 | N33: 8.041437 | O33: 57.0942027 | P33: 3.908230205 | Q33: 61.0024329 | R33: 70.40322641 | S33: =$D$39*(1+$D$47)^($M33-$D$43)*(1000/(365*24))/VLOOKUP('Input - Capacity Factors'!$C$3,'Input - Capacity Factors'!$A:$B,2,FALSE) -> 11.12880099 | T33: 81.5320274 | U33: =-VLOOKUP($E$105,'Input - Transmission'!$A:$C,2)*(1+'Input - Transmission'!$C$11)^('AVOID NEW'!$M33-'Input - Transmission'!$C$10)*12*(1000/(365*24))*(1/VLOOKUP('Input - Capacity Factors'!$C$3,'Input - Capacity Factors'!$A:$D,2,FALSE)) -> -14.81860877 | V33: =-VLOOKUP($E$105,'Input - Transmission'!$A:$C,3)*Q33 -> -2.440097316 | X33: 25 | Y33: 2048 | Z33: 57.0942027 | AA33: 3.908230205 | AB33: =IF(VLOOKUP($Y33,'Input - Load and Resource'!$B$13:$C$42,2,FALSE)>=0,0,0) -> 0 | AC33: =IF(VLOOKUP($Y33,'Input - Load and Resource'!$B$13:$C$42,2,FALSE)>=0,0,0) -> 0 | AD33: 61.0024329 | AE33: =VLOOKUP($Y33,'Input - Load and Resource'!$B$13:$L$42,11,FALSE)*R33 -> 3.52016132 | AF33: =VLOOKUP($Y33,'Input - Load and Resource'!$B$13:$L$42,11,FALSE)*S33 -> 0.5564400495 | AG33: 4.07660137 | AH33: 65.07903427 | AI33: 7.984831574 | AK33: 25 | AL33: 2048 | AM33: =IF('Input - Capacity Factors'!$C$3="Fueled",'AVOID NEW'!AI33,AH33) -> 65.07903427
B34: BASE YEAR OF "SAR" COST: | C34: N/A | D34: 2008 | G34: 2047 | H34: 4.412855 | I34: 7.878781 | J34: 55.9393451 | L34: 26 | M34: 2049 | N34: 8.19135 | O34: 58.158585 | P34: 3.986394809 | Q34: 62.14497981 | R34: 71.38887158 | S34: =$D$39*(1+$D$47)^($M34-$D$43)*(1000/(365*24))/VLOOKUP('Input - Capacity Factors'!$C$3,'Input - Capacity Factors'!$A:$B,2,FALSE) -> 11.35137701 | T34: 82.74024858 | U34: =-VLOOKUP($E$105,'Input - Transmission'!$A:$C,2)*(1+'Input - Transmission'!$C$11)^('AVOID NEW'!$M34-'Input - Transmission'!$C$10)*12*(1000/(365*24))*(1/VLOOKUP('Input - Capacity Factors'!$C$3,'Input - Capacity Factors'!$A:$D,2,FALSE)) -> -15.11498094 | V34: =-VLOOKUP($E$105,'Input - Transmission'!$A:$C,3)*Q34 -> -2.485799192 | X34: 26 | Y34: 2049 | Z34: 58.158585 | AA34: 3.986394809 | AB34: =IF(VLOOKUP($Y34,'Input - Load and Resource'!$B$13:$C$42,2,FALSE)>=0,0,0) -> 0 | AC34: =IF(VLOOKUP($Y34,'Input - Load and Resource'!$B$13:$C$42,2,FALSE)>=0,0,0) -> 0 | AD34: 62.14497981 | AE34: =VLOOKUP($Y34,'Input - Load and Resource'!$B$13:$L$42,11,FALSE)*R34 -> 3.569443579 | AF34: =VLOOKUP($Y34,'Input - Load and Resource'!$B$13:$L$42,11,FALSE)*S34 -> 0.5675688504 | AG34: 4.137012429 | AH34: 66.28199224 | AI34: 8.123407238 | AK34: 26 | AL34: 2049 | AM34: =IF('Input - Capacity Factors'!$C$3="Fueled",'AVOID NEW'!AI34,AH34) -> 66.28199224
B35: "SAR" CAPACITY FACTOR (%): | C35: N/A | D35: 0.9 | G35: 2048 | H35: 4.398518 | I35: 8.041437 | J35: 57.0942027 | L35: 27 | M35: 2050 | N35: 8.412057 | O35: 59.7256047 | P35: 4.066122705 | Q35: 63.7917274 | R35: 72.38831578 | S35: =$D$39*(1+$D$47)^($M35-$D$43)*(1000/(365*24))/VLOOKUP('Input - Capacity Factors'!$C$3,'Input - Capacity Factors'!$A:$B,2,FALSE) -> 11.57840455 | T35: 83.96672033 | U35: =-VLOOKUP($E$105,'Input - Transmission'!$A:$C,2)*(1+'Input - Transmission'!$C$11)^('AVOID NEW'!$M35-'Input - Transmission'!$C$10)*12*(1000/(365*24))*(1/VLOOKUP('Input - Capacity Factors'!$C$3,'Input - Capacity Factors'!$A:$D,2,FALSE)) -> -15.41728056 | V35: =-VLOOKUP($E$105,'Input - Transmission'!$A:$C,3)*Q35 -> -2.551669096 | X35: 27 | Y35: 2050 | Z35: 59.7256047 | AA35: 4.066122705 | AB35: =IF(VLOOKUP($Y35,'Input - Load and Resource'!$B$13:$C$42,2,FALSE)>=0,0,0) -> 0 | AC35: =IF(VLOOKUP($Y35,'Input - Load and Resource'!$B$13:$C$42,2,FALSE)>=0,0,0) -> 0 | AD35: 63.7917274 | AE35: =VLOOKUP($Y35,'Input - Load and Resource'!$B$13:$L$42,11,FALSE)*R35 -> 3.619415789 | AF35: =VLOOKUP($Y35,'Input - Load and Resource'!$B$13:$L$42,11,FALSE)*S35 -> 0.5789202275 | AG35: 4.198336016 | AH35: 67.99006342 | AI35: 8.264458721
B36: HEAT RATE (BTU/kWh): | D36: 7100 | G36: 2049 | H36: 4.375498 | I36: 8.19135 | J36: 58.158585 | L36: 28 | M36: 2051 | N36: 0 | O36: 0 | P36: 4.147445159 | Q36: 4.147445159 | R36: 73.4017522 | S36: =$D$39*(1+$D$47)^($M36-$D$43)*(1000/(365*24))/VLOOKUP('Input - Capacity Factors'!$C$3,'Input - Capacity Factors'!$A:$B,2,FALSE) -> 11.80997264 | T36: 85.21172484 | U36: =-VLOOKUP($E$105,'Input - Transmission'!$A:$C,2)*(1+'Input - Transmission'!$C$11)^('AVOID NEW'!$M36-'Input - Transmission'!$C$10)*12*(1000/(365*24))*(1/VLOOKUP('Input - Capacity Factors'!$C$3,'Input - Capacity Factors'!$A:$D,2,FALSE)) -> -15.72562617 | V36: =-VLOOKUP($E$105,'Input - Transmission'!$A:$C,3)*Q36 -> -0.1658978064 | X36: 28 | Y36: 2051 | Z36: 0 | AA36: 4.147445159 | AB36: =IF(VLOOKUP($Y36,'Input - Load and Resource'!$B$13:$C$42,2,FALSE)>=0,0,0) -> 0 | AC36: =IF(VLOOKUP($Y36,'Input - Load and Resource'!$B$13:$C$42,2,FALSE)>=0,0,0) -> 0 | AD36: 4.147445159 | AE36: =VLOOKUP($Y36,'Input - Load and Resource'!$B$13:$L$42,11,FALSE)*R36 -> 3.67008761 | AF36: =VLOOKUP($Y36,'Input - Load and Resource'!$B$13:$L$42,11,FALSE)*S36 -> 0.590498632 | AG36: 4.260586242 | AH36: 8.408031401 | AI36: 8.408031401
B37: UTILITY WEIGHTED COST OF CAPITAL (%): | C37: N/A | D37: =HLOOKUP($D$27,$B$62:$G$65,3) -> 0.07247 | G37: 2050 | H37: 4.387479 | I37: 8.412057 | J37: 59.7256047 | L37: 29 | M37: 2052 | N37: 0 | O37: 0 | P37: 4.230394062 | Q37: 4.230394062 | R37: 74.42937673 | S37: =$D$39*(1+$D$47)^($M37-$D$43)*(1000/(365*24))/VLOOKUP('Input - Capacity Factors'!$C$3,'Input - Capacity Factors'!$A:$B,2,FALSE) -> 12.04617209 | T37: 86.47554882 | U37: =-VLOOKUP($E$105,'Input - Transmission'!$A:$C,2)*(1+'Input - Transmission'!$C$11)^('AVOID NEW'!$M37-'Input - Transmission'!$C$10)*12*(1000/(365*24))*(1/VLOOKUP('Input - Capacity Factors'!$C$3,'Input - Capacity Factors'!$A:$D,2,FALSE)) -> -16.04013869 | V37: =-VLOOKUP($E$105,'Input - Transmission'!$A:$C,3)*Q37 -> -0.1692157625 | X37: 29 | Y37: 2052 | Z37: 0 | AA37: 4.230394062 | AB37: =IF(VLOOKUP($Y37,'Input - Load and Resource'!$B$13:$C$42,2,FALSE)>=0,0,0) -> 0 | AC37: =IF(VLOOKUP($Y37,'Input - Load and Resource'!$B$13:$C$42,2,FALSE)>=0,0,0) -> 0 | AD37: 4.230394062 | AE37: =VLOOKUP($Y37,'Input - Load and Resource'!$B$13:$L$42,11,FALSE)*R37 -> 3.721468837 | AF37: =VLOOKUP($Y37,'Input - Load and Resource'!$B$13:$L$42,11,FALSE)*S37 -> 0.6023086046 | AG37: 4.323777441 | AH37: 8.554171503 | AI37: 8.554171503
B38: RATEPAYER DISCOUNT RATE (%): | C38: ASSUMED | D38: =D37 -> 0.07247 | G38: 2051 | J38: 0 | L38: 30 | M38: 2053 | N38: 0 | O38: 0 | P38: 4.315001943 | Q38: 4.315001943 | R38: 75.471388 | S38: =$D$39*(1+$D$47)^($M38-$D$43)*(1000/(365*24))/VLOOKUP('Input - Capacity Factors'!$C$3,'Input - Capacity Factors'!$A:$B,2,FALSE) -> 12.28709553 | T38: 87.75848354 | U38: =-VLOOKUP($E$105,'Input - Transmission'!$A:$C,2)*(1+'Input - Transmission'!$C$11)^('AVOID NEW'!$M38-'Input - Transmission'!$C$10)*12*(1000/(365*24))*(1/VLOOKUP('Input - Capacity Factors'!$C$3,'Input - Capacity Factors'!$A:$D,2,FALSE)) -> -16.36094147 | V38: =-VLOOKUP($E$105,'Input - Transmission'!$A:$C,3)*Q38 -> -0.1726000777 | X38: 30 | Y38: 2053 | Z38: 0 | AA38: 4.315001943 | AB38: =IF(VLOOKUP($Y38,'Input - Load and Resource'!$B$13:$C$42,2,FALSE)>=0,0,0) -> 0 | AC38: =IF(VLOOKUP($Y38,'Input - Load and Resource'!$B$13:$C$42,2,FALSE)>=0,0,0) -> 0 | AD38: 4.315001943 | AE38: =VLOOKUP($Y38,'Input - Load and Resource'!$B$13:$L$42,11,FALSE)*R38 -> 3.7735694 | AF38: =VLOOKUP($Y38,'Input - Load and Resource'!$B$13:$L$42,11,FALSE)*S38 -> 0.6143547767 | AG38: 4.387924177 | AH38: 8.70292612 | AI38: 8.70292612
B39: "SAR" FIXED O&M ($/kW): | C39: N/A | D39: 14.57 | G39: 2052 | J39: 0
B40: "SAR" VARIABLE O&M ($/MWh): | C40: N/A | D40: 1.77 | G40: 2053 | J40: 0 | M40: Calculation of Level Carrying Cost | R40: capital cost
B41: CURRENT YEAR GAS PRICE ($/MMBTU): | D41: =VLOOKUP(D54,$G$10:$J$40,3) -> 4.884545 | M41: =D34-1 -> 2007 | R41: =$D$33*(1+$D$45)^($M41-D$34)*$D$50*(1000/(365*24))/VLOOKUP('Input - Capacity Factors'!$C$3,'Input - Capacity Factors'!A:B,2,FALSE) -> 45.77894722
B42: CURRENT YEAR FUEL COST ($/MWh): | D42: =D41*D36/1000 -> 34.6802695 | M42: Calculated for year prior to SAR cost base year
B43: BASE YEAR, O&M EXPENSES: | D43: 2008
B44: BASE YEAR FUEL COST: | D44: 2019 | G44: General inflation rate: | H44: 0.02 | I44: per year | N44: Gas prices were extrapolated using exponential growth.
B45: ESCALATION RATE; "SAR" (%): | C45: N/A | D45: 0.014 | G45: Note: The Annual Energy Outlook includes both a real and nominal forecast so no need to use general inflation rate.
C46: N/A
B47: ESCALATION RATE; O&M (%): | C47: N/A | D47: 0.02
C48: N/A
B49: ADJUSTABLE PORTION ($/MWh): | C49: CALC | D49: =IF(D53="FUELED",D42,0) -> 0
B50: CAPITAL CARRYING CHARGE (%): | C50: N/A | D50: =HLOOKUP($D$27,$B$62:$G$65,4) -> 0.1022014543
B51: LEVEL CARRYING COST ($/MWh): | C51: CALC | D51: =R41 -> 45.77894722
B52: "TILTING" RATE (%): | C52: N/A | D52: 0.014
B53: TYPE OF RATES: | C53: N/A | D53: =IF('Input - Capacity Factors'!C3="Fueled", "Fueled", "Non-fueled") -> Non-fueled
B54: CURRENT YEAR: | C54: N/A | D54: =D13 -> 2024
B62: UTILITY-SPECIFIC VARIABLES | D62: IPCO | E62: AVISTA | F62: PCP
B63: FIRST DEFICIT YEAR: | D63: 2002 | E63: 2002 | F63: 2002
B64: UTILITY WEIGHTED COST OF CAPITAL (%): | D64: 0.07247 | E64: 0.07185 | F64: 0.0798
B65: CAPITAL CARRYING CHARGE (%): | D65: 0.1022014543 | E65: 0.1011738661 | F65: 0.109170507
B66: HLH LLH PRICE DIFFERENTIAL: | D66: 7.28 | E66: 5 | F66: Monthly
B67: WIND INTEGRATION ADJUSTMENT: | D67: NA | E67: 0.08 | F67: NA
B68: SOLAR INTEGRATION ADJUSTMENT: | D68: NA | E68: NA | F68: NA
B69: Rate Effective Date | E69: XXXX, 2024
B71: SEASONALIZATION FACTORS | C71: FACTOR | D71: SEASON | E71: FACTOR | F71: Tiber, United Materials Contracts | H71: New Contracts
B72: Idaho Power | C72: 0.735 | D72: Mar-May | E72: 0.735 | F72: Mar-May | H72: Mar-May
C73: 1.2 | D73: Jun-Sep | E73: 1.2 | F73: Jun, Jul, Nov, Dec | H73: Jul, Aug, Nov, Dec
C74: 1 | D74: Oct-Feb | E74: 1 | F74: Jan, Feb, Aug, Sep, Oct | H74: Jan, Feb, Jun, Sep, Oct
B75: Avista | C75: 1.08 | D75: Jul-Feb | E75: 1.08 | H75: July - Feb
C76: 0.84 | D76: Mar-Jun | E76: 0.84 | H76: Mar - June
B78: PacifiCorp | D78: Monthly | E78: See PacifiCorp spreadsheets
B83: Light Load Hours (LLH) are defined as: | G83: Integration Charges
B84: Monday through Saturday Hour ending 2300 through 0600 (Pacific Prevailing Time (PPT)) | G84: Tier | H84: Avista | I84: Integration Charge
B85: All Sunday Hours (PPT) | G85: 1 | H85: 0 - 199 MW | I85: 0.07
B86: All NERC Holidays (PPT) | G86: 2 | H86: 200 - 299 MW | I86: 0.08
C87: NERC Holidays being: | D87: NERC Holidays being: | G87: 3 | H87: 300 and above | I87: 0.09
D88: New Years Day
D89: Memorial Day | H89: Idaho Power | I89: Integration Charge
D90: Independence Day | G90: 1 | H90: 0 - 300 MW | I90: Sch 87
D91: Labor Day | G91: 2 | H91: 301 - 500 MW | I91: Sch 87
D92: Thanksgiving Day | G92: 3 | H92: 501 and above | I92: Sch 87
D93: Christmas Day
B94: Heavy Load Hours (HLH) are defined as: | H94: PacifiCorp | I94: Integration Charge
B95: Monday through Saturday Hour ending 0700 through 2200 (PST) | G95: Wind | H95: All new capacity | I95: NA
B96: Less all NERC Holidays | G96: Solar | H96: All new capacity | I96: NA
D101: Drop down box (don't change)
D102: AVISTA | E102: 1
D103: IPCO | E103: 2
D104: PCP | E104: 3
D105: =VLOOKUP(E105,D102:E104,2,FALSE) -> 2 | E105: IPCO
E106: Wind
D110: New contract | E110: New contract
D111: Replacement contract

Sheet Single rate sheets for printing
B3: =O3 -> IDAHO POWER COMPANY | M3: Company | N3: ='AVOID NEW'!E105 -> IPCO | O3: =VLOOKUP(N3,P:Q,2,FALSE) -> IDAHO POWER COMPANY | P3: AVISTA | Q3: AVISTA
B4: ="AVOIDED COST RATES FOR "&UPPER(N4)&" PROJECTS" -> AVOIDED COST RATES FOR WIND PROJECTS | M4: Type of project | N4: ='Input - Load and Resource'!D2 -> Wind | P4: IPCO | Q4: IDAHO POWER COMPANY
B5: ='AVOID NEW'!$E$69 -> XXXX, 2024 | O5: Eligibility for these rates is limited to projects 100 kW or smaller. | P5: PCP | Q5: PACIFICORP
B6: $/MWh | O6: Eligibility for these rates is limited to projects smaller than 10 aMW.
B7: =IF('AVOID NEW'!$E$110="New contract", "New Contracts and Replacement Contracts without Full Capacity Payments","Replacement Contracts with Full Capacity Payments") -> New Contracts and Replacement Contracts without Full Capacity Payments | O7: Note: These rates will be further adjusted with the applicable integration charge.
B8: =IF(N4="Wind",O5,IF(N4="Solar",O5,O6)) -> Eligibility for these rates is limited to projects 100 kW or smaller. | O8: Note: "Other projects" refers to projects other than wind, solar, non-seasonal hydro, and seasonal hydro projects. These "Other projects" may include (but are not limited to): cogeneration, biomass, biogas, landfill gas, or geothermal projects.
O9: =" " -> 
B10: LEVELIZED | I10: NON-LEVELIZED | O10: Note: A "seasonal hydro project" is defined as a generation facility which produces at least 55% of its annual generation during the months of June, July, and August. Order 32802
B11: CONTRACT | C11: ON-LINE YEAR | M11: Rates calculated using extrapolated gas prices
B12: LENGTH | I12: CONTRACT | J12: NON-LEVELIZED | L12: Levelized | M12: 2017 | N12: 20 | O12: =H34 -> 46.28356154
B13: (YEARS) | C13: ='AVOID NEW'!$AN$8 -> 2024 | D13: ='AVOID NEW'!$AO$8 -> 2025 | E13: ='AVOID NEW'!$AP$8 -> 2026 | F13: ='AVOID NEW'!$AQ$8 -> 2027 | G13: ='AVOID NEW'!$AR$8 -> 2028 | H13: ='AVOID NEW'!$AS$8 -> 2029 | I13: YEAR | J13: RATES | L13: Non-levelized | M13: 2036 | N13: =J39 -> 65.07903427
M14: 2037 | N14: =J40 -> 66.28199224
B15: 1 | C15: ='AVOID NEW'!$AN$9 -> 37.1101002 | D15: ='AVOID NEW'!$AO$9 -> 33.76789301 | E15: ='AVOID NEW'!$AP$9 -> 34.11176508 | F15: ='AVOID NEW'!$AQ$9 -> 32.34444778 | G15: ='AVOID NEW'!$AR$9 -> 32.25270398 | H15: ='AVOID NEW'!$AS$9 -> 32.64339472 | I15: ='AVOID NEW'!$AL$9 -> 2024 | J15: ='AVOID NEW'!$AM$9 -> 37.1101002
B16: 2 | C16: ='AVOID NEW'!$AN$10 -> 35.49743165 | D16: ='AVOID NEW'!$AO$10 -> 33.9338168 | E16: ='AVOID NEW'!$AP$10 -> 33.25900615 | F16: ='AVOID NEW'!$AQ$10 -> 32.30017993 | G16: ='AVOID NEW'!$AR$10 -> 32.44121853 | H16: ='AVOID NEW'!$AS$10 -> 33.13833859 | I16: ='AVOID NEW'!$AL$10 -> 2025 | J16: ='AVOID NEW'!$AM$10 -> 33.76789301
B17: 3 | C17: ='AVOID NEW'!$AN$11 -> 35.06745587 | D17: ='AVOID NEW'!$AO$11 -> 33.44063164 | E17: ='AVOID NEW'!$AP$11 -> 32.94674809 | F17: ='AVOID NEW'!$AQ$11 -> 32.40668033 | G17: ='AVOID NEW'!$AR$11 -> 32.82224904 | H17: ='AVOID NEW'!$AS$11 -> 33.85164139 | I17: ='AVOID NEW'!$AL$11 -> 2026 | J17: ='AVOID NEW'!$AM$11 -> 34.11176508
B18: 4 | C18: ='AVOID NEW'!$AN$12 -> 34.45639643 | D18: ='AVOID NEW'!$AO$12 -> 33.17405351 | E18: ='AVOID NEW'!$AP$12 -> 32.87867376 | F18: ='AVOID NEW'!$AQ$12 -> 32.68998637 | G18: ='AVOID NEW'!$AR$12 -> 33.40903116 | H18: ='AVOID NEW'!$AS$12 -> 34.71335073 | I18: ='AVOID NEW'!$AL$12 -> 2027 | J18: ='AVOID NEW'!$AM$12 -> 32.34444778 | L18: The company, contract type, and resource type are all tied to those selected in AVOID NEW.
B19: 5 | C19: ='AVOID NEW'!$AN$13 -> 34.07507866 | D19: ='AVOID NEW'!$AO$13 -> 33.08223052 | E19: ='AVOID NEW'!$AP$13 -> 33.01545466 | F19: ='AVOID NEW'!$AQ$13 -> 33.1653307 | G19: ='AVOID NEW'!$AR$13 -> 34.15006864 | H19: ='AVOID NEW'!$AS$13 -> 35.65971915 | I19: ='AVOID NEW'!$AL$13 -> 2028 | J19: ='AVOID NEW'!$AM$13 -> 32.25270398
B20: 6 | C20: ='AVOID NEW'!$AN$14 -> 33.87617744 | D20: ='AVOID NEW'!$AO$14 -> 33.16377031 | E20: ='AVOID NEW'!$AP$14 -> 33.35188556 | F20: ='AVOID NEW'!$AQ$14 -> 33.79415665 | G20: ='AVOID NEW'!$AR$14 -> 34.98815095 | H20: ='AVOID NEW'!$AS$14 -> 36.64833179 | I20: ='AVOID NEW'!$AL$14 -> 2029 | J20: ='AVOID NEW'!$AM$14 -> 32.64339472
B21: 7 | C21: ='AVOID NEW'!$AN$15 -> 33.85243479 | D21: ='AVOID NEW'!$AO$15 -> 33.42448201 | E21: ='AVOID NEW'!$AP$15 -> 33.84958173 | F21: ='AVOID NEW'!$AQ$15 -> 34.52680471 | G21: ='AVOID NEW'!$AR$15 -> 35.88126141 | H21: ='AVOID NEW'!$AS$15 -> 37.64882216 | I21: ='AVOID NEW'!$AL$15 -> 2030 | J21: ='AVOID NEW'!$AM$15 -> 33.66915105
B22: 8 | C22: ='AVOID NEW'!$AN$16 -> 34.00551753 | D22: ='AVOID NEW'!$AO$16 -> 33.83670355 | E22: ='AVOID NEW'!$AP$16 -> 34.46137396 | F22: ='AVOID NEW'!$AQ$16 -> 35.32368485 | G22: ='AVOID NEW'!$AR$16 -> 36.79812733 | H22: ='AVOID NEW'!$AS$16 -> 38.53698516 | I22: ='AVOID NEW'!$AL$16 -> 2031 | J22: ='AVOID NEW'!$AM$16 -> 35.43707235
B23: 9 | C23: ='AVOID NEW'!$AN$17 -> 34.31010984 | D23: ='AVOID NEW'!$AO$17 -> 34.36108112 | E23: ='AVOID NEW'!$AP$17 -> 35.14841417 | F23: ='AVOID NEW'!$AQ$17 -> 36.15402576 | G23: ='AVOID NEW'!$AR$17 -> 37.6281377 | H23: ='AVOID NEW'!$AS$17 -> 39.33733312 | I23: ='AVOID NEW'!$AL$17 -> 2032 | J23: ='AVOID NEW'!$AM$17 -> 37.69159763
B24: 10 | C24: ='AVOID NEW'!$AN$18 -> 34.73020959 | D24: ='AVOID NEW'!$AO$18 -> 34.96304272 | E24: ='AVOID NEW'!$AP$18 -> 35.87979829 | F24: ='AVOID NEW'!$AQ$18 -> 36.91866268 | G24: ='AVOID NEW'!$AR$18 -> 38.38603441 | H24: ='AVOID NEW'!$AS$18 -> 40.18750439 | I24: ='AVOID NEW'!$AL$18 -> 2033 | J24: ='AVOID NEW'!$AM$18 -> 40.18255544
B25: 11 | C25: ='AVOID NEW'!$AN$19 -> 35.23331391 | D25: ='AVOID NEW'!$AO$19 -> 35.61395205 | E25: ='AVOID NEW'!$AP$19 -> 36.56533093 | F25: ='AVOID NEW'!$AQ$19 -> 37.62552061 | G25: ='AVOID NEW'!$AR$19 -> 39.1886732 | H25: ='AVOID NEW'!$AS$19 -> 40.89446435 | I25: ='AVOID NEW'!$AL$19 -> 2034 | J25: ='AVOID NEW'!$AM$19 -> 42.7757179
B26: 12 | C26: ='AVOID NEW'!$AN$20 -> 35.79191069 | D26: ='AVOID NEW'!$AO$20 -> 36.23259098 | E26: ='AVOID NEW'!$AP$20 -> 37.2075786 | F26: ='AVOID NEW'!$AQ$20 -> 38.37458999 | G26: ='AVOID NEW'!$AR$20 -> 39.86657418 | H26: ='AVOID NEW'!$AS$20 -> 41.66698401 | I26: ='AVOID NEW'!$AL$20 -> 2035 | J26: ='AVOID NEW'!$AM$20 -> 45.37220866
B27: 13 | C27: ='AVOID NEW'!$AN$21 -> 36.33186599 | D27: ='AVOID NEW'!$AO$21 -> 36.81843757 | E27: ='AVOID NEW'!$AP$21 -> 37.89232497 | F27: ='AVOID NEW'!$AQ$21 -> 39.01557548 | G27: ='AVOID NEW'!$AR$21 -> 40.6019208 | H27: ='AVOID NEW'!$AS$21 -> 42.41571176 | I27: ='AVOID NEW'!$AL$21 -> 2036 | J27: ='AVOID NEW'!$AM$21 -> 46.84265091
B28: 14 | C28: ='AVOID NEW'!$AN$22 -> 36.84999635 | D28: ='AVOID NEW'!$AO$22 -> 37.44604894 | E28: ='AVOID NEW'!$AP$22 -> 38.48496834 | F28: ='AVOID NEW'!$AQ$22 -> 39.70843721 | G28: ='AVOID NEW'!$AR$22 -> 41.31604354 | H28: ='AVOID NEW'!$AS$22 -> 43.10754083 | I28: ='AVOID NEW'!$AL$22 -> 2037 | J28: ='AVOID NEW'!$AM$22 -> 48.22254367
B29: 15 | C29: ='AVOID NEW'!$AN$23 -> 37.41111753 | D29: ='AVOID NEW'!$AO$23 -> 37.99449448 | E29: ='AVOID NEW'!$AP$23 -> 39.1265043 | F29: ='AVOID NEW'!$AQ$23 -> 40.38319152 | G29: ='AVOID NEW'!$AR$23 -> 41.97887246 | H29: ='AVOID NEW'!$AS$23 -> 43.72903512 | I29: ='AVOID NEW'!$AL$23 -> 2038 | J29: ='AVOID NEW'!$AM$23 -> 51.2216168
B30: 16 | C30: ='AVOID NEW'!$AN$24 -> 37.90576676 | D30: ='AVOID NEW'!$AO$24 -> 38.58889639 | E30: ='AVOID NEW'!$AP$24 -> 39.75400455 | F30: ='AVOID NEW'!$AQ$24 -> 41.0122894 | G30: ='AVOID NEW'!$AR$24 -> 42.577661 | H30: ='AVOID NEW'!$AS$24 -> 44.30285117 | I30: ='AVOID NEW'!$AL$24 -> 2039 | J30: ='AVOID NEW'!$AM$24 -> 51.49301685
B31: 17 | C31: ='AVOID NEW'!$AN$25 -> 38.4452399 | D31: ='AVOID NEW'!$AO$25 -> 39.17248846 | E31: ='AVOID NEW'!$AP$25 -> 40.3419434 | F31: ='AVOID NEW'!$AQ$25 -> 41.58356357 | G31: ='AVOID NEW'!$AR$25 -> 43.13224911 | H31: ='AVOID NEW'!$AS$25 -> 44.84070071 | I31: ='AVOID NEW'!$AL$25 -> 2040 | J31: ='AVOID NEW'!$AM$25 -> 54.91619854
B32: 18 | C32: ='AVOID NEW'!$AN$26 -> 38.97789378 | D32: ='AVOID NEW'!$AO$26 -> 39.72165514 | E32: ='AVOID NEW'!$AP$26 -> 40.87856914 | F32: ='AVOID NEW'!$AQ$26 -> 42.1143764 | G32: ='AVOID NEW'!$AR$26 -> 43.65297227 | H32: ='AVOID NEW'!$AS$26 -> 45.34542424 | I32: ='AVOID NEW'!$AL$26 -> 2041 | J32: ='AVOID NEW'!$AM$26 -> 56.99046695
B33: 19 | C33: ='AVOID NEW'!$AN$27 -> 39.48167138 | D33: ='AVOID NEW'!$AO$27 -> 40.2251474 | E33: ='AVOID NEW'!$AP$27 -> 41.378992 | F33: ='AVOID NEW'!$AQ$27 -> 42.61379742 | G33: ='AVOID NEW'!$AR$27 -> 44.1422942 | H33: ='AVOID NEW'!$AS$27 -> 45.82645437 | I33: ='AVOID NEW'!$AL$27 -> 2042 | J33: ='AVOID NEW'!$AM$27 -> 58.29263612
B34: 20 | C34: ='AVOID NEW'!$AN$28 -> 39.94569256 | D34: ='AVOID NEW'!$AO$28 -> 40.69619065 | E34: ='AVOID NEW'!$AP$28 -> 41.85106931 | F34: ='AVOID NEW'!$AQ$28 -> 43.08389442 | G34: ='AVOID NEW'!$AR$28 -> 44.60873599 | H34: ='AVOID NEW'!$AS$28 -> 46.28356154 | I34: ='AVOID NEW'!$AL$28 -> 2043 | J34: ='AVOID NEW'!$AM$28 -> 59.02545726
I35: ='AVOID NEW'!$AL$29 -> 2044 | J35: ='AVOID NEW'!$AM$29 -> 60.06469134
I36: ='AVOID NEW'!$AL$30 -> 2045 | J36: ='AVOID NEW'!$AM$30 -> 61.26208835
I37: ='AVOID NEW'!$AL$31 -> 2046 | J37: ='AVOID NEW'!$AM$31 -> 62.41348655
I38: ='AVOID NEW'!$AL$32 -> 2047 | J38: ='AVOID NEW'!$AM$32 -> 63.78803229
I39: ='AVOID NEW'!$AL$33 -> 2048 | J39: ='AVOID NEW'!$AM$33 -> 65.07903427
I40: ='AVOID NEW'!$AL$34 -> 2049 | J40: ='AVOID NEW'!$AM$34 -> 66.28199224
I42: =IF(N4="Fueled", "ADJUSTABLE COMPONENT","") -> 
I43: =IF(N4="Fueled",'AVOID NEW'!D42,"") -> 
B45: =IF(N4="Fueled", "The total avoided cost rate in each year is the sum of the adjustable component and the fixed component from either of the tables above.", "") -> 
B47: =IF($N$4="Fueled", "Example 1. A 20-year levelized contract with a "&C14&" on-line date would receive the following rates:", "") -> 
C48: =IF($N$4="Fueled", "Year","") ->  | E48: =IF($N$4="Fueled", "Rate", "") -> 
C49: =IF($N$4="Fueled", "1", "") ->  | E49: =IF($N$4="Fueled", TEXT($C$34,"$0.00")&" + "&TEXT($I$43,"$0.00"),"") -> 
C50: =IF($N$4="Fueled", "2-20", "") ->  | E50: =IF($N$4="Fueled", TEXT($C$34,"$0.00")&" + Adjustable component in each year","") -> 
B52: =IF($N$4="Fueled", "Example 2. A 3-year non-levelized contract with a "&$I$15&" on-line date would receive the following rates:","") -> 
C53: =IF($N$4="Fueled", "Year","") ->  | E53: =IF($N$4="Fueled", "Rate", "") -> 
C54: =IF($N$4="Fueled", "1", "") ->  | E54: =IF($N$4="Fueled",TEXT($J$15,"$0.00")&" + "&TEXT($I$43,"$0.00"),"") -> 
C55: =IF($N$4="Fueled", "2", "") ->  | E55: =IF($N$4="Fueled", TEXT($J$16,"$0.00")&" + Adjustable component in year "&$I$16,"") -> 
C56: =IF($N$4="Fueled", "3", "") ->  | E56: =IF($N$4="Fueled", TEXT($J$17,"$0.00")&" + Adjustable component in year "&$I$17,"") -> 
B57: =IF($N$4="Seasonal Hydro",$O$10,$O$9) -> 
B61: =IF($N$4="Other",$O$8,IF($N$4="Wind",$O$7,IF($N$4="Solar",$O$7,$O$9))) -> Note: These rates will be further adjusted with the applicable integration charge.
B64: Note: The rates shown in this table have been computed using the U.S. Energy Information Administration (EIA)'s Annual Energy Outlook 2023, released March 16, 2023. See Annual Energy Outlook 2023, Table 3.8 Energy Prices by Sector-Mountain at https://www.eia.gov/outlooks/aeo/tables_ref.php

Sheet All rate sheets for printing
L1: The company and contract type are tied to those selected in AVOID NEW.
B3: =$N$3 -> IDAHO POWER COMPANY | L3: Company | M3: ='AVOID NEW'!E105 -> IPCO | N3: =VLOOKUP(M3,P:Q,2,FALSE) -> IDAHO POWER COMPANY | P3: AVISTA | Q3: AVISTA
B4: ="AVOIDED COST RATES FOR WIND PROJECTS" -> AVOIDED COST RATES FOR WIND PROJECTS | P4: IPCO | Q4: IDAHO POWER COMPANY
B5: ='AVOID NEW'!$E$69 -> XXXX, 2024 | L5: Type of contract | M5: ='AVOID NEW'!E110 -> New contract | P5: PCP | Q5: PACIFICORP
B6: $/MWh
B7: =IF('AVOID NEW'!$E$110="New contract", "New Contracts and Replacement Contracts without Full Capacity Payments","Replacement Contracts with Full Capacity Payments") -> New Contracts and Replacement Contracts without Full Capacity Payments
B8: Eligibility for these rates is limited to projects 100 kW or smaller.
B10: LEVELIZED | I10: NON-LEVELIZED
B11: CONTRACT | C11: ON-LINE YEAR
B12: LENGTH | I12: CONTRACT | J12: NON-LEVELIZED
B13: (YEARS) | C13: ='AVOID NEW'!$AN$8 -> 2024 | D13: ='AVOID NEW'!$AO$8 -> 2025 | E13: ='AVOID NEW'!$AP$8 -> 2026 | F13: ='AVOID NEW'!$AQ$8 -> 2027 | G13: ='AVOID NEW'!$AR$8 -> 2028 | H13: ='AVOID NEW'!$AS$8 -> 2029 | I13: YEAR | J13: RATES
L14: Note: You must select the box below to retrieve the rates for the selected utility and contract type.
B15: 1 | C15: 28.77572008 | D15: 29.07452604 | E15: 30.48313631 | F15: 32.84329566 | G15: 35.7600494 | H15: 38.62202101 | I15: 2020 | J15: 28.77572008
B16: 2 | C16: 28.91982712 | D16: 29.75386545 | E16: 31.62138533 | F16: 34.24997699 | G16: 37.14031061 | H16: 40.98242532 | I16: 2021 | J16: 29.07452604
B17: 3 | C17: 29.40443858 | D17: 30.71156037 | E17: 32.90433309 | F17: 35.60527039 | G17: 39.11681462 | H17: 42.07577067 | I17: 2022 | J17: 30.48313631
B18: 4 | C18: 30.17496343 | D18: 31.84274616 | E18: 34.18546241 | F18: 37.37785345 | G18: 40.32511141 | H18: 43.0624707 | I18: 2023 | J18: 32.84329566
B19: 5 | C19: 31.13939967 | D19: 33.01339571 | E19: 35.7967208 | F19: 38.60934223 | G19: 41.38784119 | H19: 43.81314666 | I19: 2024 | J19: 35.7600494
B20: 6 | C20: 32.17625085 | D20: 34.46876386 | E20: 37.00402552 | F20: 39.69988228 | G20: 42.22227243 | H20: 44.50677604 | I20: 2025 | J20: 38.62202101
B21: 7 | C21: 33.47268775 | D21: 35.61665081 | E21: 38.08728614 | F21: 40.58129178 | G21: 42.97641623 | H21: 45.12499809 | I21: 2026 | J21: 43.51631935
B22: 8 | C22: 34.53493468 | D22: 36.6621514 | E22: 38.98452986 | F22: 41.37412548 | G22: 43.64417384 | H22: 45.82804064 | I22: 2027 | J22: 44.50945055
B23: 9 | C23: 35.51772193 | D23: 37.54645224 | E23: 39.79369341 | F23: 42.07681811 | G23: 44.36703687 | H23: 46.52304592 | I23: 2028 | J23: 46.47941889
B24: 10 | C24: 36.36430551 | D24: 38.34893049 | E24: 40.5141854 | F24: 42.81383098 | G24: 45.07237557 | H24: 47.20297308 | I24: 2029 | J24: 47.40966294
B25: 11 | C25: 37.13886907 | D25: 39.06820334 | E25: 41.25522134 | F25: 43.52661013 | G25: 45.7565784 | H25: 47.8615271 | I25: 2030 | J25: 48.81884672
B26: 12 | C26: 37.83846774 | D26: 39.79988405 | E26: 41.96818892 | F26: 44.21371229 | G26: 46.41565465 | H26: 48.51448693 | I26: 2031 | J26: 49.91442862
B27: 13 | C27: 38.5466568 | D27: 40.50243699 | E27: 42.65282006 | F27: 44.87274852 | G27: 47.06456214 | H27: 49.13175169 | I27: 2032 | J27: 52.42962163
B28: 14 | C28: 39.22700867 | D28: 41.17600939 | E28: 43.30769677 | F28: 45.51782011 | G28: 47.67741048 | H28: 49.72288214 | I28: 2033 | J28: 54.27491412
B29: 15 | C29: 39.87956191 | D29: 41.81962195 | E29: 43.94594728 | F29: 46.12650709 | G29: 48.26307109 | H29: 50.29490758 | I29: 2034 | J29: 56.07396776
B30: 16 | C30: 40.50337783 | D30: 42.44529043 | E30: 44.54795376 | F30: 46.70708049 | G30: 48.82821289 | H30: 50.87490924 | I30: 2035 | J30: 57.79214705
B31: 17 | C31: 41.10925344 | D31: 43.03561129 | E31: 45.12138402 | F31: 47.26587844 | G31: 49.39761249 | H31: 51.42251104 | I31: 2036 | J31: 59.78540233
B32: 18 | C32: 41.68151253 | D32: 43.59759746 | E32: 45.67221338 | F32: 47.82563837 | G32: 49.93522621 | H32: 51.9474797 | I32: 2037 | J32: 61.23228445
B33: 19 | C33: 42.22645611 | D33: 44.13679551 | E33: 46.22131922 | F33: 48.35408691 | G33: 50.45001386 | H33: 52.47846859 | I33: 2038 | J33: 62.79740335
B34: 20 | C34: 42.74913388 | D34: 44.67234258 | E34: 46.73969262 | F34: 48.85948933 | G34: 50.96818964 | H34: 53.02274281 | I34: 2039 | J34: 64.4908561
I35: 2040 | J35: 66.94938647
I36: 2041 | J36: 68.30236682
I37: 2042 | J37: 69.8826121
I38: 2043 | J38: 72.52264361
I39: 2044 | J39: 75.66280824
I40: 2045 | J40: 78.53028325
B56: Note: These rates will be further adjusted with the applicable integration charge.
B63: Note: The rates shown in this table have been computed using the U.S. Energy Information Administration (EIA)'s Annual Energy Outlook 2023, released March 16, 2023. See Annual Energy Outlook 2023, Table 3.8 Energy Prices by Sector-Mountain at https://www.eia.gov/outlooks/aeo/tables_ref.php
J64: =$B$3&" Page 1" -> IDAHO POWER COMPANY Page 1
B66: =$N$3 -> IDAHO POWER COMPANY
B67: ="AVOIDED COST RATES FOR SOLAR PROJECTS" -> AVOIDED COST RATES FOR SOLAR PROJECTS
B68: ='AVOID NEW'!$E$69 -> XXXX, 2024
B69: $/MWh
B70: =IF('AVOID NEW'!$E$110="New contract", "New Contracts and Replacement Contracts without Full Capacity Payments","Replacement Contracts with Full Capacity Payments") -> New Contracts and Replacement Contracts without Full Capacity Payments
B71: Eligibility for these rates is limited to projects 100 kW or smaller.
B73: LEVELIZED | I73: NON-LEVELIZED
B74: CONTRACT | C74: ON-LINE YEAR
B75: LENGTH | I75: CONTRACT | J75: NON-LEVELIZED
B76: (YEARS) | C76: ='AVOID NEW'!$AN$8 -> 2024 | D76: ='AVOID NEW'!$AO$8 -> 2025 | E76: ='AVOID NEW'!$AP$8 -> 2026 | F76: ='AVOID NEW'!$AQ$8 -> 2027 | G76: ='AVOID NEW'!$AR$8 -> 2028 | H76: ='AVOID NEW'!$AS$8 -> 2029 | I76: YEAR | J76: RATES
B78: 1 | C78: 28.77572008 | D78: 29.07452604 | E78: 30.48313631 | F78: 32.84329566 | G78: 35.7600494 | H78: 38.62202101 | I78: 2020 | J78: 28.77572008
B79: 2 | C79: 28.91982712 | D79: 29.75386545 | E79: 31.62138533 | F79: 34.24997699 | G79: 37.14031061 | H79: 41.64111641 | I79: 2021 | J79: 29.07452604
B80: 3 | C80: 29.40443858 | D80: 30.71156037 | E80: 32.90433309 | F80: 35.60527039 | G80: 39.54019879 | H80: 42.9598932 | I80: 2022 | J80: 30.48313631
B81: 4 | C81: 30.17496343 | D81: 31.84274616 | E81: 34.18546241 | F81: 37.68387947 | G81: 40.96416339 | H81: 44.06360064 | I81: 2023 | J81: 32.84329566
B82: 5 | C82: 31.13939967 | D82: 33.01339571 | E82: 36.03256732 | F82: 39.10184346 | G82: 42.15938677 | H82: 49.57935628 | I82: 2024 | J82: 35.7600494
B83: 6 | C83: 32.17625085 | D83: 34.65801934 | E83: 37.39923406 | F83: 40.31901048 | G83: 46.84937818 | H83: 53.49484861 | I83: 2025 | J83: 38.62202101
B84: 7 | C84: 33.6288304 | D84: 35.9427122 | E84: 38.59808937 | F84: 44.39882191 | G84: 50.3919022 | H84: 53.25351296 | I84: 2026 | J84: 44.88211531
B85: 8 | C85: 34.80943789 | D85: 37.09218432 | E85: 42.1984164 | F85: 47.61704428 | G85: 50.48737447 | H85: 53.31772941 | I85: 2027 | J85: 45.89536144
B86: 9 | C86: 35.88535117 | D86: 40.29395971 | E86: 45.13067898 | F86: 47.92697638 | G86: 50.76986897 | H86: 53.52098308 | I86: 2028 | J86: 47.88574619
B87: 10 | C87: 38.74149534 | D87: 42.96658044 | E87: 45.57584103 | F87: 48.35366933 | G87: 51.12710886 | H87: 53.81203538 | I87: 2029 | J87: 76.00554568
B88: 11 | C88: 41.17284439 | D88: 43.49006167 | E88: 46.09481971 | F88: 48.8160203 | G88: 51.53024997 | H88: 54.15646254 | I88: 2030 | J88: 77.83620455
B89: 12 | C89: 41.73200685 | D89: 44.06125204 | E89: 46.62562566 | F89: 49.29755135 | G89: 51.95847749 | H89: 54.55128841 | I89: 2031 | J89: 51.38386061
B90: 13 | C90: 42.32359237 | D90: 44.63041619 | E90: 47.15872816 | F90: 49.78546312 | G90: 52.41509987 | H90: 54.95342569 | I90: 2032 | J90: 53.92072288
B91: 14 | C91: 42.9060181 | D91: 45.19184318 | E91: 47.68609172 | F91: 50.2864194 | G91: 52.86590403 | H91: 55.36315725 | I91: 2033 | J91: 55.78800994
B92: 15 | C92: 43.47554117 | D92: 45.74025668 | E92: 48.21599058 | F92: 50.77254479 | G92: 53.3136567 | H92: 55.78070708 | I92: 2034 | J92: 57.60938846
B93: 16 | C93: 44.02838613 | D93: 46.2844489 | E93: 48.72516551 | F93: 51.24801771 | G93: 53.76044711 | H93: 57.33967659 | I93: 2035 | J93: 59.35022802
B94: 17 | C94: 44.5731801 | D94: 46.80455056 | E94: 49.21849894 | F94: 51.71604576 | G94: 55.23052617 | H94: 57.73760426 | I94: 2036 | J94: 61.36648409
B95: 18 | C95: 45.09255874 | D95: 47.30565624 | E95: 49.69979921 | F95: 53.10466695 | G95: 55.65064725 | H95: 58.13208347 | I95: 2037 | J95: 62.83671277
B96: 19 | C96: 45.59149001 | D96: 47.79179767 | E96: 51.01199574 | F96: 53.54078613 | G96: 56.06249267 | H96: 58.54868081 | I96: 2038 | J96: 64.4255293
B97: 20 | C97: 46.07395692 | D97: 49.03024744 | E97: 51.45784498 | F97: 53.96495796 | G97: 56.49004177 | H97: 58.99219113 | I97: 2039 | J97: 66.14303617
I98: 2040 | J98: 100.5457941
I99: 2041 | J99: 70.00374659
I100: 2042 | J100: 71.60914869
I101: 2043 | J101: 74.27471596
I102: 2044 | J102: 77.44080114
I103: 2045 | J103: 80.33458742
B119: Note: These rates will be further adjusted with the applicable integration charge.
B126: Note: The rates shown in this table have been computed using the U.S. Energy Information Administration (EIA)'s Annual Energy Outlook 2023, released March 16, 2023. See Annual Energy Outlook 2023, Table 3.8 Energy Prices by Sector-Mountain at https://www.eia.gov/outlooks/aeo/tables_ref.php
J127: =$B$3&" Page 2" -> IDAHO POWER COMPANY Page 2
B129: =$N$3 -> IDAHO POWER COMPANY
B130: ="AVOIDED COST RATES FOR NON-SEASONAL HYDRO PROJECTS" -> AVOIDED COST RATES FOR NON-SEASONAL HYDRO PROJECTS
B131: ='AVOID NEW'!$E$69 -> XXXX, 2024
B132: $/MWh
B133: =IF('AVOID NEW'!$E$110="New contract", "New Contracts and Replacement Contracts without Full Capacity Payments","Replacement Contracts with Full Capacity Payments") -> New Contracts and Replacement Contracts without Full Capacity Payments
B134: Eligibility for these rates is limited to projects smaller than 10 aMW.
B136: LEVELIZED | I136: NON-LEVELIZED
B137: CONTRACT | C137: ON-LINE YEAR
B138: LENGTH | I138: CONTRACT | J138: NON-LEVELIZED
B139: (YEARS) | C139: ='AVOID NEW'!$AN$8 -> 2024 | D139: ='AVOID NEW'!$AO$8 -> 2025 | E139: ='AVOID NEW'!$AP$8 -> 2026 | F139: ='AVOID NEW'!$AQ$8 -> 2027 | G139: ='AVOID NEW'!$AR$8 -> 2028 | H139: ='AVOID NEW'!$AS$8 -> 2029 | I139: YEAR | J139: RATES
B141: 1 | C141: 28.77572008 | D141: 29.07452604 | E141: 30.48313631 | F141: 32.84329566 | G141: 35.7600494 | H141: 38.62202101 | I141: 2020 | J141: 28.77572008
B142: 2 | C142: 28.91982712 | D142: 29.75386545 | E142: 31.62138533 | F142: 34.24997699 | G142: 37.14031061 | H142: 44.68535969 | I142: 2021 | J142: 29.07452604
B143: 3 | C143: 29.40443858 | D143: 30.71156037 | E143: 32.90433309 | F143: 35.60527039 | G143: 41.49693461 | H143: 47.04600297 | I143: 2022 | J143: 30.48313631
B144: 4 | C144: 30.17496343 | D144: 31.84274616 | E144: 34.18546241 | F144: 39.09822629 | G144: 43.9176415 | H144: 48.69047834 | I144: 2023 | J144: 32.84329566
B145: 5 | C145: 31.13939967 | D145: 33.01339571 | E145: 37.12256872 | F145: 41.37801449 | G145: 45.72520463 | H145: 52.92790961 | I145: 2024 | J145: 35.7600494
B146: 6 | C146: 32.17625085 | D146: 35.53269302 | E146: 39.22575179 | F146: 43.18040773 | G146: 49.5364311 | H146: 55.98907343 | I146: 2025 | J146: 38.62202101
B147: 7 | C147: 34.35046791 | D147: 37.44965559 | E147: 40.95884591 | F147: 46.61573806 | G147: 52.44972818 | H147: 56.23898421 | I147: 2026 | J147: 51.19435377
B148: 8 | C148: 36.07809719 | D148: 39.07964832 | E148: 44.06478464 | F148: 49.34947833 | G148: 53.00077071 | H148: 56.6791274 | I148: 2027 | J148: 52.30056414
B149: 9 | C149: 37.58440685 | D149: 41.8894923 | E149: 46.61171307 | F149: 50.07564431 | G149: 53.64348196 | H149: 57.18118842 | I149: 2028 | J149: 54.38530651
B150: 10 | C150: 40.12197705 | D150: 44.24799612 | E150: 47.43490478 | F150: 50.83996777 | G150: 54.29398028 | H150: 57.71684709 | I150: 2029 | J150: 73.22959971
B151: 11 | C151: 42.2922881 | D151: 45.11413827 | E151: 48.26684805 | F151: 51.58259665 | G151: 54.94149037 | H151: 58.26626295 | I151: 2030 | J151: 75.01934387
B152: 12 | C152: 43.16204041 | D152: 45.97376861 | E152: 49.06165423 | F152: 52.30122016 | G152: 55.57724307 | H152: 58.83618152 | I152: 2031 | J152: 58.17506903
B153: 13 | C153: 44.018694 | D153: 46.78951697 | E153: 49.82093982 | F153: 52.99284733 | G153: 56.21288622 | H153: 59.39024571 | I153: 2032 | J153: 60.81207916
B154: 14 | C154: 44.83028945 | D154: 47.56450575 | E154: 50.54463246 | F154: 53.67114861 | G154: 56.82016394 | H154: 59.93354593 | I154: 2033 | J154: 62.78101758
B155: 15 | C155: 45.6001424 | D155: 48.29993762 | E155: 51.2468471 | F155: 54.31338771 | G155: 57.40621227 | H155: 60.46983225 | I155: 2034 | J155: 64.70557403
B156: 16 | C156: 46.32977281 | D156: 49.00946541 | E156: 51.90870631 | F156: 54.92759852 | G156: 57.97639842 | H156: 61.75192119 | I156: 2035 | J156: 66.55114151
B157: 17 | C157: 47.03185884 | D157: 49.67693833 | E157: 52.53844475 | F157: 55.51993826 | G157: 59.21152664 | H157: 62.25828376 | I157: 2036 | J157: 68.67369933
B158: 18 | C158: 47.6921887 | D158: 50.31034476 | E158: 53.14247955 | F158: 56.70763734 | G158: 59.74204953 | H158: 62.75112375 | I158: 2037 | J158: 70.25182776
B159: 19 | C159: 48.31822099 | D159: 50.91600274 | E159: 54.28166276 | F159: 57.25370121 | G159: 60.25423505 | H159: 63.25749001 | I159: 2038 | J159: 71.95016662
B160: 20 | C160: 48.91593309 | D160: 52.00454507 | E160: 54.83534931 | F160: 57.77803414 | G160: 60.7734749 | H160: 63.78336477 | I160: 2039 | J160: 73.77884333
I161: 2040 | J161: 97.28442205
I162: 2041 | J162: 77.86693783
I163: 2042 | J163: 79.58860606
I164: 2043 | J164: 82.37219082
I165: 2044 | J165: 85.65807183
I166: 2045 | J166: 88.67345972
B182: Note: These rates will be further adjusted with the applicable integration charge.
B189: Note: The rates shown in this table have been computed using the U.S. Energy Information Administration (EIA)'s Annual Energy Outlook 2023, released March 16, 2023. See Annual Energy Outlook 2023, Table 3.8 Energy Prices by Sector-Mountain at https://www.eia.gov/outlooks/aeo/tables_ref.php
J190: =$B$3&" Page 3" -> IDAHO POWER COMPANY Page 3
B192: =$N$3 -> IDAHO POWER COMPANY
B193: ="AVOIDED COST RATES FOR SEASONAL HYDRO PROJECTS" -> AVOIDED COST RATES FOR SEASONAL HYDRO PROJECTS
B194: ='AVOID NEW'!$E$69 -> XXXX, 2024
B195: $/MWh
B196: =IF('AVOID NEW'!$E$110="New contract", "New Contracts and Replacement Contracts without Full Capacity Payments","Replacement Contracts with Full Capacity Payments") -> New Contracts and Replacement Contracts without Full Capacity Payments
B197: Eligibility for these rates is limited to projects smaller than 10 aMW.
B199: LEVELIZED | I199: NON-LEVELIZED
B200: CONTRACT | C200: ON-LINE YEAR
B201: LENGTH | I201: CONTRACT | J201: NON-LEVELIZED
B202: (YEARS) | C202: ='AVOID NEW'!$AN$8 -> 2024 | D202: ='AVOID NEW'!$AO$8 -> 2025 | E202: ='AVOID NEW'!$AP$8 -> 2026 | F202: ='AVOID NEW'!$AQ$8 -> 2027 | G202: ='AVOID NEW'!$AR$8 -> 2028 | H202: ='AVOID NEW'!$AS$8 -> 2029 | I202: YEAR | J202: RATES
B204: 1 | C204: 28.77572008 | D204: 29.07452604 | E204: 30.48313631 | F204: 32.84329566 | G204: 35.7600494 | H204: 38.62202101 | I204: 2020 | J204: 28.77572008
B205: 2 | C205: 28.91982712 | D205: 29.75386545 | E205: 31.62138533 | F205: 34.24997699 | G205: 37.14031061 | H205: 39.55103893 | I205: 2021 | J205: 29.07452604
B206: 3 | C206: 29.40443858 | D206: 30.71156037 | E206: 32.90433309 | F206: 35.60527039 | G206: 38.19676824 | H206: 40.15450441 | I206: 2022 | J206: 30.48313631
B207: 4 | C207: 30.17496343 | D207: 31.84274616 | E207: 34.18546241 | F207: 36.71283538 | G207: 38.93640231 | H207: 40.88693834 | I207: 2023 | J207: 32.84329566
B208: 5 | C208: 31.13939967 | D208: 33.01339571 | E208: 35.28420815 | F208: 37.53909917 | G208: 39.71121331 | H208: 49.83155811 | I208: 2024 | J208: 35.7600494
B209: 6 | C209: 32.17625085 | D209: 34.05749712 | E209: 36.14520697 | F209: 38.35446909 | G209: 47.05175801 | H209: 56.05748489 | I209: 2025 | J209: 38.62202101
B210: 7 | C210: 33.13337777 | D210: 34.90809435 | E210: 36.97727144 | F210: 44.56579262 | G210: 52.50617012 | H210: 54.99013221 | I210: 2026 | J210: 40.54833966
B211: 8 | C211: 33.93841807 | D211: 35.72765679 | E211: 42.33898501 | F211: 49.39699544 | G211: 51.94939233 | H211: 54.43182815 | I211: 2027 | J211: 41.49775958
B212: 9 | C212: 34.71883532 | D212: 40.41412989 | E212: 46.65233479 | F212: 49.17683537 | G212: 51.72229668 | H212: 54.14837598 | I212: 2028 | J212: 43.42336149
B213: 10 | C213: 38.8454686 | D213: 44.28314272 | E213: 46.65724012 | F213: 49.17772585 | G213: 51.66993979 | H213: 54.04792765 | I213: 2029 | J213: 92.6855625
B214: 11 | C214: 42.32299214 | D214: 44.43477105 | E214: 46.81471484 | F214: 49.29023696 | G214: 51.73632526 | H214: 54.07021635 | I214: 2030 | J214: 94.76206836
B215: 12 | C215: 42.5638433 | D215: 44.69513482 | E215: 47.04318339 | F215: 49.47900498 | G215: 51.88253591 | H215: 54.19503646 | I215: 2031 | J215: 46.7212399
B216: 13 | C216: 42.88541534 | D216: 45.00050595 | E216: 47.31955413 | F216: 49.71815458 | G216: 52.09934665 | H216: 54.36737158 | I216: 2032 | J216: 49.18934393
B217: 14 | C217: 43.23585593 | D217: 45.3351773 | E217: 47.62610383 | F217: 50.00500833 | G217: 52.34359069 | H217: 54.57898267 | I217: 2033 | J217: 50.98684051
B218: 15 | C218: 43.60388974 | D218: 45.68654051 | E218: 47.96400097 | F218: 50.3048392 | G218: 52.6114674 | H218: 54.82384311 | I218: 2034 | J218: 52.73738046
B219: 16 | C219: 43.9800904 | D219: 46.05788725 | E219: 48.30465551 | F219: 50.61668547 | G219: 52.90013911 | H219: 57.09860664 | I219: 2035 | J219: 54.40631726
B220: 17 | C220: 44.36876214 | D220: 46.42514038 | E220: 48.64887188 | F220: 50.93982258 | G220: 55.01301792 | H220: 57.33447524 | I220: 2036 | J220: 56.34959004
B221: 18 | C221: 44.74917681 | D221: 46.79012014 | E221: 48.99728507 | F221: 52.90781298 | G221: 55.28579878 | H221: 57.58462286 | I221: 2037 | J221: 57.7457383
B222: 19 | C222: 45.12364509 | D222: 47.15427166 | E222: 50.83335232 | F222: 53.20968904 | G222: 55.56567652 | H222: 57.87187415 | I222: 2038 | J222: 59.2593604
B223: 20 | C223: 45.49402261 | D223: 48.867742 | E223: 51.15665796 | F223: 53.51302231 | G223: 55.87437528 | H223: 58.19882873 | I223: 2039 | J223: 60.9005417
I224: 2040 | J224: 120.1426238
I225: 2041 | J225: 64.60513768
I226: 2042 | J226: 66.13071528
I227: 2043 | J227: 68.71525561
I228: 2044 | J228: 71.7990929
I229: 2045 | J229: 74.60939151
B234: Note: A "seasonal hydro project" is defined as a generation facility which produces at least 55% of its annual generation during the months of June, July, and August. Order 32802.
B245: Note: These rates will be further adjusted with the applicable integration charge.
B252: Note: The rates shown in this table have been computed using the U.S. Energy Information Administration (EIA)'s Annual Energy Outlook 2023, released March 16, 2023. See Annual Energy Outlook 2023, Table 3.8 Energy Prices by Sector-Mountain at https://www.eia.gov/outlooks/aeo/tables_ref.php
J253: =$B$3&" Page 4" -> IDAHO POWER COMPANY Page 4
B255: =$N$3 -> IDAHO POWER COMPANY
B256: ="AVOIDED COST RATES FOR OTHER PROJECTS" -> AVOIDED COST RATES FOR OTHER PROJECTS
B257: ='AVOID NEW'!$E$69 -> XXXX, 2024
B258: $/MWh
B259: =IF('AVOID NEW'!$E$110="New contract", "New Contracts and Replacement Contracts without Full Capacity Payments","Replacement Contracts with Full Capacity Payments") -> New Contracts and Replacement Contracts without Full Capacity Payments
B260: Eligibility for these rates is limited to projects smaller than 10 aMW.
B262: LEVELIZED | I262: NON-LEVELIZED
B263: CONTRACT | C263: ON-LINE YEAR
B264: LENGTH | I264: CONTRACT | J264: NON-LEVELIZED
B265: (YEARS) | C265: ='AVOID NEW'!$AN$8 -> 2024 | D265: ='AVOID NEW'!$AO$8 -> 2025 | E265: ='AVOID NEW'!$AP$8 -> 2026 | F265: ='AVOID NEW'!$AQ$8 -> 2027 | G265: ='AVOID NEW'!$AR$8 -> 2028 | H265: ='AVOID NEW'!$AS$8 -> 2029 | I265: YEAR | J265: RATES
B267: 1 | C267: 28.77572008 | D267: 29.07452604 | E267: 30.48313631 | F267: 32.84329566 | G267: 35.7600494 | H267: 38.62202101 | I267: 2020 | J267: 28.77572008
B268: 2 | C268: 28.91982712 | D268: 29.75386545 | E268: 31.62138533 | F268: 34.24997699 | G268: 37.14031061 | H268: 49.42278016 | I268: 2021 | J268: 29.07452604
B269: 3 | C269: 29.40443858 | D269: 30.71156037 | E269: 32.90433309 | F269: 35.60527039 | G269: 44.54198699 | H269: 53.40476546 | I269: 2022 | J269: 30.48313631
B270: 4 | C270: 30.17496343 | D270: 31.84274616 | E270: 34.18546241 | F270: 41.29921845 | G270: 48.51381411 | H270: 55.89077839 | I270: 2023 | J270: 32.84329566
B271: 5 | C271: 31.13939967 | D271: 33.01339571 | E271: 38.81881783 | F271: 44.92016872 | G271: 51.27429415 | H271: 57.58388734 | I271: 2024 | J271: 35.7600494
B272: 6 | C272: 32.17625085 | D272: 36.8938513 | E272: 42.0681601 | F272: 47.63328504 | G272: 53.27262917 | H272: 58.94052932 | I272: 2025 | J272: 38.62202101
B273: 7 | C273: 35.47347288 | D273: 39.79474558 | E273: 44.63263126 | F273: 49.69823703 | G273: 54.88478637 | H273: 60.06123728 | I273: 2026 | J273: 61.01739511
B274: 8 | C274: 38.05237189 | D274: 42.1725196 | E274: 46.65986618 | F274: 51.3994951 | G274: 56.21863339 | H274: 61.16567256 | I274: 2027 | J274: 62.2682755
B275: 9 | C275: 40.22846005 | D275: 44.10799187 | E275: 48.36424425 | F275: 52.82655093 | G275: 57.47896782 | H275: 62.1939858 | I275: 2028 | J275: 64.49985622
B276: 10 | C276: 42.04146031 | D276: 45.76431567 | E276: 49.8150356 | F276: 54.15849484 | G276: 58.63113714 | H276: 63.15893356 | I276: 2029 | J276: 65.695635
B277: 11 | C277: 43.61694365 | D277: 47.19341866 | E277: 51.16591065 | F277: 55.37153342 | G277: 59.69569277 | H277: 64.06681372 | I277: 2030 | J277: 67.37433596
B278: 12 | C278: 44.99289045 | D278: 48.52645411 | E278: 52.39789263 | F278: 56.48739521 | G278: 60.68474983 | H278: 64.9417967 | I278: 2031 | J278: 68.74347856
B279: 13 | C279: 46.28119015 | D279: 49.7464917 | E279: 53.53123038 | F279: 57.51973259 | G279: 61.62441491 | H279: 65.75958883 | I279: 2032 | J279: 71.53633778
B280: 14 | C280: 47.46565589 | D280: 50.87125544 | E280: 54.57916187 | F280: 58.49410532 | G280: 62.49676069 | H280: 66.53389783 | I280: 2033 | J280: 73.66346501
B281: 15 | C281: 48.56117215 | D281: 51.91265789 | E281: 55.56556476 | F281: 59.39649754 | G281: 63.31649884 | H281: 67.27479413 | I281: 2034 | J281: 75.74858589
B282: 16 | C282: 49.57793791 | D282: 52.89238658 | E282: 56.47888577 | F282: 60.24148534 | G282: 64.09467995 | H282: 68.01164073 | I282: 2035 | J282: 77.75712991
B283: 17 | C283: 50.53527092 | D283: 53.80043742 | E283: 57.33296269 | F283: 61.04023097 | G283: 64.85943347 | H283: 68.70580812 | I283: 2036 | J283: 80.04511343
B284: 18 | C284: 51.42412624 | D284: 54.64958218 | E284: 58.1385732 | F284: 61.81922706 | G284: 65.57732624 | H284: 69.36842381 | I284: 2037 | J284: 81.79115435
B285: 19 | C285: 52.25604448 | D285: 55.44991805 | E285: 58.92038984 | F285: 62.54916849 | G285: 66.25938231 | H285: 70.02921842 | I285: 2038 | J285: 83.65993073
B286: 20 | C286: 53.04027158 | D286: 56.22422704 | E286: 59.65244405 | F286: 63.24069904 | G286: 66.93347091 | H286: 70.69632222 | I286: 2039 | J286: 85.66160883
I287: 2040 | J287: 88.43300271
I288: 2041 | J288: 90.10355612
I289: 2042 | J289: 92.00615653
I290: 2043 | J290: 94.9733989
I291: 2044 | J291: 98.44570498
I292: 2045 | J292: 101.650328
B308: Note: "Other projects" refers to projects other than wind, solar, non-seasonal hydro, and seasonal hydro projects. These "Other projects" may include (but are not limited to): cogeneration, biomass, biogas, landfill gas, or geothermal projects.
B314: Note: The rates shown in this table have been computed using the U.S. Energy Information Administration (EIA)'s Annual Energy Outlook 2023, released March 16, 2023. See Annual Energy Outlook 2023, Table 3.8 Energy Prices by Sector-Mountain at https://www.eia.gov/outlooks/aeo/tables_ref.php
J315: =$B$3&" Page 5" -> IDAHO POWER COMPANY Page 5

Sheet Input - Capacity Factors
A2: Resource On-Peak Capacity Contributions
A3: Current Resource | B3: =VLOOKUP(C3,A6:E11,5,FALSE) -> 1 | C3: =H10 -> Wind | G3: Old resources - no longer broken apart but grouped into other
A4: Resource | B4: Annual Capacity Factor | C4: On-Peak Capacity Factors | G4: Biomass | H4: 0.85 | I4: 1 | J4: 1
C5: Summer | D5: Winter | G5: Geothermal | H5: 0.85 | I5: 1 | J5: 1
A6: Wind | B6: 0.33 | C6: 0.05 | D6: 0.05 | E6: 1 | G6: Other Base Load | H6: 0.92 | I6: 1 | J6: 1
A7: Solar | B7: 0.226 | C7: 0.35 | D7: 0.05 | E7: 2
A8: Non-seasonal hydro | B8: 0.46 | C8: 0.65 | D8: 0.25 | E8: 3
A9: Seasonal hydro | B9: 0.33 | C9: 0.78 | D9: 0 | E9: 4
A10: Other | B10: 0.89 | C10: 0.93 | D10: 0.93 | E10: 5 | G10: Do not change-used for printing sheets | H10: ='AVOID NEW'!E106 -> Wind
A11: Fueled | B11: 0.89 | C11: 0.93 | D11: 0.93 | E11: 6

Sheet Input - Load and Resource
B1: Utility | D1: ='AVOID NEW'!D27 -> IPCO | E1: ='AVOID NEW'!D105 -> 2 | G1: Notes: | H1: 1. Capacity contributions are set equal to zero when the utility does not need capacity; i.e., when the planning deficit, column (d), is not negative.
B2: Project type | D2: ='Input - Capacity Factors'!C3 -> Wind | H2: Capacity contributions cannot exceed the absolute value of the planning deficit (column (d)).
B3: Project Nameplate | D3: ='AVOID NEW'!D15 -> 0.1 | E3: Contract type | F3: ='AVOID NEW'!$E$110 -> New contract | H3: 2. A capacity payment will be made if the capacity contribution is strictly positive.
D4: Summer | E4: Winter | H4: 3. The capacity factor is calculated as the capacity contribution divided by the project nameplate.
B5: Peak Capacity Factors | D5: =VLOOKUP(D2,'Input - Capacity Factors'!A:D,3,FALSE) -> 0.05 | E5: =VLOOKUP(D2,'Input - Capacity Factors'!A:D,4,FALSE) -> 0.05 | H5: 4. The capacity factor cannot decrease over time.
B6: Peak Capacity (MW) | D6: =$D$3*D5 -> 0.005 | E6: =$D$3*E5 -> 0.005 | H6: 5. Replacement contracts receive capacity payments throughout the life of the contract. In the years preceding a utility's need for capacity, the capacity factor is based on the capacity factor in the first year the resource makes a strictly positive capacity contribution.
B7: Current Year | D7: ='AVOID NEW'!D54 -> 2024 | E7: Max capacity in new contract | G7: =MAX(J13:J42) -> 0.005
B8: Most deficient season | D8: =IF(O9>O10,"Summer", IF(O9<O10,"Winter","Both")) -> Summer | E8: First deficiency | F8: =MIN($N$13:$N$42) -> 2026 | G8: =IF(VLOOKUP(F8,B13:E42,3,FALSE)<VLOOKUP(F8,B13:E42,4,FALSE),D4,IF(VLOOKUP(F8,B13:E42,3,FALSE)>VLOOKUP(F8,B13:E42,4,FALSE),E4,"Either")) -> Summer
B9: Calculation of basis for capacity payments | N9: Summer | O9: =COUNTIF($O$13:$O$42,N9) -> 27
C10: =D1 -> IPCO | G10: With QF output | J10: Capacity Calculations | N10: Winter | O10: =COUNTIF($O$13:$O$42,N10) -> 1
C11: (a) | D11: (b) | E11: (c) | F11: (d) | G11: (e) | H11: (f) | I11: (g) | J11: (h) | K11: (i) | L11: (j)
C12: Energy (aMW) | D12: Summer Capacity (MW) | E12: Winter Capacity (MW) | F12: Planning Deficit (MW) | G12: Summer Capacity (MW) | H12: Winter Capacity (MW) | I12: New Planning Deficit (MW) | J12: Capacity Contribution (1) | K12: Based on capacity contribution, is capacity payment made? (2) | L12: Capacity adjustment applied to rates (3) (4) (5) | N12: Capacity contribution greater than 0? | O12: Season more deficient
A13: =B13-$D$7 -> 0 | B13: =D7 -> 2024 | C13: =OFFSET($B$49,$A13,$E$1*3-2) -> 0 | D13: =OFFSET($B$49,$A13,$E$1*3-1) -> 0 | E13: =OFFSET($B$49,$A13,$E$1*3) -> 0 | F13: =MIN(D13:E13) -> 0 | G13: =D13+$D$6 -> 0.005 | H13: =E13+$E$6 -> 0.005 | I13: =MIN(G13:H13) -> 0.005 | J13: =IF(F13>=0,0,MIN(-1*F13,I13-F13)) -> 0 | K13: =IF(J13>0,"Yes","No") -> No | L13: =IF($F$3="New contract",J13/$D$3,MAX($D$6:$E$6)/$D$3) -> 0 | N13: =IF(J13>0,B13,"") ->  | O13: =IF(F13<0,IF(D13<E13,"Summer",IF(D13>E13,"Winter","Both")),"") -> 
A14: =B14-$D$7 -> 1 | B14: =B13+1 -> 2025 | C14: =OFFSET($B$49,$A14,$E$1*3-2) -> 0 | D14: 0 | E14: 0 | F14: =MIN(D14:E14) -> 0 | G14: =D14+$D$6 -> 0.005 | H14: =E14+$E$6 -> 0.005 | I14: =MIN(G14:H14) -> 0.005 | J14: =IF(F14>=0,0,MIN(-1*F14,I14-F14)) -> 0 | K14: =IF(J14>0,"Yes","No") -> No | L14: =IF($F$3="New contract",J14/$D$3,MAX($D$6:$E$6)/$D$3) -> 0 | N14: =IF(J14>0,B14,"") ->  | O14: =IF(F14<0,IF(D14<E14,"Summer",IF(D14>E14,"Winter","Both")),"") -> 
A15: 2 | B15: =B14+1 -> 2026 | C15: 0 | D15: -52.5 | E15: 0 | F15: -52.5 | G15: -52.495 | H15: 0.005 | I15: -52.495 | J15: 0.005 | K15: Yes | L15: 0.05 | N15: 2026 | O15: Summer
A16: 3 | B16: 2027 | C16: 0 | D16: -186.5 | E16: -22.5 | F16: -186.5 | G16: -186.495 | H16: -22.495 | I16: -186.495 | J16: 0.005 | K16: Yes | L16: 0.05 | N16: 2027 | O16: Summer
A17: 4 | B17: 2028 | C17: 0 | D17: -349.3333333 | E17: -265.5 | F17: -349.3333333 | G17: -349.3283333 | H17: -265.495 | I17: -349.3283333 | J17: 0.005 | K17: Yes | L17: 0.05 | N17: 2028 | O17: Summer
A18: 5 | B18: 2029 | C18: 0 | D18: -465.6666667 | E18: -475.3333333 | F18: -475.3333333 | G18: -465.6616667 | H18: -475.3283333 | I18: -475.3283333 | J18: 0.005 | K18: Yes | L18: 0.05 | N18: 2029 | O18: Winter
A19: 6 | B19: 2030 | C19: 0 | D19: -850.8333333 | E19: -832 | F19: -850.8333333 | G19: -850.8283333 | H19: -831.995 | I19: -850.8283333 | J19: 0.005 | K19: Yes | L19: 0.05 | N19: 2030 | O19: Summer
A20: 7 | B20: 2031 | C20: 0 | D20: -941.6666667 | E20: -887.6666667 | F20: -941.6666667 | G20: -941.6616667 | H20: -887.6616667 | I20: -941.6616667 | J20: 0.005 | K20: Yes | L20: 0.05 | N20: 2031 | O20: Summer
A21: 8 | B21: 2032 | C21: 0 | D21: -984.5 | E21: -907.3333333 | F21: -984.5 | G21: -984.495 | H21: -907.3283333 | I21: -984.495 | J21: 0.005 | K21: Yes | L21: 0.05 | N21: 2032 | O21: Summer
A22: 9 | B22: 2033 | C22: 0 | D22: -1068 | E22: -971.1666667 | F22: -1068 | G22: -1067.995 | H22: -971.1616667 | I22: -1067.995 | J22: 0.005 | K22: Yes | L22: 0.05 | N22: 2033 | O22: Summer
A23: 10 | B23: 2034 | C23: 0 | D23: -1107.166667 | E23: -988.6666667 | F23: -1107.166667 | G23: -1107.161667 | H23: -988.6616667 | I23: -1107.161667 | J23: 0.005 | K23: Yes | L23: 0.05 | N23: 2034 | O23: Summer
A24: 11 | B24: 2035 | C24: 0 | D24: -1141.166667 | E24: -998 | F24: -1141.166667 | G24: -1141.161667 | H24: -997.995 | I24: -1141.161667 | J24: 0.005 | K24: Yes | L24: 0.05 | N24: 2035 | O24: Summer
A25: 12 | B25: 2036 | C25: 0 | D25: -1179.333333 | E25: -1010.666667 | F25: -1179.333333 | G25: -1179.328333 | H25: -1010.661667 | I25: -1179.328333 | J25: 0.005 | K25: Yes | L25: 0.05 | N25: 2036 | O25: Summer
A26: 13 | B26: 2037 | C26: 0 | D26: -1255.166667 | E26: -1068.333333 | F26: -1255.166667 | G26: -1255.161667 | H26: -1068.328333 | I26: -1255.161667 | J26: 0.005 | K26: Yes | L26: 0.05 | N26: 2037 | O26: Summer
A27: 14 | B27: 2038 | C27: 0 | D27: -1575.666667 | E27: -1359.5 | F27: -1575.666667 | G27: -1575.661667 | H27: -1359.495 | I27: -1575.661667 | J27: 0.005 | K27: Yes | L27: 0.05 | N27: 2038 | O27: Summer
A28: 15 | B28: 2039 | C28: 0 | D28: -1610.833333 | E28: -1370.666667 | F28: -1610.833333 | G28: -1610.828333 | H28: -1370.661667 | I28: -1610.828333 | J28: 0.005 | K28: Yes | L28: 0.05 | N28: 2039 | O28: Summer
A29: 16 | B29: 2040 | C29: 0 | D29: -1647.5 | E29: -1383.166667 | F29: -1647.5 | G29: -1647.495 | H29: -1383.161667 | I29: -1647.495 | J29: 0.005 | K29: Yes | L29: 0.05 | N29: 2040 | O29: Summer
A30: 17 | B30: 2041 | C30: 0 | D30: -1688.5 | E30: -1401.833333 | F30: -1688.5 | G30: -1688.495 | H30: -1401.828333 | I30: -1688.495 | J30: 0.005 | K30: Yes | L30: 0.05 | N30: 2041 | O30: Summer
A31: 18 | B31: 2042 | C31: 0 | D31: -1733.166667 | E31: -1419 | F31: -1733.166667 | G31: -1733.161667 | H31: -1418.995 | I31: -1733.161667 | J31: 0.005 | K31: Yes | L31: 0.05 | N31: 2042 | O31: Summer
A32: 19 | B32: 2043 | C32: 0 | D32: -1855.5 | E32: -1449.833333 | F32: -1855.5 | G32: -1855.495 | H32: -1449.828333 | I32: -1855.495 | J32: 0.005 | K32: Yes | L32: 0.05 | N32: 2043 | O32: Summer
A33: 20 | B33: 2044 | C33: 0 | D33: -1855.5 | E33: -1449.833333 | F33: -1855.5 | G33: -1855.495 | H33: -1449.828333 | I33: -1855.495 | J33: 0.005 | K33: Yes | L33: 0.05 | N33: 2044 | O33: Summer
A34: 21 | B34: 2045 | C34: 0 | D34: -1855.5 | E34: -1449.833333 | F34: -1855.5 | G34: -1855.495 | H34: -1449.828333 | I34: -1855.495 | J34: 0.005 | K34: Yes | L34: 0.05 | N34: 2045 | O34: Summer
A35: 22 | B35: 2046 | C35: 0 | D35: -1855.5 | E35: -1449.833333 | F35: -1855.5 | G35: -1855.495 | H35: -1449.828333 | I35: -1855.495 | J35: 0.005 | K35: Yes | L35: 0.05 | N35: 2046 | O35: Summer
A36: 23 | B36: 2047 | C36: 0 | D36: -1855.5 | E36: -1449.833333 | F36: -1855.5 | G36: -1855.495 | H36: -1449.828333 | I36: -1855.495 | J36: 0.005 | K36: Yes | L36: 0.05 | N36: 2047 | O36: Summer
A37: 24 | B37: 2048 | C37: 0 | D37: -1855.5 | E37: -1449.833333 | F37: -1855.5 | G37: -1855.495 | H37: -1449.828333 | I37: -1855.495 | J37: 0.005 | K37: Yes | L37: 0.05 | N37: 2048 | O37: Summer
A38: 25 | B38: 2049 | C38: 0 | D38: -1855.5 | E38: -1449.833333 | F38: -1855.5 | G38: -1855.495 | H38: -1449.828333 | I38: -1855.495 | J38: 0.005 | K38: Yes | L38: 0.05 | N38: 2049 | O38: Summer
A39: 26 | B39: 2050 | C39: 0 | D39: -1855.5 | E39: -1449.833333 | F39: -1855.5 | G39: -1855.495 | H39: -1449.828333 | I39: -1855.495 | J39: 0.005 | K39: Yes | L39: 0.05 | N39: 2050 | O39: Summer
A40: 27 | B40: 2051 | C40: 0 | D40: -1855.5 | E40: -1449.833333 | F40: -1855.5 | G40: -1855.495 | H40: -1449.828333 | I40: -1855.495 | J40: 0.005 | K40: Yes | L40: 0.05 | N40: 2051 | O40: Summer
A41: 28 | B41: 2052 | C41: 0 | D41: -1855.5 | E41: -1449.833333 | F41: -1855.5 | G41: -1855.495 | H41: -1449.828333 | I41: -1855.495 | J41: 0.005 | K41: Yes | L41: 0.05 | N41: 2052 | O41: Summer
A42: 29 | B42: 2053 | C42: 0 | D42: -1855.5 | E42: -1449.833333 | F42: -1855.5 | G42: -1855.495 | H42: -1449.828333 | I42: -1855.495 | J42: 0.005 | K42: Yes | L42: 0.05 | N42: 2053 | O42: Summer
B46: Input data from IRP
C47: ="Avista "& 'Input - Avista IRP'!K3 -> Avista AVU-E-23-12 | F47: IPCO IPC-E-23-27 | I47: ="PacifiCorp "&'Input - RMP IRP'!I10 -> PacifiCorp PAC-E-20-13
C48: Energy (aMW) | D48: Summer Capacity (MW) | E48: Winter Capacity (MW) | F48: Energy (aMW) | G48: Summer Capacity (MW) | H48: Winter Capacity (MW) | I48: Energy (aMW) | J48: Summer Capacity (MW) | K48: Winter Capacity (MW)
B49: =B13 -> 2024 | C49: =MIN(VLOOKUP($B49,'Input - Avista IRP'!$A:$D,2,FALSE),0) -> 0 | D49: =MIN(VLOOKUP($B49,'Input - Avista IRP'!$A:$L,11,FALSE),0) -> 0 | E49: =MIN(VLOOKUP($B49,'Input - Avista IRP'!$A:$L,12,FALSE),0) -> 0 | F49: =MIN(VLOOKUP($B49,'Input - IPCO IRP'!$A:$B,2,FALSE),0) -> 0 | G49: =MIN(VLOOKUP($B49,'Input - IPCO IRP'!$A:$O,14,FALSE),0) -> 0 | H49: =MIN(VLOOKUP($B49,'Input - IPCO IRP'!$A:$O,15,FALSE),0) -> 0 | I49: =MIN(VLOOKUP($B49,'Input - RMP IRP'!$A:$K,9,FALSE),0) -> 0 | J49: =MIN(VLOOKUP($B49,'Input - RMP IRP'!$A:$K,10,FALSE),0) -> 0 | K49: =MIN(VLOOKUP($B49,'Input - RMP IRP'!$A:$K,11,FALSE),0) -> 0
B50: =B49+1 -> 2025 | C50: =MIN(VLOOKUP($B50,'Input - Avista IRP'!$A:$D,2,FALSE),0) -> 0 | D50: =MIN(VLOOKUP($B50,'Input - Avista IRP'!$A:$L,11,FALSE),0) -> 0 | E50: =MIN(VLOOKUP($B50,'Input - Avista IRP'!$A:$L,12,FALSE),0) -> 0 | F50: =MIN(VLOOKUP($B50,'Input - IPCO IRP'!$A:$B,2,FALSE),0) -> 0 | G50: =MIN(VLOOKUP($B50,'Input - IPCO IRP'!$A:$O,14,FALSE),0) -> 0 | H50: =MIN(VLOOKUP($B50,'Input - IPCO IRP'!$A:$O,15,FALSE),0) -> 0 | I50: =MIN(VLOOKUP($B50,'Input - RMP IRP'!$A:$K,9,FALSE),0) -> 0 | J50: =MIN(VLOOKUP($B50,'Input - RMP IRP'!$A:$K,10,FALSE),0) -> 0 | K50: =MIN(VLOOKUP($B50,'Input - RMP IRP'!$A:$K,11,FALSE),0) -> 0
B51: =B50+1 -> 2026 | C51: =MIN(VLOOKUP($B51,'Input - Avista IRP'!$A:$D,2,FALSE),0) -> 0 | D51: =MIN(VLOOKUP($B51,'Input - Avista IRP'!$A:$L,11,FALSE),0) -> 0 | E51: =MIN(VLOOKUP($B51,'Input - Avista IRP'!$A:$L,12,FALSE),0) -> 0 | F51: =MIN(VLOOKUP($B51,'Input - IPCO IRP'!$A:$B,2,FALSE),0) -> 0 | G51: =MIN(VLOOKUP($B51,'Input - IPCO IRP'!$A:$O,14,FALSE),0) -> -52.5 | H51: =MIN(VLOOKUP($B51,'Input - IPCO IRP'!$A:$O,15,FALSE),0) -> 0 | I51: =MIN(VLOOKUP($B51,'Input - RMP IRP'!$A:$K,9,FALSE),0) -> 0 | J51: =MIN(VLOOKUP($B51,'Input - RMP IRP'!$A:$K,10,FALSE),0) -> 0 | K51: =MIN(VLOOKUP($B51,'Input - RMP IRP'!$A:$K,11,FALSE),0) -> 0
B52: 2027 | C52: =MIN(VLOOKUP($B52,'Input - Avista IRP'!$A:$D,2,FALSE),0) -> 0 | D52: =MIN(VLOOKUP($B52,'Input - Avista IRP'!$A:$L,11,FALSE),0) -> 0 | E52: =MIN(VLOOKUP($B52,'Input - Avista IRP'!$A:$L,12,FALSE),0) -> 0 | F52: =MIN(VLOOKUP($B52,'Input - IPCO IRP'!$A:$B,2,FALSE),0) -> 0 | G52: =MIN(VLOOKUP($B52,'Input - IPCO IRP'!$A:$O,14,FALSE),0) -> -186.5 | H52: =MIN(VLOOKUP($B52,'Input - IPCO IRP'!$A:$O,15,FALSE),0) -> -22.5 | I52: =MIN(VLOOKUP($B52,'Input - RMP IRP'!$A:$K,9,FALSE),0) -> 0 | J52: =MIN(VLOOKUP($B52,'Input - RMP IRP'!$A:$K,10,FALSE),0) -> 0 | K52: =MIN(VLOOKUP($B52,'Input - RMP IRP'!$A:$K,11,FALSE),0) -> 0
B53: 2028 | C53: =MIN(VLOOKUP($B53,'Input - Avista IRP'!$A:$D,2,FALSE),0) -> 0 | D53: =MIN(VLOOKUP($B53,'Input - Avista IRP'!$A:$L,11,FALSE),0) -> 0 | E53: =MIN(VLOOKUP($B53,'Input - Avista IRP'!$A:$L,12,FALSE),0) -> 0 | F53: =MIN(VLOOKUP($B53,'Input - IPCO IRP'!$A:$B,2,FALSE),0) -> 0 | G53: =MIN(VLOOKUP($B53,'Input - IPCO IRP'!$A:$O,14,FALSE),0) -> -349.3333333 | H53: =MIN(VLOOKUP($B53,'Input - IPCO IRP'!$A:$O,15,FALSE),0) -> -265.5 | I53: =MIN(VLOOKUP($B53,'Input - RMP IRP'!$A:$K,9,FALSE),0) -> 0 | J53: =MIN(VLOOKUP($B53,'Input - RMP IRP'!$A:$K,10,FALSE),0) -> 0 | K53: =MIN(VLOOKUP($B53,'Input - RMP IRP'!$A:$K,11,FALSE),0) -> 0
B54: 2029 | C54: =MIN(VLOOKUP($B54,'Input - Avista IRP'!$A:$D,2,FALSE),0) -> 0 | D54: =MIN(VLOOKUP($B54,'Input - Avista IRP'!$A:$L,11,FALSE),0) -> 0 | E54: =MIN(VLOOKUP($B54,'Input - Avista IRP'!$A:$L,12,FALSE),0) -> 0 | F54: =MIN(VLOOKUP($B54,'Input - IPCO IRP'!$A:$B,2,FALSE),0) -> 0 | G54: =MIN(VLOOKUP($B54,'Input - IPCO IRP'!$A:$O,14,FALSE),0) -> -465.6666667 | H54: =MIN(VLOOKUP($B54,'Input - IPCO IRP'!$A:$O,15,FALSE),0) -> -475.3333333 | I54: =MIN(VLOOKUP($B54,'Input - RMP IRP'!$A:$K,9,FALSE),0) -> 0 | J54: =MIN(VLOOKUP($B54,'Input - RMP IRP'!$A:$K,10,FALSE),0) -> -71.83794749 | K54: =MIN(VLOOKUP($B54,'Input - RMP IRP'!$A:$K,11,FALSE),0) -> 0
B55: 2030 | C55: =MIN(VLOOKUP($B55,'Input - Avista IRP'!$A:$D,2,FALSE),0) -> 0 | D55: =MIN(VLOOKUP($B55,'Input - Avista IRP'!$A:$L,11,FALSE),0) -> 0 | E55: =MIN(VLOOKUP($B55,'Input - Avista IRP'!$A:$L,12,FALSE),0) -> 0 | F55: =MIN(VLOOKUP($B55,'Input - IPCO IRP'!$A:$B,2,FALSE),0) -> 0 | G55: =MIN(VLOOKUP($B55,'Input - IPCO IRP'!$A:$O,14,FALSE),0) -> -850.8333333 | H55: =MIN(VLOOKUP($B55,'Input - IPCO IRP'!$A:$O,15,FALSE),0) -> -832 | I55: =MIN(VLOOKUP($B55,'Input - RMP IRP'!$A:$K,9,FALSE),0) -> 0 | J55: =MIN(VLOOKUP($B55,'Input - RMP IRP'!$A:$K,10,FALSE),0) -> -314.395395 | K55: =MIN(VLOOKUP($B55,'Input - RMP IRP'!$A:$K,11,FALSE),0) -> 0
B56: 2031 | C56: =MIN(VLOOKUP($B56,'Input - Avista IRP'!$A:$D,2,FALSE),0) -> 0 | D56: =MIN(VLOOKUP($B56,'Input - Avista IRP'!$A:$L,11,FALSE),0) -> 0 | E56: =MIN(VLOOKUP($B56,'Input - Avista IRP'!$A:$L,12,FALSE),0) -> 0 | F56: =MIN(VLOOKUP($B56,'Input - IPCO IRP'!$A:$B,2,FALSE),0) -> 0 | G56: =MIN(VLOOKUP($B56,'Input - IPCO IRP'!$A:$O,14,FALSE),0) -> -941.6666667 | H56: =MIN(VLOOKUP($B56,'Input - IPCO IRP'!$A:$O,15,FALSE),0) -> -887.6666667 | I56: =MIN(VLOOKUP($B56,'Input - RMP IRP'!$A:$K,9,FALSE),0) -> 0 | J56: =MIN(VLOOKUP($B56,'Input - RMP IRP'!$A:$K,10,FALSE),0) -> -398.8526388 | K56: =MIN(VLOOKUP($B56,'Input - RMP IRP'!$A:$K,11,FALSE),0) -> 0
B57: 2032 | C57: =MIN(VLOOKUP($B57,'Input - Avista IRP'!$A:$D,2,FALSE),0) -> 0 | D57: =MIN(VLOOKUP($B57,'Input - Avista IRP'!$A:$L,11,FALSE),0) -> 0 | E57: =MIN(VLOOKUP($B57,'Input - Avista IRP'!$A:$L,12,FALSE),0) -> 0 | F57: =MIN(VLOOKUP($B57,'Input - IPCO IRP'!$A:$B,2,FALSE),0) -> 0 | G57: =MIN(VLOOKUP($B57,'Input - IPCO IRP'!$A:$O,14,FALSE),0) -> -984.5 | H57: =MIN(VLOOKUP($B57,'Input - IPCO IRP'!$A:$O,15,FALSE),0) -> -907.3333333 | I57: =MIN(VLOOKUP($B57,'Input - RMP IRP'!$A:$K,9,FALSE),0) -> 0 | J57: =MIN(VLOOKUP($B57,'Input - RMP IRP'!$A:$K,10,FALSE),0) -> -478.9992684 | K57: =MIN(VLOOKUP($B57,'Input - RMP IRP'!$A:$K,11,FALSE),0) -> 0
B58: 2033 | C58: =MIN(VLOOKUP($B58,'Input - Avista IRP'!$A:$D,2,FALSE),0) -> 0 | D58: =MIN(VLOOKUP($B58,'Input - Avista IRP'!$A:$L,11,FALSE),0) -> 0 | E58: =MIN(VLOOKUP($B58,'Input - Avista IRP'!$A:$L,12,FALSE),0) -> -4 | F58: =MIN(VLOOKUP($B58,'Input - IPCO IRP'!$A:$B,2,FALSE),0) -> 0 | G58: =MIN(VLOOKUP($B58,'Input - IPCO IRP'!$A:$O,14,FALSE),0) -> -1068 | H58: =MIN(VLOOKUP($B58,'Input - IPCO IRP'!$A:$O,15,FALSE),0) -> -971.1666667 | I58: =MIN(VLOOKUP($B58,'Input - RMP IRP'!$A:$K,9,FALSE),0) -> 0 | J58: =MIN(VLOOKUP($B58,'Input - RMP IRP'!$A:$K,10,FALSE),0) -> -758.9620157 | K58: =MIN(VLOOKUP($B58,'Input - RMP IRP'!$A:$K,11,FALSE),0) -> 0
B59: 2034 | C59: =MIN(VLOOKUP($B59,'Input - Avista IRP'!$A:$D,2,FALSE),0) -> 0 | D59: =MIN(VLOOKUP($B59,'Input - Avista IRP'!$A:$L,11,FALSE),0) -> -52 | E59: =MIN(VLOOKUP($B59,'Input - Avista IRP'!$A:$L,12,FALSE),0) -> -115 | F59: =MIN(VLOOKUP($B59,'Input - IPCO IRP'!$A:$B,2,FALSE),0) -> 0 | G59: =MIN(VLOOKUP($B59,'Input - IPCO IRP'!$A:$O,14,FALSE),0) -> -1107.166667 | H59: =MIN(VLOOKUP($B59,'Input - IPCO IRP'!$A:$O,15,FALSE),0) -> -988.6666667 | I59: =MIN(VLOOKUP($B59,'Input - RMP IRP'!$A:$K,9,FALSE),0) -> 0 | J59: =MIN(VLOOKUP($B59,'Input - RMP IRP'!$A:$K,10,FALSE),0) -> -754.3955192 | K59: =MIN(VLOOKUP($B59,'Input - RMP IRP'!$A:$K,11,FALSE),0) -> 0
B60: 2035 | C60: =MIN(VLOOKUP($B60,'Input - Avista IRP'!$A:$D,2,FALSE),0) -> 0 | D60: =MIN(VLOOKUP($B60,'Input - Avista IRP'!$A:$L,11,FALSE),0) -> -89 | E60: =MIN(VLOOKUP($B60,'Input - Avista IRP'!$A:$L,12,FALSE),0) -> -140 | F60: =MIN(VLOOKUP($B60,'Input - IPCO IRP'!$A:$B,2,FALSE),0) -> 0 | G60: =MIN(VLOOKUP($B60,'Input - IPCO IRP'!$A:$O,14,FALSE),0) -> -1141.166667 | H60: =MIN(VLOOKUP($B60,'Input - IPCO IRP'!$A:$O,15,FALSE),0) -> -998 | I60: =MIN(VLOOKUP($B60,'Input - RMP IRP'!$A:$K,9,FALSE),0) -> 0 | J60: =MIN(VLOOKUP($B60,'Input - RMP IRP'!$A:$K,10,FALSE),0) -> -760.4603218 | K60: =MIN(VLOOKUP($B60,'Input - RMP IRP'!$A:$K,11,FALSE),0) -> 0
B61: 2036 | C61: =MIN(VLOOKUP($B61,'Input - Avista IRP'!$A:$D,2,FALSE),0) -> 0 | D61: =MIN(VLOOKUP($B61,'Input - Avista IRP'!$A:$L,11,FALSE),0) -> -168 | E61: =MIN(VLOOKUP($B61,'Input - Avista IRP'!$A:$L,12,FALSE),0) -> -229 | F61: =MIN(VLOOKUP($B61,'Input - IPCO IRP'!$A:$B,2,FALSE),0) -> 0 | G61: =MIN(VLOOKUP($B61,'Input - IPCO IRP'!$A:$O,14,FALSE),0) -> -1179.333333 | H61: =MIN(VLOOKUP($B61,'Input - IPCO IRP'!$A:$O,15,FALSE),0) -> -1010.666667 | I61: =MIN(VLOOKUP($B61,'Input - RMP IRP'!$A:$K,9,FALSE),0) -> 0 | J61: =MIN(VLOOKUP($B61,'Input - RMP IRP'!$A:$K,10,FALSE),0) -> -739.3839693 | K61: =MIN(VLOOKUP($B61,'Input - RMP IRP'!$A:$K,11,FALSE),0) -> 0
B62: 2037 | C62: =MIN(VLOOKUP($B62,'Input - Avista IRP'!$A:$D,2,FALSE),0) -> 0 | D62: =MIN(VLOOKUP($B62,'Input - Avista IRP'!$A:$L,11,FALSE),0) -> -201 | E62: =MIN(VLOOKUP($B62,'Input - Avista IRP'!$A:$L,12,FALSE),0) -> -254 | F62: =MIN(VLOOKUP($B62,'Input - IPCO IRP'!$A:$B,2,FALSE),0) -> 0 | G62: =MIN(VLOOKUP($B62,'Input - IPCO IRP'!$A:$O,14,FALSE),0) -> -1255.166667 | H62: =MIN(VLOOKUP($B62,'Input - IPCO IRP'!$A:$O,15,FALSE),0) -> -1068.333333 | I62: =MIN(VLOOKUP($B62,'Input - RMP IRP'!$A:$K,9,FALSE),0) -> 0 | J62: =MIN(VLOOKUP($B62,'Input - RMP IRP'!$A:$K,10,FALSE),0) -> -2232.906355 | K62: =MIN(VLOOKUP($B62,'Input - RMP IRP'!$A:$K,11,FALSE),0) -> 0
B63: 2038 | C63: =MIN(VLOOKUP($B63,'Input - Avista IRP'!$A:$D,2,FALSE),0) -> 0 | D63: =MIN(VLOOKUP($B63,'Input - Avista IRP'!$A:$L,11,FALSE),0) -> -256 | E63: =MIN(VLOOKUP($B63,'Input - Avista IRP'!$A:$L,12,FALSE),0) -> -281 | F63: =MIN(VLOOKUP($B63,'Input - IPCO IRP'!$A:$B,2,FALSE),0) -> 0 | G63: =MIN(VLOOKUP($B63,'Input - IPCO IRP'!$A:$O,14,FALSE),0) -> -1575.666667 | H63: =MIN(VLOOKUP($B63,'Input - IPCO IRP'!$A:$O,15,FALSE),0) -> -1359.5 | I63: =MIN(VLOOKUP($B63,'Input - RMP IRP'!$A:$K,9,FALSE),0) -> 0 | J63: =MIN(VLOOKUP($B63,'Input - RMP IRP'!$A:$K,10,FALSE),0) -> -2929.676937 | K63: =MIN(VLOOKUP($B63,'Input - RMP IRP'!$A:$K,11,FALSE),0) -> 0
B64: 2039 | C64: =MIN(VLOOKUP($B64,'Input - Avista IRP'!$A:$D,2,FALSE),0) -> 0 | D64: =MIN(VLOOKUP($B64,'Input - Avista IRP'!$A:$L,11,FALSE),0) -> -300 | E64: =MIN(VLOOKUP($B64,'Input - Avista IRP'!$A:$L,12,FALSE),0) -> -311 | F64: =MIN(VLOOKUP($B64,'Input - IPCO IRP'!$A:$B,2,FALSE),0) -> 0 | G64: =MIN(VLOOKUP($B64,'Input - IPCO IRP'!$A:$O,14,FALSE),0) -> -1610.833333 | H64: =MIN(VLOOKUP($B64,'Input - IPCO IRP'!$A:$O,15,FALSE),0) -> -1370.666667 | I64: =MIN(VLOOKUP($B64,'Input - RMP IRP'!$A:$K,9,FALSE),0) -> 0 | J64: =MIN(VLOOKUP($B64,'Input - RMP IRP'!$A:$K,10,FALSE),0) -> -2929.676937 | K64: =MIN(VLOOKUP($B64,'Input - RMP IRP'!$A:$K,11,FALSE),0) -> 0
B65: 2040 | C65: =MIN(VLOOKUP($B65,'Input - Avista IRP'!$A:$D,2,FALSE),0) -> 0 | D65: =MIN(VLOOKUP($B65,'Input - Avista IRP'!$A:$L,11,FALSE),0) -> -343 | E65: =MIN(VLOOKUP($B65,'Input - Avista IRP'!$A:$L,12,FALSE),0) -> -343 | F65: =MIN(VLOOKUP($B65,'Input - IPCO IRP'!$A:$B,2,FALSE),0) -> 0 | G65: =MIN(VLOOKUP($B65,'Input - IPCO IRP'!$A:$O,14,FALSE),0) -> -1647.5 | H65: =MIN(VLOOKUP($B65,'Input - IPCO IRP'!$A:$O,15,FALSE),0) -> -1383.166667 | I65: =MIN(VLOOKUP($B65,'Input - RMP IRP'!$A:$K,9,FALSE),0) -> 0 | J65: =MIN(VLOOKUP($B65,'Input - RMP IRP'!$A:$K,10,FALSE),0) -> -2929.676937 | K65: =MIN(VLOOKUP($B65,'Input - RMP IRP'!$A:$K,11,FALSE),0) -> 0
B66: 2041 | C66: =MIN(VLOOKUP($B66,'Input - Avista IRP'!$A:$D,2,FALSE),0) -> 0 | D66: =MIN(VLOOKUP($B66,'Input - Avista IRP'!$A:$L,11,FALSE),0) -> -430 | E66: =MIN(VLOOKUP($B66,'Input - Avista IRP'!$A:$L,12,FALSE),0) -> -422 | F66: =MIN(VLOOKUP($B66,'Input - IPCO IRP'!$A:$B,2,FALSE),0) -> 0 | G66: =MIN(VLOOKUP($B66,'Input - IPCO IRP'!$A:$O,14,FALSE),0) -> -1688.5 | H66: =MIN(VLOOKUP($B66,'Input - IPCO IRP'!$A:$O,15,FALSE),0) -> -1401.833333 | I66: =MIN(VLOOKUP($B66,'Input - RMP IRP'!$A:$K,9,FALSE),0) -> 0 | J66: =MIN(VLOOKUP($B66,'Input - RMP IRP'!$A:$K,10,FALSE),0) -> -2929.676937 | K66: =MIN(VLOOKUP($B66,'Input - RMP IRP'!$A:$K,11,FALSE),0) -> 0
B67: 2042 | C67: =MIN(VLOOKUP($B67,'Input - Avista IRP'!$A:$D,2,FALSE),0) -> 0 | D67: =MIN(VLOOKUP($B67,'Input - Avista IRP'!$A:$L,11,FALSE),0) -> -703 | E67: =MIN(VLOOKUP($B67,'Input - Avista IRP'!$A:$L,12,FALSE),0) -> -744 | F67: =MIN(VLOOKUP($B67,'Input - IPCO IRP'!$A:$B,2,FALSE),0) -> 0 | G67: =MIN(VLOOKUP($B67,'Input - IPCO IRP'!$A:$O,14,FALSE),0) -> -1733.166667 | H67: =MIN(VLOOKUP($B67,'Input - IPCO IRP'!$A:$O,15,FALSE),0) -> -1419 | I67: =MIN(VLOOKUP($B67,'Input - RMP IRP'!$A:$K,9,FALSE),0) -> 0 | J67: =MIN(VLOOKUP($B67,'Input - RMP IRP'!$A:$K,10,FALSE),0) -> -2929.676937 | K67: =MIN(VLOOKUP($B67,'Input - RMP IRP'!$A:$K,11,FALSE),0) -> 0
B68: 2043 | C68: =MIN(VLOOKUP($B68,'Input - Avista IRP'!$A:$D,2,FALSE),0) -> 0 | D68: =MIN(VLOOKUP($B68,'Input - Avista IRP'!$A:$L,11,FALSE),0) -> -752 | E68: =MIN(VLOOKUP($B68,'Input - Avista IRP'!$A:$L,12,FALSE),0) -> -793 | F68: =MIN(VLOOKUP($B68,'Input - IPCO IRP'!$A:$B,2,FALSE),0) -> 0 | G68: =MIN(VLOOKUP($B68,'Input - IPCO IRP'!$A:$O,14,FALSE),0) -> -1855.5 | H68: =MIN(VLOOKUP($B68,'Input - IPCO IRP'!$A:$O,15,FALSE),0) -> -1449.833333 | I68: =MIN(VLOOKUP($B68,'Input - RMP IRP'!$A:$K,9,FALSE),0) -> 0 | J68: =MIN(VLOOKUP($B68,'Input - RMP IRP'!$A:$K,10,FALSE),0) -> -2929.676937 | K68: =MIN(VLOOKUP($B68,'Input - RMP IRP'!$A:$K,11,FALSE),0) -> 0
B69: 2044 | C69: =MIN(VLOOKUP($B69,'Input - Avista IRP'!$A:$D,2,FALSE),0) -> 0 | D69: =MIN(VLOOKUP($B69,'Input - Avista IRP'!$A:$L,11,FALSE),0) -> -809 | E69: =MIN(VLOOKUP($B69,'Input - Avista IRP'!$A:$L,12,FALSE),0) -> -841 | F69: =MIN(VLOOKUP($B69,'Input - IPCO IRP'!$A:$B,2,FALSE),0) -> 0 | G69: =MIN(VLOOKUP($B69,'Input - IPCO IRP'!$A:$O,14,FALSE),0) -> -1855.5 | H69: =MIN(VLOOKUP($B69,'Input - IPCO IRP'!$A:$O,15,FALSE),0) -> -1449.833333 | I69: =MIN(VLOOKUP($B69,'Input - RMP IRP'!$A:$K,9,FALSE),0) -> 0 | J69: =MIN(VLOOKUP($B69,'Input - RMP IRP'!$A:$K,10,FALSE),0) -> -2929.676937 | K69: =MIN(VLOOKUP($B69,'Input - RMP IRP'!$A:$K,11,FALSE),0) -> 0
B70: 2045 | C70: =MIN(VLOOKUP($B70,'Input - Avista IRP'!$A:$D,2,FALSE),0) -> 0 | D70: =MIN(VLOOKUP($B70,'Input - Avista IRP'!$A:$L,11,FALSE),0) -> -873 | E70: =MIN(VLOOKUP($B70,'Input - Avista IRP'!$A:$L,12,FALSE),0) -> -841 | F70: =MIN(VLOOKUP($B70,'Input - IPCO IRP'!$A:$B,2,FALSE),0) -> 0 | G70: =MIN(VLOOKUP($B70,'Input - IPCO IRP'!$A:$O,14,FALSE),0) -> -1855.5 | H70: =MIN(VLOOKUP($B70,'Input - IPCO IRP'!$A:$O,15,FALSE),0) -> -1449.833333 | I70: =MIN(VLOOKUP($B70,'Input - RMP IRP'!$A:$K,9,FALSE),0) -> 0 | J70: =MIN(VLOOKUP($B70,'Input - RMP IRP'!$A:$K,10,FALSE),0) -> -2929.676937 | K70: =MIN(VLOOKUP($B70,'Input - RMP IRP'!$A:$K,11,FALSE),0) -> 0
B71: 2046 | C71: =MIN(VLOOKUP($B71,'Input - Avista IRP'!$A:$D,2,FALSE),0) -> 0 | D71: =MIN(VLOOKUP($B71,'Input - Avista IRP'!$A:$L,11,FALSE),0) -> -873 | E71: =MIN(VLOOKUP($B71,'Input - Avista IRP'!$A:$L,12,FALSE),0) -> -841 | F71: =MIN(VLOOKUP($B71,'Input - IPCO IRP'!$A:$B,2,FALSE),0) -> 0 | G71: =MIN(VLOOKUP($B71,'Input - IPCO IRP'!$A:$O,14,FALSE),0) -> -1855.5 | H71: =MIN(VLOOKUP($B71,'Input - IPCO IRP'!$A:$O,15,FALSE),0) -> -1449.833333 | I71: =MIN(VLOOKUP($B71,'Input - RMP IRP'!$A:$K,9,FALSE),0) -> 0 | J71: =MIN(VLOOKUP($B71,'Input - RMP IRP'!$A:$K,10,FALSE),0) -> -2929.676937 | K71: =MIN(VLOOKUP($B71,'Input - RMP IRP'!$A:$K,11,FALSE),0) -> 0
B72: 2047 | C72: =MIN(VLOOKUP($B72,'Input - Avista IRP'!$A:$D,2,FALSE),0) -> 0 | D72: =MIN(VLOOKUP($B72,'Input - Avista IRP'!$A:$L,11,FALSE),0) -> -873 | E72: =MIN(VLOOKUP($B72,'Input - Avista IRP'!$A:$L,12,FALSE),0) -> -841 | F72: =MIN(VLOOKUP($B72,'Input - IPCO IRP'!$A:$B,2,FALSE),0) -> 0 | G72: =MIN(VLOOKUP($B72,'Input - IPCO IRP'!$A:$O,14,FALSE),0) -> -1855.5 | H72: =MIN(VLOOKUP($B72,'Input - IPCO IRP'!$A:$O,15,FALSE),0) -> -1449.833333 | I72: =MIN(VLOOKUP($B72,'Input - RMP IRP'!$A:$K,9,FALSE),0) -> 0 | J72: =MIN(VLOOKUP($B72,'Input - RMP IRP'!$A:$K,10,FALSE),0) -> -2929.676937 | K72: =MIN(VLOOKUP($B72,'Input - RMP IRP'!$A:$K,11,FALSE),0) -> 0
B73: 2048 | C73: =MIN(VLOOKUP($B73,'Input - Avista IRP'!$A:$D,2,FALSE),0) -> 0 | D73: =MIN(VLOOKUP($B73,'Input - Avista IRP'!$A:$L,11,FALSE),0) -> -873 | E73: =MIN(VLOOKUP($B73,'Input - Avista IRP'!$A:$L,12,FALSE),0) -> -841 | F73: =MIN(VLOOKUP($B73,'Input - IPCO IRP'!$A:$B,2,FALSE),0) -> 0 | G73: =MIN(VLOOKUP($B73,'Input - IPCO IRP'!$A:$O,14,FALSE),0) -> -1855.5 | H73: =MIN(VLOOKUP($B73,'Input - IPCO IRP'!$A:$O,15,FALSE),0) -> -1449.833333 | I73: =MIN(VLOOKUP($B73,'Input - RMP IRP'!$A:$K,9,FALSE),0) -> 0 | J73: =MIN(VLOOKUP($B73,'Input - RMP IRP'!$A:$K,10,FALSE),0) -> -2929.676937 | K73: =MIN(VLOOKUP($B73,'Input - RMP IRP'!$A:$K,11,FALSE),0) -> 0
B74: 2049 | C74: =MIN(VLOOKUP($B74,'Input - Avista IRP'!$A:$D,2,FALSE),0) -> 0 | D74: =MIN(VLOOKUP($B74,'Input - Avista IRP'!$A:$L,11,FALSE),0) -> -873 | E74: =MIN(VLOOKUP($B74,'Input - Avista IRP'!$A:$L,12,FALSE),0) -> -841 | F74: =MIN(VLOOKUP($B74,'Input - IPCO IRP'!$A:$B,2,FALSE),0) -> 0 | G74: =MIN(VLOOKUP($B74,'Input - IPCO IRP'!$A:$O,14,FALSE),0) -> -1855.5 | H74: =MIN(VLOOKUP($B74,'Input - IPCO IRP'!$A:$O,15,FALSE),0) -> -1449.833333 | I74: =MIN(VLOOKUP($B74,'Input - RMP IRP'!$A:$K,9,FALSE),0) -> 0 | J74: =MIN(VLOOKUP($B74,'Input - RMP IRP'!$A:$K,10,FALSE),0) -> -2929.676937 | K74: =MIN(VLOOKUP($B74,'Input - RMP IRP'!$A:$K,11,FALSE),0) -> 0
B75: 2050 | C75: =MIN(VLOOKUP($B75,'Input - Avista IRP'!$A:$D,2,FALSE),0) -> 0 | D75: =MIN(VLOOKUP($B75,'Input - Avista IRP'!$A:$L,11,FALSE),0) -> -873 | E75: =MIN(VLOOKUP($B75,'Input - Avista IRP'!$A:$L,12,FALSE),0) -> -841 | F75: =MIN(VLOOKUP($B75,'Input - IPCO IRP'!$A:$B,2,FALSE),0) -> 0 | G75: =MIN(VLOOKUP($B75,'Input - IPCO IRP'!$A:$O,14,FALSE),0) -> -1855.5 | H75: =MIN(VLOOKUP($B75,'Input - IPCO IRP'!$A:$O,15,FALSE),0) -> -1449.833333 | I75: =MIN(VLOOKUP($B75,'Input - RMP IRP'!$A:$K,9,FALSE),0) -> 0 | J75: =MIN(VLOOKUP($B75,'Input - RMP IRP'!$A:$K,10,FALSE),0) -> -2929.676937 | K75: =MIN(VLOOKUP($B75,'Input - RMP IRP'!$A:$K,11,FALSE),0) -> 0
B76: 2051 | C76: =MIN(VLOOKUP($B76,'Input - Avista IRP'!$A:$D,2,FALSE),0) ->  | D76: =MIN(VLOOKUP($B76,'Input - Avista IRP'!$A:$L,11,FALSE),0) ->  | E76: =MIN(VLOOKUP($B76,'Input - Avista IRP'!$A:$L,12,FALSE),0) ->  | F76: =MIN(VLOOKUP($B76,'Input - IPCO IRP'!$A:$B,2,FALSE),0) -> 0 | G76: =MIN(VLOOKUP($B76,'Input - IPCO IRP'!$A:$O,14,FALSE),0) -> -1855.5 | H76: =MIN(VLOOKUP($B76,'Input - IPCO IRP'!$A:$O,15,FALSE),0) -> -1449.833333 | I76: =MIN(VLOOKUP($B76,'Input - RMP IRP'!$A:$K,9,FALSE),0) ->  | J76: =MIN(VLOOKUP($B76,'Input - RMP IRP'!$A:$K,10,FALSE),0) ->  | K76: =MIN(VLOOKUP($B76,'Input - RMP IRP'!$A:$K,11,FALSE),0) -> 
B77: 2052 | C77: =MIN(VLOOKUP($B77,'Input - Avista IRP'!$A:$D,2,FALSE),0) ->  | D77: =MIN(VLOOKUP($B77,'Input - Avista IRP'!$A:$L,11,FALSE),0) ->  | E77: =MIN(VLOOKUP($B77,'Input - Avista IRP'!$A:$L,12,FALSE),0) ->  | F77: =MIN(VLOOKUP($B77,'Input - IPCO IRP'!$A:$B,2,FALSE),0) -> 0 | G77: =MIN(VLOOKUP($B77,'Input - IPCO IRP'!$A:$O,14,FALSE),0) -> -1855.5 | H77: =MIN(VLOOKUP($B77,'Input - IPCO IRP'!$A:$O,15,FALSE),0) -> -1449.833333 | I77: =MIN(VLOOKUP($B77,'Input - RMP IRP'!$A:$K,9,FALSE),0) ->  | J77: =MIN(VLOOKUP($B77,'Input - RMP IRP'!$A:$K,10,FALSE),0) ->  | K77: =MIN(VLOOKUP($B77,'Input - RMP IRP'!$A:$K,11,FALSE),0) -> 
B78: 2053 | C78: 0 | D78: =MIN(VLOOKUP($B78,'Input - Avista IRP'!$A:$L,11,FALSE),0) ->  | E78: =MIN(VLOOKUP($B78,'Input - Avista IRP'!$A:$L,12,FALSE),0) ->  | F78: =MIN(VLOOKUP($B78,'Input - IPCO IRP'!$A:$B,2,FALSE),0) -> 0 | G78: =MIN(VLOOKUP($B78,'Input - IPCO IRP'!$A:$O,14,FALSE),0) -> -1855.5 | H78: =MIN(VLOOKUP($B78,'Input - IPCO IRP'!$A:$O,15,FALSE),0) -> -1449.833333 | I78: =MIN(VLOOKUP($B78,'Input - RMP IRP'!$A:$K,9,FALSE),0) ->  | J78: =MIN(VLOOKUP($B78,'Input - RMP IRP'!$A:$K,10,FALSE),0) ->  | K78: =MIN(VLOOKUP($B78,'Input - RMP IRP'!$A:$K,11,FALSE),0) -> 

Sheet Input - Transmission
A2: Utility Transmission Costs
A5: Utility | B5: Rate ($/kW-mo) | C5: Losses
A6: AVISTA | B6: 2 | C6: 0.03
A7: IPCO | B7: 1.75 | C7: 0.04
A8: PCP | B8: 2.5 | C8: 0.05
A10: Rates Year | C10: 2012
A11: Inflation Rate | C11: ='AVOID NEW'!D47 -> 0.02
A14: Note: The current SAR model does not take utility transmission costs into account.

Sheet AVISTA NF HLH LLH Levelized
B1: =IF('AVOID NEW'!E105="AVISTA","AVISTA","THESE RATES ARE NOT VALID") -> THESE RATES ARE NOT VALID
B2: AVOIDED COST RATES FOR NON-FUELED PROJECTS
B3: Eligibility for these rates is limited to wind and solar projects 100 kW or smaller, and to non-wind and non-solar projects smaller than 10 aMW
B5: Seasonalization Factors
B7: Season 1 | D7: ='AVOID NEW'!E75 -> 1.08 | E7: (Applied to July - February)
B8: Season 2 | D8: ='AVOID NEW'!E76 -> 0.84 | E8: (Applied to March - June)
B12: =$B$1 -> THESE RATES ARE NOT VALID
B13: LEVELIZED RATES
B14: ="PROJECT ON-LINE IN "& 'AVOID NEW'!$D$54 -> PROJECT ON-LINE IN 2024
B15: ="Rate Effective Date: "&'AVOID NEW'!$E$69 -> Rate Effective Date: XXXX, 2024
B16: ="Resource: "&'Input - Capacity Factors'!$C$3 -> Resource: Wind
C17: Levelized Price | G17: ="Season 1 Pricing ("&$D$7*100&"%)" -> Season 1 Pricing (108%) | N17: ="Season 2 Pricing ("&100*$D$8&"%)" -> Season 2 Pricing (84%) | V17: Non-Seasonalized Pricing
C18: Heavy and Light Load Hour Differential | D18: ='AVOID NEW'!$E$66 -> 5 | G18: Flat | I18: Heavy Load Hour | K18: Light Load Hour | N18: Flat | P18: Heavy Load Hour | R18: Light Load Hour | V18: Flat | X18: Heavy Load Hour | Z18: Light Load Hour
D19: =ROUND(D18/3,2) -> 1.67 | E19: =-ROUND((D18*2)/3,2) -> -3.33 | G19: Price | H19: Price less wind integration adjustment | J19: Price less wind integration adjustment | L19: Price less wind integration adjustment | O19: Price less wind integration adjustment | Q19: Price less wind integration adjustment | S19: Price less wind integration adjustment | W19: Price less wind integration adjustment | Y19: Price less wind integration adjustment | AA19: Price less wind integration adjustment
B20: Contract Length | C20: Flat | D20: Heavy Load Hour | E20: Light Load Hour | I20: Price | K20: Price | N20: Price | P20: Price | R20: Price | V20: Price | X20: Price | Z20: Price
B21: 1 | C21: ='AVOID NEW'!AN9 -> 37.1101002 | D21: =C21+D$19 -> 38.7801002 | E21: =C21+E$19 -> 33.7801002 | G21: =ROUND((+$C21*$D$7),2) -> 40.08 | H21: =IF(OR('Input - Capacity Factors'!$C$3="Wind"),IF(G21*'AVOID NEW'!$E$67<6.5,G21*(1-'AVOID NEW'!$E$67),G21-6.5),"NA") -> 36.8736 | I21: =ROUND((+$D21*$D$7),2) -> 41.88 | J21: =IF(OR('Input - Capacity Factors'!$C$3="Wind"),IF(I21*'AVOID NEW'!$E$67<6.5,I21*(1-'AVOID NEW'!$E$67),I21-6.5),"NA") -> 38.5296 | K21: =ROUND((+$E21*$D$7),2) -> 36.48 | L21: =IF(OR('Input - Capacity Factors'!$C$3="Wind"),IF(K21*'AVOID NEW'!$E$67<6.5,K21*(1-'AVOID NEW'!$E$67),K21-6.5),"NA") -> 33.5616 | N21: =ROUND((+$C21*$D$8),2) -> 31.17 | O21: =IF(OR('Input - Capacity Factors'!$C$3="Wind"),IF(N21*'AVOID NEW'!$E$67<6.5,N21*(1-'AVOID NEW'!$E$67),N21-6.5),"NA") -> 28.6764 | P21: =ROUND((+$D21*$D$8),2) -> 32.58 | Q21: =IF(OR('Input - Capacity Factors'!$C$3="Wind"),IF(P21*'AVOID NEW'!$E$67<6.5,P21*(1-'AVOID NEW'!$E$67),P21-6.5),"NA") -> 29.9736 | R21: =ROUND((+$E21*$D$8),2) -> 28.38 | S21: =IF(OR('Input - Capacity Factors'!$C$3="Wind"),IF(R21*'AVOID NEW'!$E$67<6.5,R21*(1-'AVOID NEW'!$E$67),R21-6.5),"NA") -> 26.1096 | V21: =ROUND((+$C21),2) -> 37.11 | W21: =IF(OR('Input - Capacity Factors'!$C$3="Wind"),IF(V21*'AVOID NEW'!$E$67<6.5,V21*(1-'AVOID NEW'!$E$67),V21-6.5),"NA") -> 34.1412 | X21: =ROUND((+$D21),2) -> 38.78 | Y21: =IF(OR('Input - Capacity Factors'!$C$3="Wind"),IF(X21*'AVOID NEW'!$E$67<6.5,X21*(1-'AVOID NEW'!$E$67),X21-6.5),"NA") -> 35.6776 | Z21: =ROUND((+$E21),2) -> 33.78 | AA21: =IF(OR('Input - Capacity Factors'!$C$3="Wind"),IF(Z21*'AVOID NEW'!$E$67<6.5,Z21*(1-'AVOID NEW'!$E$67),Z21-6.5),"NA") -> 31.0776
B22: 2 | C22: ='AVOID NEW'!AN10 -> 35.49743165 | D22: 37.16743165 | E22: 32.16743165 | G22: 38.34 | H22: =IF(OR('Input - Capacity Factors'!$C$3="Wind"),IF(G22*'AVOID NEW'!$E$67<6.5,G22*(1-'AVOID NEW'!$E$67),G22-6.5),"NA") -> 35.2728 | I22: 40.14 | J22: =IF(OR('Input - Capacity Factors'!$C$3="Wind"),IF(I22*'AVOID NEW'!$E$67<6.5,I22*(1-'AVOID NEW'!$E$67),I22-6.5),"NA") -> 36.9288 | K22: 34.74 | L22: =IF(OR('Input - Capacity Factors'!$C$3="Wind"),IF(K22*'AVOID NEW'!$E$67<6.5,K22*(1-'AVOID NEW'!$E$67),K22-6.5),"NA") -> 31.9608 | N22: 29.82 | O22: =IF(OR('Input - Capacity Factors'!$C$3="Wind"),IF(N22*'AVOID NEW'!$E$67<6.5,N22*(1-'AVOID NEW'!$E$67),N22-6.5),"NA") -> 27.4344 | P22: 31.22 | Q22: =IF(OR('Input - Capacity Factors'!$C$3="Wind"),IF(P22*'AVOID NEW'!$E$67<6.5,P22*(1-'AVOID NEW'!$E$67),P22-6.5),"NA") -> 28.7224 | R22: 27.02 | S22: =IF(OR('Input - Capacity Factors'!$C$3="Wind"),IF(R22*'AVOID NEW'!$E$67<6.5,R22*(1-'AVOID NEW'!$E$67),R22-6.5),"NA") -> 24.8584 | V22: =ROUND((+$C22),2) -> 35.5 | W22: =IF(OR('Input - Capacity Factors'!$C$3="Wind"),IF(V22*'AVOID NEW'!$E$67<6.5,V22*(1-'AVOID NEW'!$E$67),V22-6.5),"NA") -> 32.66 | X22: =ROUND((+$D22),2) -> 37.17 | Y22: =IF(OR('Input - Capacity Factors'!$C$3="Wind"),IF(X22*'AVOID NEW'!$E$67<6.5,X22*(1-'AVOID NEW'!$E$67),X22-6.5),"NA") -> 34.1964 | Z22: =ROUND((+$E22),2) -> 32.17 | AA22: =IF(OR('Input - Capacity Factors'!$C$3="Wind"),IF(Z22*'AVOID NEW'!$E$67<6.5,Z22*(1-'AVOID NEW'!$E$67),Z22-6.5),"NA") -> 29.5964
B23: 3 | C23: ='AVOID NEW'!AN11 -> 35.06745587 | D23: 36.73745587 | E23: 31.73745587 | G23: 37.87 | H23: =IF(OR('Input - Capacity Factors'!$C$3="Wind"),IF(G23*'AVOID NEW'!$E$67<6.5,G23*(1-'AVOID NEW'!$E$67),G23-6.5),"NA") -> 34.8404 | I23: 39.68 | J23: =IF(OR('Input - Capacity Factors'!$C$3="Wind"),IF(I23*'AVOID NEW'!$E$67<6.5,I23*(1-'AVOID NEW'!$E$67),I23-6.5),"NA") -> 36.5056 | K23: 34.28 | L23: =IF(OR('Input - Capacity Factors'!$C$3="Wind"),IF(K23*'AVOID NEW'!$E$67<6.5,K23*(1-'AVOID NEW'!$E$67),K23-6.5),"NA") -> 31.5376 | N23: 29.46 | O23: =IF(OR('Input - Capacity Factors'!$C$3="Wind"),IF(N23*'AVOID NEW'!$E$67<6.5,N23*(1-'AVOID NEW'!$E$67),N23-6.5),"NA") -> 27.1032 | P23: 30.86 | Q23: =IF(OR('Input - Capacity Factors'!$C$3="Wind"),IF(P23*'AVOID NEW'!$E$67<6.5,P23*(1-'AVOID NEW'!$E$67),P23-6.5),"NA") -> 28.3912 | R23: 26.66 | S23: =IF(OR('Input - Capacity Factors'!$C$3="Wind"),IF(R23*'AVOID NEW'!$E$67<6.5,R23*(1-'AVOID NEW'!$E$67),R23-6.5),"NA") -> 24.5272 | V23: 35.07 | W23: =IF(OR('Input - Capacity Factors'!$C$3="Wind"),IF(V23*'AVOID NEW'!$E$67<6.5,V23*(1-'AVOID NEW'!$E$67),V23-6.5),"NA") -> 32.2644 | X23: 36.74 | Y23: =IF(OR('Input - Capacity Factors'!$C$3="Wind"),IF(X23*'AVOID NEW'!$E$67<6.5,X23*(1-'AVOID NEW'!$E$67),X23-6.5),"NA") -> 33.8008 | Z23: 31.74 | AA23: =IF(OR('Input - Capacity Factors'!$C$3="Wind"),IF(Z23*'AVOID NEW'!$E$67<6.5,Z23*(1-'AVOID NEW'!$E$67),Z23-6.5),"NA") -> 29.2008
B24: 4 | C24: ='AVOID NEW'!AN12 -> 34.45639643 | D24: 36.12639643 | E24: 31.12639643 | G24: 37.21 | H24: =IF(OR('Input - Capacity Factors'!$C$3="Wind"),IF(G24*'AVOID NEW'!$E$67<6.5,G24*(1-'AVOID NEW'!$E$67),G24-6.5),"NA") -> 34.2332 | I24: 39.02 | J24: =IF(OR('Input - Capacity Factors'!$C$3="Wind"),IF(I24*'AVOID NEW'!$E$67<6.5,I24*(1-'AVOID NEW'!$E$67),I24-6.5),"NA") -> 35.8984 | K24: 33.62 | L24: =IF(OR('Input - Capacity Factors'!$C$3="Wind"),IF(K24*'AVOID NEW'!$E$67<6.5,K24*(1-'AVOID NEW'!$E$67),K24-6.5),"NA") -> 30.9304 | N24: 28.94 | O24: =IF(OR('Input - Capacity Factors'!$C$3="Wind"),IF(N24*'AVOID NEW'!$E$67<6.5,N24*(1-'AVOID NEW'!$E$67),N24-6.5),"NA") -> 26.6248 | P24: 30.35 | Q24: =IF(OR('Input - Capacity Factors'!$C$3="Wind"),IF(P24*'AVOID NEW'!$E$67<6.5,P24*(1-'AVOID NEW'!$E$67),P24-6.5),"NA") -> 27.922 | R24: 26.15 | S24: =IF(OR('Input - Capacity Factors'!$C$3="Wind"),IF(R24*'AVOID NEW'!$E$67<6.5,R24*(1-'AVOID NEW'!$E$67),R24-6.5),"NA") -> 24.058 | V24: 34.46 | W24: =IF(OR('Input - Capacity Factors'!$C$3="Wind"),IF(V24*'AVOID NEW'!$E$67<6.5,V24*(1-'AVOID NEW'!$E$67),V24-6.5),"NA") -> 31.7032 | X24: 36.13 | Y24: =IF(OR('Input - Capacity Factors'!$C$3="Wind"),IF(X24*'AVOID NEW'!$E$67<6.5,X24*(1-'AVOID NEW'!$E$67),X24-6.5),"NA") -> 33.2396 | Z24: 31.13 | AA24: =IF(OR('Input - Capacity Factors'!$C$3="Wind"),IF(Z24*'AVOID NEW'!$E$67<6.5,Z24*(1-'AVOID NEW'!$E$67),Z24-6.5),"NA") -> 28.6396
B25: 5 | C25: ='AVOID NEW'!AN13 -> 34.07507866 | D25: 35.74507866 | E25: 30.74507866 | G25: 36.8 | H25: =IF(OR('Input - Capacity Factors'!$C$3="Wind"),IF(G25*'AVOID NEW'!$E$67<6.5,G25*(1-'AVOID NEW'!$E$67),G25-6.5),"NA") -> 33.856 | I25: 38.6 | J25: =IF(OR('Input - Capacity Factors'!$C$3="Wind"),IF(I25*'AVOID NEW'!$E$67<6.5,I25*(1-'AVOID NEW'!$E$67),I25-6.5),"NA") -> 35.512 | K25: 33.2 | L25: =IF(OR('Input - Capacity Factors'!$C$3="Wind"),IF(K25*'AVOID NEW'!$E$67<6.5,K25*(1-'AVOID NEW'!$E$67),K25-6.5),"NA") -> 30.544 | N25: 28.62 | O25: =IF(OR('Input - Capacity Factors'!$C$3="Wind"),IF(N25*'AVOID NEW'!$E$67<6.5,N25*(1-'AVOID NEW'!$E$67),N25-6.5),"NA") -> 26.3304 | P25: 30.03 | Q25: =IF(OR('Input - Capacity Factors'!$C$3="Wind"),IF(P25*'AVOID NEW'!$E$67<6.5,P25*(1-'AVOID NEW'!$E$67),P25-6.5),"NA") -> 27.6276 | R25: 25.83 | S25: =IF(OR('Input - Capacity Factors'!$C$3="Wind"),IF(R25*'AVOID NEW'!$E$67<6.5,R25*(1-'AVOID NEW'!$E$67),R25-6.5),"NA") -> 23.7636 | V25: 34.08 | W25: =IF(OR('Input - Capacity Factors'!$C$3="Wind"),IF(V25*'AVOID NEW'!$E$67<6.5,V25*(1-'AVOID NEW'!$E$67),V25-6.5),"NA") -> 31.3536 | X25: 35.75 | Y25: =IF(OR('Input - Capacity Factors'!$C$3="Wind"),IF(X25*'AVOID NEW'!$E$67<6.5,X25*(1-'AVOID NEW'!$E$67),X25-6.5),"NA") -> 32.89 | Z25: 30.75 | AA25: =IF(OR('Input - Capacity Factors'!$C$3="Wind"),IF(Z25*'AVOID NEW'!$E$67<6.5,Z25*(1-'AVOID NEW'!$E$67),Z25-6.5),"NA") -> 28.29
B26: 6 | C26: ='AVOID NEW'!AN14 -> 33.87617744 | D26: 35.54617744 | E26: 30.54617744 | G26: 36.59 | H26: =IF(OR('Input - Capacity Factors'!$C$3="Wind"),IF(G26*'AVOID NEW'!$E$67<6.5,G26*(1-'AVOID NEW'!$E$67),G26-6.5),"NA") -> 33.6628 | I26: 38.39 | J26: =IF(OR('Input - Capacity Factors'!$C$3="Wind"),IF(I26*'AVOID NEW'!$E$67<6.5,I26*(1-'AVOID NEW'!$E$67),I26-6.5),"NA") -> 35.3188 | K26: 32.99 | L26: =IF(OR('Input - Capacity Factors'!$C$3="Wind"),IF(K26*'AVOID NEW'!$E$67<6.5,K26*(1-'AVOID NEW'!$E$67),K26-6.5),"NA") -> 30.3508 | N26: 28.46 | O26: =IF(OR('Input - Capacity Factors'!$C$3="Wind"),IF(N26*'AVOID NEW'!$E$67<6.5,N26*(1-'AVOID NEW'!$E$67),N26-6.5),"NA") -> 26.1832 | P26: 29.86 | Q26: =IF(OR('Input - Capacity Factors'!$C$3="Wind"),IF(P26*'AVOID NEW'!$E$67<6.5,P26*(1-'AVOID NEW'!$E$67),P26-6.5),"NA") -> 27.4712 | R26: 25.66 | S26: =IF(OR('Input - Capacity Factors'!$C$3="Wind"),IF(R26*'AVOID NEW'!$E$67<6.5,R26*(1-'AVOID NEW'!$E$67),R26-6.5),"NA") -> 23.6072 | V26: 33.88 | W26: =IF(OR('Input - Capacity Factors'!$C$3="Wind"),IF(V26*'AVOID NEW'!$E$67<6.5,V26*(1-'AVOID NEW'!$E$67),V26-6.5),"NA") -> 31.1696 | X26: 35.55 | Y26: =IF(OR('Input - Capacity Factors'!$C$3="Wind"),IF(X26*'AVOID NEW'!$E$67<6.5,X26*(1-'AVOID NEW'!$E$67),X26-6.5),"NA") -> 32.706 | Z26: 30.55 | AA26: =IF(OR('Input - Capacity Factors'!$C$3="Wind"),IF(Z26*'AVOID NEW'!$E$67<6.5,Z26*(1-'AVOID NEW'!$E$67),Z26-6.5),"NA") -> 28.106
B27: 7 | C27: ='AVOID NEW'!AN15 -> 33.85243479 | D27: 35.52243479 | E27: 30.52243479 | G27: 36.56 | H27: =IF(OR('Input - Capacity Factors'!$C$3="Wind"),IF(G27*'AVOID NEW'!$E$67<6.5,G27*(1-'AVOID NEW'!$E$67),G27-6.5),"NA") -> 33.6352 | I27: 38.36 | J27: =IF(OR('Input - Capacity Factors'!$C$3="Wind"),IF(I27*'AVOID NEW'!$E$67<6.5,I27*(1-'AVOID NEW'!$E$67),I27-6.5),"NA") -> 35.2912 | K27: 32.96 | L27: =IF(OR('Input - Capacity Factors'!$C$3="Wind"),IF(K27*'AVOID NEW'!$E$67<6.5,K27*(1-'AVOID NEW'!$E$67),K27-6.5),"NA") -> 30.3232 | N27: 28.44 | O27: =IF(OR('Input - Capacity Factors'!$C$3="Wind"),IF(N27*'AVOID NEW'!$E$67<6.5,N27*(1-'AVOID NEW'!$E$67),N27-6.5),"NA") -> 26.1648 | P27: 29.84 | Q27: =IF(OR('Input - Capacity Factors'!$C$3="Wind"),IF(P27*'AVOID NEW'!$E$67<6.5,P27*(1-'AVOID NEW'!$E$67),P27-6.5),"NA") -> 27.4528 | R27: 25.64 | S27: =IF(OR('Input - Capacity Factors'!$C$3="Wind"),IF(R27*'AVOID NEW'!$E$67<6.5,R27*(1-'AVOID NEW'!$E$67),R27-6.5),"NA") -> 23.5888 | V27: 33.85 | W27: =IF(OR('Input - Capacity Factors'!$C$3="Wind"),IF(V27*'AVOID NEW'!$E$67<6.5,V27*(1-'AVOID NEW'!$E$67),V27-6.5),"NA") -> 31.142 | X27: 35.52 | Y27: =IF(OR('Input - Capacity Factors'!$C$3="Wind"),IF(X27*'AVOID NEW'!$E$67<6.5,X27*(1-'AVOID NEW'!$E$67),X27-6.5),"NA") -> 32.6784 | Z27: 30.52 | AA27: =IF(OR('Input - Capacity Factors'!$C$3="Wind"),IF(Z27*'AVOID NEW'!$E$67<6.5,Z27*(1-'AVOID NEW'!$E$67),Z27-6.5),"NA") -> 28.0784
B28: 8 | C28: ='AVOID NEW'!AN16 -> 34.00551753 | D28: 35.67551753 | E28: 30.67551753 | G28: 36.73 | H28: =IF(OR('Input - Capacity Factors'!$C$3="Wind"),IF(G28*'AVOID NEW'!$E$67<6.5,G28*(1-'AVOID NEW'!$E$67),G28-6.5),"NA") -> 33.7916 | I28: 38.53 | J28: =IF(OR('Input - Capacity Factors'!$C$3="Wind"),IF(I28*'AVOID NEW'!$E$67<6.5,I28*(1-'AVOID NEW'!$E$67),I28-6.5),"NA") -> 35.4476 | K28: 33.13 | L28: =IF(OR('Input - Capacity Factors'!$C$3="Wind"),IF(K28*'AVOID NEW'!$E$67<6.5,K28*(1-'AVOID NEW'!$E$67),K28-6.5),"NA") -> 30.4796 | N28: 28.56 | O28: =IF(OR('Input - Capacity Factors'!$C$3="Wind"),IF(N28*'AVOID NEW'!$E$67<6.5,N28*(1-'AVOID NEW'!$E$67),N28-6.5),"NA") -> 26.2752 | P28: 29.97 | Q28: =IF(OR('Input - Capacity Factors'!$C$3="Wind"),IF(P28*'AVOID NEW'!$E$67<6.5,P28*(1-'AVOID NEW'!$E$67),P28-6.5),"NA") -> 27.5724 | R28: 25.77 | S28: =IF(OR('Input - Capacity Factors'!$C$3="Wind"),IF(R28*'AVOID NEW'!$E$67<6.5,R28*(1-'AVOID NEW'!$E$67),R28-6.5),"NA") -> 23.7084 | V28: 34.01 | W28: =IF(OR('Input - Capacity Factors'!$C$3="Wind"),IF(V28*'AVOID NEW'!$E$67<6.5,V28*(1-'AVOID NEW'!$E$67),V28-6.5),"NA") -> 31.2892 | X28: 35.68 | Y28: =IF(OR('Input - Capacity Factors'!$C$3="Wind"),IF(X28*'AVOID NEW'!$E$67<6.5,X28*(1-'AVOID NEW'!$E$67),X28-6.5),"NA") -> 32.8256 | Z28: 30.68 | AA28: =IF(OR('Input - Capacity Factors'!$C$3="Wind"),IF(Z28*'AVOID NEW'!$E$67<6.5,Z28*(1-'AVOID NEW'!$E$67),Z28-6.5),"NA") -> 28.2256
B29: 9 | C29: ='AVOID NEW'!AN17 -> 34.31010984 | D29: 35.98010984 | E29: 30.98010984 | G29: 37.05 | H29: =IF(OR('Input - Capacity Factors'!$C$3="Wind"),IF(G29*'AVOID NEW'!$E$67<6.5,G29*(1-'AVOID NEW'!$E$67),G29-6.5),"NA") -> 34.086 | I29: 38.86 | J29: =IF(OR('Input - Capacity Factors'!$C$3="Wind"),IF(I29*'AVOID NEW'!$E$67<6.5,I29*(1-'AVOID NEW'!$E$67),I29-6.5),"NA") -> 35.7512 | K29: 33.46 | L29: =IF(OR('Input - Capacity Factors'!$C$3="Wind"),IF(K29*'AVOID NEW'!$E$67<6.5,K29*(1-'AVOID NEW'!$E$67),K29-6.5),"NA") -> 30.7832 | N29: 28.82 | O29: =IF(OR('Input - Capacity Factors'!$C$3="Wind"),IF(N29*'AVOID NEW'!$E$67<6.5,N29*(1-'AVOID NEW'!$E$67),N29-6.5),"NA") -> 26.5144 | P29: 30.22 | Q29: =IF(OR('Input - Capacity Factors'!$C$3="Wind"),IF(P29*'AVOID NEW'!$E$67<6.5,P29*(1-'AVOID NEW'!$E$67),P29-6.5),"NA") -> 27.8024 | R29: 26.02 | S29: =IF(OR('Input - Capacity Factors'!$C$3="Wind"),IF(R29*'AVOID NEW'!$E$67<6.5,R29*(1-'AVOID NEW'!$E$67),R29-6.5),"NA") -> 23.9384 | V29: 34.31 | W29: =IF(OR('Input - Capacity Factors'!$C$3="Wind"),IF(V29*'AVOID NEW'!$E$67<6.5,V29*(1-'AVOID NEW'!$E$67),V29-6.5),"NA") -> 31.5652 | X29: 35.98 | Y29: =IF(OR('Input - Capacity Factors'!$C$3="Wind"),IF(X29*'AVOID NEW'!$E$67<6.5,X29*(1-'AVOID NEW'!$E$67),X29-6.5),"NA") -> 33.1016 | Z29: 30.98 | AA29: =IF(OR('Input - Capacity Factors'!$C$3="Wind"),IF(Z29*'AVOID NEW'!$E$67<6.5,Z29*(1-'AVOID NEW'!$E$67),Z29-6.5),"NA") -> 28.5016
B30: 10 | C30: ='AVOID NEW'!AN18 -> 34.73020959 | D30: 36.40020959 | E30: 31.40020959 | G30: 37.51 | H30: =IF(OR('Input - Capacity Factors'!$C$3="Wind"),IF(G30*'AVOID NEW'!$E$67<6.5,G30*(1-'AVOID NEW'!$E$67),G30-6.5),"NA") -> 34.5092 | I30: 39.31 | J30: =IF(OR('Input - Capacity Factors'!$C$3="Wind"),IF(I30*'AVOID NEW'!$E$67<6.5,I30*(1-'AVOID NEW'!$E$67),I30-6.5),"NA") -> 36.1652 | K30: 33.91 | L30: =IF(OR('Input - Capacity Factors'!$C$3="Wind"),IF(K30*'AVOID NEW'!$E$67<6.5,K30*(1-'AVOID NEW'!$E$67),K30-6.5),"NA") -> 31.1972 | N30: 29.17 | O30: =IF(OR('Input - Capacity Factors'!$C$3="Wind"),IF(N30*'AVOID NEW'!$E$67<6.5,N30*(1-'AVOID NEW'!$E$67),N30-6.5),"NA") -> 26.8364 | P30: 30.58 | Q30: =IF(OR('Input - Capacity Factors'!$C$3="Wind"),IF(P30*'AVOID NEW'!$E$67<6.5,P30*(1-'AVOID NEW'!$E$67),P30-6.5),"NA") -> 28.1336 | R30: 26.38 | S30: =IF(OR('Input - Capacity Factors'!$C$3="Wind"),IF(R30*'AVOID NEW'!$E$67<6.5,R30*(1-'AVOID NEW'!$E$67),R30-6.5),"NA") -> 24.2696 | V30: 34.73 | W30: =IF(OR('Input - Capacity Factors'!$C$3="Wind"),IF(V30*'AVOID NEW'!$E$67<6.5,V30*(1-'AVOID NEW'!$E$67),V30-6.5),"NA") -> 31.9516 | X30: 36.4 | Y30: =IF(OR('Input - Capacity Factors'!$C$3="Wind"),IF(X30*'AVOID NEW'!$E$67<6.5,X30*(1-'AVOID NEW'!$E$67),X30-6.5),"NA") -> 33.488 | Z30: 31.4 | AA30: =IF(OR('Input - Capacity Factors'!$C$3="Wind"),IF(Z30*'AVOID NEW'!$E$67<6.5,Z30*(1-'AVOID NEW'!$E$67),Z30-6.5),"NA") -> 28.888
B31: 11 | C31: ='AVOID NEW'!AN19 -> 35.23331391 | D31: 36.90331391 | E31: 31.90331391 | G31: 38.05 | H31: =IF(OR('Input - Capacity Factors'!$C$3="Wind"),IF(G31*'AVOID NEW'!$E$67<6.5,G31*(1-'AVOID NEW'!$E$67),G31-6.5),"NA") -> 35.006 | I31: 39.86 | J31: =IF(OR('Input - Capacity Factors'!$C$3="Wind"),IF(I31*'AVOID NEW'!$E$67<6.5,I31*(1-'AVOID NEW'!$E$67),I31-6.5),"NA") -> 36.6712 | K31: 34.46 | L31: =IF(OR('Input - Capacity Factors'!$C$3="Wind"),IF(K31*'AVOID NEW'!$E$67<6.5,K31*(1-'AVOID NEW'!$E$67),K31-6.5),"NA") -> 31.7032 | N31: 29.6 | O31: =IF(OR('Input - Capacity Factors'!$C$3="Wind"),IF(N31*'AVOID NEW'!$E$67<6.5,N31*(1-'AVOID NEW'!$E$67),N31-6.5),"NA") -> 27.232 | P31: 31 | Q31: =IF(OR('Input - Capacity Factors'!$C$3="Wind"),IF(P31*'AVOID NEW'!$E$67<6.5,P31*(1-'AVOID NEW'!$E$67),P31-6.5),"NA") -> 28.52 | R31: 26.8 | S31: =IF(OR('Input - Capacity Factors'!$C$3="Wind"),IF(R31*'AVOID NEW'!$E$67<6.5,R31*(1-'AVOID NEW'!$E$67),R31-6.5),"NA") -> 24.656 | V31: 35.23 | W31: =IF(OR('Input - Capacity Factors'!$C$3="Wind"),IF(V31*'AVOID NEW'!$E$67<6.5,V31*(1-'AVOID NEW'!$E$67),V31-6.5),"NA") -> 32.4116 | X31: 36.9 | Y31: =IF(OR('Input - Capacity Factors'!$C$3="Wind"),IF(X31*'AVOID NEW'!$E$67<6.5,X31*(1-'AVOID NEW'!$E$67),X31-6.5),"NA") -> 33.948 | Z31: 31.9 | AA31: =IF(OR('Input - Capacity Factors'!$C$3="Wind"),IF(Z31*'AVOID NEW'!$E$67<6.5,Z31*(1-'AVOID NEW'!$E$67),Z31-6.5),"NA") -> 29.348
B32: 12 | C32: ='AVOID NEW'!AN20 -> 35.79191069 | D32: 37.46191069 | E32: 32.46191069 | G32: 38.66 | H32: =IF(OR('Input - Capacity Factors'!$C$3="Wind"),IF(G32*'AVOID NEW'!$E$67<6.5,G32*(1-'AVOID NEW'!$E$67),G32-6.5),"NA") -> 35.5672 | I32: 40.46 | J32: =IF(OR('Input - Capacity Factors'!$C$3="Wind"),IF(I32*'AVOID NEW'!$E$67<6.5,I32*(1-'AVOID NEW'!$E$67),I32-6.5),"NA") -> 37.2232 | K32: 35.06 | L32: =IF(OR('Input - Capacity Factors'!$C$3="Wind"),IF(K32*'AVOID NEW'!$E$67<6.5,K32*(1-'AVOID NEW'!$E$67),K32-6.5),"NA") -> 32.2552 | N32: 30.07 | O32: =IF(OR('Input - Capacity Factors'!$C$3="Wind"),IF(N32*'AVOID NEW'!$E$67<6.5,N32*(1-'AVOID NEW'!$E$67),N32-6.5),"NA") -> 27.6644 | P32: 31.47 | Q32: =IF(OR('Input - Capacity Factors'!$C$3="Wind"),IF(P32*'AVOID NEW'!$E$67<6.5,P32*(1-'AVOID NEW'!$E$67),P32-6.5),"NA") -> 28.9524 | R32: 27.27 | S32: =IF(OR('Input - Capacity Factors'!$C$3="Wind"),IF(R32*'AVOID NEW'!$E$67<6.5,R32*(1-'AVOID NEW'!$E$67),R32-6.5),"NA") -> 25.0884 | V32: 35.79 | W32: =IF(OR('Input - Capacity Factors'!$C$3="Wind"),IF(V32*'AVOID NEW'!$E$67<6.5,V32*(1-'AVOID NEW'!$E$67),V32-6.5),"NA") -> 32.9268 | X32: 37.46 | Y32: =IF(OR('Input - Capacity Factors'!$C$3="Wind"),IF(X32*'AVOID NEW'!$E$67<6.5,X32*(1-'AVOID NEW'!$E$67),X32-6.5),"NA") -> 34.4632 | Z32: 32.46 | AA32: =IF(OR('Input - Capacity Factors'!$C$3="Wind"),IF(Z32*'AVOID NEW'!$E$67<6.5,Z32*(1-'AVOID NEW'!$E$67),Z32-6.5),"NA") -> 29.8632
B33: 13 | C33: ='AVOID NEW'!AN21 -> 36.33186599 | D33: 38.00186599 | E33: 33.00186599 | G33: 39.24 | H33: =IF(OR('Input - Capacity Factors'!$C$3="Wind"),IF(G33*'AVOID NEW'!$E$67<6.5,G33*(1-'AVOID NEW'!$E$67),G33-6.5),"NA") -> 36.1008 | I33: 41.04 | J33: =IF(OR('Input - Capacity Factors'!$C$3="Wind"),IF(I33*'AVOID NEW'!$E$67<6.5,I33*(1-'AVOID NEW'!$E$67),I33-6.5),"NA") -> 37.7568 | K33: 35.64 | L33: =IF(OR('Input - Capacity Factors'!$C$3="Wind"),IF(K33*'AVOID NEW'!$E$67<6.5,K33*(1-'AVOID NEW'!$E$67),K33-6.5),"NA") -> 32.7888 | N33: 30.52 | O33: =IF(OR('Input - Capacity Factors'!$C$3="Wind"),IF(N33*'AVOID NEW'!$E$67<6.5,N33*(1-'AVOID NEW'!$E$67),N33-6.5),"NA") -> 28.0784 | P33: 31.92 | Q33: =IF(OR('Input - Capacity Factors'!$C$3="Wind"),IF(P33*'AVOID NEW'!$E$67<6.5,P33*(1-'AVOID NEW'!$E$67),P33-6.5),"NA") -> 29.3664 | R33: 27.72 | S33: =IF(OR('Input - Capacity Factors'!$C$3="Wind"),IF(R33*'AVOID NEW'!$E$67<6.5,R33*(1-'AVOID NEW'!$E$67),R33-6.5),"NA") -> 25.5024 | V33: 36.33 | W33: =IF(OR('Input - Capacity Factors'!$C$3="Wind"),IF(V33*'AVOID NEW'!$E$67<6.5,V33*(1-'AVOID NEW'!$E$67),V33-6.5),"NA") -> 33.4236 | X33: 38 | Y33: =IF(OR('Input - Capacity Factors'!$C$3="Wind"),IF(X33*'AVOID NEW'!$E$67<6.5,X33*(1-'AVOID NEW'!$E$67),X33-6.5),"NA") -> 34.96 | Z33: 33 | AA33: =IF(OR('Input - Capacity Factors'!$C$3="Wind"),IF(Z33*'AVOID NEW'!$E$67<6.5,Z33*(1-'AVOID NEW'!$E$67),Z33-6.5),"NA") -> 30.36
B34: 14 | C34: ='AVOID NEW'!AN22 -> 36.84999635 | D34: 38.51999635 | E34: 33.51999635 | G34: 39.8 | H34: =IF(OR('Input - Capacity Factors'!$C$3="Wind"),IF(G34*'AVOID NEW'!$E$67<6.5,G34*(1-'AVOID NEW'!$E$67),G34-6.5),"NA") -> 36.616 | I34: 41.6 | J34: =IF(OR('Input - Capacity Factors'!$C$3="Wind"),IF(I34*'AVOID NEW'!$E$67<6.5,I34*(1-'AVOID NEW'!$E$67),I34-6.5),"NA") -> 38.272 | K34: 36.2 | L34: =IF(OR('Input - Capacity Factors'!$C$3="Wind"),IF(K34*'AVOID NEW'!$E$67<6.5,K34*(1-'AVOID NEW'!$E$67),K34-6.5),"NA") -> 33.304 | N34: 30.95 | O34: =IF(OR('Input - Capacity Factors'!$C$3="Wind"),IF(N34*'AVOID NEW'!$E$67<6.5,N34*(1-'AVOID NEW'!$E$67),N34-6.5),"NA") -> 28.474 | P34: 32.36 | Q34: =IF(OR('Input - Capacity Factors'!$C$3="Wind"),IF(P34*'AVOID NEW'!$E$67<6.5,P34*(1-'AVOID NEW'!$E$67),P34-6.5),"NA") -> 29.7712 | R34: 28.16 | S34: =IF(OR('Input - Capacity Factors'!$C$3="Wind"),IF(R34*'AVOID NEW'!$E$67<6.5,R34*(1-'AVOID NEW'!$E$67),R34-6.5),"NA") -> 25.9072 | V34: 36.85 | W34: =IF(OR('Input - Capacity Factors'!$C$3="Wind"),IF(V34*'AVOID NEW'!$E$67<6.5,V34*(1-'AVOID NEW'!$E$67),V34-6.5),"NA") -> 33.902 | X34: 38.52 | Y34: =IF(OR('Input - Capacity Factors'!$C$3="Wind"),IF(X34*'AVOID NEW'!$E$67<6.5,X34*(1-'AVOID NEW'!$E$67),X34-6.5),"NA") -> 35.4384 | Z34: 33.52 | AA34: =IF(OR('Input - Capacity Factors'!$C$3="Wind"),IF(Z34*'AVOID NEW'!$E$67<6.5,Z34*(1-'AVOID NEW'!$E$67),Z34-6.5),"NA") -> 30.8384
B35: 15 | C35: ='AVOID NEW'!AN23 -> 37.41111753 | D35: 39.08111753 | E35: 34.08111753 | G35: 40.4 | H35: =IF(OR('Input - Capacity Factors'!$C$3="Wind"),IF(G35*'AVOID NEW'!$E$67<6.5,G35*(1-'AVOID NEW'!$E$67),G35-6.5),"NA") -> 37.168 | I35: 42.21 | J35: =IF(OR('Input - Capacity Factors'!$C$3="Wind"),IF(I35*'AVOID NEW'!$E$67<6.5,I35*(1-'AVOID NEW'!$E$67),I35-6.5),"NA") -> 38.8332 | K35: 36.81 | L35: =IF(OR('Input - Capacity Factors'!$C$3="Wind"),IF(K35*'AVOID NEW'!$E$67<6.5,K35*(1-'AVOID NEW'!$E$67),K35-6.5),"NA") -> 33.8652 | N35: 31.43 | O35: =IF(OR('Input - Capacity Factors'!$C$3="Wind"),IF(N35*'AVOID NEW'!$E$67<6.5,N35*(1-'AVOID NEW'!$E$67),N35-6.5),"NA") -> 28.9156 | P35: 32.83 | Q35: =IF(OR('Input - Capacity Factors'!$C$3="Wind"),IF(P35*'AVOID NEW'!$E$67<6.5,P35*(1-'AVOID NEW'!$E$67),P35-6.5),"NA") -> 30.2036 | R35: 28.63 | S35: =IF(OR('Input - Capacity Factors'!$C$3="Wind"),IF(R35*'AVOID NEW'!$E$67<6.5,R35*(1-'AVOID NEW'!$E$67),R35-6.5),"NA") -> 26.3396 | V35: 37.41 | W35: =IF(OR('Input - Capacity Factors'!$C$3="Wind"),IF(V35*'AVOID NEW'!$E$67<6.5,V35*(1-'AVOID NEW'!$E$67),V35-6.5),"NA") -> 34.4172 | X35: 39.08 | Y35: =IF(OR('Input - Capacity Factors'!$C$3="Wind"),IF(X35*'AVOID NEW'!$E$67<6.5,X35*(1-'AVOID NEW'!$E$67),X35-6.5),"NA") -> 35.9536 | Z35: 34.08 | AA35: =IF(OR('Input - Capacity Factors'!$C$3="Wind"),IF(Z35*'AVOID NEW'!$E$67<6.5,Z35*(1-'AVOID NEW'!$E$67),Z35-6.5),"NA") -> 31.3536
B36: 16 | C36: ='AVOID NEW'!AN24 -> 37.90576676 | D36: 39.57576676 | E36: 34.57576676 | G36: 40.94 | H36: =IF(OR('Input - Capacity Factors'!$C$3="Wind"),IF(G36*'AVOID NEW'!$E$67<6.5,G36*(1-'AVOID NEW'!$E$67),G36-6.5),"NA") -> 37.6648 | I36: 42.74 | J36: =IF(OR('Input - Capacity Factors'!$C$3="Wind"),IF(I36*'AVOID NEW'!$E$67<6.5,I36*(1-'AVOID NEW'!$E$67),I36-6.5),"NA") -> 39.3208 | K36: 37.34 | L36: =IF(OR('Input - Capacity Factors'!$C$3="Wind"),IF(K36*'AVOID NEW'!$E$67<6.5,K36*(1-'AVOID NEW'!$E$67),K36-6.5),"NA") -> 34.3528 | N36: 31.84 | O36: =IF(OR('Input - Capacity Factors'!$C$3="Wind"),IF(N36*'AVOID NEW'!$E$67<6.5,N36*(1-'AVOID NEW'!$E$67),N36-6.5),"NA") -> 29.2928 | P36: 33.24 | Q36: =IF(OR('Input - Capacity Factors'!$C$3="Wind"),IF(P36*'AVOID NEW'!$E$67<6.5,P36*(1-'AVOID NEW'!$E$67),P36-6.5),"NA") -> 30.5808 | R36: 29.04 | S36: =IF(OR('Input - Capacity Factors'!$C$3="Wind"),IF(R36*'AVOID NEW'!$E$67<6.5,R36*(1-'AVOID NEW'!$E$67),R36-6.5),"NA") -> 26.7168 | V36: 37.91 | W36: =IF(OR('Input - Capacity Factors'!$C$3="Wind"),IF(V36*'AVOID NEW'!$E$67<6.5,V36*(1-'AVOID NEW'!$E$67),V36-6.5),"NA") -> 34.8772 | X36: 39.58 | Y36: =IF(OR('Input - Capacity Factors'!$C$3="Wind"),IF(X36*'AVOID NEW'!$E$67<6.5,X36*(1-'AVOID NEW'!$E$67),X36-6.5),"NA") -> 36.4136 | Z36: 34.58 | AA36: =IF(OR('Input - Capacity Factors'!$C$3="Wind"),IF(Z36*'AVOID NEW'!$E$67<6.5,Z36*(1-'AVOID NEW'!$E$67),Z36-6.5),"NA") -> 31.8136
B37: 17 | C37: ='AVOID NEW'!AN25 -> 38.4452399 | D37: 40.1152399 | E37: 35.1152399 | G37: 41.52 | H37: =IF(OR('Input - Capacity Factors'!$C$3="Wind"),IF(G37*'AVOID NEW'!$E$67<6.5,G37*(1-'AVOID NEW'!$E$67),G37-6.5),"NA") -> 38.1984 | I37: 43.32 | J37: =IF(OR('Input - Capacity Factors'!$C$3="Wind"),IF(I37*'AVOID NEW'!$E$67<6.5,I37*(1-'AVOID NEW'!$E$67),I37-6.5),"NA") -> 39.8544 | K37: 37.92 | L37: =IF(OR('Input - Capacity Factors'!$C$3="Wind"),IF(K37*'AVOID NEW'!$E$67<6.5,K37*(1-'AVOID NEW'!$E$67),K37-6.5),"NA") -> 34.8864 | N37: 32.29 | O37: =IF(OR('Input - Capacity Factors'!$C$3="Wind"),IF(N37*'AVOID NEW'!$E$67<6.5,N37*(1-'AVOID NEW'!$E$67),N37-6.5),"NA") -> 29.7068 | P37: 33.7 | Q37: =IF(OR('Input - Capacity Factors'!$C$3="Wind"),IF(P37*'AVOID NEW'!$E$67<6.5,P37*(1-'AVOID NEW'!$E$67),P37-6.5),"NA") -> 31.004 | R37: 29.5 | S37: =IF(OR('Input - Capacity Factors'!$C$3="Wind"),IF(R37*'AVOID NEW'!$E$67<6.5,R37*(1-'AVOID NEW'!$E$67),R37-6.5),"NA") -> 27.14 | V37: 38.45 | W37: =IF(OR('Input - Capacity Factors'!$C$3="Wind"),IF(V37*'AVOID NEW'!$E$67<6.5,V37*(1-'AVOID NEW'!$E$67),V37-6.5),"NA") -> 35.374 | X37: 40.12 | Y37: =IF(OR('Input - Capacity Factors'!$C$3="Wind"),IF(X37*'AVOID NEW'!$E$67<6.5,X37*(1-'AVOID NEW'!$E$67),X37-6.5),"NA") -> 36.9104 | Z37: 35.12 | AA37: =IF(OR('Input - Capacity Factors'!$C$3="Wind"),IF(Z37*'AVOID NEW'!$E$67<6.5,Z37*(1-'AVOID NEW'!$E$67),Z37-6.5),"NA") -> 32.3104
B38: 18 | C38: ='AVOID NEW'!AN26 -> 38.97789378 | D38: 40.64789378 | E38: 35.64789378 | G38: 42.1 | H38: =IF(OR('Input - Capacity Factors'!$C$3="Wind"),IF(G38*'AVOID NEW'!$E$67<6.5,G38*(1-'AVOID NEW'!$E$67),G38-6.5),"NA") -> 38.732 | I38: 43.9 | J38: =IF(OR('Input - Capacity Factors'!$C$3="Wind"),IF(I38*'AVOID NEW'!$E$67<6.5,I38*(1-'AVOID NEW'!$E$67),I38-6.5),"NA") -> 40.388 | K38: 38.5 | L38: =IF(OR('Input - Capacity Factors'!$C$3="Wind"),IF(K38*'AVOID NEW'!$E$67<6.5,K38*(1-'AVOID NEW'!$E$67),K38-6.5),"NA") -> 35.42 | N38: 32.74 | O38: =IF(OR('Input - Capacity Factors'!$C$3="Wind"),IF(N38*'AVOID NEW'!$E$67<6.5,N38*(1-'AVOID NEW'!$E$67),N38-6.5),"NA") -> 30.1208 | P38: 34.14 | Q38: =IF(OR('Input - Capacity Factors'!$C$3="Wind"),IF(P38*'AVOID NEW'!$E$67<6.5,P38*(1-'AVOID NEW'!$E$67),P38-6.5),"NA") -> 31.4088 | R38: 29.94 | S38: =IF(OR('Input - Capacity Factors'!$C$3="Wind"),IF(R38*'AVOID NEW'!$E$67<6.5,R38*(1-'AVOID NEW'!$E$67),R38-6.5),"NA") -> 27.5448 | V38: 38.98 | W38: =IF(OR('Input - Capacity Factors'!$C$3="Wind"),IF(V38*'AVOID NEW'!$E$67<6.5,V38*(1-'AVOID NEW'!$E$67),V38-6.5),"NA") -> 35.8616 | X38: 40.65 | Y38: =IF(OR('Input - Capacity Factors'!$C$3="Wind"),IF(X38*'AVOID NEW'!$E$67<6.5,X38*(1-'AVOID NEW'!$E$67),X38-6.5),"NA") -> 37.398 | Z38: 35.65 | AA38: =IF(OR('Input - Capacity Factors'!$C$3="Wind"),IF(Z38*'AVOID NEW'!$E$67<6.5,Z38*(1-'AVOID NEW'!$E$67),Z38-6.5),"NA") -> 32.798
B39: 19 | C39: ='AVOID NEW'!AN27 -> 39.48167138 | D39: 41.15167138 | E39: 36.15167138 | G39: 42.64 | H39: =IF(OR('Input - Capacity Factors'!$C$3="Wind"),IF(G39*'AVOID NEW'!$E$67<6.5,G39*(1-'AVOID NEW'!$E$67),G39-6.5),"NA") -> 39.2288 | I39: 44.44 | J39: =IF(OR('Input - Capacity Factors'!$C$3="Wind"),IF(I39*'AVOID NEW'!$E$67<6.5,I39*(1-'AVOID NEW'!$E$67),I39-6.5),"NA") -> 40.8848 | K39: 39.04 | L39: =IF(OR('Input - Capacity Factors'!$C$3="Wind"),IF(K39*'AVOID NEW'!$E$67<6.5,K39*(1-'AVOID NEW'!$E$67),K39-6.5),"NA") -> 35.9168 | N39: 33.16 | O39: =IF(OR('Input - Capacity Factors'!$C$3="Wind"),IF(N39*'AVOID NEW'!$E$67<6.5,N39*(1-'AVOID NEW'!$E$67),N39-6.5),"NA") -> 30.5072 | P39: 34.57 | Q39: =IF(OR('Input - Capacity Factors'!$C$3="Wind"),IF(P39*'AVOID NEW'!$E$67<6.5,P39*(1-'AVOID NEW'!$E$67),P39-6.5),"NA") -> 31.8044 | R39: 30.37 | S39: =IF(OR('Input - Capacity Factors'!$C$3="Wind"),IF(R39*'AVOID NEW'!$E$67<6.5,R39*(1-'AVOID NEW'!$E$67),R39-6.5),"NA") -> 27.9404 | V39: 39.48 | W39: =IF(OR('Input - Capacity Factors'!$C$3="Wind"),IF(V39*'AVOID NEW'!$E$67<6.5,V39*(1-'AVOID NEW'!$E$67),V39-6.5),"NA") -> 36.3216 | X39: 41.15 | Y39: =IF(OR('Input - Capacity Factors'!$C$3="Wind"),IF(X39*'AVOID NEW'!$E$67<6.5,X39*(1-'AVOID NEW'!$E$67),X39-6.5),"NA") -> 37.858 | Z39: 36.15 | AA39: =IF(OR('Input - Capacity Factors'!$C$3="Wind"),IF(Z39*'AVOID NEW'!$E$67<6.5,Z39*(1-'AVOID NEW'!$E$67),Z39-6.5),"NA") -> 33.258
B40: 20 | C40: ='AVOID NEW'!AN28 -> 39.94569256 | D40: 41.61569256 | E40: 36.61569256 | G40: 43.14 | H40: =IF(OR('Input - Capacity Factors'!$C$3="Wind"),IF(G40*'AVOID NEW'!$E$67<6.5,G40*(1-'AVOID NEW'!$E$67),G40-6.5),"NA") -> 39.6888 | I40: 44.94 | J40: =IF(OR('Input - Capacity Factors'!$C$3="Wind"),IF(I40*'AVOID NEW'!$E$67<6.5,I40*(1-'AVOID NEW'!$E$67),I40-6.5),"NA") -> 41.3448 | K40: 39.54 | L40: =IF(OR('Input - Capacity Factors'!$C$3="Wind"),IF(K40*'AVOID NEW'!$E$67<6.5,K40*(1-'AVOID NEW'!$E$67),K40-6.5),"NA") -> 36.3768 | N40: 33.55 | O40: =IF(OR('Input - Capacity Factors'!$C$3="Wind"),IF(N40*'AVOID NEW'!$E$67<6.5,N40*(1-'AVOID NEW'!$E$67),N40-6.5),"NA") -> 30.866 | P40: 34.96 | Q40: =IF(OR('Input - Capacity Factors'!$C$3="Wind"),IF(P40*'AVOID NEW'!$E$67<6.5,P40*(1-'AVOID NEW'!$E$67),P40-6.5),"NA") -> 32.1632 | R40: 30.76 | S40: =IF(OR('Input - Capacity Factors'!$C$3="Wind"),IF(R40*'AVOID NEW'!$E$67<6.5,R40*(1-'AVOID NEW'!$E$67),R40-6.5),"NA") -> 28.2992 | V40: 39.95 | W40: =IF(OR('Input - Capacity Factors'!$C$3="Wind"),IF(V40*'AVOID NEW'!$E$67<6.5,V40*(1-'AVOID NEW'!$E$67),V40-6.5),"NA") -> 36.754 | X40: 41.62 | Y40: =IF(OR('Input - Capacity Factors'!$C$3="Wind"),IF(X40*'AVOID NEW'!$E$67<6.5,X40*(1-'AVOID NEW'!$E$67),X40-6.5),"NA") -> 38.2904 | Z40: 36.62 | AA40: =IF(OR('Input - Capacity Factors'!$C$3="Wind"),IF(Z40*'AVOID NEW'!$E$67<6.5,Z40*(1-'AVOID NEW'!$E$67),Z40-6.5),"NA") -> 33.6904
B44: =$B$1 -> THESE RATES ARE NOT VALID
B45: LEVELIZED RATES
B46: ="PROJECT ON-LINE IN "& 'AVOID NEW'!$D$54+1 -> PROJECT ON-LINE IN 2025
B47: ="Rate Effective Date: "&'AVOID NEW'!$E$69 -> Rate Effective Date: XXXX, 2024
B48: ="Resource: "&'Input - Capacity Factors'!$C$3 -> Resource: Wind
C49: Levelized Price | G49: ="Season 1 Pricing ("&$D$7*100&"%)" -> Season 1 Pricing (108%) | N49: ="Season 2 Pricing ("&100*$D$8&"%)" -> Season 2 Pricing (84%) | V49: Non-Seasonalized Pricing
C50: Heavy and Light Load Hour Differential | D50: ='AVOID NEW'!$E$66 -> 5 | G50: Flat | I50: Heavy Load Hour | K50: Light Load Hour | N50: Flat | P50: Heavy Load Hour | R50: Light Load Hour | V50: Flat | X50: Heavy Load Hour | Z50: Light Load Hour
D51: =ROUND(D50/3,2) -> 1.67 | E51: =-ROUND((D50*2)/3,2) -> -3.33 | H51: Price less wind integration adjustment | J51: Price less wind integration adjustment | L51: Price less wind integration adjustment | O51: Price less wind integration adjustment | Q51: Price less wind integration adjustment | S51: Price less wind integration adjustment | W51: Price less wind integration adjustment | Y51: Price less wind integration adjustment | AA51: Price less wind integration adjustment
B52: Contract Length | C52: Flat | D52: Heavy Load Hour | E52: Light Load Hour | G52: Price | I52: Price | K52: Price | N52: Price | P52: Price | R52: Price | V52: Price | X52: Price | Z52: Price
B53: 1 | C53: ='AVOID NEW'!AO9 -> 33.76789301 | D53: =C53+D$51 -> 35.43789301 | E53: =C53+E$51 -> 30.43789301 | G53: =ROUND((+$C53*$D$7),2) -> 36.47 | H53: =IF(OR('Input - Capacity Factors'!$C$3="Wind"),IF(G53*'AVOID NEW'!$E$67<6.5,G53*(1-'AVOID NEW'!$E$67),G53-6.5),"NA") -> 33.5524 | I53: =ROUND((+$D53*$D$7),2) -> 38.27 | J53: =IF(OR('Input - Capacity Factors'!$C$3="Wind"),IF(I53*'AVOID NEW'!$E$67<6.5,I53*(1-'AVOID NEW'!$E$67),I53-6.5),"NA") -> 35.2084 | K53: =ROUND((+$E53*$D$7),2) -> 32.87 | L53: =IF(OR('Input - Capacity Factors'!$C$3="Wind"),IF(K53*'AVOID NEW'!$E$67<6.5,K53*(1-'AVOID NEW'!$E$67),K53-6.5),"NA") -> 30.2404 | N53: =ROUND((+$C53*$D$8),2) -> 28.37 | O53: =IF(OR('Input - Capacity Factors'!$C$3="Wind"),IF(N53*'AVOID NEW'!$E$67<6.5,N53*(1-'AVOID NEW'!$E$67),N53-6.5),"NA") -> 26.1004 | P53: =ROUND((+$D53*$D$8),2) -> 29.77 | Q53: =IF(OR('Input - Capacity Factors'!$C$3="Wind"),IF(P53*'AVOID NEW'!$E$67<6.5,P53*(1-'AVOID NEW'!$E$67),P53-6.5),"NA") -> 27.3884 | R53: =ROUND((+$E53*$D$8),2) -> 25.57 | S53: =IF(OR('Input - Capacity Factors'!$C$3="Wind"),IF(R53*'AVOID NEW'!$E$67<6.5,R53*(1-'AVOID NEW'!$E$67),R53-6.5),"NA") -> 23.5244 | V53: =ROUND((+$C53),2) -> 33.77 | W53: =IF(OR('Input - Capacity Factors'!$C$3="Wind"),IF(V53*'AVOID NEW'!$E$67<6.5,V53*(1-'AVOID NEW'!$E$67),V53-6.5),"NA") -> 31.0684 | X53: =ROUND((+$D53),2) -> 35.44 | Y53: =IF(OR('Input - Capacity Factors'!$C$3="Wind"),IF(X53*'AVOID NEW'!$E$67<6.5,X53*(1-'AVOID NEW'!$E$67),X53-6.5),"NA") -> 32.6048 | Z53: =ROUND((+$E53),2) -> 30.44 | AA53: =IF(OR('Input - Capacity Factors'!$C$3="Wind"),IF(Z53*'AVOID NEW'!$E$67<6.5,Z53*(1-'AVOID NEW'!$E$67),Z53-6.5),"NA") -> 28.0048
B54: 2 | C54: ='AVOID NEW'!AO10 -> 33.9338168 | D54: 35.6038168 | E54: 30.6038168 | G54: 36.65 | H54: =IF(OR('Input - Capacity Factors'!$C$3="Wind"),IF(G54*'AVOID NEW'!$E$67<6.5,G54*(1-'AVOID NEW'!$E$67),G54-6.5),"NA") -> 33.718 | I54: 38.45 | J54: =IF(OR('Input - Capacity Factors'!$C$3="Wind"),IF(I54*'AVOID NEW'!$E$67<6.5,I54*(1-'AVOID NEW'!$E$67),I54-6.5),"NA") -> 35.374 | K54: 33.05 | L54: =IF(OR('Input - Capacity Factors'!$C$3="Wind"),IF(K54*'AVOID NEW'!$E$67<6.5,K54*(1-'AVOID NEW'!$E$67),K54-6.5),"NA") -> 30.406 | N54: 28.5 | O54: =IF(OR('Input - Capacity Factors'!$C$3="Wind"),IF(N54*'AVOID NEW'!$E$67<6.5,N54*(1-'AVOID NEW'!$E$67),N54-6.5),"NA") -> 26.22 | P54: 29.91 | Q54: =IF(OR('Input - Capacity Factors'!$C$3="Wind"),IF(P54*'AVOID NEW'!$E$67<6.5,P54*(1-'AVOID NEW'!$E$67),P54-6.5),"NA") -> 27.5172 | R54: 25.71 | S54: =IF(OR('Input - Capacity Factors'!$C$3="Wind"),IF(R54*'AVOID NEW'!$E$67<6.5,R54*(1-'AVOID NEW'!$E$67),R54-6.5),"NA") -> 23.6532 | V54: =ROUND((+$C54),2) -> 33.93 | W54: =IF(OR('Input - Capacity Factors'!$C$3="Wind"),IF(V54*'AVOID NEW'!$E$67<6.5,V54*(1-'AVOID NEW'!$E$67),V54-6.5),"NA") -> 31.2156 | X54: =ROUND((+$D54),2) -> 35.6 | Y54: =IF(OR('Input - Capacity Factors'!$C$3="Wind"),IF(X54*'AVOID NEW'!$E$67<6.5,X54*(1-'AVOID NEW'!$E$67),X54-6.5),"NA") -> 32.752 | Z54: =ROUND((+$E54),2) -> 30.6 | AA54: =IF(OR('Input - Capacity Factors'!$C$3="Wind"),IF(Z54*'AVOID NEW'!$E$67<6.5,Z54*(1-'AVOID NEW'!$E$67),Z54-6.5),"NA") -> 28.152
B55: 3 | C55: ='AVOID NEW'!AO11 -> 33.44063164 | D55: 35.11063164 | E55: 30.11063164 | G55: 36.12 | H55: =IF(OR('Input - Capacity Factors'!$C$3="Wind"),IF(G55*'AVOID NEW'!$E$67<6.5,G55*(1-'AVOID NEW'!$E$67),G55-6.5),"NA") -> 33.2304 | I55: 37.92 | J55: =IF(OR('Input - Capacity Factors'!$C$3="Wind"),IF(I55*'AVOID NEW'!$E$67<6.5,I55*(1-'AVOID NEW'!$E$67),I55-6.5),"NA") -> 34.8864 | K55: 32.52 | L55: =IF(OR('Input - Capacity Factors'!$C$3="Wind"),IF(K55*'AVOID NEW'!$E$67<6.5,K55*(1-'AVOID NEW'!$E$67),K55-6.5),"NA") -> 29.9184 | N55: 28.09 | O55: =IF(OR('Input - Capacity Factors'!$C$3="Wind"),IF(N55*'AVOID NEW'!$E$67<6.5,N55*(1-'AVOID NEW'!$E$67),N55-6.5),"NA") -> 25.8428 | P55: 29.49 | Q55: =IF(OR('Input - Capacity Factors'!$C$3="Wind"),IF(P55*'AVOID NEW'!$E$67<6.5,P55*(1-'AVOID NEW'!$E$67),P55-6.5),"NA") -> 27.1308 | R55: 25.29 | S55: =IF(OR('Input - Capacity Factors'!$C$3="Wind"),IF(R55*'AVOID NEW'!$E$67<6.5,R55*(1-'AVOID NEW'!$E$67),R55-6.5),"NA") -> 23.2668 | V55: 33.44 | W55: =IF(OR('Input - Capacity Factors'!$C$3="Wind"),IF(V55*'AVOID NEW'!$E$67<6.5,V55*(1-'AVOID NEW'!$E$67),V55-6.5),"NA") -> 30.7648 | X55: 35.11 | Y55: =IF(OR('Input - Capacity Factors'!$C$3="Wind"),IF(X55*'AVOID NEW'!$E$67<6.5,X55*(1-'AVOID NEW'!$E$67),X55-6.5),"NA") -> 32.3012 | Z55: 30.11 | AA55: =IF(OR('Input - Capacity Factors'!$C$3="Wind"),IF(Z55*'AVOID NEW'!$E$67<6.5,Z55*(1-'AVOID NEW'!$E$67),Z55-6.5),"NA") -> 27.7012
B56: 4 | C56: ='AVOID NEW'!AO12 -> 33.17405351 | D56: 34.84405351 | E56: 29.84405351 | G56: 35.83 | H56: =IF(OR('Input - Capacity Factors'!$C$3="Wind"),IF(G56*'AVOID NEW'!$E$67<6.5,G56*(1-'AVOID NEW'!$E$67),G56-6.5),"NA") -> 32.9636 | I56: 37.63 | J56: =IF(OR('Input - Capacity Factors'!$C$3="Wind"),IF(I56*'AVOID NEW'!$E$67<6.5,I56*(1-'AVOID NEW'!$E$67),I56-6.5),"NA") -> 34.6196 | K56: 32.23 | L56: =IF(OR('Input - Capacity Factors'!$C$3="Wind"),IF(K56*'AVOID NEW'!$E$67<6.5,K56*(1-'AVOID NEW'!$E$67),K56-6.5),"NA") -> 29.6516 | N56: 27.87 | O56: =IF(OR('Input - Capacity Factors'!$C$3="Wind"),IF(N56*'AVOID NEW'!$E$67<6.5,N56*(1-'AVOID NEW'!$E$67),N56-6.5),"NA") -> 25.6404 | P56: 29.27 | Q56: =IF(OR('Input - Capacity Factors'!$C$3="Wind"),IF(P56*'AVOID NEW'!$E$67<6.5,P56*(1-'AVOID NEW'!$E$67),P56-6.5),"NA") -> 26.9284 | R56: 25.07 | S56: =IF(OR('Input - Capacity Factors'!$C$3="Wind"),IF(R56*'AVOID NEW'!$E$67<6.5,R56*(1-'AVOID NEW'!$E$67),R56-6.5),"NA") -> 23.0644 | V56: 33.17 | W56: =IF(OR('Input - Capacity Factors'!$C$3="Wind"),IF(V56*'AVOID NEW'!$E$67<6.5,V56*(1-'AVOID NEW'!$E$67),V56-6.5),"NA") -> 30.5164 | X56: 34.84 | Y56: =IF(OR('Input - Capacity Factors'!$C$3="Wind"),IF(X56*'AVOID NEW'!$E$67<6.5,X56*(1-'AVOID NEW'!$E$67),X56-6.5),"NA") -> 32.0528 | Z56: 29.84 | AA56: =IF(OR('Input - Capacity Factors'!$C$3="Wind"),IF(Z56*'AVOID NEW'!$E$67<6.5,Z56*(1-'AVOID NEW'!$E$67),Z56-6.5),"NA") -> 27.4528
B57: 5 | C57: ='AVOID NEW'!AO13 -> 33.08223052 | D57: 34.75223052 | E57: 29.75223052 | G57: 35.73 | H57: =IF(OR('Input - Capacity Factors'!$C$3="Wind"),IF(G57*'AVOID NEW'!$E$67<6.5,G57*(1-'AVOID NEW'!$E$67),G57-6.5),"NA") -> 32.8716 | I57: 37.53 | J57: =IF(OR('Input - Capacity Factors'!$C$3="Wind"),IF(I57*'AVOID NEW'!$E$67<6.5,I57*(1-'AVOID NEW'!$E$67),I57-6.5),"NA") -> 34.5276 | K57: 32.13 | L57: =IF(OR('Input - Capacity Factors'!$C$3="Wind"),IF(K57*'AVOID NEW'!$E$67<6.5,K57*(1-'AVOID NEW'!$E$67),K57-6.5),"NA") -> 29.5596 | N57: 27.79 | O57: =IF(OR('Input - Capacity Factors'!$C$3="Wind"),IF(N57*'AVOID NEW'!$E$67<6.5,N57*(1-'AVOID NEW'!$E$67),N57-6.5),"NA") -> 25.5668 | P57: 29.19 | Q57: =IF(OR('Input - Capacity Factors'!$C$3="Wind"),IF(P57*'AVOID NEW'!$E$67<6.5,P57*(1-'AVOID NEW'!$E$67),P57-6.5),"NA") -> 26.8548 | R57: 24.99 | S57: =IF(OR('Input - Capacity Factors'!$C$3="Wind"),IF(R57*'AVOID NEW'!$E$67<6.5,R57*(1-'AVOID NEW'!$E$67),R57-6.5),"NA") -> 22.9908 | V57: 33.08 | W57: =IF(OR('Input - Capacity Factors'!$C$3="Wind"),IF(V57*'AVOID NEW'!$E$67<6.5,V57*(1-'AVOID NEW'!$E$67),V57-6.5),"NA") -> 30.4336 | X57: 34.75 | Y57: =IF(OR('Input - Capacity Factors'!$C$3="Wind"),IF(X57*'AVOID NEW'!$E$67<6.5,X57*(1-'AVOID NEW'!$E$67),X57-6.5),"NA") -> 31.97 | Z57: 29.75 | AA57: =IF(OR('Input - Capacity Factors'!$C$3="Wind"),IF(Z57*'AVOID NEW'!$E$67<6.5,Z57*(1-'AVOID NEW'!$E$67),Z57-6.5),"NA") -> 27.37
B58: 6 | C58: ='AVOID NEW'!AO14 -> 33.16377031 | D58: 34.83377031 | E58: 29.83377031 | G58: 35.82 | H58: =IF(OR('Input - Capacity Factors'!$C$3="Wind"),IF(G58*'AVOID NEW'!$E$67<6.5,G58*(1-'AVOID NEW'!$E$67),G58-6.5),"NA") -> 32.9544 | I58: 37.62 | J58: =IF(OR('Input - Capacity Factors'!$C$3="Wind"),IF(I58*'AVOID NEW'!$E$67<6.5,I58*(1-'AVOID NEW'!$E$67),I58-6.5),"NA") -> 34.6104 | K58: 32.22 | L58: =IF(OR('Input - Capacity Factors'!$C$3="Wind"),IF(K58*'AVOID NEW'!$E$67<6.5,K58*(1-'AVOID NEW'!$E$67),K58-6.5),"NA") -> 29.6424 | N58: 27.86 | O58: =IF(OR('Input - Capacity Factors'!$C$3="Wind"),IF(N58*'AVOID NEW'!$E$67<6.5,N58*(1-'AVOID NEW'!$E$67),N58-6.5),"NA") -> 25.6312 | P58: 29.26 | Q58: =IF(OR('Input - Capacity Factors'!$C$3="Wind"),IF(P58*'AVOID NEW'!$E$67<6.5,P58*(1-'AVOID NEW'!$E$67),P58-6.5),"NA") -> 26.9192 | R58: 25.06 | S58: =IF(OR('Input - Capacity Factors'!$C$3="Wind"),IF(R58*'AVOID NEW'!$E$67<6.5,R58*(1-'AVOID NEW'!$E$67),R58-6.5),"NA") -> 23.0552 | V58: 33.16 | W58: =IF(OR('Input - Capacity Factors'!$C$3="Wind"),IF(V58*'AVOID NEW'!$E$67<6.5,V58*(1-'AVOID NEW'!$E$67),V58-6.5),"NA") -> 30.5072 | X58: 34.83 | Y58: =IF(OR('Input - Capacity Factors'!$C$3="Wind"),IF(X58*'AVOID NEW'!$E$67<6.5,X58*(1-'AVOID NEW'!$E$67),X58-6.5),"NA") -> 32.0436 | Z58: 29.83 | AA58: =IF(OR('Input - Capacity Factors'!$C$3="Wind"),IF(Z58*'AVOID NEW'!$E$67<6.5,Z58*(1-'AVOID NEW'!$E$67),Z58-6.5),"NA") -> 27.4436
B59: 7 | C59: ='AVOID NEW'!AO15 -> 33.42448201 | D59: 35.09448201 | E59: 30.09448201 | G59: 36.1 | H59: =IF(OR('Input - Capacity Factors'!$C$3="Wind"),IF(G59*'AVOID NEW'!$E$67<6.5,G59*(1-'AVOID NEW'!$E$67),G59-6.5),"NA") -> 33.212 | I59: 37.9 | J59: =IF(OR('Input - Capacity Factors'!$C$3="Wind"),IF(I59*'AVOID NEW'!$E$67<6.5,I59*(1-'AVOID NEW'!$E$67),I59-6.5),"NA") -> 34.868 | K59: 32.5 | L59: =IF(OR('Input - Capacity Factors'!$C$3="Wind"),IF(K59*'AVOID NEW'!$E$67<6.5,K59*(1-'AVOID NEW'!$E$67),K59-6.5),"NA") -> 29.9 | N59: 28.08 | O59: =IF(OR('Input - Capacity Factors'!$C$3="Wind"),IF(N59*'AVOID NEW'!$E$67<6.5,N59*(1-'AVOID NEW'!$E$67),N59-6.5),"NA") -> 25.8336 | P59: 29.48 | Q59: =IF(OR('Input - Capacity Factors'!$C$3="Wind"),IF(P59*'AVOID NEW'!$E$67<6.5,P59*(1-'AVOID NEW'!$E$67),P59-6.5),"NA") -> 27.1216 | R59: 25.28 | S59: =IF(OR('Input - Capacity Factors'!$C$3="Wind"),IF(R59*'AVOID NEW'!$E$67<6.5,R59*(1-'AVOID NEW'!$E$67),R59-6.5),"NA") -> 23.2576 | V59: 33.42 | W59: =IF(OR('Input - Capacity Factors'!$C$3="Wind"),IF(V59*'AVOID NEW'!$E$67<6.5,V59*(1-'AVOID NEW'!$E$67),V59-6.5),"NA") -> 30.7464 | X59: 35.09 | Y59: =IF(OR('Input - Capacity Factors'!$C$3="Wind"),IF(X59*'AVOID NEW'!$E$67<6.5,X59*(1-'AVOID NEW'!$E$67),X59-6.5),"NA") -> 32.2828 | Z59: 30.09 | AA59: =IF(OR('Input - Capacity Factors'!$C$3="Wind"),IF(Z59*'AVOID NEW'!$E$67<6.5,Z59*(1-'AVOID NEW'!$E$67),Z59-6.5),"NA") -> 27.6828
B60: 8 | C60: ='AVOID NEW'!AO16 -> 33.83670355 | D60: 35.50670355 | E60: 30.50670355 | G60: 36.54 | H60: =IF(OR('Input - Capacity Factors'!$C$3="Wind"),IF(G60*'AVOID NEW'!$E$67<6.5,G60*(1-'AVOID NEW'!$E$67),G60-6.5),"NA") -> 33.6168 | I60: 38.35 | J60: =IF(OR('Input - Capacity Factors'!$C$3="Wind"),IF(I60*'AVOID NEW'!$E$67<6.5,I60*(1-'AVOID NEW'!$E$67),I60-6.5),"NA") -> 35.282 | K60: 32.95 | L60: =IF(OR('Input - Capacity Factors'!$C$3="Wind"),IF(K60*'AVOID NEW'!$E$67<6.5,K60*(1-'AVOID NEW'!$E$67),K60-6.5),"NA") -> 30.314 | N60: 28.42 | O60: =IF(OR('Input - Capacity Factors'!$C$3="Wind"),IF(N60*'AVOID NEW'!$E$67<6.5,N60*(1-'AVOID NEW'!$E$67),N60-6.5),"NA") -> 26.1464 | P60: 29.83 | Q60: =IF(OR('Input - Capacity Factors'!$C$3="Wind"),IF(P60*'AVOID NEW'!$E$67<6.5,P60*(1-'AVOID NEW'!$E$67),P60-6.5),"NA") -> 27.4436 | R60: 25.63 | S60: =IF(OR('Input - Capacity Factors'!$C$3="Wind"),IF(R60*'AVOID NEW'!$E$67<6.5,R60*(1-'AVOID NEW'!$E$67),R60-6.5),"NA") -> 23.5796 | V60: 33.84 | W60: =IF(OR('Input - Capacity Factors'!$C$3="Wind"),IF(V60*'AVOID NEW'!$E$67<6.5,V60*(1-'AVOID NEW'!$E$67),V60-6.5),"NA") -> 31.1328 | X60: 35.51 | Y60: =IF(OR('Input - Capacity Factors'!$C$3="Wind"),IF(X60*'AVOID NEW'!$E$67<6.5,X60*(1-'AVOID NEW'!$E$67),X60-6.5),"NA") -> 32.6692 | Z60: 30.51 | AA60: =IF(OR('Input - Capacity Factors'!$C$3="Wind"),IF(Z60*'AVOID NEW'!$E$67<6.5,Z60*(1-'AVOID NEW'!$E$67),Z60-6.5),"NA") -> 28.0692
B61: 9 | C61: ='AVOID NEW'!AO17 -> 34.36108112 | D61: 36.03108112 | E61: 31.03108112 | G61: 37.11 | H61: =IF(OR('Input - Capacity Factors'!$C$3="Wind"),IF(G61*'AVOID NEW'!$E$67<6.5,G61*(1-'AVOID NEW'!$E$67),G61-6.5),"NA") -> 34.1412 | I61: 38.91 | J61: =IF(OR('Input - Capacity Factors'!$C$3="Wind"),IF(I61*'AVOID NEW'!$E$67<6.5,I61*(1-'AVOID NEW'!$E$67),I61-6.5),"NA") -> 35.7972 | K61: 33.51 | L61: =IF(OR('Input - Capacity Factors'!$C$3="Wind"),IF(K61*'AVOID NEW'!$E$67<6.5,K61*(1-'AVOID NEW'!$E$67),K61-6.5),"NA") -> 30.8292 | N61: 28.86 | O61: =IF(OR('Input - Capacity Factors'!$C$3="Wind"),IF(N61*'AVOID NEW'!$E$67<6.5,N61*(1-'AVOID NEW'!$E$67),N61-6.5),"NA") -> 26.5512 | P61: 30.27 | Q61: =IF(OR('Input - Capacity Factors'!$C$3="Wind"),IF(P61*'AVOID NEW'!$E$67<6.5,P61*(1-'AVOID NEW'!$E$67),P61-6.5),"NA") -> 27.8484 | R61: 26.07 | S61: =IF(OR('Input - Capacity Factors'!$C$3="Wind"),IF(R61*'AVOID NEW'!$E$67<6.5,R61*(1-'AVOID NEW'!$E$67),R61-6.5),"NA") -> 23.9844 | V61: 34.36 | W61: =IF(OR('Input - Capacity Factors'!$C$3="Wind"),IF(V61*'AVOID NEW'!$E$67<6.5,V61*(1-'AVOID NEW'!$E$67),V61-6.5),"NA") -> 31.6112 | X61: 36.03 | Y61: =IF(OR('Input - Capacity Factors'!$C$3="Wind"),IF(X61*'AVOID NEW'!$E$67<6.5,X61*(1-'AVOID NEW'!$E$67),X61-6.5),"NA") -> 33.1476 | Z61: 31.03 | AA61: =IF(OR('Input - Capacity Factors'!$C$3="Wind"),IF(Z61*'AVOID NEW'!$E$67<6.5,Z61*(1-'AVOID NEW'!$E$67),Z61-6.5),"NA") -> 28.5476
B62: 10 | C62: ='AVOID NEW'!AO18 -> 34.96304272 | D62: 36.63304272 | E62: 31.63304272 | G62: 37.76 | H62: =IF(OR('Input - Capacity Factors'!$C$3="Wind"),IF(G62*'AVOID NEW'!$E$67<6.5,G62*(1-'AVOID NEW'!$E$67),G62-6.5),"NA") -> 34.7392 | I62: 39.56 | J62: =IF(OR('Input - Capacity Factors'!$C$3="Wind"),IF(I62*'AVOID NEW'!$E$67<6.5,I62*(1-'AVOID NEW'!$E$67),I62-6.5),"NA") -> 36.3952 | K62: 34.16 | L62: =IF(OR('Input - Capacity Factors'!$C$3="Wind"),IF(K62*'AVOID NEW'!$E$67<6.5,K62*(1-'AVOID NEW'!$E$67),K62-6.5),"NA") -> 31.4272 | N62: 29.37 | O62: =IF(OR('Input - Capacity Factors'!$C$3="Wind"),IF(N62*'AVOID NEW'!$E$67<6.5,N62*(1-'AVOID NEW'!$E$67),N62-6.5),"NA") -> 27.0204 | P62: 30.77 | Q62: =IF(OR('Input - Capacity Factors'!$C$3="Wind"),IF(P62*'AVOID NEW'!$E$67<6.5,P62*(1-'AVOID NEW'!$E$67),P62-6.5),"NA") -> 28.3084 | R62: 26.57 | S62: =IF(OR('Input - Capacity Factors'!$C$3="Wind"),IF(R62*'AVOID NEW'!$E$67<6.5,R62*(1-'AVOID NEW'!$E$67),R62-6.5),"NA") -> 24.4444 | V62: 34.96 | W62: =IF(OR('Input - Capacity Factors'!$C$3="Wind"),IF(V62*'AVOID NEW'!$E$67<6.5,V62*(1-'AVOID NEW'!$E$67),V62-6.5),"NA") -> 32.1632 | X62: 36.63 | Y62: =IF(OR('Input - Capacity Factors'!$C$3="Wind"),IF(X62*'AVOID NEW'!$E$67<6.5,X62*(1-'AVOID NEW'!$E$67),X62-6.5),"NA") -> 33.6996 | Z62: 31.63 | AA62: =IF(OR('Input - Capacity Factors'!$C$3="Wind"),IF(Z62*'AVOID NEW'!$E$67<6.5,Z62*(1-'AVOID NEW'!$E$67),Z62-6.5),"NA") -> 29.0996
B63: 11 | C63: ='AVOID NEW'!AO19 -> 35.61395205 | D63: 37.28395205 | E63: 32.28395205 | G63: 38.46 | H63: =IF(OR('Input - Capacity Factors'!$C$3="Wind"),IF(G63*'AVOID NEW'!$E$67<6.5,G63*(1-'AVOID NEW'!$E$67),G63-6.5),"NA") -> 35.3832 | I63: 40.27 | J63: =IF(OR('Input - Capacity Factors'!$C$3="Wind"),IF(I63*'AVOID NEW'!$E$67<6.5,I63*(1-'AVOID NEW'!$E$67),I63-6.5),"NA") -> 37.0484 | K63: 34.87 | L63: =IF(OR('Input - Capacity Factors'!$C$3="Wind"),IF(K63*'AVOID NEW'!$E$67<6.5,K63*(1-'AVOID NEW'!$E$67),K63-6.5),"NA") -> 32.0804 | N63: 29.92 | O63: =IF(OR('Input - Capacity Factors'!$C$3="Wind"),IF(N63*'AVOID NEW'!$E$67<6.5,N63*(1-'AVOID NEW'!$E$67),N63-6.5),"NA") -> 27.5264 | P63: 31.32 | Q63: =IF(OR('Input - Capacity Factors'!$C$3="Wind"),IF(P63*'AVOID NEW'!$E$67<6.5,P63*(1-'AVOID NEW'!$E$67),P63-6.5),"NA") -> 28.8144 | R63: 27.12 | S63: =IF(OR('Input - Capacity Factors'!$C$3="Wind"),IF(R63*'AVOID NEW'!$E$67<6.5,R63*(1-'AVOID NEW'!$E$67),R63-6.5),"NA") -> 24.9504 | V63: 35.61 | W63: =IF(OR('Input - Capacity Factors'!$C$3="Wind"),IF(V63*'AVOID NEW'!$E$67<6.5,V63*(1-'AVOID NEW'!$E$67),V63-6.5),"NA") -> 32.7612 | X63: 37.28 | Y63: =IF(OR('Input - Capacity Factors'!$C$3="Wind"),IF(X63*'AVOID NEW'!$E$67<6.5,X63*(1-'AVOID NEW'!$E$67),X63-6.5),"NA") -> 34.2976 | Z63: 32.28 | AA63: =IF(OR('Input - Capacity Factors'!$C$3="Wind"),IF(Z63*'AVOID NEW'!$E$67<6.5,Z63*(1-'AVOID NEW'!$E$67),Z63-6.5),"NA") -> 29.6976
B64: 12 | C64: ='AVOID NEW'!AO20 -> 36.23259098 | D64: 37.90259098 | E64: 32.90259098 | G64: 39.13 | H64: =IF(OR('Input - Capacity Factors'!$C$3="Wind"),IF(G64*'AVOID NEW'!$E$67<6.5,G64*(1-'AVOID NEW'!$E$67),G64-6.5),"NA") -> 35.9996 | I64: 40.93 | J64: =IF(OR('Input - Capacity Factors'!$C$3="Wind"),IF(I64*'AVOID NEW'!$E$67<6.5,I64*(1-'AVOID NEW'!$E$67),I64-6.5),"NA") -> 37.6556 | K64: 35.53 | L64: =IF(OR('Input - Capacity Factors'!$C$3="Wind"),IF(K64*'AVOID NEW'!$E$67<6.5,K64*(1-'AVOID NEW'!$E$67),K64-6.5),"NA") -> 32.6876 | N64: 30.44 | O64: =IF(OR('Input - Capacity Factors'!$C$3="Wind"),IF(N64*'AVOID NEW'!$E$67<6.5,N64*(1-'AVOID NEW'!$E$67),N64-6.5),"NA") -> 28.0048 | P64: 31.84 | Q64: =IF(OR('Input - Capacity Factors'!$C$3="Wind"),IF(P64*'AVOID NEW'!$E$67<6.5,P64*(1-'AVOID NEW'!$E$67),P64-6.5),"NA") -> 29.2928 | R64: 27.64 | S64: =IF(OR('Input - Capacity Factors'!$C$3="Wind"),IF(R64*'AVOID NEW'!$E$67<6.5,R64*(1-'AVOID NEW'!$E$67),R64-6.5),"NA") -> 25.4288 | V64: 36.23 | W64: =IF(OR('Input - Capacity Factors'!$C$3="Wind"),IF(V64*'AVOID NEW'!$E$67<6.5,V64*(1-'AVOID NEW'!$E$67),V64-6.5),"NA") -> 33.3316 | X64: 37.9 | Y64: =IF(OR('Input - Capacity Factors'!$C$3="Wind"),IF(X64*'AVOID NEW'!$E$67<6.5,X64*(1-'AVOID NEW'!$E$67),X64-6.5),"NA") -> 34.868 | Z64: 32.9 | AA64: =IF(OR('Input - Capacity Factors'!$C$3="Wind"),IF(Z64*'AVOID NEW'!$E$67<6.5,Z64*(1-'AVOID NEW'!$E$67),Z64-6.5),"NA") -> 30.268
B65: 13 | C65: ='AVOID NEW'!AO21 -> 36.81843757 | D65: 38.48843757 | E65: 33.48843757 | G65: 39.76 | H65: =IF(OR('Input - Capacity Factors'!$C$3="Wind"),IF(G65*'AVOID NEW'!$E$67<6.5,G65*(1-'AVOID NEW'!$E$67),G65-6.5),"NA") -> 36.5792 | I65: 41.57 | J65: =IF(OR('Input - Capacity Factors'!$C$3="Wind"),IF(I65*'AVOID NEW'!$E$67<6.5,I65*(1-'AVOID NEW'!$E$67),I65-6.5),"NA") -> 38.2444 | K65: 36.17 | L65: =IF(OR('Input - Capacity Factors'!$C$3="Wind"),IF(K65*'AVOID NEW'!$E$67<6.5,K65*(1-'AVOID NEW'!$E$67),K65-6.5),"NA") -> 33.2764 | N65: 30.93 | O65: =IF(OR('Input - Capacity Factors'!$C$3="Wind"),IF(N65*'AVOID NEW'!$E$67<6.5,N65*(1-'AVOID NEW'!$E$67),N65-6.5),"NA") -> 28.4556 | P65: 32.33 | Q65: =IF(OR('Input - Capacity Factors'!$C$3="Wind"),IF(P65*'AVOID NEW'!$E$67<6.5,P65*(1-'AVOID NEW'!$E$67),P65-6.5),"NA") -> 29.7436 | R65: 28.13 | S65: =IF(OR('Input - Capacity Factors'!$C$3="Wind"),IF(R65*'AVOID NEW'!$E$67<6.5,R65*(1-'AVOID NEW'!$E$67),R65-6.5),"NA") -> 25.8796 | V65: 36.82 | W65: =IF(OR('Input - Capacity Factors'!$C$3="Wind"),IF(V65*'AVOID NEW'!$E$67<6.5,V65*(1-'AVOID NEW'!$E$67),V65-6.5),"NA") -> 33.8744 | X65: 38.49 | Y65: =IF(OR('Input - Capacity Factors'!$C$3="Wind"),IF(X65*'AVOID NEW'!$E$67<6.5,X65*(1-'AVOID NEW'!$E$67),X65-6.5),"NA") -> 35.4108 | Z65: 33.49 | AA65: =IF(OR('Input - Capacity Factors'!$C$3="Wind"),IF(Z65*'AVOID NEW'!$E$67<6.5,Z65*(1-'AVOID NEW'!$E$67),Z65-6.5),"NA") -> 30.8108
B66: 14 | C66: ='AVOID NEW'!AO22 -> 37.44604894 | D66: 39.11604894 | E66: 34.11604894 | G66: 40.44 | H66: =IF(OR('Input - Capacity Factors'!$C$3="Wind"),IF(G66*'AVOID NEW'!$E$67<6.5,G66*(1-'AVOID NEW'!$E$67),G66-6.5),"NA") -> 37.2048 | I66: 42.25 | J66: =IF(OR('Input - Capacity Factors'!$C$3="Wind"),IF(I66*'AVOID NEW'!$E$67<6.5,I66*(1-'AVOID NEW'!$E$67),I66-6.5),"NA") -> 38.87 | K66: 36.85 | L66: =IF(OR('Input - Capacity Factors'!$C$3="Wind"),IF(K66*'AVOID NEW'!$E$67<6.5,K66*(1-'AVOID NEW'!$E$67),K66-6.5),"NA") -> 33.902 | N66: 31.45 | O66: =IF(OR('Input - Capacity Factors'!$C$3="Wind"),IF(N66*'AVOID NEW'!$E$67<6.5,N66*(1-'AVOID NEW'!$E$67),N66-6.5),"NA") -> 28.934 | P66: 32.86 | Q66: =IF(OR('Input - Capacity Factors'!$C$3="Wind"),IF(P66*'AVOID NEW'!$E$67<6.5,P66*(1-'AVOID NEW'!$E$67),P66-6.5),"NA") -> 30.2312 | R66: 28.66 | S66: =IF(OR('Input - Capacity Factors'!$C$3="Wind"),IF(R66*'AVOID NEW'!$E$67<6.5,R66*(1-'AVOID NEW'!$E$67),R66-6.5),"NA") -> 26.3672 | V66: 37.45 | W66: =IF(OR('Input - Capacity Factors'!$C$3="Wind"),IF(V66*'AVOID NEW'!$E$67<6.5,V66*(1-'AVOID NEW'!$E$67),V66-6.5),"NA") -> 34.454 | X66: 39.12 | Y66: =IF(OR('Input - Capacity Factors'!$C$3="Wind"),IF(X66*'AVOID NEW'!$E$67<6.5,X66*(1-'AVOID NEW'!$E$67),X66-6.5),"NA") -> 35.9904 | Z66: 34.12 | AA66: =IF(OR('Input - Capacity Factors'!$C$3="Wind"),IF(Z66*'AVOID NEW'!$E$67<6.5,Z66*(1-'AVOID NEW'!$E$67),Z66-6.5),"NA") -> 31.3904
B67: 15 | C67: ='AVOID NEW'!AO23 -> 37.99449448 | D67: 39.66449448 | E67: 34.66449448 | G67: 41.03 | H67: =IF(OR('Input - Capacity Factors'!$C$3="Wind"),IF(G67*'AVOID NEW'!$E$67<6.5,G67*(1-'AVOID NEW'!$E$67),G67-6.5),"NA") -> 37.7476 | I67: 42.84 | J67: =IF(OR('Input - Capacity Factors'!$C$3="Wind"),IF(I67*'AVOID NEW'!$E$67<6.5,I67*(1-'AVOID NEW'!$E$67),I67-6.5),"NA") -> 39.4128 | K67: 37.44 | L67: =IF(OR('Input - Capacity Factors'!$C$3="Wind"),IF(K67*'AVOID NEW'!$E$67<6.5,K67*(1-'AVOID NEW'!$E$67),K67-6.5),"NA") -> 34.4448 | N67: 31.92 | O67: =IF(OR('Input - Capacity Factors'!$C$3="Wind"),IF(N67*'AVOID NEW'!$E$67<6.5,N67*(1-'AVOID NEW'!$E$67),N67-6.5),"NA") -> 29.3664 | P67: 33.32 | Q67: =IF(OR('Input - Capacity Factors'!$C$3="Wind"),IF(P67*'AVOID NEW'!$E$67<6.5,P67*(1-'AVOID NEW'!$E$67),P67-6.5),"NA") -> 30.6544 | R67: 29.12 | S67: =IF(OR('Input - Capacity Factors'!$C$3="Wind"),IF(R67*'AVOID NEW'!$E$67<6.5,R67*(1-'AVOID NEW'!$E$67),R67-6.5),"NA") -> 26.7904 | V67: 37.99 | W67: =IF(OR('Input - Capacity Factors'!$C$3="Wind"),IF(V67*'AVOID NEW'!$E$67<6.5,V67*(1-'AVOID NEW'!$E$67),V67-6.5),"NA") -> 34.9508 | X67: 39.66 | Y67: =IF(OR('Input - Capacity Factors'!$C$3="Wind"),IF(X67*'AVOID NEW'!$E$67<6.5,X67*(1-'AVOID NEW'!$E$67),X67-6.5),"NA") -> 36.4872 | Z67: 34.66 | AA67: =IF(OR('Input - Capacity Factors'!$C$3="Wind"),IF(Z67*'AVOID NEW'!$E$67<6.5,Z67*(1-'AVOID NEW'!$E$67),Z67-6.5),"NA") -> 31.8872
B68: 16 | C68: ='AVOID NEW'!AO24 -> 38.58889639 | D68: 40.25889639 | E68: 35.25889639 | G68: 41.68 | H68: =IF(OR('Input - Capacity Factors'!$C$3="Wind"),IF(G68*'AVOID NEW'!$E$67<6.5,G68*(1-'AVOID NEW'!$E$67),G68-6.5),"NA") -> 38.3456 | I68: 43.48 | J68: =IF(OR('Input - Capacity Factors'!$C$3="Wind"),IF(I68*'AVOID NEW'!$E$67<6.5,I68*(1-'AVOID NEW'!$E$67),I68-6.5),"NA") -> 40.0016 | K68: 38.08 | L68: =IF(OR('Input - Capacity Factors'!$C$3="Wind"),IF(K68*'AVOID NEW'!$E$67<6.5,K68*(1-'AVOID NEW'!$E$67),K68-6.5),"NA") -> 35.0336 | N68: 32.41 | O68: =IF(OR('Input - Capacity Factors'!$C$3="Wind"),IF(N68*'AVOID NEW'!$E$67<6.5,N68*(1-'AVOID NEW'!$E$67),N68-6.5),"NA") -> 29.8172 | P68: 33.82 | Q68: =IF(OR('Input - Capacity Factors'!$C$3="Wind"),IF(P68*'AVOID NEW'!$E$67<6.5,P68*(1-'AVOID NEW'!$E$67),P68-6.5),"NA") -> 31.1144 | R68: 29.62 | S68: =IF(OR('Input - Capacity Factors'!$C$3="Wind"),IF(R68*'AVOID NEW'!$E$67<6.5,R68*(1-'AVOID NEW'!$E$67),R68-6.5),"NA") -> 27.2504 | V68: 38.59 | W68: =IF(OR('Input - Capacity Factors'!$C$3="Wind"),IF(V68*'AVOID NEW'!$E$67<6.5,V68*(1-'AVOID NEW'!$E$67),V68-6.5),"NA") -> 35.5028 | X68: 40.26 | Y68: =IF(OR('Input - Capacity Factors'!$C$3="Wind"),IF(X68*'AVOID NEW'!$E$67<6.5,X68*(1-'AVOID NEW'!$E$67),X68-6.5),"NA") -> 37.0392 | Z68: 35.26 | AA68: =IF(OR('Input - Capacity Factors'!$C$3="Wind"),IF(Z68*'AVOID NEW'!$E$67<6.5,Z68*(1-'AVOID NEW'!$E$67),Z68-6.5),"NA") -> 32.4392
B69: 17 | C69: ='AVOID NEW'!AO25 -> 39.17248846 | D69: 40.84248846 | E69: 35.84248846 | G69: 42.31 | H69: =IF(OR('Input - Capacity Factors'!$C$3="Wind"),IF(G69*'AVOID NEW'!$E$67<6.5,G69*(1-'AVOID NEW'!$E$67),G69-6.5),"NA") -> 38.9252 | I69: 44.11 | J69: =IF(OR('Input - Capacity Factors'!$C$3="Wind"),IF(I69*'AVOID NEW'!$E$67<6.5,I69*(1-'AVOID NEW'!$E$67),I69-6.5),"NA") -> 40.5812 | K69: 38.71 | L69: =IF(OR('Input - Capacity Factors'!$C$3="Wind"),IF(K69*'AVOID NEW'!$E$67<6.5,K69*(1-'AVOID NEW'!$E$67),K69-6.5),"NA") -> 35.6132 | N69: 32.9 | O69: =IF(OR('Input - Capacity Factors'!$C$3="Wind"),IF(N69*'AVOID NEW'!$E$67<6.5,N69*(1-'AVOID NEW'!$E$67),N69-6.5),"NA") -> 30.268 | P69: 34.31 | Q69: =IF(OR('Input - Capacity Factors'!$C$3="Wind"),IF(P69*'AVOID NEW'!$E$67<6.5,P69*(1-'AVOID NEW'!$E$67),P69-6.5),"NA") -> 31.5652 | R69: 30.11 | S69: =IF(OR('Input - Capacity Factors'!$C$3="Wind"),IF(R69*'AVOID NEW'!$E$67<6.5,R69*(1-'AVOID NEW'!$E$67),R69-6.5),"NA") -> 27.7012 | V69: 39.17 | W69: =IF(OR('Input - Capacity Factors'!$C$3="Wind"),IF(V69*'AVOID NEW'!$E$67<6.5,V69*(1-'AVOID NEW'!$E$67),V69-6.5),"NA") -> 36.0364 | X69: 40.84 | Y69: =IF(OR('Input - Capacity Factors'!$C$3="Wind"),IF(X69*'AVOID NEW'!$E$67<6.5,X69*(1-'AVOID NEW'!$E$67),X69-6.5),"NA") -> 37.5728 | Z69: 35.84 | AA69: =IF(OR('Input - Capacity Factors'!$C$3="Wind"),IF(Z69*'AVOID NEW'!$E$67<6.5,Z69*(1-'AVOID NEW'!$E$67),Z69-6.5),"NA") -> 32.9728
B70: 18 | C70: ='AVOID NEW'!AO26 -> 39.72165514 | D70: 41.39165514 | E70: 36.39165514 | G70: 42.9 | H70: =IF(OR('Input - Capacity Factors'!$C$3="Wind"),IF(G70*'AVOID NEW'!$E$67<6.5,G70*(1-'AVOID NEW'!$E$67),G70-6.5),"NA") -> 39.468 | I70: 44.7 | J70: =IF(OR('Input - Capacity Factors'!$C$3="Wind"),IF(I70*'AVOID NEW'!$E$67<6.5,I70*(1-'AVOID NEW'!$E$67),I70-6.5),"NA") -> 41.124 | K70: 39.3 | L70: =IF(OR('Input - Capacity Factors'!$C$3="Wind"),IF(K70*'AVOID NEW'!$E$67<6.5,K70*(1-'AVOID NEW'!$E$67),K70-6.5),"NA") -> 36.156 | N70: 33.37 | O70: =IF(OR('Input - Capacity Factors'!$C$3="Wind"),IF(N70*'AVOID NEW'!$E$67<6.5,N70*(1-'AVOID NEW'!$E$67),N70-6.5),"NA") -> 30.7004 | P70: 34.77 | Q70: =IF(OR('Input - Capacity Factors'!$C$3="Wind"),IF(P70*'AVOID NEW'!$E$67<6.5,P70*(1-'AVOID NEW'!$E$67),P70-6.5),"NA") -> 31.9884 | R70: 30.57 | S70: =IF(OR('Input - Capacity Factors'!$C$3="Wind"),IF(R70*'AVOID NEW'!$E$67<6.5,R70*(1-'AVOID NEW'!$E$67),R70-6.5),"NA") -> 28.1244 | V70: 39.72 | W70: =IF(OR('Input - Capacity Factors'!$C$3="Wind"),IF(V70*'AVOID NEW'!$E$67<6.5,V70*(1-'AVOID NEW'!$E$67),V70-6.5),"NA") -> 36.5424 | X70: 41.39 | Y70: =IF(OR('Input - Capacity Factors'!$C$3="Wind"),IF(X70*'AVOID NEW'!$E$67<6.5,X70*(1-'AVOID NEW'!$E$67),X70-6.5),"NA") -> 38.0788 | Z70: 36.39 | AA70: =IF(OR('Input - Capacity Factors'!$C$3="Wind"),IF(Z70*'AVOID NEW'!$E$67<6.5,Z70*(1-'AVOID NEW'!$E$67),Z70-6.5),"NA") -> 33.4788
B71: 19 | C71: ='AVOID NEW'!AO27 -> 40.2251474 | D71: 41.8951474 | E71: 36.8951474 | G71: 43.44 | H71: =IF(OR('Input - Capacity Factors'!$C$3="Wind"),IF(G71*'AVOID NEW'!$E$67<6.5,G71*(1-'AVOID NEW'!$E$67),G71-6.5),"NA") -> 39.9648 | I71: 45.25 | J71: =IF(OR('Input - Capacity Factors'!$C$3="Wind"),IF(I71*'AVOID NEW'!$E$67<6.5,I71*(1-'AVOID NEW'!$E$67),I71-6.5),"NA") -> 41.63 | K71: 39.85 | L71: =IF(OR('Input - Capacity Factors'!$C$3="Wind"),IF(K71*'AVOID NEW'!$E$67<6.5,K71*(1-'AVOID NEW'!$E$67),K71-6.5),"NA") -> 36.662 | N71: 33.79 | O71: =IF(OR('Input - Capacity Factors'!$C$3="Wind"),IF(N71*'AVOID NEW'!$E$67<6.5,N71*(1-'AVOID NEW'!$E$67),N71-6.5),"NA") -> 31.0868 | P71: 35.19 | Q71: =IF(OR('Input - Capacity Factors'!$C$3="Wind"),IF(P71*'AVOID NEW'!$E$67<6.5,P71*(1-'AVOID NEW'!$E$67),P71-6.5),"NA") -> 32.3748 | R71: 30.99 | S71: =IF(OR('Input - Capacity Factors'!$C$3="Wind"),IF(R71*'AVOID NEW'!$E$67<6.5,R71*(1-'AVOID NEW'!$E$67),R71-6.5),"NA") -> 28.5108 | V71: 40.23 | W71: =IF(OR('Input - Capacity Factors'!$C$3="Wind"),IF(V71*'AVOID NEW'!$E$67<6.5,V71*(1-'AVOID NEW'!$E$67),V71-6.5),"NA") -> 37.0116 | X71: 41.9 | Y71: =IF(OR('Input - Capacity Factors'!$C$3="Wind"),IF(X71*'AVOID NEW'!$E$67<6.5,X71*(1-'AVOID NEW'!$E$67),X71-6.5),"NA") -> 38.548 | Z71: 36.9 | AA71: =IF(OR('Input - Capacity Factors'!$C$3="Wind"),IF(Z71*'AVOID NEW'!$E$67<6.5,Z71*(1-'AVOID NEW'!$E$67),Z71-6.5),"NA") -> 33.948
B72: 20 | C72: ='AVOID NEW'!AO28 -> 40.69619065 | D72: 42.36619065 | E72: 37.36619065 | G72: 43.95 | H72: =IF(OR('Input - Capacity Factors'!$C$3="Wind"),IF(G72*'AVOID NEW'!$E$67<6.5,G72*(1-'AVOID NEW'!$E$67),G72-6.5),"NA") -> 40.434 | I72: 45.76 | J72: =IF(OR('Input - Capacity Factors'!$C$3="Wind"),IF(I72*'AVOID NEW'!$E$67<6.5,I72*(1-'AVOID NEW'!$E$67),I72-6.5),"NA") -> 42.0992 | K72: 40.36 | L72: =IF(OR('Input - Capacity Factors'!$C$3="Wind"),IF(K72*'AVOID NEW'!$E$67<6.5,K72*(1-'AVOID NEW'!$E$67),K72-6.5),"NA") -> 37.1312 | N72: 34.18 | O72: =IF(OR('Input - Capacity Factors'!$C$3="Wind"),IF(N72*'AVOID NEW'!$E$67<6.5,N72*(1-'AVOID NEW'!$E$67),N72-6.5),"NA") -> 31.4456 | P72: 35.59 | Q72: =IF(OR('Input - Capacity Factors'!$C$3="Wind"),IF(P72*'AVOID NEW'!$E$67<6.5,P72*(1-'AVOID NEW'!$E$67),P72-6.5),"NA") -> 32.7428 | R72: 31.39 | S72: =IF(OR('Input - Capacity Factors'!$C$3="Wind"),IF(R72*'AVOID NEW'!$E$67<6.5,R72*(1-'AVOID NEW'!$E$67),R72-6.5),"NA") -> 28.8788 | V72: 40.7 | W72: =IF(OR('Input - Capacity Factors'!$C$3="Wind"),IF(V72*'AVOID NEW'!$E$67<6.5,V72*(1-'AVOID NEW'!$E$67),V72-6.5),"NA") -> 37.444 | X72: 42.37 | Y72: =IF(OR('Input - Capacity Factors'!$C$3="Wind"),IF(X72*'AVOID NEW'!$E$67<6.5,X72*(1-'AVOID NEW'!$E$67),X72-6.5),"NA") -> 38.9804 | Z72: 37.37 | AA72: =IF(OR('Input - Capacity Factors'!$C$3="Wind"),IF(Z72*'AVOID NEW'!$E$67<6.5,Z72*(1-'AVOID NEW'!$E$67),Z72-6.5),"NA") -> 34.3804
B76: =$B$1 -> THESE RATES ARE NOT VALID
B77: LEVELIZED RATES
B78: ="PROJECT ON-LINE IN "& 'AVOID NEW'!$D$54+2 -> PROJECT ON-LINE IN 2026
B79: ="Rate Effective Date: "&'AVOID NEW'!$E$69 -> Rate Effective Date: XXXX, 2024
B80: ="Resource: "&'Input - Capacity Factors'!$C$3 -> Resource: Wind
C81: Levelized Price | G81: ="Season 1 Pricing ("&$D$7*100&"%)" -> Season 1 Pricing (108%) | N81: ="Season 2 Pricing ("&100*$D$8&"%)" -> Season 2 Pricing (84%) | V81: Non-Seasonalized Pricing
C82: Heavy and Light Load Hour Differential | D82: ='AVOID NEW'!$E$66 -> 5 | G82: Flat | I82: Heavy Load Hour | K82: Light Load Hour | N82: Flat | P82: Heavy Load Hour | R82: Light Load Hour | V82: Flat | X82: Heavy Load Hour | Z82: Light Load Hour
D83: =ROUND(D82/3,2) -> 1.67 | E83: =-ROUND((D82*2)/3,2) -> -3.33 | H83: Price less wind integration adjustment | J83: Price less wind integration adjustment | L83: Price less wind integration adjustment | O83: Price less wind integration adjustment | Q83: Price less wind integration adjustment | S83: Price less wind integration adjustment | W83: Price less wind integration adjustment | Y83: Price less wind integration adjustment | AA83: Price less wind integration adjustment
B84: Contract Length | C84: Flat | D84: Heavy Load Hour | E84: Light Load Hour | G84: Price | I84: Price | K84: Price | N84: Price | P84: Price | R84: Price | V84: Price | X84: Price | Z84: Price
B85: 1 | C85: ='AVOID NEW'!AP9 -> 34.11176508 | D85: =C85+D$83 -> 35.78176508 | E85: =C85+E$83 -> 30.78176508 | G85: =ROUND((+$C85*$D$7),2) -> 36.84 | H85: =IF(OR('Input - Capacity Factors'!$C$3="Wind"),IF(G85*'AVOID NEW'!$E$67<6.5,G85*(1-'AVOID NEW'!$E$67),G85-6.5),"NA") -> 33.8928 | I85: =ROUND((+$D85*$D$7),2) -> 38.64 | J85: =IF(OR('Input - Capacity Factors'!$C$3="Wind"),IF(I85*'AVOID NEW'!$E$67<6.5,I85*(1-'AVOID NEW'!$E$67),I85-6.5),"NA") -> 35.5488 | K85: =ROUND((+$E85*$D$7),2) -> 33.24 | L85: =IF(OR('Input - Capacity Factors'!$C$3="Wind"),IF(K85*'AVOID NEW'!$E$67<6.5,K85*(1-'AVOID NEW'!$E$67),K85-6.5),"NA") -> 30.5808 | N85: =ROUND((+$C85*$D$8),2) -> 28.65 | O85: =IF(OR('Input - Capacity Factors'!$C$3="Wind"),IF(N85*'AVOID NEW'!$E$67<6.5,N85*(1-'AVOID NEW'!$E$67),N85-6.5),"NA") -> 26.358 | P85: =ROUND((+$D85*$D$8),2) -> 30.06 | Q85: =IF(OR('Input - Capacity Factors'!$C$3="Wind"),IF(P85*'AVOID NEW'!$E$67<6.5,P85*(1-'AVOID NEW'!$E$67),P85-6.5),"NA") -> 27.6552 | R85: =ROUND((+$E85*$D$8),2) -> 25.86 | S85: =IF(OR('Input - Capacity Factors'!$C$3="Wind"),IF(R85*'AVOID NEW'!$E$67<6.5,R85*(1-'AVOID NEW'!$E$67),R85-6.5),"NA") -> 23.7912 | V85: =ROUND((+$C85),2) -> 34.11 | W85: =IF(OR('Input - Capacity Factors'!$C$3="Wind"),IF(V85*'AVOID NEW'!$E$67<6.5,V85*(1-'AVOID NEW'!$E$67),V85-6.5),"NA") -> 31.3812 | X85: =ROUND((+$D85),2) -> 35.78 | Y85: =IF(OR('Input - Capacity Factors'!$C$3="Wind"),IF(X85*'AVOID NEW'!$E$67<6.5,X85*(1-'AVOID NEW'!$E$67),X85-6.5),"NA") -> 32.9176 | Z85: =ROUND((+$E85),2) -> 30.78 | AA85: =IF(OR('Input - Capacity Factors'!$C$3="Wind"),IF(Z85*'AVOID NEW'!$E$67<6.5,Z85*(1-'AVOID NEW'!$E$67),Z85-6.5),"NA") -> 28.3176
B86: 2 | C86: ='AVOID NEW'!AP10 -> 33.25900615 | D86: 34.92900615 | E86: 29.92900615 | G86: 35.92 | H86: =IF(OR('Input - Capacity Factors'!$C$3="Wind"),IF(G86*'AVOID NEW'!$E$67<6.5,G86*(1-'AVOID NEW'!$E$67),G86-6.5),"NA") -> 33.0464 | I86: 37.72 | J86: =IF(OR('Input - Capacity Factors'!$C$3="Wind"),IF(I86*'AVOID NEW'!$E$67<6.5,I86*(1-'AVOID NEW'!$E$67),I86-6.5),"NA") -> 34.7024 | K86: 32.32 | L86: =IF(OR('Input - Capacity Factors'!$C$3="Wind"),IF(K86*'AVOID NEW'!$E$67<6.5,K86*(1-'AVOID NEW'!$E$67),K86-6.5),"NA") -> 29.7344 | N86: 27.94 | O86: =IF(OR('Input - Capacity Factors'!$C$3="Wind"),IF(N86*'AVOID NEW'!$E$67<6.5,N86*(1-'AVOID NEW'!$E$67),N86-6.5),"NA") -> 25.7048 | P86: 29.34 | Q86: =IF(OR('Input - Capacity Factors'!$C$3="Wind"),IF(P86*'AVOID NEW'!$E$67<6.5,P86*(1-'AVOID NEW'!$E$67),P86-6.5),"NA") -> 26.9928 | R86: 25.14 | S86: =IF(OR('Input - Capacity Factors'!$C$3="Wind"),IF(R86*'AVOID NEW'!$E$67<6.5,R86*(1-'AVOID NEW'!$E$67),R86-6.5),"NA") -> 23.1288 | V86: =ROUND((+$C86),2) -> 33.26 | W86: =IF(OR('Input - Capacity Factors'!$C$3="Wind"),IF(V86*'AVOID NEW'!$E$67<6.5,V86*(1-'AVOID NEW'!$E$67),V86-6.5),"NA") -> 30.5992 | X86: =ROUND((+$D86),2) -> 34.93 | Y86: =IF(OR('Input - Capacity Factors'!$C$3="Wind"),IF(X86*'AVOID NEW'!$E$67<6.5,X86*(1-'AVOID NEW'!$E$67),X86-6.5),"NA") -> 32.1356 | Z86: =ROUND((+$E86),2) -> 29.93 | AA86: =IF(OR('Input - Capacity Factors'!$C$3="Wind"),IF(Z86*'AVOID NEW'!$E$67<6.5,Z86*(1-'AVOID NEW'!$E$67),Z86-6.5),"NA") -> 27.5356
B87: 3 | C87: ='AVOID NEW'!AP11 -> 32.94674809 | D87: 34.61674809 | E87: 29.61674809 | G87: 35.58 | H87: =IF(OR('Input - Capacity Factors'!$C$3="Wind"),IF(G87*'AVOID NEW'!$E$67<6.5,G87*(1-'AVOID NEW'!$E$67),G87-6.5),"NA") -> 32.7336 | I87: 37.39 | J87: =IF(OR('Input - Capacity Factors'!$C$3="Wind"),IF(I87*'AVOID NEW'!$E$67<6.5,I87*(1-'AVOID NEW'!$E$67),I87-6.5),"NA") -> 34.3988 | K87: 31.99 | L87: =IF(OR('Input - Capacity Factors'!$C$3="Wind"),IF(K87*'AVOID NEW'!$E$67<6.5,K87*(1-'AVOID NEW'!$E$67),K87-6.5),"NA") -> 29.4308 | N87: 27.68 | O87: =IF(OR('Input - Capacity Factors'!$C$3="Wind"),IF(N87*'AVOID NEW'!$E$67<6.5,N87*(1-'AVOID NEW'!$E$67),N87-6.5),"NA") -> 25.4656 | P87: 29.08 | Q87: =IF(OR('Input - Capacity Factors'!$C$3="Wind"),IF(P87*'AVOID NEW'!$E$67<6.5,P87*(1-'AVOID NEW'!$E$67),P87-6.5),"NA") -> 26.7536 | R87: 24.88 | S87: =IF(OR('Input - Capacity Factors'!$C$3="Wind"),IF(R87*'AVOID NEW'!$E$67<6.5,R87*(1-'AVOID NEW'!$E$67),R87-6.5),"NA") -> 22.8896 | V87: 32.95 | W87: =IF(OR('Input - Capacity Factors'!$C$3="Wind"),IF(V87*'AVOID NEW'!$E$67<6.5,V87*(1-'AVOID NEW'!$E$67),V87-6.5),"NA") -> 30.314 | X87: 34.62 | Y87: =IF(OR('Input - Capacity Factors'!$C$3="Wind"),IF(X87*'AVOID NEW'!$E$67<6.5,X87*(1-'AVOID NEW'!$E$67),X87-6.5),"NA") -> 31.8504 | Z87: 29.62 | AA87: =IF(OR('Input - Capacity Factors'!$C$3="Wind"),IF(Z87*'AVOID NEW'!$E$67<6.5,Z87*(1-'AVOID NEW'!$E$67),Z87-6.5),"NA") -> 27.2504
B88: 4 | C88: ='AVOID NEW'!AP12 -> 32.87867376 | D88: 34.54867376 | E88: 29.54867376 | G88: 35.51 | H88: =IF(OR('Input - Capacity Factors'!$C$3="Wind"),IF(G88*'AVOID NEW'!$E$67<6.5,G88*(1-'AVOID NEW'!$E$67),G88-6.5),"NA") -> 32.6692 | I88: 37.31 | J88: =IF(OR('Input - Capacity Factors'!$C$3="Wind"),IF(I88*'AVOID NEW'!$E$67<6.5,I88*(1-'AVOID NEW'!$E$67),I88-6.5),"NA") -> 34.3252 | K88: 31.91 | L88: =IF(OR('Input - Capacity Factors'!$C$3="Wind"),IF(K88*'AVOID NEW'!$E$67<6.5,K88*(1-'AVOID NEW'!$E$67),K88-6.5),"NA") -> 29.3572 | N88: 27.62 | O88: =IF(OR('Input - Capacity Factors'!$C$3="Wind"),IF(N88*'AVOID NEW'!$E$67<6.5,N88*(1-'AVOID NEW'!$E$67),N88-6.5),"NA") -> 25.4104 | P88: 29.02 | Q88: =IF(OR('Input - Capacity Factors'!$C$3="Wind"),IF(P88*'AVOID NEW'!$E$67<6.5,P88*(1-'AVOID NEW'!$E$67),P88-6.5),"NA") -> 26.6984 | R88: 24.82 | S88: =IF(OR('Input - Capacity Factors'!$C$3="Wind"),IF(R88*'AVOID NEW'!$E$67<6.5,R88*(1-'AVOID NEW'!$E$67),R88-6.5),"NA") -> 22.8344 | V88: 32.88 | W88: =IF(OR('Input - Capacity Factors'!$C$3="Wind"),IF(V88*'AVOID NEW'!$E$67<6.5,V88*(1-'AVOID NEW'!$E$67),V88-6.5),"NA") -> 30.2496 | X88: 34.55 | Y88: =IF(OR('Input - Capacity Factors'!$C$3="Wind"),IF(X88*'AVOID NEW'!$E$67<6.5,X88*(1-'AVOID NEW'!$E$67),X88-6.5),"NA") -> 31.786 | Z88: 29.55 | AA88: =IF(OR('Input - Capacity Factors'!$C$3="Wind"),IF(Z88*'AVOID NEW'!$E$67<6.5,Z88*(1-'AVOID NEW'!$E$67),Z88-6.5),"NA") -> 27.186
B89: 5 | C89: ='AVOID NEW'!AP13 -> 33.01545466 | D89: 34.68545466 | E89: 29.68545466 | G89: 35.66 | H89: =IF(OR('Input - Capacity Factors'!$C$3="Wind"),IF(G89*'AVOID NEW'!$E$67<6.5,G89*(1-'AVOID NEW'!$E$67),G89-6.5),"NA") -> 32.8072 | I89: 37.46 | J89: =IF(OR('Input - Capacity Factors'!$C$3="Wind"),IF(I89*'AVOID NEW'!$E$67<6.5,I89*(1-'AVOID NEW'!$E$67),I89-6.5),"NA") -> 34.4632 | K89: 32.06 | L89: =IF(OR('Input - Capacity Factors'!$C$3="Wind"),IF(K89*'AVOID NEW'!$E$67<6.5,K89*(1-'AVOID NEW'!$E$67),K89-6.5),"NA") -> 29.4952 | N89: 27.73 | O89: =IF(OR('Input - Capacity Factors'!$C$3="Wind"),IF(N89*'AVOID NEW'!$E$67<6.5,N89*(1-'AVOID NEW'!$E$67),N89-6.5),"NA") -> 25.5116 | P89: 29.14 | Q89: =IF(OR('Input - Capacity Factors'!$C$3="Wind"),IF(P89*'AVOID NEW'!$E$67<6.5,P89*(1-'AVOID NEW'!$E$67),P89-6.5),"NA") -> 26.8088 | R89: 24.94 | S89: =IF(OR('Input - Capacity Factors'!$C$3="Wind"),IF(R89*'AVOID NEW'!$E$67<6.5,R89*(1-'AVOID NEW'!$E$67),R89-6.5),"NA") -> 22.9448 | V89: 33.02 | W89: =IF(OR('Input - Capacity Factors'!$C$3="Wind"),IF(V89*'AVOID NEW'!$E$67<6.5,V89*(1-'AVOID NEW'!$E$67),V89-6.5),"NA") -> 30.3784 | X89: 34.69 | Y89: =IF(OR('Input - Capacity Factors'!$C$3="Wind"),IF(X89*'AVOID NEW'!$E$67<6.5,X89*(1-'AVOID NEW'!$E$67),X89-6.5),"NA") -> 31.9148 | Z89: 29.69 | AA89: =IF(OR('Input - Capacity Factors'!$C$3="Wind"),IF(Z89*'AVOID NEW'!$E$67<6.5,Z89*(1-'AVOID NEW'!$E$67),Z89-6.5),"NA") -> 27.3148
B90: 6 | C90: ='AVOID NEW'!AP14 -> 33.35188556 | D90: 35.02188556 | E90: 30.02188556 | G90: 36.02 | H90: =IF(OR('Input - Capacity Factors'!$C$3="Wind"),IF(G90*'AVOID NEW'!$E$67<6.5,G90*(1-'AVOID NEW'!$E$67),G90-6.5),"NA") -> 33.1384 | I90: 37.82 | J90: =IF(OR('Input - Capacity Factors'!$C$3="Wind"),IF(I90*'AVOID NEW'!$E$67<6.5,I90*(1-'AVOID NEW'!$E$67),I90-6.5),"NA") -> 34.7944 | K90: 32.42 | L90: =IF(OR('Input - Capacity Factors'!$C$3="Wind"),IF(K90*'AVOID NEW'!$E$67<6.5,K90*(1-'AVOID NEW'!$E$67),K90-6.5),"NA") -> 29.8264 | N90: 28.02 | O90: =IF(OR('Input - Capacity Factors'!$C$3="Wind"),IF(N90*'AVOID NEW'!$E$67<6.5,N90*(1-'AVOID NEW'!$E$67),N90-6.5),"NA") -> 25.7784 | P90: 29.42 | Q90: =IF(OR('Input - Capacity Factors'!$C$3="Wind"),IF(P90*'AVOID NEW'!$E$67<6.5,P90*(1-'AVOID NEW'!$E$67),P90-6.5),"NA") -> 27.0664 | R90: 25.22 | S90: =IF(OR('Input - Capacity Factors'!$C$3="Wind"),IF(R90*'AVOID NEW'!$E$67<6.5,R90*(1-'AVOID NEW'!$E$67),R90-6.5),"NA") -> 23.2024 | V90: 33.35 | W90: =IF(OR('Input - Capacity Factors'!$C$3="Wind"),IF(V90*'AVOID NEW'!$E$67<6.5,V90*(1-'AVOID NEW'!$E$67),V90-6.5),"NA") -> 30.682 | X90: 35.02 | Y90: =IF(OR('Input - Capacity Factors'!$C$3="Wind"),IF(X90*'AVOID NEW'!$E$67<6.5,X90*(1-'AVOID NEW'!$E$67),X90-6.5),"NA") -> 32.2184 | Z90: 30.02 | AA90: =IF(OR('Input - Capacity Factors'!$C$3="Wind"),IF(Z90*'AVOID NEW'!$E$67<6.5,Z90*(1-'AVOID NEW'!$E$67),Z90-6.5),"NA") -> 27.6184
B91: 7 | C91: ='AVOID NEW'!AP15 -> 33.84958173 | D91: 35.51958173 | E91: 30.51958173 | G91: 36.56 | H91: =IF(OR('Input - Capacity Factors'!$C$3="Wind"),IF(G91*'AVOID NEW'!$E$67<6.5,G91*(1-'AVOID NEW'!$E$67),G91-6.5),"NA") -> 33.6352 | I91: 38.36 | J91: =IF(OR('Input - Capacity Factors'!$C$3="Wind"),IF(I91*'AVOID NEW'!$E$67<6.5,I91*(1-'AVOID NEW'!$E$67),I91-6.5),"NA") -> 35.2912 | K91: 32.96 | L91: =IF(OR('Input - Capacity Factors'!$C$3="Wind"),IF(K91*'AVOID NEW'!$E$67<6.5,K91*(1-'AVOID NEW'!$E$67),K91-6.5),"NA") -> 30.3232 | N91: 28.43 | O91: =IF(OR('Input - Capacity Factors'!$C$3="Wind"),IF(N91*'AVOID NEW'!$E$67<6.5,N91*(1-'AVOID NEW'!$E$67),N91-6.5),"NA") -> 26.1556 | P91: 29.84 | Q91: =IF(OR('Input - Capacity Factors'!$C$3="Wind"),IF(P91*'AVOID NEW'!$E$67<6.5,P91*(1-'AVOID NEW'!$E$67),P91-6.5),"NA") -> 27.4528 | R91: 25.64 | S91: =IF(OR('Input - Capacity Factors'!$C$3="Wind"),IF(R91*'AVOID NEW'!$E$67<6.5,R91*(1-'AVOID NEW'!$E$67),R91-6.5),"NA") -> 23.5888 | V91: 33.85 | W91: =IF(OR('Input - Capacity Factors'!$C$3="Wind"),IF(V91*'AVOID NEW'!$E$67<6.5,V91*(1-'AVOID NEW'!$E$67),V91-6.5),"NA") -> 31.142 | X91: 35.52 | Y91: =IF(OR('Input - Capacity Factors'!$C$3="Wind"),IF(X91*'AVOID NEW'!$E$67<6.5,X91*(1-'AVOID NEW'!$E$67),X91-6.5),"NA") -> 32.6784 | Z91: 30.52 | AA91: =IF(OR('Input - Capacity Factors'!$C$3="Wind"),IF(Z91*'AVOID NEW'!$E$67<6.5,Z91*(1-'AVOID NEW'!$E$67),Z91-6.5),"NA") -> 28.0784
B92: 8 | C92: ='AVOID NEW'!AP16 -> 34.46137396 | D92: 36.13137396 | E92: 31.13137396 | G92: 37.22 | H92: =IF(OR('Input - Capacity Factors'!$C$3="Wind"),IF(G92*'AVOID NEW'!$E$67<6.5,G92*(1-'AVOID NEW'!$E$67),G92-6.5),"NA") -> 34.2424 | I92: 39.02 | J92: =IF(OR('Input - Capacity Factors'!$C$3="Wind"),IF(I92*'AVOID NEW'!$E$67<6.5,I92*(1-'AVOID NEW'!$E$67),I92-6.5),"NA") -> 35.8984 | K92: 33.62 | L92: =IF(OR('Input - Capacity Factors'!$C$3="Wind"),IF(K92*'AVOID NEW'!$E$67<6.5,K92*(1-'AVOID NEW'!$E$67),K92-6.5),"NA") -> 30.9304 | N92: 28.95 | O92: =IF(OR('Input - Capacity Factors'!$C$3="Wind"),IF(N92*'AVOID NEW'!$E$67<6.5,N92*(1-'AVOID NEW'!$E$67),N92-6.5),"NA") -> 26.634 | P92: 30.35 | Q92: =IF(OR('Input - Capacity Factors'!$C$3="Wind"),IF(P92*'AVOID NEW'!$E$67<6.5,P92*(1-'AVOID NEW'!$E$67),P92-6.5),"NA") -> 27.922 | R92: 26.15 | S92: =IF(OR('Input - Capacity Factors'!$C$3="Wind"),IF(R92*'AVOID NEW'!$E$67<6.5,R92*(1-'AVOID NEW'!$E$67),R92-6.5),"NA") -> 24.058 | V92: 34.46 | W92: =IF(OR('Input - Capacity Factors'!$C$3="Wind"),IF(V92*'AVOID NEW'!$E$67<6.5,V92*(1-'AVOID NEW'!$E$67),V92-6.5),"NA") -> 31.7032 | X92: 36.13 | Y92: =IF(OR('Input - Capacity Factors'!$C$3="Wind"),IF(X92*'AVOID NEW'!$E$67<6.5,X92*(1-'AVOID NEW'!$E$67),X92-6.5),"NA") -> 33.2396 | Z92: 31.13 | AA92: =IF(OR('Input - Capacity Factors'!$C$3="Wind"),IF(Z92*'AVOID NEW'!$E$67<6.5,Z92*(1-'AVOID NEW'!$E$67),Z92-6.5),"NA") -> 28.6396
B93: 9 | C93: ='AVOID NEW'!AP17 -> 35.14841417 | D93: 36.81841417 | E93: 31.81841417 | G93: 37.96 | H93: =IF(OR('Input - Capacity Factors'!$C$3="Wind"),IF(G93*'AVOID NEW'!$E$67<6.5,G93*(1-'AVOID NEW'!$E$67),G93-6.5),"NA") -> 34.9232 | I93: 39.76 | J93: =IF(OR('Input - Capacity Factors'!$C$3="Wind"),IF(I93*'AVOID NEW'!$E$67<6.5,I93*(1-'AVOID NEW'!$E$67),I93-6.5),"NA") -> 36.5792 | K93: 34.36 | L93: =IF(OR('Input - Capacity Factors'!$C$3="Wind"),IF(K93*'AVOID NEW'!$E$67<6.5,K93*(1-'AVOID NEW'!$E$67),K93-6.5),"NA") -> 31.6112 | N93: 29.52 | O93: =IF(OR('Input - Capacity Factors'!$C$3="Wind"),IF(N93*'AVOID NEW'!$E$67<6.5,N93*(1-'AVOID NEW'!$E$67),N93-6.5),"NA") -> 27.1584 | P93: 30.93 | Q93: =IF(OR('Input - Capacity Factors'!$C$3="Wind"),IF(P93*'AVOID NEW'!$E$67<6.5,P93*(1-'AVOID NEW'!$E$67),P93-6.5),"NA") -> 28.4556 | R93: 26.73 | S93: =IF(OR('Input - Capacity Factors'!$C$3="Wind"),IF(R93*'AVOID NEW'!$E$67<6.5,R93*(1-'AVOID NEW'!$E$67),R93-6.5),"NA") -> 24.5916 | V93: 35.15 | W93: =IF(OR('Input - Capacity Factors'!$C$3="Wind"),IF(V93*'AVOID NEW'!$E$67<6.5,V93*(1-'AVOID NEW'!$E$67),V93-6.5),"NA") -> 32.338 | X93: 36.82 | Y93: =IF(OR('Input - Capacity Factors'!$C$3="Wind"),IF(X93*'AVOID NEW'!$E$67<6.5,X93*(1-'AVOID NEW'!$E$67),X93-6.5),"NA") -> 33.8744 | Z93: 31.82 | AA93: =IF(OR('Input - Capacity Factors'!$C$3="Wind"),IF(Z93*'AVOID NEW'!$E$67<6.5,Z93*(1-'AVOID NEW'!$E$67),Z93-6.5),"NA") -> 29.2744
B94: 10 | C94: ='AVOID NEW'!AP18 -> 35.87979829 | D94: 37.54979829 | E94: 32.54979829 | G94: 38.75 | H94: =IF(OR('Input - Capacity Factors'!$C$3="Wind"),IF(G94*'AVOID NEW'!$E$67<6.5,G94*(1-'AVOID NEW'!$E$67),G94-6.5),"NA") -> 35.65 | I94: 40.55 | J94: =IF(OR('Input - Capacity Factors'!$C$3="Wind"),IF(I94*'AVOID NEW'!$E$67<6.5,I94*(1-'AVOID NEW'!$E$67),I94-6.5),"NA") -> 37.306 | K94: 35.15 | L94: =IF(OR('Input - Capacity Factors'!$C$3="Wind"),IF(K94*'AVOID NEW'!$E$67<6.5,K94*(1-'AVOID NEW'!$E$67),K94-6.5),"NA") -> 32.338 | N94: 30.14 | O94: =IF(OR('Input - Capacity Factors'!$C$3="Wind"),IF(N94*'AVOID NEW'!$E$67<6.5,N94*(1-'AVOID NEW'!$E$67),N94-6.5),"NA") -> 27.7288 | P94: 31.54 | Q94: =IF(OR('Input - Capacity Factors'!$C$3="Wind"),IF(P94*'AVOID NEW'!$E$67<6.5,P94*(1-'AVOID NEW'!$E$67),P94-6.5),"NA") -> 29.0168 | R94: 27.34 | S94: =IF(OR('Input - Capacity Factors'!$C$3="Wind"),IF(R94*'AVOID NEW'!$E$67<6.5,R94*(1-'AVOID NEW'!$E$67),R94-6.5),"NA") -> 25.1528 | V94: 35.88 | W94: =IF(OR('Input - Capacity Factors'!$C$3="Wind"),IF(V94*'AVOID NEW'!$E$67<6.5,V94*(1-'AVOID NEW'!$E$67),V94-6.5),"NA") -> 33.0096 | X94: 37.55 | Y94: =IF(OR('Input - Capacity Factors'!$C$3="Wind"),IF(X94*'AVOID NEW'!$E$67<6.5,X94*(1-'AVOID NEW'!$E$67),X94-6.5),"NA") -> 34.546 | Z94: 32.55 | AA94: =IF(OR('Input - Capacity Factors'!$C$3="Wind"),IF(Z94*'AVOID NEW'!$E$67<6.5,Z94*(1-'AVOID NEW'!$E$67),Z94-6.5),"NA") -> 29.946
B95: 11 | C95: ='AVOID NEW'!AP19 -> 36.56533093 | D95: 38.23533093 | E95: 33.23533093 | G95: 39.49 | H95: =IF(OR('Input - Capacity Factors'!$C$3="Wind"),IF(G95*'AVOID NEW'!$E$67<6.5,G95*(1-'AVOID NEW'!$E$67),G95-6.5),"NA") -> 36.3308 | I95: 41.29 | J95: =IF(OR('Input - Capacity Factors'!$C$3="Wind"),IF(I95*'AVOID NEW'!$E$67<6.5,I95*(1-'AVOID NEW'!$E$67),I95-6.5),"NA") -> 37.9868 | K95: 35.89 | L95: =IF(OR('Input - Capacity Factors'!$C$3="Wind"),IF(K95*'AVOID NEW'!$E$67<6.5,K95*(1-'AVOID NEW'!$E$67),K95-6.5),"NA") -> 33.0188 | N95: 30.71 | O95: =IF(OR('Input - Capacity Factors'!$C$3="Wind"),IF(N95*'AVOID NEW'!$E$67<6.5,N95*(1-'AVOID NEW'!$E$67),N95-6.5),"NA") -> 28.2532 | P95: 32.12 | Q95: =IF(OR('Input - Capacity Factors'!$C$3="Wind"),IF(P95*'AVOID NEW'!$E$67<6.5,P95*(1-'AVOID NEW'!$E$67),P95-6.5),"NA") -> 29.5504 | R95: 27.92 | S95: =IF(OR('Input - Capacity Factors'!$C$3="Wind"),IF(R95*'AVOID NEW'!$E$67<6.5,R95*(1-'AVOID NEW'!$E$67),R95-6.5),"NA") -> 25.6864 | V95: 36.57 | W95: =IF(OR('Input - Capacity Factors'!$C$3="Wind"),IF(V95*'AVOID NEW'!$E$67<6.5,V95*(1-'AVOID NEW'!$E$67),V95-6.5),"NA") -> 33.6444 | X95: 38.24 | Y95: =IF(OR('Input - Capacity Factors'!$C$3="Wind"),IF(X95*'AVOID NEW'!$E$67<6.5,X95*(1-'AVOID NEW'!$E$67),X95-6.5),"NA") -> 35.1808 | Z95: 33.24 | AA95: =IF(OR('Input - Capacity Factors'!$C$3="Wind"),IF(Z95*'AVOID NEW'!$E$67<6.5,Z95*(1-'AVOID NEW'!$E$67),Z95-6.5),"NA") -> 30.5808
B96: 12 | C96: ='AVOID NEW'!AP20 -> 37.2075786 | D96: 38.8775786 | E96: 33.8775786 | G96: 40.18 | H96: =IF(OR('Input - Capacity Factors'!$C$3="Wind"),IF(G96*'AVOID NEW'!$E$67<6.5,G96*(1-'AVOID NEW'!$E$67),G96-6.5),"NA") -> 36.9656 | I96: 41.99 | J96: =IF(OR('Input - Capacity Factors'!$C$3="Wind"),IF(I96*'AVOID NEW'!$E$67<6.5,I96*(1-'AVOID NEW'!$E$67),I96-6.5),"NA") -> 38.6308 | K96: 36.59 | L96: =IF(OR('Input - Capacity Factors'!$C$3="Wind"),IF(K96*'AVOID NEW'!$E$67<6.5,K96*(1-'AVOID NEW'!$E$67),K96-6.5),"NA") -> 33.6628 | N96: 31.25 | O96: =IF(OR('Input - Capacity Factors'!$C$3="Wind"),IF(N96*'AVOID NEW'!$E$67<6.5,N96*(1-'AVOID NEW'!$E$67),N96-6.5),"NA") -> 28.75 | P96: 32.66 | Q96: =IF(OR('Input - Capacity Factors'!$C$3="Wind"),IF(P96*'AVOID NEW'!$E$67<6.5,P96*(1-'AVOID NEW'!$E$67),P96-6.5),"NA") -> 30.0472 | R96: 28.46 | S96: =IF(OR('Input - Capacity Factors'!$C$3="Wind"),IF(R96*'AVOID NEW'!$E$67<6.5,R96*(1-'AVOID NEW'!$E$67),R96-6.5),"NA") -> 26.1832 | V96: 37.21 | W96: =IF(OR('Input - Capacity Factors'!$C$3="Wind"),IF(V96*'AVOID NEW'!$E$67<6.5,V96*(1-'AVOID NEW'!$E$67),V96-6.5),"NA") -> 34.2332 | X96: 38.88 | Y96: =IF(OR('Input - Capacity Factors'!$C$3="Wind"),IF(X96*'AVOID NEW'!$E$67<6.5,X96*(1-'AVOID NEW'!$E$67),X96-6.5),"NA") -> 35.7696 | Z96: 33.88 | AA96: =IF(OR('Input - Capacity Factors'!$C$3="Wind"),IF(Z96*'AVOID NEW'!$E$67<6.5,Z96*(1-'AVOID NEW'!$E$67),Z96-6.5),"NA") -> 31.1696
B97: 13 | C97: ='AVOID NEW'!AP21 -> 37.89232497 | D97: 39.56232497 | E97: 34.56232497 | G97: 40.92 | H97: =IF(OR('Input - Capacity Factors'!$C$3="Wind"),IF(G97*'AVOID NEW'!$E$67<6.5,G97*(1-'AVOID NEW'!$E$67),G97-6.5),"NA") -> 37.6464 | I97: 42.73 | J97: =IF(OR('Input - Capacity Factors'!$C$3="Wind"),IF(I97*'AVOID NEW'!$E$67<6.5,I97*(1-'AVOID NEW'!$E$67),I97-6.5),"NA") -> 39.3116 | K97: 37.33 | L97: =IF(OR('Input - Capacity Factors'!$C$3="Wind"),IF(K97*'AVOID NEW'!$E$67<6.5,K97*(1-'AVOID NEW'!$E$67),K97-6.5),"NA") -> 34.3436 | N97: 31.83 | O97: =IF(OR('Input - Capacity Factors'!$C$3="Wind"),IF(N97*'AVOID NEW'!$E$67<6.5,N97*(1-'AVOID NEW'!$E$67),N97-6.5),"NA") -> 29.2836 | P97: 33.23 | Q97: =IF(OR('Input - Capacity Factors'!$C$3="Wind"),IF(P97*'AVOID NEW'!$E$67<6.5,P97*(1-'AVOID NEW'!$E$67),P97-6.5),"NA") -> 30.5716 | R97: 29.03 | S97: =IF(OR('Input - Capacity Factors'!$C$3="Wind"),IF(R97*'AVOID NEW'!$E$67<6.5,R97*(1-'AVOID NEW'!$E$67),R97-6.5),"NA") -> 26.7076 | V97: 37.89 | W97: =IF(OR('Input - Capacity Factors'!$C$3="Wind"),IF(V97*'AVOID NEW'!$E$67<6.5,V97*(1-'AVOID NEW'!$E$67),V97-6.5),"NA") -> 34.8588 | X97: 39.56 | Y97: =IF(OR('Input - Capacity Factors'!$C$3="Wind"),IF(X97*'AVOID NEW'!$E$67<6.5,X97*(1-'AVOID NEW'!$E$67),X97-6.5),"NA") -> 36.3952 | Z97: 34.56 | AA97: =IF(OR('Input - Capacity Factors'!$C$3="Wind"),IF(Z97*'AVOID NEW'!$E$67<6.5,Z97*(1-'AVOID NEW'!$E$67),Z97-6.5),"NA") -> 31.7952
B98: 14 | C98: ='AVOID NEW'!AP22 -> 38.48496834 | D98: 40.15496834 | E98: 35.15496834 | G98: 41.56 | H98: =IF(OR('Input - Capacity Factors'!$C$3="Wind"),IF(G98*'AVOID NEW'!$E$67<6.5,G98*(1-'AVOID NEW'!$E$67),G98-6.5),"NA") -> 38.2352 | I98: 43.37 | J98: =IF(OR('Input - Capacity Factors'!$C$3="Wind"),IF(I98*'AVOID NEW'!$E$67<6.5,I98*(1-'AVOID NEW'!$E$67),I98-6.5),"NA") -> 39.9004 | K98: 37.97 | L98: =IF(OR('Input - Capacity Factors'!$C$3="Wind"),IF(K98*'AVOID NEW'!$E$67<6.5,K98*(1-'AVOID NEW'!$E$67),K98-6.5),"NA") -> 34.9324 | N98: 32.33 | O98: =IF(OR('Input - Capacity Factors'!$C$3="Wind"),IF(N98*'AVOID NEW'!$E$67<6.5,N98*(1-'AVOID NEW'!$E$67),N98-6.5),"NA") -> 29.7436 | P98: 33.73 | Q98: =IF(OR('Input - Capacity Factors'!$C$3="Wind"),IF(P98*'AVOID NEW'!$E$67<6.5,P98*(1-'AVOID NEW'!$E$67),P98-6.5),"NA") -> 31.0316 | R98: 29.53 | S98: =IF(OR('Input - Capacity Factors'!$C$3="Wind"),IF(R98*'AVOID NEW'!$E$67<6.5,R98*(1-'AVOID NEW'!$E$67),R98-6.5),"NA") -> 27.1676 | V98: 38.48 | W98: =IF(OR('Input - Capacity Factors'!$C$3="Wind"),IF(V98*'AVOID NEW'!$E$67<6.5,V98*(1-'AVOID NEW'!$E$67),V98-6.5),"NA") -> 35.4016 | X98: 40.15 | Y98: =IF(OR('Input - Capacity Factors'!$C$3="Wind"),IF(X98*'AVOID NEW'!$E$67<6.5,X98*(1-'AVOID NEW'!$E$67),X98-6.5),"NA") -> 36.938 | Z98: 35.15 | AA98: =IF(OR('Input - Capacity Factors'!$C$3="Wind"),IF(Z98*'AVOID NEW'!$E$67<6.5,Z98*(1-'AVOID NEW'!$E$67),Z98-6.5),"NA") -> 32.338
B99: 15 | C99: ='AVOID NEW'!AP23 -> 39.1265043 | D99: 40.7965043 | E99: 35.7965043 | G99: 42.26 | H99: =IF(OR('Input - Capacity Factors'!$C$3="Wind"),IF(G99*'AVOID NEW'!$E$67<6.5,G99*(1-'AVOID NEW'!$E$67),G99-6.5),"NA") -> 38.8792 | I99: 44.06 | J99: =IF(OR('Input - Capacity Factors'!$C$3="Wind"),IF(I99*'AVOID NEW'!$E$67<6.5,I99*(1-'AVOID NEW'!$E$67),I99-6.5),"NA") -> 40.5352 | K99: 38.66 | L99: =IF(OR('Input - Capacity Factors'!$C$3="Wind"),IF(K99*'AVOID NEW'!$E$67<6.5,K99*(1-'AVOID NEW'!$E$67),K99-6.5),"NA") -> 35.5672 | N99: 32.87 | O99: =IF(OR('Input - Capacity Factors'!$C$3="Wind"),IF(N99*'AVOID NEW'!$E$67<6.5,N99*(1-'AVOID NEW'!$E$67),N99-6.5),"NA") -> 30.2404 | P99: 34.27 | Q99: =IF(OR('Input - Capacity Factors'!$C$3="Wind"),IF(P99*'AVOID NEW'!$E$67<6.5,P99*(1-'AVOID NEW'!$E$67),P99-6.5),"NA") -> 31.5284 | R99: 30.07 | S99: =IF(OR('Input - Capacity Factors'!$C$3="Wind"),IF(R99*'AVOID NEW'!$E$67<6.5,R99*(1-'AVOID NEW'!$E$67),R99-6.5),"NA") -> 27.6644 | V99: 39.13 | W99: =IF(OR('Input - Capacity Factors'!$C$3="Wind"),IF(V99*'AVOID NEW'!$E$67<6.5,V99*(1-'AVOID NEW'!$E$67),V99-6.5),"NA") -> 35.9996 | X99: 40.8 | Y99: =IF(OR('Input - Capacity Factors'!$C$3="Wind"),IF(X99*'AVOID NEW'!$E$67<6.5,X99*(1-'AVOID NEW'!$E$67),X99-6.5),"NA") -> 37.536 | Z99: 35.8 | AA99: =IF(OR('Input - Capacity Factors'!$C$3="Wind"),IF(Z99*'AVOID NEW'!$E$67<6.5,Z99*(1-'AVOID NEW'!$E$67),Z99-6.5),"NA") -> 32.936
B100: 16 | C100: ='AVOID NEW'!AP24 -> 39.75400455 | D100: 41.42400455 | E100: 36.42400455 | G100: 42.93 | H100: =IF(OR('Input - Capacity Factors'!$C$3="Wind"),IF(G100*'AVOID NEW'!$E$67<6.5,G100*(1-'AVOID NEW'!$E$67),G100-6.5),"NA") -> 39.4956 | I100: 44.74 | J100: =IF(OR('Input - Capacity Factors'!$C$3="Wind"),IF(I100*'AVOID NEW'!$E$67<6.5,I100*(1-'AVOID NEW'!$E$67),I100-6.5),"NA") -> 41.1608 | K100: 39.34 | L100: =IF(OR('Input - Capacity Factors'!$C$3="Wind"),IF(K100*'AVOID NEW'!$E$67<6.5,K100*(1-'AVOID NEW'!$E$67),K100-6.5),"NA") -> 36.1928 | N100: 33.39 | O100: =IF(OR('Input - Capacity Factors'!$C$3="Wind"),IF(N100*'AVOID NEW'!$E$67<6.5,N100*(1-'AVOID NEW'!$E$67),N100-6.5),"NA") -> 30.7188 | P100: 34.8 | Q100: =IF(OR('Input - Capacity Factors'!$C$3="Wind"),IF(P100*'AVOID NEW'!$E$67<6.5,P100*(1-'AVOID NEW'!$E$67),P100-6.5),"NA") -> 32.016 | R100: 30.6 | S100: =IF(OR('Input - Capacity Factors'!$C$3="Wind"),IF(R100*'AVOID NEW'!$E$67<6.5,R100*(1-'AVOID NEW'!$E$67),R100-6.5),"NA") -> 28.152 | V100: 39.75 | W100: =IF(OR('Input - Capacity Factors'!$C$3="Wind"),IF(V100*'AVOID NEW'!$E$67<6.5,V100*(1-'AVOID NEW'!$E$67),V100-6.5),"NA") -> 36.57 | X100: 41.42 | Y100: =IF(OR('Input - Capacity Factors'!$C$3="Wind"),IF(X100*'AVOID NEW'!$E$67<6.5,X100*(1-'AVOID NEW'!$E$67),X100-6.5),"NA") -> 38.1064 | Z100: 36.42 | AA100: =IF(OR('Input - Capacity Factors'!$C$3="Wind"),IF(Z100*'AVOID NEW'!$E$67<6.5,Z100*(1-'AVOID NEW'!$E$67),Z100-6.5),"NA") -> 33.5064
B101: 17 | C101: ='AVOID NEW'!AP25 -> 40.3419434 | D101: 42.0119434 | E101: 37.0119434 | G101: 43.57 | H101: =IF(OR('Input - Capacity Factors'!$C$3="Wind"),IF(G101*'AVOID NEW'!$E$67<6.5,G101*(1-'AVOID NEW'!$E$67),G101-6.5),"NA") -> 40.0844 | I101: 45.37 | J101: =IF(OR('Input - Capacity Factors'!$C$3="Wind"),IF(I101*'AVOID NEW'!$E$67<6.5,I101*(1-'AVOID NEW'!$E$67),I101-6.5),"NA") -> 41.7404 | K101: 39.97 | L101: =IF(OR('Input - Capacity Factors'!$C$3="Wind"),IF(K101*'AVOID NEW'!$E$67<6.5,K101*(1-'AVOID NEW'!$E$67),K101-6.5),"NA") -> 36.7724 | N101: 33.89 | O101: =IF(OR('Input - Capacity Factors'!$C$3="Wind"),IF(N101*'AVOID NEW'!$E$67<6.5,N101*(1-'AVOID NEW'!$E$67),N101-6.5),"NA") -> 31.1788 | P101: 35.29 | Q101: =IF(OR('Input - Capacity Factors'!$C$3="Wind"),IF(P101*'AVOID NEW'!$E$67<6.5,P101*(1-'AVOID NEW'!$E$67),P101-6.5),"NA") -> 32.4668 | R101: 31.09 | S101: =IF(OR('Input - Capacity Factors'!$C$3="Wind"),IF(R101*'AVOID NEW'!$E$67<6.5,R101*(1-'AVOID NEW'!$E$67),R101-6.5),"NA") -> 28.6028 | V101: 40.34 | W101: =IF(OR('Input - Capacity Factors'!$C$3="Wind"),IF(V101*'AVOID NEW'!$E$67<6.5,V101*(1-'AVOID NEW'!$E$67),V101-6.5),"NA") -> 37.1128 | X101: 42.01 | Y101: =IF(OR('Input - Capacity Factors'!$C$3="Wind"),IF(X101*'AVOID NEW'!$E$67<6.5,X101*(1-'AVOID NEW'!$E$67),X101-6.5),"NA") -> 38.6492 | Z101: 37.01 | AA101: =IF(OR('Input - Capacity Factors'!$C$3="Wind"),IF(Z101*'AVOID NEW'!$E$67<6.5,Z101*(1-'AVOID NEW'!$E$67),Z101-6.5),"NA") -> 34.0492
B102: 18 | C102: ='AVOID NEW'!AP26 -> 40.87856914 | D102: 42.54856914 | E102: 37.54856914 | G102: 44.15 | H102: =IF(OR('Input - Capacity Factors'!$C$3="Wind"),IF(G102*'AVOID NEW'!$E$67<6.5,G102*(1-'AVOID NEW'!$E$67),G102-6.5),"NA") -> 40.618 | I102: 45.95 | J102: =IF(OR('Input - Capacity Factors'!$C$3="Wind"),IF(I102*'AVOID NEW'!$E$67<6.5,I102*(1-'AVOID NEW'!$E$67),I102-6.5),"NA") -> 42.274 | K102: 40.55 | L102: =IF(OR('Input - Capacity Factors'!$C$3="Wind"),IF(K102*'AVOID NEW'!$E$67<6.5,K102*(1-'AVOID NEW'!$E$67),K102-6.5),"NA") -> 37.306 | N102: 34.34 | O102: =IF(OR('Input - Capacity Factors'!$C$3="Wind"),IF(N102*'AVOID NEW'!$E$67<6.5,N102*(1-'AVOID NEW'!$E$67),N102-6.5),"NA") -> 31.5928 | P102: 35.74 | Q102: =IF(OR('Input - Capacity Factors'!$C$3="Wind"),IF(P102*'AVOID NEW'!$E$67<6.5,P102*(1-'AVOID NEW'!$E$67),P102-6.5),"NA") -> 32.8808 | R102: 31.54 | S102: =IF(OR('Input - Capacity Factors'!$C$3="Wind"),IF(R102*'AVOID NEW'!$E$67<6.5,R102*(1-'AVOID NEW'!$E$67),R102-6.5),"NA") -> 29.0168 | V102: 40.88 | W102: =IF(OR('Input - Capacity Factors'!$C$3="Wind"),IF(V102*'AVOID NEW'!$E$67<6.5,V102*(1-'AVOID NEW'!$E$67),V102-6.5),"NA") -> 37.6096 | X102: 42.55 | Y102: =IF(OR('Input - Capacity Factors'!$C$3="Wind"),IF(X102*'AVOID NEW'!$E$67<6.5,X102*(1-'AVOID NEW'!$E$67),X102-6.5),"NA") -> 39.146 | Z102: 37.55 | AA102: =IF(OR('Input - Capacity Factors'!$C$3="Wind"),IF(Z102*'AVOID NEW'!$E$67<6.5,Z102*(1-'AVOID NEW'!$E$67),Z102-6.5),"NA") -> 34.546
B103: 19 | C103: ='AVOID NEW'!AP27 -> 41.378992 | D103: 43.048992 | E103: 38.048992 | G103: 44.69 | H103: =IF(OR('Input - Capacity Factors'!$C$3="Wind"),IF(G103*'AVOID NEW'!$E$67<6.5,G103*(1-'AVOID NEW'!$E$67),G103-6.5),"NA") -> 41.1148 | I103: 46.49 | J103: =IF(OR('Input - Capacity Factors'!$C$3="Wind"),IF(I103*'AVOID NEW'!$E$67<6.5,I103*(1-'AVOID NEW'!$E$67),I103-6.5),"NA") -> 42.7708 | K103: 41.09 | L103: =IF(OR('Input - Capacity Factors'!$C$3="Wind"),IF(K103*'AVOID NEW'!$E$67<6.5,K103*(1-'AVOID NEW'!$E$67),K103-6.5),"NA") -> 37.8028 | N103: 34.76 | O103: =IF(OR('Input - Capacity Factors'!$C$3="Wind"),IF(N103*'AVOID NEW'!$E$67<6.5,N103*(1-'AVOID NEW'!$E$67),N103-6.5),"NA") -> 31.9792 | P103: 36.16 | Q103: =IF(OR('Input - Capacity Factors'!$C$3="Wind"),IF(P103*'AVOID NEW'!$E$67<6.5,P103*(1-'AVOID NEW'!$E$67),P103-6.5),"NA") -> 33.2672 | R103: 31.96 | S103: =IF(OR('Input - Capacity Factors'!$C$3="Wind"),IF(R103*'AVOID NEW'!$E$67<6.5,R103*(1-'AVOID NEW'!$E$67),R103-6.5),"NA") -> 29.4032 | V103: 41.38 | W103: =IF(OR('Input - Capacity Factors'!$C$3="Wind"),IF(V103*'AVOID NEW'!$E$67<6.5,V103*(1-'AVOID NEW'!$E$67),V103-6.5),"NA") -> 38.0696 | X103: 43.05 | Y103: =IF(OR('Input - Capacity Factors'!$C$3="Wind"),IF(X103*'AVOID NEW'!$E$67<6.5,X103*(1-'AVOID NEW'!$E$67),X103-6.5),"NA") -> 39.606 | Z103: 38.05 | AA103: =IF(OR('Input - Capacity Factors'!$C$3="Wind"),IF(Z103*'AVOID NEW'!$E$67<6.5,Z103*(1-'AVOID NEW'!$E$67),Z103-6.5),"NA") -> 35.006
B104: 20 | C104: ='AVOID NEW'!AP28 -> 41.85106931 | D104: 43.52106931 | E104: 38.52106931 | G104: 45.2 | H104: =IF(OR('Input - Capacity Factors'!$C$3="Wind"),IF(G104*'AVOID NEW'!$E$67<6.5,G104*(1-'AVOID NEW'!$E$67),G104-6.5),"NA") -> 41.584 | I104: 47 | J104: =IF(OR('Input - Capacity Factors'!$C$3="Wind"),IF(I104*'AVOID NEW'!$E$67<6.5,I104*(1-'AVOID NEW'!$E$67),I104-6.5),"NA") -> 43.24 | K104: 41.6 | L104: =IF(OR('Input - Capacity Factors'!$C$3="Wind"),IF(K104*'AVOID NEW'!$E$67<6.5,K104*(1-'AVOID NEW'!$E$67),K104-6.5),"NA") -> 38.272 | N104: 35.15 | O104: =IF(OR('Input - Capacity Factors'!$C$3="Wind"),IF(N104*'AVOID NEW'!$E$67<6.5,N104*(1-'AVOID NEW'!$E$67),N104-6.5),"NA") -> 32.338 | P104: 36.56 | Q104: =IF(OR('Input - Capacity Factors'!$C$3="Wind"),IF(P104*'AVOID NEW'!$E$67<6.5,P104*(1-'AVOID NEW'!$E$67),P104-6.5),"NA") -> 33.6352 | R104: 32.36 | S104: =IF(OR('Input - Capacity Factors'!$C$3="Wind"),IF(R104*'AVOID NEW'!$E$67<6.5,R104*(1-'AVOID NEW'!$E$67),R104-6.5),"NA") -> 29.7712 | V104: 41.85 | W104: =IF(OR('Input - Capacity Factors'!$C$3="Wind"),IF(V104*'AVOID NEW'!$E$67<6.5,V104*(1-'AVOID NEW'!$E$67),V104-6.5),"NA") -> 38.502 | X104: 43.52 | Y104: =IF(OR('Input - Capacity Factors'!$C$3="Wind"),IF(X104*'AVOID NEW'!$E$67<6.5,X104*(1-'AVOID NEW'!$E$67),X104-6.5),"NA") -> 40.0384 | Z104: 38.52 | AA104: =IF(OR('Input - Capacity Factors'!$C$3="Wind"),IF(Z104*'AVOID NEW'!$E$67<6.5,Z104*(1-'AVOID NEW'!$E$67),Z104-6.5),"NA") -> 35.4384
B108: =$B$1 -> THESE RATES ARE NOT VALID
B109: LEVELIZED RATES
B110: ="PROJECT ON-LINE IN "& 'AVOID NEW'!$D$54+3 -> PROJECT ON-LINE IN 2027
B111: ="Rate Effective Date: "&'AVOID NEW'!$E$69 -> Rate Effective Date: XXXX, 2024
B112: ="Resource: "&'Input - Capacity Factors'!$C$3 -> Resource: Wind
C113: Levelized Price | G113: ="Season 1 Pricing ("&$D$7*100&"%)" -> Season 1 Pricing (108%) | N113: ="Season 2 Pricing ("&100*$D$8&"%)" -> Season 2 Pricing (84%) | V113: Non-Seasonalized Pricing
C114: Heavy and Light Load Hour Differential | D114: ='AVOID NEW'!$E$66 -> 5 | G114: Flat | I114: Heavy Load Hour | K114: Light Load Hour | N114: Flat | P114: Heavy Load Hour | R114: Light Load Hour | V114: Flat | X114: Heavy Load Hour | Z114: Light Load Hour
D115: =ROUND(D114/3,2) -> 1.67 | E115: =-ROUND((D114*2)/3,2) -> -3.33 | H115: Price less wind integration adjustment | J115: Price less wind integration adjustment | L115: Price less wind integration adjustment | O115: Price less wind integration adjustment | Q115: Price less wind integration adjustment | S115: Price less wind integration adjustment | W115: Price less wind integration adjustment | Y115: Price less wind integration adjustment | AA115: Price less wind integration adjustment
B116: Contract Length | C116: Flat | D116: Heavy Load Hour | E116: Light Load Hour | G116: Price | I116: Price | K116: Price | N116: Price | P116: Price | R116: Price | V116: Price | X116: Price | Z116: Price
B117: 1 | C117: ='AVOID NEW'!AQ9 -> 32.34444778 | D117: =C117+D$83 -> 34.01444778 | E117: =C117+E$83 -> 29.01444778 | G117: =ROUND((+$C117*$D$7),2) -> 34.93 | H117: =IF(OR('Input - Capacity Factors'!$C$3="Wind"),IF(G117*'AVOID NEW'!$E$67<6.5,G117*(1-'AVOID NEW'!$E$67),G117-6.5),"NA") -> 32.1356 | I117: =ROUND((+$D117*$D$7),2) -> 36.74 | J117: =IF(OR('Input - Capacity Factors'!$C$3="Wind"),IF(I117*'AVOID NEW'!$E$67<6.5,I117*(1-'AVOID NEW'!$E$67),I117-6.5),"NA") -> 33.8008 | K117: =ROUND((+$E117*$D$7),2) -> 31.34 | L117: =IF(OR('Input - Capacity Factors'!$C$3="Wind"),IF(K117*'AVOID NEW'!$E$67<6.5,K117*(1-'AVOID NEW'!$E$67),K117-6.5),"NA") -> 28.8328 | N117: =ROUND((+$C117*$D$8),2) -> 27.17 | O117: =IF(OR('Input - Capacity Factors'!$C$3="Wind"),IF(N117*'AVOID NEW'!$E$67<6.5,N117*(1-'AVOID NEW'!$E$67),N117-6.5),"NA") -> 24.9964 | P117: =ROUND((+$D117*$D$8),2) -> 28.57 | Q117: =IF(OR('Input - Capacity Factors'!$C$3="Wind"),IF(P117*'AVOID NEW'!$E$67<6.5,P117*(1-'AVOID NEW'!$E$67),P117-6.5),"NA") -> 26.2844 | R117: =ROUND((+$E117*$D$8),2) -> 24.37 | S117: =IF(OR('Input - Capacity Factors'!$C$3="Wind"),IF(R117*'AVOID NEW'!$E$67<6.5,R117*(1-'AVOID NEW'!$E$67),R117-6.5),"NA") -> 22.4204 | V117: =ROUND((+$C117),2) -> 32.34 | W117: =IF(OR('Input - Capacity Factors'!$C$3="Wind"),IF(V117*'AVOID NEW'!$E$67<6.5,V117*(1-'AVOID NEW'!$E$67),V117-6.5),"NA") -> 29.7528 | X117: =ROUND((+$D117),2) -> 34.01 | Y117: =IF(OR('Input - Capacity Factors'!$C$3="Wind"),IF(X117*'AVOID NEW'!$E$67<6.5,X117*(1-'AVOID NEW'!$E$67),X117-6.5),"NA") -> 31.2892 | Z117: =ROUND((+$E117),2) -> 29.01 | AA117: =IF(OR('Input - Capacity Factors'!$C$3="Wind"),IF(Z117*'AVOID NEW'!$E$67<6.5,Z117*(1-'AVOID NEW'!$E$67),Z117-6.5),"NA") -> 26.6892
B118: 2 | C118: ='AVOID NEW'!AQ10 -> 32.30017993 | D118: 33.97017993 | E118: 28.97017993 | G118: 34.88 | H118: =IF(OR('Input - Capacity Factors'!$C$3="Wind"),IF(G118*'AVOID NEW'!$E$67<6.5,G118*(1-'AVOID NEW'!$E$67),G118-6.5),"NA") -> 32.0896 | I118: 36.69 | J118: =IF(OR('Input - Capacity Factors'!$C$3="Wind"),IF(I118*'AVOID NEW'!$E$67<6.5,I118*(1-'AVOID NEW'!$E$67),I118-6.5),"NA") -> 33.7548 | K118: 31.29 | L118: =IF(OR('Input - Capacity Factors'!$C$3="Wind"),IF(K118*'AVOID NEW'!$E$67<6.5,K118*(1-'AVOID NEW'!$E$67),K118-6.5),"NA") -> 28.7868 | N118: 27.13 | O118: =IF(OR('Input - Capacity Factors'!$C$3="Wind"),IF(N118*'AVOID NEW'!$E$67<6.5,N118*(1-'AVOID NEW'!$E$67),N118-6.5),"NA") -> 24.9596 | P118: 28.53 | Q118: =IF(OR('Input - Capacity Factors'!$C$3="Wind"),IF(P118*'AVOID NEW'!$E$67<6.5,P118*(1-'AVOID NEW'!$E$67),P118-6.5),"NA") -> 26.2476 | R118: 24.33 | S118: =IF(OR('Input - Capacity Factors'!$C$3="Wind"),IF(R118*'AVOID NEW'!$E$67<6.5,R118*(1-'AVOID NEW'!$E$67),R118-6.5),"NA") -> 22.3836 | V118: =ROUND((+$C118),2) -> 32.3 | W118: =IF(OR('Input - Capacity Factors'!$C$3="Wind"),IF(V118*'AVOID NEW'!$E$67<6.5,V118*(1-'AVOID NEW'!$E$67),V118-6.5),"NA") -> 29.716 | X118: =ROUND((+$D118),2) -> 33.97 | Y118: =IF(OR('Input - Capacity Factors'!$C$3="Wind"),IF(X118*'AVOID NEW'!$E$67<6.5,X118*(1-'AVOID NEW'!$E$67),X118-6.5),"NA") -> 31.2524 | Z118: =ROUND((+$E118),2) -> 28.97 | AA118: =IF(OR('Input - Capacity Factors'!$C$3="Wind"),IF(Z118*'AVOID NEW'!$E$67<6.5,Z118*(1-'AVOID NEW'!$E$67),Z118-6.5),"NA") -> 26.6524
B119: 3 | C119: ='AVOID NEW'!AQ11 -> 32.40668033 | D119: 34.07668033 | E119: 29.07668033 | G119: 35 | H119: =IF(OR('Input - Capacity Factors'!$C$3="Wind"),IF(G119*'AVOID NEW'!$E$67<6.5,G119*(1-'AVOID NEW'!$E$67),G119-6.5),"NA") -> 32.2 | I119: 36.8 | J119: =IF(OR('Input - Capacity Factors'!$C$3="Wind"),IF(I119*'AVOID NEW'!$E$67<6.5,I119*(1-'AVOID NEW'!$E$67),I119-6.5),"NA") -> 33.856 | K119: 31.4 | L119: =IF(OR('Input - Capacity Factors'!$C$3="Wind"),IF(K119*'AVOID NEW'!$E$67<6.5,K119*(1-'AVOID NEW'!$E$67),K119-6.5),"NA") -> 28.888 | N119: 27.22 | O119: =IF(OR('Input - Capacity Factors'!$C$3="Wind"),IF(N119*'AVOID NEW'!$E$67<6.5,N119*(1-'AVOID NEW'!$E$67),N119-6.5),"NA") -> 25.0424 | P119: 28.62 | Q119: =IF(OR('Input - Capacity Factors'!$C$3="Wind"),IF(P119*'AVOID NEW'!$E$67<6.5,P119*(1-'AVOID NEW'!$E$67),P119-6.5),"NA") -> 26.3304 | R119: 24.42 | S119: =IF(OR('Input - Capacity Factors'!$C$3="Wind"),IF(R119*'AVOID NEW'!$E$67<6.5,R119*(1-'AVOID NEW'!$E$67),R119-6.5),"NA") -> 22.4664 | V119: 32.41 | W119: =IF(OR('Input - Capacity Factors'!$C$3="Wind"),IF(V119*'AVOID NEW'!$E$67<6.5,V119*(1-'AVOID NEW'!$E$67),V119-6.5),"NA") -> 29.8172 | X119: 34.08 | Y119: =IF(OR('Input - Capacity Factors'!$C$3="Wind"),IF(X119*'AVOID NEW'!$E$67<6.5,X119*(1-'AVOID NEW'!$E$67),X119-6.5),"NA") -> 31.3536 | Z119: 29.08 | AA119: =IF(OR('Input - Capacity Factors'!$C$3="Wind"),IF(Z119*'AVOID NEW'!$E$67<6.5,Z119*(1-'AVOID NEW'!$E$67),Z119-6.5),"NA") -> 26.7536
B120: 4 | C120: ='AVOID NEW'!AQ12 -> 32.68998637 | D120: 34.35998637 | E120: 29.35998637 | G120: 35.31 | H120: =IF(OR('Input - Capacity Factors'!$C$3="Wind"),IF(G120*'AVOID NEW'!$E$67<6.5,G120*(1-'AVOID NEW'!$E$67),G120-6.5),"NA") -> 32.4852 | I120: 37.11 | J120: =IF(OR('Input - Capacity Factors'!$C$3="Wind"),IF(I120*'AVOID NEW'!$E$67<6.5,I120*(1-'AVOID NEW'!$E$67),I120-6.5),"NA") -> 34.1412 | K120: 31.71 | L120: =IF(OR('Input - Capacity Factors'!$C$3="Wind"),IF(K120*'AVOID NEW'!$E$67<6.5,K120*(1-'AVOID NEW'!$E$67),K120-6.5),"NA") -> 29.1732 | N120: 27.46 | O120: =IF(OR('Input - Capacity Factors'!$C$3="Wind"),IF(N120*'AVOID NEW'!$E$67<6.5,N120*(1-'AVOID NEW'!$E$67),N120-6.5),"NA") -> 25.2632 | P120: 28.86 | Q120: =IF(OR('Input - Capacity Factors'!$C$3="Wind"),IF(P120*'AVOID NEW'!$E$67<6.5,P120*(1-'AVOID NEW'!$E$67),P120-6.5),"NA") -> 26.5512 | R120: 24.66 | S120: =IF(OR('Input - Capacity Factors'!$C$3="Wind"),IF(R120*'AVOID NEW'!$E$67<6.5,R120*(1-'AVOID NEW'!$E$67),R120-6.5),"NA") -> 22.6872 | V120: 32.69 | W120: =IF(OR('Input - Capacity Factors'!$C$3="Wind"),IF(V120*'AVOID NEW'!$E$67<6.5,V120*(1-'AVOID NEW'!$E$67),V120-6.5),"NA") -> 30.0748 | X120: 34.36 | Y120: =IF(OR('Input - Capacity Factors'!$C$3="Wind"),IF(X120*'AVOID NEW'!$E$67<6.5,X120*(1-'AVOID NEW'!$E$67),X120-6.5),"NA") -> 31.6112 | Z120: 29.36 | AA120: =IF(OR('Input - Capacity Factors'!$C$3="Wind"),IF(Z120*'AVOID NEW'!$E$67<6.5,Z120*(1-'AVOID NEW'!$E$67),Z120-6.5),"NA") -> 27.0112
B121: 5 | C121: ='AVOID NEW'!AQ13 -> 33.1653307 | D121: 34.8353307 | E121: 29.8353307 | G121: 35.82 | H121: =IF(OR('Input - Capacity Factors'!$C$3="Wind"),IF(G121*'AVOID NEW'!$E$67<6.5,G121*(1-'AVOID NEW'!$E$67),G121-6.5),"NA") -> 32.9544 | I121: 37.62 | J121: =IF(OR('Input - Capacity Factors'!$C$3="Wind"),IF(I121*'AVOID NEW'!$E$67<6.5,I121*(1-'AVOID NEW'!$E$67),I121-6.5),"NA") -> 34.6104 | K121: 32.22 | L121: =IF(OR('Input - Capacity Factors'!$C$3="Wind"),IF(K121*'AVOID NEW'!$E$67<6.5,K121*(1-'AVOID NEW'!$E$67),K121-6.5),"NA") -> 29.6424 | N121: 27.86 | O121: =IF(OR('Input - Capacity Factors'!$C$3="Wind"),IF(N121*'AVOID NEW'!$E$67<6.5,N121*(1-'AVOID NEW'!$E$67),N121-6.5),"NA") -> 25.6312 | P121: 29.26 | Q121: =IF(OR('Input - Capacity Factors'!$C$3="Wind"),IF(P121*'AVOID NEW'!$E$67<6.5,P121*(1-'AVOID NEW'!$E$67),P121-6.5),"NA") -> 26.9192 | R121: 25.06 | S121: =IF(OR('Input - Capacity Factors'!$C$3="Wind"),IF(R121*'AVOID NEW'!$E$67<6.5,R121*(1-'AVOID NEW'!$E$67),R121-6.5),"NA") -> 23.0552 | V121: 33.17 | W121: =IF(OR('Input - Capacity Factors'!$C$3="Wind"),IF(V121*'AVOID NEW'!$E$67<6.5,V121*(1-'AVOID NEW'!$E$67),V121-6.5),"NA") -> 30.5164 | X121: 34.84 | Y121: =IF(OR('Input - Capacity Factors'!$C$3="Wind"),IF(X121*'AVOID NEW'!$E$67<6.5,X121*(1-'AVOID NEW'!$E$67),X121-6.5),"NA") -> 32.0528 | Z121: 29.84 | AA121: =IF(OR('Input - Capacity Factors'!$C$3="Wind"),IF(Z121*'AVOID NEW'!$E$67<6.5,Z121*(1-'AVOID NEW'!$E$67),Z121-6.5),"NA") -> 27.4528
B122: 6 | C122: ='AVOID NEW'!AQ14 -> 33.79415665 | D122: 35.46415665 | E122: 30.46415665 | G122: 36.5 | H122: =IF(OR('Input - Capacity Factors'!$C$3="Wind"),IF(G122*'AVOID NEW'!$E$67<6.5,G122*(1-'AVOID NEW'!$E$67),G122-6.5),"NA") -> 33.58 | I122: 38.3 | J122: =IF(OR('Input - Capacity Factors'!$C$3="Wind"),IF(I122*'AVOID NEW'!$E$67<6.5,I122*(1-'AVOID NEW'!$E$67),I122-6.5),"NA") -> 35.236 | K122: 32.9 | L122: =IF(OR('Input - Capacity Factors'!$C$3="Wind"),IF(K122*'AVOID NEW'!$E$67<6.5,K122*(1-'AVOID NEW'!$E$67),K122-6.5),"NA") -> 30.268 | N122: 28.39 | O122: =IF(OR('Input - Capacity Factors'!$C$3="Wind"),IF(N122*'AVOID NEW'!$E$67<6.5,N122*(1-'AVOID NEW'!$E$67),N122-6.5),"NA") -> 26.1188 | P122: 29.79 | Q122: =IF(OR('Input - Capacity Factors'!$C$3="Wind"),IF(P122*'AVOID NEW'!$E$67<6.5,P122*(1-'AVOID NEW'!$E$67),P122-6.5),"NA") -> 27.4068 | R122: 25.59 | S122: =IF(OR('Input - Capacity Factors'!$C$3="Wind"),IF(R122*'AVOID NEW'!$E$67<6.5,R122*(1-'AVOID NEW'!$E$67),R122-6.5),"NA") -> 23.5428 | V122: 33.79 | W122: =IF(OR('Input - Capacity Factors'!$C$3="Wind"),IF(V122*'AVOID NEW'!$E$67<6.5,V122*(1-'AVOID NEW'!$E$67),V122-6.5),"NA") -> 31.0868 | X122: 35.46 | Y122: =IF(OR('Input - Capacity Factors'!$C$3="Wind"),IF(X122*'AVOID NEW'!$E$67<6.5,X122*(1-'AVOID NEW'!$E$67),X122-6.5),"NA") -> 32.6232 | Z122: 30.46 | AA122: =IF(OR('Input - Capacity Factors'!$C$3="Wind"),IF(Z122*'AVOID NEW'!$E$67<6.5,Z122*(1-'AVOID NEW'!$E$67),Z122-6.5),"NA") -> 28.0232
B123: 7 | C123: ='AVOID NEW'!AQ15 -> 34.52680471 | D123: 36.19680471 | E123: 31.19680471 | G123: 37.29 | H123: =IF(OR('Input - Capacity Factors'!$C$3="Wind"),IF(G123*'AVOID NEW'!$E$67<6.5,G123*(1-'AVOID NEW'!$E$67),G123-6.5),"NA") -> 34.3068 | I123: 39.09 | J123: =IF(OR('Input - Capacity Factors'!$C$3="Wind"),IF(I123*'AVOID NEW'!$E$67<6.5,I123*(1-'AVOID NEW'!$E$67),I123-6.5),"NA") -> 35.9628 | K123: 33.69 | L123: =IF(OR('Input - Capacity Factors'!$C$3="Wind"),IF(K123*'AVOID NEW'!$E$67<6.5,K123*(1-'AVOID NEW'!$E$67),K123-6.5),"NA") -> 30.9948 | N123: 29 | O123: =IF(OR('Input - Capacity Factors'!$C$3="Wind"),IF(N123*'AVOID NEW'!$E$67<6.5,N123*(1-'AVOID NEW'!$E$67),N123-6.5),"NA") -> 26.68 | P123: 30.41 | Q123: =IF(OR('Input - Capacity Factors'!$C$3="Wind"),IF(P123*'AVOID NEW'!$E$67<6.5,P123*(1-'AVOID NEW'!$E$67),P123-6.5),"NA") -> 27.9772 | R123: 26.21 | S123: =IF(OR('Input - Capacity Factors'!$C$3="Wind"),IF(R123*'AVOID NEW'!$E$67<6.5,R123*(1-'AVOID NEW'!$E$67),R123-6.5),"NA") -> 24.1132 | V123: 34.53 | W123: =IF(OR('Input - Capacity Factors'!$C$3="Wind"),IF(V123*'AVOID NEW'!$E$67<6.5,V123*(1-'AVOID NEW'!$E$67),V123-6.5),"NA") -> 31.7676 | X123: 36.2 | Y123: =IF(OR('Input - Capacity Factors'!$C$3="Wind"),IF(X123*'AVOID NEW'!$E$67<6.5,X123*(1-'AVOID NEW'!$E$67),X123-6.5),"NA") -> 33.304 | Z123: 31.2 | AA123: =IF(OR('Input - Capacity Factors'!$C$3="Wind"),IF(Z123*'AVOID NEW'!$E$67<6.5,Z123*(1-'AVOID NEW'!$E$67),Z123-6.5),"NA") -> 28.704
B124: 8 | C124: ='AVOID NEW'!AQ16 -> 35.32368485 | D124: 36.99368485 | E124: 31.99368485 | G124: 38.15 | H124: =IF(OR('Input - Capacity Factors'!$C$3="Wind"),IF(G124*'AVOID NEW'!$E$67<6.5,G124*(1-'AVOID NEW'!$E$67),G124-6.5),"NA") -> 35.098 | I124: 39.95 | J124: =IF(OR('Input - Capacity Factors'!$C$3="Wind"),IF(I124*'AVOID NEW'!$E$67<6.5,I124*(1-'AVOID NEW'!$E$67),I124-6.5),"NA") -> 36.754 | K124: 34.55 | L124: =IF(OR('Input - Capacity Factors'!$C$3="Wind"),IF(K124*'AVOID NEW'!$E$67<6.5,K124*(1-'AVOID NEW'!$E$67),K124-6.5),"NA") -> 31.786 | N124: 29.67 | O124: =IF(OR('Input - Capacity Factors'!$C$3="Wind"),IF(N124*'AVOID NEW'!$E$67<6.5,N124*(1-'AVOID NEW'!$E$67),N124-6.5),"NA") -> 27.2964 | P124: 31.07 | Q124: =IF(OR('Input - Capacity Factors'!$C$3="Wind"),IF(P124*'AVOID NEW'!$E$67<6.5,P124*(1-'AVOID NEW'!$E$67),P124-6.5),"NA") -> 28.5844 | R124: 26.87 | S124: =IF(OR('Input - Capacity Factors'!$C$3="Wind"),IF(R124*'AVOID NEW'!$E$67<6.5,R124*(1-'AVOID NEW'!$E$67),R124-6.5),"NA") -> 24.7204 | V124: 35.32 | W124: =IF(OR('Input - Capacity Factors'!$C$3="Wind"),IF(V124*'AVOID NEW'!$E$67<6.5,V124*(1-'AVOID NEW'!$E$67),V124-6.5),"NA") -> 32.4944 | X124: 36.99 | Y124: =IF(OR('Input - Capacity Factors'!$C$3="Wind"),IF(X124*'AVOID NEW'!$E$67<6.5,X124*(1-'AVOID NEW'!$E$67),X124-6.5),"NA") -> 34.0308 | Z124: 31.99 | AA124: =IF(OR('Input - Capacity Factors'!$C$3="Wind"),IF(Z124*'AVOID NEW'!$E$67<6.5,Z124*(1-'AVOID NEW'!$E$67),Z124-6.5),"NA") -> 29.4308
B125: 9 | C125: ='AVOID NEW'!AQ17 -> 36.15402576 | D125: 37.82402576 | E125: 32.82402576 | G125: 39.05 | H125: =IF(OR('Input - Capacity Factors'!$C$3="Wind"),IF(G125*'AVOID NEW'!$E$67<6.5,G125*(1-'AVOID NEW'!$E$67),G125-6.5),"NA") -> 35.926 | I125: 40.85 | J125: =IF(OR('Input - Capacity Factors'!$C$3="Wind"),IF(I125*'AVOID NEW'!$E$67<6.5,I125*(1-'AVOID NEW'!$E$67),I125-6.5),"NA") -> 37.582 | K125: 35.45 | L125: =IF(OR('Input - Capacity Factors'!$C$3="Wind"),IF(K125*'AVOID NEW'!$E$67<6.5,K125*(1-'AVOID NEW'!$E$67),K125-6.5),"NA") -> 32.614 | N125: 30.37 | O125: =IF(OR('Input - Capacity Factors'!$C$3="Wind"),IF(N125*'AVOID NEW'!$E$67<6.5,N125*(1-'AVOID NEW'!$E$67),N125-6.5),"NA") -> 27.9404 | P125: 31.77 | Q125: =IF(OR('Input - Capacity Factors'!$C$3="Wind"),IF(P125*'AVOID NEW'!$E$67<6.5,P125*(1-'AVOID NEW'!$E$67),P125-6.5),"NA") -> 29.2284 | R125: 27.57 | S125: =IF(OR('Input - Capacity Factors'!$C$3="Wind"),IF(R125*'AVOID NEW'!$E$67<6.5,R125*(1-'AVOID NEW'!$E$67),R125-6.5),"NA") -> 25.3644 | V125: 36.15 | W125: =IF(OR('Input - Capacity Factors'!$C$3="Wind"),IF(V125*'AVOID NEW'!$E$67<6.5,V125*(1-'AVOID NEW'!$E$67),V125-6.5),"NA") -> 33.258 | X125: 37.82 | Y125: =IF(OR('Input - Capacity Factors'!$C$3="Wind"),IF(X125*'AVOID NEW'!$E$67<6.5,X125*(1-'AVOID NEW'!$E$67),X125-6.5),"NA") -> 34.7944 | Z125: 32.82 | AA125: =IF(OR('Input - Capacity Factors'!$C$3="Wind"),IF(Z125*'AVOID NEW'!$E$67<6.5,Z125*(1-'AVOID NEW'!$E$67),Z125-6.5),"NA") -> 30.1944
B126: 10 | C126: ='AVOID NEW'!AQ18 -> 36.91866268 | D126: 38.58866268 | E126: 33.58866268 | G126: 39.87 | H126: =IF(OR('Input - Capacity Factors'!$C$3="Wind"),IF(G126*'AVOID NEW'!$E$67<6.5,G126*(1-'AVOID NEW'!$E$67),G126-6.5),"NA") -> 36.6804 | I126: 41.68 | J126: =IF(OR('Input - Capacity Factors'!$C$3="Wind"),IF(I126*'AVOID NEW'!$E$67<6.5,I126*(1-'AVOID NEW'!$E$67),I126-6.5),"NA") -> 38.3456 | K126: 36.28 | L126: =IF(OR('Input - Capacity Factors'!$C$3="Wind"),IF(K126*'AVOID NEW'!$E$67<6.5,K126*(1-'AVOID NEW'!$E$67),K126-6.5),"NA") -> 33.3776 | N126: 31.01 | O126: =IF(OR('Input - Capacity Factors'!$C$3="Wind"),IF(N126*'AVOID NEW'!$E$67<6.5,N126*(1-'AVOID NEW'!$E$67),N126-6.5),"NA") -> 28.5292 | P126: 32.41 | Q126: =IF(OR('Input - Capacity Factors'!$C$3="Wind"),IF(P126*'AVOID NEW'!$E$67<6.5,P126*(1-'AVOID NEW'!$E$67),P126-6.5),"NA") -> 29.8172 | R126: 28.21 | S126: =IF(OR('Input - Capacity Factors'!$C$3="Wind"),IF(R126*'AVOID NEW'!$E$67<6.5,R126*(1-'AVOID NEW'!$E$67),R126-6.5),"NA") -> 25.9532 | V126: 36.92 | W126: =IF(OR('Input - Capacity Factors'!$C$3="Wind"),IF(V126*'AVOID NEW'!$E$67<6.5,V126*(1-'AVOID NEW'!$E$67),V126-6.5),"NA") -> 33.9664 | X126: 38.59 | Y126: =IF(OR('Input - Capacity Factors'!$C$3="Wind"),IF(X126*'AVOID NEW'!$E$67<6.5,X126*(1-'AVOID NEW'!$E$67),X126-6.5),"NA") -> 35.5028 | Z126: 33.59 | AA126: =IF(OR('Input - Capacity Factors'!$C$3="Wind"),IF(Z126*'AVOID NEW'!$E$67<6.5,Z126*(1-'AVOID NEW'!$E$67),Z126-6.5),"NA") -> 30.9028
B127: 11 | C127: ='AVOID NEW'!AQ19 -> 37.62552061 | D127: 39.29552061 | E127: 34.29552061 | G127: 40.64 | H127: =IF(OR('Input - Capacity Factors'!$C$3="Wind"),IF(G127*'AVOID NEW'!$E$67<6.5,G127*(1-'AVOID NEW'!$E$67),G127-6.5),"NA") -> 37.3888 | I127: 42.44 | J127: =IF(OR('Input - Capacity Factors'!$C$3="Wind"),IF(I127*'AVOID NEW'!$E$67<6.5,I127*(1-'AVOID NEW'!$E$67),I127-6.5),"NA") -> 39.0448 | K127: 37.04 | L127: =IF(OR('Input - Capacity Factors'!$C$3="Wind"),IF(K127*'AVOID NEW'!$E$67<6.5,K127*(1-'AVOID NEW'!$E$67),K127-6.5),"NA") -> 34.0768 | N127: 31.61 | O127: =IF(OR('Input - Capacity Factors'!$C$3="Wind"),IF(N127*'AVOID NEW'!$E$67<6.5,N127*(1-'AVOID NEW'!$E$67),N127-6.5),"NA") -> 29.0812 | P127: 33.01 | Q127: =IF(OR('Input - Capacity Factors'!$C$3="Wind"),IF(P127*'AVOID NEW'!$E$67<6.5,P127*(1-'AVOID NEW'!$E$67),P127-6.5),"NA") -> 30.3692 | R127: 28.81 | S127: =IF(OR('Input - Capacity Factors'!$C$3="Wind"),IF(R127*'AVOID NEW'!$E$67<6.5,R127*(1-'AVOID NEW'!$E$67),R127-6.5),"NA") -> 26.5052 | V127: 37.63 | W127: =IF(OR('Input - Capacity Factors'!$C$3="Wind"),IF(V127*'AVOID NEW'!$E$67<6.5,V127*(1-'AVOID NEW'!$E$67),V127-6.5),"NA") -> 34.6196 | X127: 39.3 | Y127: =IF(OR('Input - Capacity Factors'!$C$3="Wind"),IF(X127*'AVOID NEW'!$E$67<6.5,X127*(1-'AVOID NEW'!$E$67),X127-6.5),"NA") -> 36.156 | Z127: 34.3 | AA127: =IF(OR('Input - Capacity Factors'!$C$3="Wind"),IF(Z127*'AVOID NEW'!$E$67<6.5,Z127*(1-'AVOID NEW'!$E$67),Z127-6.5),"NA") -> 31.556
B128: 12 | C128: ='AVOID NEW'!AQ20 -> 38.37458999 | D128: 40.04458999 | E128: 35.04458999 | G128: 41.44 | H128: =IF(OR('Input - Capacity Factors'!$C$3="Wind"),IF(G128*'AVOID NEW'!$E$67<6.5,G128*(1-'AVOID NEW'!$E$67),G128-6.5),"NA") -> 38.1248 | I128: 43.25 | J128: =IF(OR('Input - Capacity Factors'!$C$3="Wind"),IF(I128*'AVOID NEW'!$E$67<6.5,I128*(1-'AVOID NEW'!$E$67),I128-6.5),"NA") -> 39.79 | K128: 37.85 | L128: =IF(OR('Input - Capacity Factors'!$C$3="Wind"),IF(K128*'AVOID NEW'!$E$67<6.5,K128*(1-'AVOID NEW'!$E$67),K128-6.5),"NA") -> 34.822 | N128: 32.23 | O128: =IF(OR('Input - Capacity Factors'!$C$3="Wind"),IF(N128*'AVOID NEW'!$E$67<6.5,N128*(1-'AVOID NEW'!$E$67),N128-6.5),"NA") -> 29.6516 | P128: 33.64 | Q128: =IF(OR('Input - Capacity Factors'!$C$3="Wind"),IF(P128*'AVOID NEW'!$E$67<6.5,P128*(1-'AVOID NEW'!$E$67),P128-6.5),"NA") -> 30.9488 | R128: 29.44 | S128: =IF(OR('Input - Capacity Factors'!$C$3="Wind"),IF(R128*'AVOID NEW'!$E$67<6.5,R128*(1-'AVOID NEW'!$E$67),R128-6.5),"NA") -> 27.0848 | V128: 38.37 | W128: =IF(OR('Input - Capacity Factors'!$C$3="Wind"),IF(V128*'AVOID NEW'!$E$67<6.5,V128*(1-'AVOID NEW'!$E$67),V128-6.5),"NA") -> 35.3004 | X128: 40.04 | Y128: =IF(OR('Input - Capacity Factors'!$C$3="Wind"),IF(X128*'AVOID NEW'!$E$67<6.5,X128*(1-'AVOID NEW'!$E$67),X128-6.5),"NA") -> 36.8368 | Z128: 35.04 | AA128: =IF(OR('Input - Capacity Factors'!$C$3="Wind"),IF(Z128*'AVOID NEW'!$E$67<6.5,Z128*(1-'AVOID NEW'!$E$67),Z128-6.5),"NA") -> 32.2368
B129: 13 | C129: ='AVOID NEW'!AQ21 -> 39.01557548 | D129: 40.68557548 | E129: 35.68557548 | G129: 42.14 | H129: =IF(OR('Input - Capacity Factors'!$C$3="Wind"),IF(G129*'AVOID NEW'!$E$67<6.5,G129*(1-'AVOID NEW'!$E$67),G129-6.5),"NA") -> 38.7688 | I129: 43.94 | J129: =IF(OR('Input - Capacity Factors'!$C$3="Wind"),IF(I129*'AVOID NEW'!$E$67<6.5,I129*(1-'AVOID NEW'!$E$67),I129-6.5),"NA") -> 40.4248 | K129: 38.54 | L129: =IF(OR('Input - Capacity Factors'!$C$3="Wind"),IF(K129*'AVOID NEW'!$E$67<6.5,K129*(1-'AVOID NEW'!$E$67),K129-6.5),"NA") -> 35.4568 | N129: 32.77 | O129: =IF(OR('Input - Capacity Factors'!$C$3="Wind"),IF(N129*'AVOID NEW'!$E$67<6.5,N129*(1-'AVOID NEW'!$E$67),N129-6.5),"NA") -> 30.1484 | P129: 34.18 | Q129: =IF(OR('Input - Capacity Factors'!$C$3="Wind"),IF(P129*'AVOID NEW'!$E$67<6.5,P129*(1-'AVOID NEW'!$E$67),P129-6.5),"NA") -> 31.4456 | R129: 29.98 | S129: =IF(OR('Input - Capacity Factors'!$C$3="Wind"),IF(R129*'AVOID NEW'!$E$67<6.5,R129*(1-'AVOID NEW'!$E$67),R129-6.5),"NA") -> 27.5816 | V129: 39.02 | W129: =IF(OR('Input - Capacity Factors'!$C$3="Wind"),IF(V129*'AVOID NEW'!$E$67<6.5,V129*(1-'AVOID NEW'!$E$67),V129-6.5),"NA") -> 35.8984 | X129: 40.69 | Y129: =IF(OR('Input - Capacity Factors'!$C$3="Wind"),IF(X129*'AVOID NEW'!$E$67<6.5,X129*(1-'AVOID NEW'!$E$67),X129-6.5),"NA") -> 37.4348 | Z129: 35.69 | AA129: =IF(OR('Input - Capacity Factors'!$C$3="Wind"),IF(Z129*'AVOID NEW'!$E$67<6.5,Z129*(1-'AVOID NEW'!$E$67),Z129-6.5),"NA") -> 32.8348
B130: 14 | C130: ='AVOID NEW'!AQ22 -> 39.70843721 | D130: 41.37843721 | E130: 36.37843721 | G130: 42.89 | H130: =IF(OR('Input - Capacity Factors'!$C$3="Wind"),IF(G130*'AVOID NEW'!$E$67<6.5,G130*(1-'AVOID NEW'!$E$67),G130-6.5),"NA") -> 39.4588 | I130: 44.69 | J130: =IF(OR('Input - Capacity Factors'!$C$3="Wind"),IF(I130*'AVOID NEW'!$E$67<6.5,I130*(1-'AVOID NEW'!$E$67),I130-6.5),"NA") -> 41.1148 | K130: 39.29 | L130: =IF(OR('Input - Capacity Factors'!$C$3="Wind"),IF(K130*'AVOID NEW'!$E$67<6.5,K130*(1-'AVOID NEW'!$E$67),K130-6.5),"NA") -> 36.1468 | N130: 33.36 | O130: =IF(OR('Input - Capacity Factors'!$C$3="Wind"),IF(N130*'AVOID NEW'!$E$67<6.5,N130*(1-'AVOID NEW'!$E$67),N130-6.5),"NA") -> 30.6912 | P130: 34.76 | Q130: =IF(OR('Input - Capacity Factors'!$C$3="Wind"),IF(P130*'AVOID NEW'!$E$67<6.5,P130*(1-'AVOID NEW'!$E$67),P130-6.5),"NA") -> 31.9792 | R130: 30.56 | S130: =IF(OR('Input - Capacity Factors'!$C$3="Wind"),IF(R130*'AVOID NEW'!$E$67<6.5,R130*(1-'AVOID NEW'!$E$67),R130-6.5),"NA") -> 28.1152 | V130: 39.71 | W130: =IF(OR('Input - Capacity Factors'!$C$3="Wind"),IF(V130*'AVOID NEW'!$E$67<6.5,V130*(1-'AVOID NEW'!$E$67),V130-6.5),"NA") -> 36.5332 | X130: 41.38 | Y130: =IF(OR('Input - Capacity Factors'!$C$3="Wind"),IF(X130*'AVOID NEW'!$E$67<6.5,X130*(1-'AVOID NEW'!$E$67),X130-6.5),"NA") -> 38.0696 | Z130: 36.38 | AA130: =IF(OR('Input - Capacity Factors'!$C$3="Wind"),IF(Z130*'AVOID NEW'!$E$67<6.5,Z130*(1-'AVOID NEW'!$E$67),Z130-6.5),"NA") -> 33.4696
B131: 15 | C131: ='AVOID NEW'!AQ23 -> 40.38319152 | D131: 42.05319152 | E131: 37.05319152 | G131: 43.61 | H131: =IF(OR('Input - Capacity Factors'!$C$3="Wind"),IF(G131*'AVOID NEW'!$E$67<6.5,G131*(1-'AVOID NEW'!$E$67),G131-6.5),"NA") -> 40.1212 | I131: 45.42 | J131: =IF(OR('Input - Capacity Factors'!$C$3="Wind"),IF(I131*'AVOID NEW'!$E$67<6.5,I131*(1-'AVOID NEW'!$E$67),I131-6.5),"NA") -> 41.7864 | K131: 40.02 | L131: =IF(OR('Input - Capacity Factors'!$C$3="Wind"),IF(K131*'AVOID NEW'!$E$67<6.5,K131*(1-'AVOID NEW'!$E$67),K131-6.5),"NA") -> 36.8184 | N131: 33.92 | O131: =IF(OR('Input - Capacity Factors'!$C$3="Wind"),IF(N131*'AVOID NEW'!$E$67<6.5,N131*(1-'AVOID NEW'!$E$67),N131-6.5),"NA") -> 31.2064 | P131: 35.32 | Q131: =IF(OR('Input - Capacity Factors'!$C$3="Wind"),IF(P131*'AVOID NEW'!$E$67<6.5,P131*(1-'AVOID NEW'!$E$67),P131-6.5),"NA") -> 32.4944 | R131: 31.12 | S131: =IF(OR('Input - Capacity Factors'!$C$3="Wind"),IF(R131*'AVOID NEW'!$E$67<6.5,R131*(1-'AVOID NEW'!$E$67),R131-6.5),"NA") -> 28.6304 | V131: 40.38 | W131: =IF(OR('Input - Capacity Factors'!$C$3="Wind"),IF(V131*'AVOID NEW'!$E$67<6.5,V131*(1-'AVOID NEW'!$E$67),V131-6.5),"NA") -> 37.1496 | X131: 42.05 | Y131: =IF(OR('Input - Capacity Factors'!$C$3="Wind"),IF(X131*'AVOID NEW'!$E$67<6.5,X131*(1-'AVOID NEW'!$E$67),X131-6.5),"NA") -> 38.686 | Z131: 37.05 | AA131: =IF(OR('Input - Capacity Factors'!$C$3="Wind"),IF(Z131*'AVOID NEW'!$E$67<6.5,Z131*(1-'AVOID NEW'!$E$67),Z131-6.5),"NA") -> 34.086
B132: 16 | C132: ='AVOID NEW'!AQ24 -> 41.0122894 | D132: 42.6822894 | E132: 37.6822894 | G132: 44.29 | H132: =IF(OR('Input - Capacity Factors'!$C$3="Wind"),IF(G132*'AVOID NEW'!$E$67<6.5,G132*(1-'AVOID NEW'!$E$67),G132-6.5),"NA") -> 40.7468 | I132: 46.1 | J132: =IF(OR('Input - Capacity Factors'!$C$3="Wind"),IF(I132*'AVOID NEW'!$E$67<6.5,I132*(1-'AVOID NEW'!$E$67),I132-6.5),"NA") -> 42.412 | K132: 40.7 | L132: =IF(OR('Input - Capacity Factors'!$C$3="Wind"),IF(K132*'AVOID NEW'!$E$67<6.5,K132*(1-'AVOID NEW'!$E$67),K132-6.5),"NA") -> 37.444 | N132: 34.45 | O132: =IF(OR('Input - Capacity Factors'!$C$3="Wind"),IF(N132*'AVOID NEW'!$E$67<6.5,N132*(1-'AVOID NEW'!$E$67),N132-6.5),"NA") -> 31.694 | P132: 35.85 | Q132: =IF(OR('Input - Capacity Factors'!$C$3="Wind"),IF(P132*'AVOID NEW'!$E$67<6.5,P132*(1-'AVOID NEW'!$E$67),P132-6.5),"NA") -> 32.982 | R132: 31.65 | S132: =IF(OR('Input - Capacity Factors'!$C$3="Wind"),IF(R132*'AVOID NEW'!$E$67<6.5,R132*(1-'AVOID NEW'!$E$67),R132-6.5),"NA") -> 29.118 | V132: 41.01 | W132: =IF(OR('Input - Capacity Factors'!$C$3="Wind"),IF(V132*'AVOID NEW'!$E$67<6.5,V132*(1-'AVOID NEW'!$E$67),V132-6.5),"NA") -> 37.7292 | X132: 42.68 | Y132: =IF(OR('Input - Capacity Factors'!$C$3="Wind"),IF(X132*'AVOID NEW'!$E$67<6.5,X132*(1-'AVOID NEW'!$E$67),X132-6.5),"NA") -> 39.2656 | Z132: 37.68 | AA132: =IF(OR('Input - Capacity Factors'!$C$3="Wind"),IF(Z132*'AVOID NEW'!$E$67<6.5,Z132*(1-'AVOID NEW'!$E$67),Z132-6.5),"NA") -> 34.6656
B133: 17 | C133: ='AVOID NEW'!AQ25 -> 41.58356357 | D133: 43.25356357 | E133: 38.25356357 | G133: 44.91 | H133: =IF(OR('Input - Capacity Factors'!$C$3="Wind"),IF(G133*'AVOID NEW'!$E$67<6.5,G133*(1-'AVOID NEW'!$E$67),G133-6.5),"NA") -> 41.3172 | I133: 46.71 | J133: =IF(OR('Input - Capacity Factors'!$C$3="Wind"),IF(I133*'AVOID NEW'!$E$67<6.5,I133*(1-'AVOID NEW'!$E$67),I133-6.5),"NA") -> 42.9732 | K133: 41.31 | L133: =IF(OR('Input - Capacity Factors'!$C$3="Wind"),IF(K133*'AVOID NEW'!$E$67<6.5,K133*(1-'AVOID NEW'!$E$67),K133-6.5),"NA") -> 38.0052 | N133: 34.93 | O133: =IF(OR('Input - Capacity Factors'!$C$3="Wind"),IF(N133*'AVOID NEW'!$E$67<6.5,N133*(1-'AVOID NEW'!$E$67),N133-6.5),"NA") -> 32.1356 | P133: 36.33 | Q133: =IF(OR('Input - Capacity Factors'!$C$3="Wind"),IF(P133*'AVOID NEW'!$E$67<6.5,P133*(1-'AVOID NEW'!$E$67),P133-6.5),"NA") -> 33.4236 | R133: 32.13 | S133: =IF(OR('Input - Capacity Factors'!$C$3="Wind"),IF(R133*'AVOID NEW'!$E$67<6.5,R133*(1-'AVOID NEW'!$E$67),R133-6.5),"NA") -> 29.5596 | V133: 41.58 | W133: =IF(OR('Input - Capacity Factors'!$C$3="Wind"),IF(V133*'AVOID NEW'!$E$67<6.5,V133*(1-'AVOID NEW'!$E$67),V133-6.5),"NA") -> 38.2536 | X133: 43.25 | Y133: =IF(OR('Input - Capacity Factors'!$C$3="Wind"),IF(X133*'AVOID NEW'!$E$67<6.5,X133*(1-'AVOID NEW'!$E$67),X133-6.5),"NA") -> 39.79 | Z133: 38.25 | AA133: =IF(OR('Input - Capacity Factors'!$C$3="Wind"),IF(Z133*'AVOID NEW'!$E$67<6.5,Z133*(1-'AVOID NEW'!$E$67),Z133-6.5),"NA") -> 35.19
B134: 18 | C134: ='AVOID NEW'!AQ26 -> 42.1143764 | D134: 43.7843764 | E134: 38.7843764 | G134: 45.48 | H134: =IF(OR('Input - Capacity Factors'!$C$3="Wind"),IF(G134*'AVOID NEW'!$E$67<6.5,G134*(1-'AVOID NEW'!$E$67),G134-6.5),"NA") -> 41.8416 | I134: 47.29 | J134: =IF(OR('Input - Capacity Factors'!$C$3="Wind"),IF(I134*'AVOID NEW'!$E$67<6.5,I134*(1-'AVOID NEW'!$E$67),I134-6.5),"NA") -> 43.5068 | K134: 41.89 | L134: =IF(OR('Input - Capacity Factors'!$C$3="Wind"),IF(K134*'AVOID NEW'!$E$67<6.5,K134*(1-'AVOID NEW'!$E$67),K134-6.5),"NA") -> 38.5388 | N134: 35.38 | O134: =IF(OR('Input - Capacity Factors'!$C$3="Wind"),IF(N134*'AVOID NEW'!$E$67<6.5,N134*(1-'AVOID NEW'!$E$67),N134-6.5),"NA") -> 32.5496 | P134: 36.78 | Q134: =IF(OR('Input - Capacity Factors'!$C$3="Wind"),IF(P134*'AVOID NEW'!$E$67<6.5,P134*(1-'AVOID NEW'!$E$67),P134-6.5),"NA") -> 33.8376 | R134: 32.58 | S134: =IF(OR('Input - Capacity Factors'!$C$3="Wind"),IF(R134*'AVOID NEW'!$E$67<6.5,R134*(1-'AVOID NEW'!$E$67),R134-6.5),"NA") -> 29.9736 | V134: 42.11 | W134: =IF(OR('Input - Capacity Factors'!$C$3="Wind"),IF(V134*'AVOID NEW'!$E$67<6.5,V134*(1-'AVOID NEW'!$E$67),V134-6.5),"NA") -> 38.7412 | X134: 43.78 | Y134: =IF(OR('Input - Capacity Factors'!$C$3="Wind"),IF(X134*'AVOID NEW'!$E$67<6.5,X134*(1-'AVOID NEW'!$E$67),X134-6.5),"NA") -> 40.2776 | Z134: 38.78 | AA134: =IF(OR('Input - Capacity Factors'!$C$3="Wind"),IF(Z134*'AVOID NEW'!$E$67<6.5,Z134*(1-'AVOID NEW'!$E$67),Z134-6.5),"NA") -> 35.6776
B135: 19 | C135: ='AVOID NEW'!AQ27 -> 42.61379742 | D135: 44.28379742 | E135: 39.28379742 | G135: 46.02 | H135: =IF(OR('Input - Capacity Factors'!$C$3="Wind"),IF(G135*'AVOID NEW'!$E$67<6.5,G135*(1-'AVOID NEW'!$E$67),G135-6.5),"NA") -> 42.3384 | I135: 47.83 | J135: =IF(OR('Input - Capacity Factors'!$C$3="Wind"),IF(I135*'AVOID NEW'!$E$67<6.5,I135*(1-'AVOID NEW'!$E$67),I135-6.5),"NA") -> 44.0036 | K135: 42.43 | L135: =IF(OR('Input - Capacity Factors'!$C$3="Wind"),IF(K135*'AVOID NEW'!$E$67<6.5,K135*(1-'AVOID NEW'!$E$67),K135-6.5),"NA") -> 39.0356 | N135: 35.8 | O135: =IF(OR('Input - Capacity Factors'!$C$3="Wind"),IF(N135*'AVOID NEW'!$E$67<6.5,N135*(1-'AVOID NEW'!$E$67),N135-6.5),"NA") -> 32.936 | P135: 37.2 | Q135: =IF(OR('Input - Capacity Factors'!$C$3="Wind"),IF(P135*'AVOID NEW'!$E$67<6.5,P135*(1-'AVOID NEW'!$E$67),P135-6.5),"NA") -> 34.224 | R135: 33 | S135: =IF(OR('Input - Capacity Factors'!$C$3="Wind"),IF(R135*'AVOID NEW'!$E$67<6.5,R135*(1-'AVOID NEW'!$E$67),R135-6.5),"NA") -> 30.36 | V135: 42.61 | W135: =IF(OR('Input - Capacity Factors'!$C$3="Wind"),IF(V135*'AVOID NEW'!$E$67<6.5,V135*(1-'AVOID NEW'!$E$67),V135-6.5),"NA") -> 39.2012 | X135: 44.28 | Y135: =IF(OR('Input - Capacity Factors'!$C$3="Wind"),IF(X135*'AVOID NEW'!$E$67<6.5,X135*(1-'AVOID NEW'!$E$67),X135-6.5),"NA") -> 40.7376 | Z135: 39.28 | AA135: =IF(OR('Input - Capacity Factors'!$C$3="Wind"),IF(Z135*'AVOID NEW'!$E$67<6.5,Z135*(1-'AVOID NEW'!$E$67),Z135-6.5),"NA") -> 36.1376
B136: 20 | C136: ='AVOID NEW'!AQ28 -> 43.08389442 | D136: 44.75389442 | E136: 39.75389442 | G136: 46.53 | H136: =IF(OR('Input - Capacity Factors'!$C$3="Wind"),IF(G136*'AVOID NEW'!$E$67<6.5,G136*(1-'AVOID NEW'!$E$67),G136-6.5),"NA") -> 42.8076 | I136: 48.33 | J136: =IF(OR('Input - Capacity Factors'!$C$3="Wind"),IF(I136*'AVOID NEW'!$E$67<6.5,I136*(1-'AVOID NEW'!$E$67),I136-6.5),"NA") -> 44.4636 | K136: 42.93 | L136: =IF(OR('Input - Capacity Factors'!$C$3="Wind"),IF(K136*'AVOID NEW'!$E$67<6.5,K136*(1-'AVOID NEW'!$E$67),K136-6.5),"NA") -> 39.4956 | N136: 36.19 | O136: =IF(OR('Input - Capacity Factors'!$C$3="Wind"),IF(N136*'AVOID NEW'!$E$67<6.5,N136*(1-'AVOID NEW'!$E$67),N136-6.5),"NA") -> 33.2948 | P136: 37.59 | Q136: =IF(OR('Input - Capacity Factors'!$C$3="Wind"),IF(P136*'AVOID NEW'!$E$67<6.5,P136*(1-'AVOID NEW'!$E$67),P136-6.5),"NA") -> 34.5828 | R136: 33.39 | S136: =IF(OR('Input - Capacity Factors'!$C$3="Wind"),IF(R136*'AVOID NEW'!$E$67<6.5,R136*(1-'AVOID NEW'!$E$67),R136-6.5),"NA") -> 30.7188 | V136: 43.08 | W136: =IF(OR('Input - Capacity Factors'!$C$3="Wind"),IF(V136*'AVOID NEW'!$E$67<6.5,V136*(1-'AVOID NEW'!$E$67),V136-6.5),"NA") -> 39.6336 | X136: 44.75 | Y136: =IF(OR('Input - Capacity Factors'!$C$3="Wind"),IF(X136*'AVOID NEW'!$E$67<6.5,X136*(1-'AVOID NEW'!$E$67),X136-6.5),"NA") -> 41.17 | Z136: 39.75 | AA136: =IF(OR('Input - Capacity Factors'!$C$3="Wind"),IF(Z136*'AVOID NEW'!$E$67<6.5,Z136*(1-'AVOID NEW'!$E$67),Z136-6.5),"NA") -> 36.57
B140: =$B$1 -> THESE RATES ARE NOT VALID
B141: LEVELIZED RATES
B142: ="PROJECT ON-LINE IN "& 'AVOID NEW'!$D$54+4 -> PROJECT ON-LINE IN 2028
B143: ="Rate Effective Date: "&'AVOID NEW'!$E$69 -> Rate Effective Date: XXXX, 2024
B144: ="Resource: "&'Input - Capacity Factors'!$C$3 -> Resource: Wind
C145: Levelized Price | G145: ="Season 1 Pricing ("&$D$7*100&"%)" -> Season 1 Pricing (108%) | N145: ="Season 2 Pricing ("&100*$D$8&"%)" -> Season 2 Pricing (84%) | V145: Non-Seasonalized Pricing
C146: Heavy and Light Load Hour Differential | D146: ='AVOID NEW'!$E$66 -> 5 | G146: Flat | I146: Heavy Load Hour | K146: Light Load Hour | N146: Flat | P146: Heavy Load Hour | R146: Light Load Hour | V146: Flat | X146: Heavy Load Hour | Z146: Light Load Hour
D147: =ROUND(D146/3,2) -> 1.67 | E147: =-ROUND((D146*2)/3,2) -> -3.33 | H147: Price less wind integration adjustment | J147: Price less wind integration adjustment | L147: Price less wind integration adjustment | O147: Price less wind integration adjustment | Q147: Price less wind integration adjustment | S147: Price less wind integration adjustment | W147: Price less wind integration adjustment | Y147: Price less wind integration adjustment | AA147: Price less wind integration adjustment
B148: Contract Length | C148: Flat | D148: Heavy Load Hour | E148: Light Load Hour | G148: Price | I148: Price | K148: Price | N148: Price | P148: Price | R148: Price | V148: Price | X148: Price | Z148: Price
B149: 1 | C149: ='AVOID NEW'!AR9 -> 32.25270398 | D149: =C149+D$83 -> 33.92270398 | E149: =C149+E$83 -> 28.92270398 | G149: =ROUND((+$C149*$D$7),2) -> 34.83 | H149: =IF(OR('Input - Capacity Factors'!$C$3="Wind"),IF(G149*'AVOID NEW'!$E$67<6.5,G149*(1-'AVOID NEW'!$E$67),G149-6.5),"NA") -> 32.0436 | I149: =ROUND((+$D149*$D$7),2) -> 36.64 | J149: =IF(OR('Input - Capacity Factors'!$C$3="Wind"),IF(I149*'AVOID NEW'!$E$67<6.5,I149*(1-'AVOID NEW'!$E$67),I149-6.5),"NA") -> 33.7088 | K149: =ROUND((+$E149*$D$7),2) -> 31.24 | L149: =IF(OR('Input - Capacity Factors'!$C$3="Wind"),IF(K149*'AVOID NEW'!$E$67<6.5,K149*(1-'AVOID NEW'!$E$67),K149-6.5),"NA") -> 28.7408 | N149: =ROUND((+$C149*$D$8),2) -> 27.09 | O149: =IF(OR('Input - Capacity Factors'!$C$3="Wind"),IF(N149*'AVOID NEW'!$E$67<6.5,N149*(1-'AVOID NEW'!$E$67),N149-6.5),"NA") -> 24.9228 | P149: =ROUND((+$D149*$D$8),2) -> 28.5 | Q149: =IF(OR('Input - Capacity Factors'!$C$3="Wind"),IF(P149*'AVOID NEW'!$E$67<6.5,P149*(1-'AVOID NEW'!$E$67),P149-6.5),"NA") -> 26.22 | R149: =ROUND((+$E149*$D$8),2) -> 24.3 | S149: =IF(OR('Input - Capacity Factors'!$C$3="Wind"),IF(R149*'AVOID NEW'!$E$67<6.5,R149*(1-'AVOID NEW'!$E$67),R149-6.5),"NA") -> 22.356 | V149: =ROUND((+$C149),2) -> 32.25 | W149: =IF(OR('Input - Capacity Factors'!$C$3="Wind"),IF(V149*'AVOID NEW'!$E$67<6.5,V149*(1-'AVOID NEW'!$E$67),V149-6.5),"NA") -> 29.67 | X149: =ROUND((+$D149),2) -> 33.92 | Y149: =IF(OR('Input - Capacity Factors'!$C$3="Wind"),IF(X149*'AVOID NEW'!$E$67<6.5,X149*(1-'AVOID NEW'!$E$67),X149-6.5),"NA") -> 31.2064 | Z149: =ROUND((+$E149),2) -> 28.92 | AA149: =IF(OR('Input - Capacity Factors'!$C$3="Wind"),IF(Z149*'AVOID NEW'!$E$67<6.5,Z149*(1-'AVOID NEW'!$E$67),Z149-6.5),"NA") -> 26.6064
B150: 2 | C150: ='AVOID NEW'!AR10 -> 32.44121853 | D150: 34.11121853 | E150: 29.11121853 | G150: 35.04 | H150: =IF(OR('Input - Capacity Factors'!$C$3="Wind"),IF(G150*'AVOID NEW'!$E$67<6.5,G150*(1-'AVOID NEW'!$E$67),G150-6.5),"NA") -> 32.2368 | I150: 36.84 | J150: =IF(OR('Input - Capacity Factors'!$C$3="Wind"),IF(I150*'AVOID NEW'!$E$67<6.5,I150*(1-'AVOID NEW'!$E$67),I150-6.5),"NA") -> 33.8928 | K150: 31.44 | L150: =IF(OR('Input - Capacity Factors'!$C$3="Wind"),IF(K150*'AVOID NEW'!$E$67<6.5,K150*(1-'AVOID NEW'!$E$67),K150-6.5),"NA") -> 28.9248 | N150: 27.25 | O150: =IF(OR('Input - Capacity Factors'!$C$3="Wind"),IF(N150*'AVOID NEW'!$E$67<6.5,N150*(1-'AVOID NEW'!$E$67),N150-6.5),"NA") -> 25.07 | P150: 28.65 | Q150: =IF(OR('Input - Capacity Factors'!$C$3="Wind"),IF(P150*'AVOID NEW'!$E$67<6.5,P150*(1-'AVOID NEW'!$E$67),P150-6.5),"NA") -> 26.358 | R150: 24.45 | S150: =IF(OR('Input - Capacity Factors'!$C$3="Wind"),IF(R150*'AVOID NEW'!$E$67<6.5,R150*(1-'AVOID NEW'!$E$67),R150-6.5),"NA") -> 22.494 | V150: =ROUND((+$C150),2) -> 32.44 | W150: =IF(OR('Input - Capacity Factors'!$C$3="Wind"),IF(V150*'AVOID NEW'!$E$67<6.5,V150*(1-'AVOID NEW'!$E$67),V150-6.5),"NA") -> 29.8448 | X150: =ROUND((+$D150),2) -> 34.11 | Y150: =IF(OR('Input - Capacity Factors'!$C$3="Wind"),IF(X150*'AVOID NEW'!$E$67<6.5,X150*(1-'AVOID NEW'!$E$67),X150-6.5),"NA") -> 31.3812 | Z150: =ROUND((+$E150),2) -> 29.11 | AA150: =IF(OR('Input - Capacity Factors'!$C$3="Wind"),IF(Z150*'AVOID NEW'!$E$67<6.5,Z150*(1-'AVOID NEW'!$E$67),Z150-6.5),"NA") -> 26.7812
B151: 3 | C151: ='AVOID NEW'!AR11 -> 32.82224904 | D151: 34.49224904 | E151: 29.49224904 | G151: 35.45 | H151: =IF(OR('Input - Capacity Factors'!$C$3="Wind"),IF(G151*'AVOID NEW'!$E$67<6.5,G151*(1-'AVOID NEW'!$E$67),G151-6.5),"NA") -> 32.614 | I151: 37.25 | J151: =IF(OR('Input - Capacity Factors'!$C$3="Wind"),IF(I151*'AVOID NEW'!$E$67<6.5,I151*(1-'AVOID NEW'!$E$67),I151-6.5),"NA") -> 34.27 | K151: 31.85 | L151: =IF(OR('Input - Capacity Factors'!$C$3="Wind"),IF(K151*'AVOID NEW'!$E$67<6.5,K151*(1-'AVOID NEW'!$E$67),K151-6.5),"NA") -> 29.302 | N151: 27.57 | O151: =IF(OR('Input - Capacity Factors'!$C$3="Wind"),IF(N151*'AVOID NEW'!$E$67<6.5,N151*(1-'AVOID NEW'!$E$67),N151-6.5),"NA") -> 25.3644 | P151: 28.97 | Q151: =IF(OR('Input - Capacity Factors'!$C$3="Wind"),IF(P151*'AVOID NEW'!$E$67<6.5,P151*(1-'AVOID NEW'!$E$67),P151-6.5),"NA") -> 26.6524 | R151: 24.77 | S151: =IF(OR('Input - Capacity Factors'!$C$3="Wind"),IF(R151*'AVOID NEW'!$E$67<6.5,R151*(1-'AVOID NEW'!$E$67),R151-6.5),"NA") -> 22.7884 | V151: 32.82 | W151: =IF(OR('Input - Capacity Factors'!$C$3="Wind"),IF(V151*'AVOID NEW'!$E$67<6.5,V151*(1-'AVOID NEW'!$E$67),V151-6.5),"NA") -> 30.1944 | X151: 34.49 | Y151: =IF(OR('Input - Capacity Factors'!$C$3="Wind"),IF(X151*'AVOID NEW'!$E$67<6.5,X151*(1-'AVOID NEW'!$E$67),X151-6.5),"NA") -> 31.7308 | Z151: 29.49 | AA151: =IF(OR('Input - Capacity Factors'!$C$3="Wind"),IF(Z151*'AVOID NEW'!$E$67<6.5,Z151*(1-'AVOID NEW'!$E$67),Z151-6.5),"NA") -> 27.1308
B152: 4 | C152: ='AVOID NEW'!AR12 -> 33.40903116 | D152: 35.07903116 | E152: 30.07903116 | G152: 36.08 | H152: =IF(OR('Input - Capacity Factors'!$C$3="Wind"),IF(G152*'AVOID NEW'!$E$67<6.5,G152*(1-'AVOID NEW'!$E$67),G152-6.5),"NA") -> 33.1936 | I152: 37.89 | J152: =IF(OR('Input - Capacity Factors'!$C$3="Wind"),IF(I152*'AVOID NEW'!$E$67<6.5,I152*(1-'AVOID NEW'!$E$67),I152-6.5),"NA") -> 34.8588 | K152: 32.49 | L152: =IF(OR('Input - Capacity Factors'!$C$3="Wind"),IF(K152*'AVOID NEW'!$E$67<6.5,K152*(1-'AVOID NEW'!$E$67),K152-6.5),"NA") -> 29.8908 | N152: 28.06 | O152: =IF(OR('Input - Capacity Factors'!$C$3="Wind"),IF(N152*'AVOID NEW'!$E$67<6.5,N152*(1-'AVOID NEW'!$E$67),N152-6.5),"NA") -> 25.8152 | P152: 29.47 | Q152: =IF(OR('Input - Capacity Factors'!$C$3="Wind"),IF(P152*'AVOID NEW'!$E$67<6.5,P152*(1-'AVOID NEW'!$E$67),P152-6.5),"NA") -> 27.1124 | R152: 25.27 | S152: =IF(OR('Input - Capacity Factors'!$C$3="Wind"),IF(R152*'AVOID NEW'!$E$67<6.5,R152*(1-'AVOID NEW'!$E$67),R152-6.5),"NA") -> 23.2484 | V152: 33.41 | W152: =IF(OR('Input - Capacity Factors'!$C$3="Wind"),IF(V152*'AVOID NEW'!$E$67<6.5,V152*(1-'AVOID NEW'!$E$67),V152-6.5),"NA") -> 30.7372 | X152: 35.08 | Y152: =IF(OR('Input - Capacity Factors'!$C$3="Wind"),IF(X152*'AVOID NEW'!$E$67<6.5,X152*(1-'AVOID NEW'!$E$67),X152-6.5),"NA") -> 32.2736 | Z152: 30.08 | AA152: =IF(OR('Input - Capacity Factors'!$C$3="Wind"),IF(Z152*'AVOID NEW'!$E$67<6.5,Z152*(1-'AVOID NEW'!$E$67),Z152-6.5),"NA") -> 27.6736
B153: 5 | C153: ='AVOID NEW'!AR13 -> 34.15006864 | D153: 35.82006864 | E153: 30.82006864 | G153: 36.88 | H153: =IF(OR('Input - Capacity Factors'!$C$3="Wind"),IF(G153*'AVOID NEW'!$E$67<6.5,G153*(1-'AVOID NEW'!$E$67),G153-6.5),"NA") -> 33.9296 | I153: 38.69 | J153: =IF(OR('Input - Capacity Factors'!$C$3="Wind"),IF(I153*'AVOID NEW'!$E$67<6.5,I153*(1-'AVOID NEW'!$E$67),I153-6.5),"NA") -> 35.5948 | K153: 33.29 | L153: =IF(OR('Input - Capacity Factors'!$C$3="Wind"),IF(K153*'AVOID NEW'!$E$67<6.5,K153*(1-'AVOID NEW'!$E$67),K153-6.5),"NA") -> 30.6268 | N153: 28.69 | O153: =IF(OR('Input - Capacity Factors'!$C$3="Wind"),IF(N153*'AVOID NEW'!$E$67<6.5,N153*(1-'AVOID NEW'!$E$67),N153-6.5),"NA") -> 26.3948 | P153: 30.09 | Q153: =IF(OR('Input - Capacity Factors'!$C$3="Wind"),IF(P153*'AVOID NEW'!$E$67<6.5,P153*(1-'AVOID NEW'!$E$67),P153-6.5),"NA") -> 27.6828 | R153: 25.89 | S153: =IF(OR('Input - Capacity Factors'!$C$3="Wind"),IF(R153*'AVOID NEW'!$E$67<6.5,R153*(1-'AVOID NEW'!$E$67),R153-6.5),"NA") -> 23.8188 | V153: 34.15 | W153: =IF(OR('Input - Capacity Factors'!$C$3="Wind"),IF(V153*'AVOID NEW'!$E$67<6.5,V153*(1-'AVOID NEW'!$E$67),V153-6.5),"NA") -> 31.418 | X153: 35.82 | Y153: =IF(OR('Input - Capacity Factors'!$C$3="Wind"),IF(X153*'AVOID NEW'!$E$67<6.5,X153*(1-'AVOID NEW'!$E$67),X153-6.5),"NA") -> 32.9544 | Z153: 30.82 | AA153: =IF(OR('Input - Capacity Factors'!$C$3="Wind"),IF(Z153*'AVOID NEW'!$E$67<6.5,Z153*(1-'AVOID NEW'!$E$67),Z153-6.5),"NA") -> 28.3544
B154: 6 | C154: ='AVOID NEW'!AR14 -> 34.98815095 | D154: 36.65815095 | E154: 31.65815095 | G154: 37.79 | H154: =IF(OR('Input - Capacity Factors'!$C$3="Wind"),IF(G154*'AVOID NEW'!$E$67<6.5,G154*(1-'AVOID NEW'!$E$67),G154-6.5),"NA") -> 34.7668 | I154: 39.59 | J154: =IF(OR('Input - Capacity Factors'!$C$3="Wind"),IF(I154*'AVOID NEW'!$E$67<6.5,I154*(1-'AVOID NEW'!$E$67),I154-6.5),"NA") -> 36.4228 | K154: 34.19 | L154: =IF(OR('Input - Capacity Factors'!$C$3="Wind"),IF(K154*'AVOID NEW'!$E$67<6.5,K154*(1-'AVOID NEW'!$E$67),K154-6.5),"NA") -> 31.4548 | N154: 29.39 | O154: =IF(OR('Input - Capacity Factors'!$C$3="Wind"),IF(N154*'AVOID NEW'!$E$67<6.5,N154*(1-'AVOID NEW'!$E$67),N154-6.5),"NA") -> 27.0388 | P154: 30.79 | Q154: =IF(OR('Input - Capacity Factors'!$C$3="Wind"),IF(P154*'AVOID NEW'!$E$67<6.5,P154*(1-'AVOID NEW'!$E$67),P154-6.5),"NA") -> 28.3268 | R154: 26.59 | S154: =IF(OR('Input - Capacity Factors'!$C$3="Wind"),IF(R154*'AVOID NEW'!$E$67<6.5,R154*(1-'AVOID NEW'!$E$67),R154-6.5),"NA") -> 24.4628 | V154: 34.99 | W154: =IF(OR('Input - Capacity Factors'!$C$3="Wind"),IF(V154*'AVOID NEW'!$E$67<6.5,V154*(1-'AVOID NEW'!$E$67),V154-6.5),"NA") -> 32.1908 | X154: 36.66 | Y154: =IF(OR('Input - Capacity Factors'!$C$3="Wind"),IF(X154*'AVOID NEW'!$E$67<6.5,X154*(1-'AVOID NEW'!$E$67),X154-6.5),"NA") -> 33.7272 | Z154: 31.66 | AA154: =IF(OR('Input - Capacity Factors'!$C$3="Wind"),IF(Z154*'AVOID NEW'!$E$67<6.5,Z154*(1-'AVOID NEW'!$E$67),Z154-6.5),"NA") -> 29.1272
B155: 7 | C155: ='AVOID NEW'!AR15 -> 35.88126141 | D155: 37.55126141 | E155: 32.55126141 | G155: 38.75 | H155: =IF(OR('Input - Capacity Factors'!$C$3="Wind"),IF(G155*'AVOID NEW'!$E$67<6.5,G155*(1-'AVOID NEW'!$E$67),G155-6.5),"NA") -> 35.65 | I155: 40.56 | J155: =IF(OR('Input - Capacity Factors'!$C$3="Wind"),IF(I155*'AVOID NEW'!$E$67<6.5,I155*(1-'AVOID NEW'!$E$67),I155-6.5),"NA") -> 37.3152 | K155: 35.16 | L155: =IF(OR('Input - Capacity Factors'!$C$3="Wind"),IF(K155*'AVOID NEW'!$E$67<6.5,K155*(1-'AVOID NEW'!$E$67),K155-6.5),"NA") -> 32.3472 | N155: 30.14 | O155: =IF(OR('Input - Capacity Factors'!$C$3="Wind"),IF(N155*'AVOID NEW'!$E$67<6.5,N155*(1-'AVOID NEW'!$E$67),N155-6.5),"NA") -> 27.7288 | P155: 31.54 | Q155: =IF(OR('Input - Capacity Factors'!$C$3="Wind"),IF(P155*'AVOID NEW'!$E$67<6.5,P155*(1-'AVOID NEW'!$E$67),P155-6.5),"NA") -> 29.0168 | R155: 27.34 | S155: =IF(OR('Input - Capacity Factors'!$C$3="Wind"),IF(R155*'AVOID NEW'!$E$67<6.5,R155*(1-'AVOID NEW'!$E$67),R155-6.5),"NA") -> 25.1528 | V155: 35.88 | W155: =IF(OR('Input - Capacity Factors'!$C$3="Wind"),IF(V155*'AVOID NEW'!$E$67<6.5,V155*(1-'AVOID NEW'!$E$67),V155-6.5),"NA") -> 33.0096 | X155: 37.55 | Y155: =IF(OR('Input - Capacity Factors'!$C$3="Wind"),IF(X155*'AVOID NEW'!$E$67<6.5,X155*(1-'AVOID NEW'!$E$67),X155-6.5),"NA") -> 34.546 | Z155: 32.55 | AA155: =IF(OR('Input - Capacity Factors'!$C$3="Wind"),IF(Z155*'AVOID NEW'!$E$67<6.5,Z155*(1-'AVOID NEW'!$E$67),Z155-6.5),"NA") -> 29.946
B156: 8 | C156: ='AVOID NEW'!AR16 -> 36.79812733 | D156: 38.46812733 | E156: 33.46812733 | G156: 39.74 | H156: =IF(OR('Input - Capacity Factors'!$C$3="Wind"),IF(G156*'AVOID NEW'!$E$67<6.5,G156*(1-'AVOID NEW'!$E$67),G156-6.5),"NA") -> 36.5608 | I156: 41.55 | J156: =IF(OR('Input - Capacity Factors'!$C$3="Wind"),IF(I156*'AVOID NEW'!$E$67<6.5,I156*(1-'AVOID NEW'!$E$67),I156-6.5),"NA") -> 38.226 | K156: 36.15 | L156: =IF(OR('Input - Capacity Factors'!$C$3="Wind"),IF(K156*'AVOID NEW'!$E$67<6.5,K156*(1-'AVOID NEW'!$E$67),K156-6.5),"NA") -> 33.258 | N156: 30.91 | O156: =IF(OR('Input - Capacity Factors'!$C$3="Wind"),IF(N156*'AVOID NEW'!$E$67<6.5,N156*(1-'AVOID NEW'!$E$67),N156-6.5),"NA") -> 28.4372 | P156: 32.31 | Q156: =IF(OR('Input - Capacity Factors'!$C$3="Wind"),IF(P156*'AVOID NEW'!$E$67<6.5,P156*(1-'AVOID NEW'!$E$67),P156-6.5),"NA") -> 29.7252 | R156: 28.11 | S156: =IF(OR('Input - Capacity Factors'!$C$3="Wind"),IF(R156*'AVOID NEW'!$E$67<6.5,R156*(1-'AVOID NEW'!$E$67),R156-6.5),"NA") -> 25.8612 | V156: 36.8 | W156: =IF(OR('Input - Capacity Factors'!$C$3="Wind"),IF(V156*'AVOID NEW'!$E$67<6.5,V156*(1-'AVOID NEW'!$E$67),V156-6.5),"NA") -> 33.856 | X156: 38.47 | Y156: =IF(OR('Input - Capacity Factors'!$C$3="Wind"),IF(X156*'AVOID NEW'!$E$67<6.5,X156*(1-'AVOID NEW'!$E$67),X156-6.5),"NA") -> 35.3924 | Z156: 33.47 | AA156: =IF(OR('Input - Capacity Factors'!$C$3="Wind"),IF(Z156*'AVOID NEW'!$E$67<6.5,Z156*(1-'AVOID NEW'!$E$67),Z156-6.5),"NA") -> 30.7924
B157: 9 | C157: ='AVOID NEW'!AR17 -> 37.6281377 | D157: 39.2981377 | E157: 34.2981377 | G157: 40.64 | H157: =IF(OR('Input - Capacity Factors'!$C$3="Wind"),IF(G157*'AVOID NEW'!$E$67<6.5,G157*(1-'AVOID NEW'!$E$67),G157-6.5),"NA") -> 37.3888 | I157: 42.44 | J157: =IF(OR('Input - Capacity Factors'!$C$3="Wind"),IF(I157*'AVOID NEW'!$E$67<6.5,I157*(1-'AVOID NEW'!$E$67),I157-6.5),"NA") -> 39.0448 | K157: 37.04 | L157: =IF(OR('Input - Capacity Factors'!$C$3="Wind"),IF(K157*'AVOID NEW'!$E$67<6.5,K157*(1-'AVOID NEW'!$E$67),K157-6.5),"NA") -> 34.0768 | N157: 31.61 | O157: =IF(OR('Input - Capacity Factors'!$C$3="Wind"),IF(N157*'AVOID NEW'!$E$67<6.5,N157*(1-'AVOID NEW'!$E$67),N157-6.5),"NA") -> 29.0812 | P157: 33.01 | Q157: =IF(OR('Input - Capacity Factors'!$C$3="Wind"),IF(P157*'AVOID NEW'!$E$67<6.5,P157*(1-'AVOID NEW'!$E$67),P157-6.5),"NA") -> 30.3692 | R157: 28.81 | S157: =IF(OR('Input - Capacity Factors'!$C$3="Wind"),IF(R157*'AVOID NEW'!$E$67<6.5,R157*(1-'AVOID NEW'!$E$67),R157-6.5),"NA") -> 26.5052 | V157: 37.63 | W157: =IF(OR('Input - Capacity Factors'!$C$3="Wind"),IF(V157*'AVOID NEW'!$E$67<6.5,V157*(1-'AVOID NEW'!$E$67),V157-6.5),"NA") -> 34.6196 | X157: 39.3 | Y157: =IF(OR('Input - Capacity Factors'!$C$3="Wind"),IF(X157*'AVOID NEW'!$E$67<6.5,X157*(1-'AVOID NEW'!$E$67),X157-6.5),"NA") -> 36.156 | Z157: 34.3 | AA157: =IF(OR('Input - Capacity Factors'!$C$3="Wind"),IF(Z157*'AVOID NEW'!$E$67<6.5,Z157*(1-'AVOID NEW'!$E$67),Z157-6.5),"NA") -> 31.556
B158: 10 | C158: ='AVOID NEW'!AR18 -> 38.38603441 | D158: 40.05603441 | E158: 35.05603441 | G158: 41.46 | H158: =IF(OR('Input - Capacity Factors'!$C$3="Wind"),IF(G158*'AVOID NEW'!$E$67<6.5,G158*(1-'AVOID NEW'!$E$67),G158-6.5),"NA") -> 38.1432 | I158: 43.26 | J158: =IF(OR('Input - Capacity Factors'!$C$3="Wind"),IF(I158*'AVOID NEW'!$E$67<6.5,I158*(1-'AVOID NEW'!$E$67),I158-6.5),"NA") -> 39.7992 | K158: 37.86 | L158: =IF(OR('Input - Capacity Factors'!$C$3="Wind"),IF(K158*'AVOID NEW'!$E$67<6.5,K158*(1-'AVOID NEW'!$E$67),K158-6.5),"NA") -> 34.8312 | N158: 32.24 | O158: =IF(OR('Input - Capacity Factors'!$C$3="Wind"),IF(N158*'AVOID NEW'!$E$67<6.5,N158*(1-'AVOID NEW'!$E$67),N158-6.5),"NA") -> 29.6608 | P158: 33.65 | Q158: =IF(OR('Input - Capacity Factors'!$C$3="Wind"),IF(P158*'AVOID NEW'!$E$67<6.5,P158*(1-'AVOID NEW'!$E$67),P158-6.5),"NA") -> 30.958 | R158: 29.45 | S158: =IF(OR('Input - Capacity Factors'!$C$3="Wind"),IF(R158*'AVOID NEW'!$E$67<6.5,R158*(1-'AVOID NEW'!$E$67),R158-6.5),"NA") -> 27.094 | V158: 38.39 | W158: =IF(OR('Input - Capacity Factors'!$C$3="Wind"),IF(V158*'AVOID NEW'!$E$67<6.5,V158*(1-'AVOID NEW'!$E$67),V158-6.5),"NA") -> 35.3188 | X158: 40.06 | Y158: =IF(OR('Input - Capacity Factors'!$C$3="Wind"),IF(X158*'AVOID NEW'!$E$67<6.5,X158*(1-'AVOID NEW'!$E$67),X158-6.5),"NA") -> 36.8552 | Z158: 35.06 | AA158: =IF(OR('Input - Capacity Factors'!$C$3="Wind"),IF(Z158*'AVOID NEW'!$E$67<6.5,Z158*(1-'AVOID NEW'!$E$67),Z158-6.5),"NA") -> 32.2552
B159: 11 | C159: ='AVOID NEW'!AR19 -> 39.1886732 | D159: 40.8586732 | E159: 35.8586732 | G159: 42.32 | H159: =IF(OR('Input - Capacity Factors'!$C$3="Wind"),IF(G159*'AVOID NEW'!$E$67<6.5,G159*(1-'AVOID NEW'!$E$67),G159-6.5),"NA") -> 38.9344 | I159: 44.13 | J159: =IF(OR('Input - Capacity Factors'!$C$3="Wind"),IF(I159*'AVOID NEW'!$E$67<6.5,I159*(1-'AVOID NEW'!$E$67),I159-6.5),"NA") -> 40.5996 | K159: 38.73 | L159: =IF(OR('Input - Capacity Factors'!$C$3="Wind"),IF(K159*'AVOID NEW'!$E$67<6.5,K159*(1-'AVOID NEW'!$E$67),K159-6.5),"NA") -> 35.6316 | N159: 32.92 | O159: =IF(OR('Input - Capacity Factors'!$C$3="Wind"),IF(N159*'AVOID NEW'!$E$67<6.5,N159*(1-'AVOID NEW'!$E$67),N159-6.5),"NA") -> 30.2864 | P159: 34.32 | Q159: =IF(OR('Input - Capacity Factors'!$C$3="Wind"),IF(P159*'AVOID NEW'!$E$67<6.5,P159*(1-'AVOID NEW'!$E$67),P159-6.5),"NA") -> 31.5744 | R159: 30.12 | S159: =IF(OR('Input - Capacity Factors'!$C$3="Wind"),IF(R159*'AVOID NEW'!$E$67<6.5,R159*(1-'AVOID NEW'!$E$67),R159-6.5),"NA") -> 27.7104 | V159: 39.19 | W159: =IF(OR('Input - Capacity Factors'!$C$3="Wind"),IF(V159*'AVOID NEW'!$E$67<6.5,V159*(1-'AVOID NEW'!$E$67),V159-6.5),"NA") -> 36.0548 | X159: 40.86 | Y159: =IF(OR('Input - Capacity Factors'!$C$3="Wind"),IF(X159*'AVOID NEW'!$E$67<6.5,X159*(1-'AVOID NEW'!$E$67),X159-6.5),"NA") -> 37.5912 | Z159: 35.86 | AA159: =IF(OR('Input - Capacity Factors'!$C$3="Wind"),IF(Z159*'AVOID NEW'!$E$67<6.5,Z159*(1-'AVOID NEW'!$E$67),Z159-6.5),"NA") -> 32.9912
B160: 12 | C160: ='AVOID NEW'!AR20 -> 39.86657418 | D160: 41.53657418 | E160: 36.53657418 | G160: 43.06 | H160: =IF(OR('Input - Capacity Factors'!$C$3="Wind"),IF(G160*'AVOID NEW'!$E$67<6.5,G160*(1-'AVOID NEW'!$E$67),G160-6.5),"NA") -> 39.6152 | I160: 44.86 | J160: =IF(OR('Input - Capacity Factors'!$C$3="Wind"),IF(I160*'AVOID NEW'!$E$67<6.5,I160*(1-'AVOID NEW'!$E$67),I160-6.5),"NA") -> 41.2712 | K160: 39.46 | L160: =IF(OR('Input - Capacity Factors'!$C$3="Wind"),IF(K160*'AVOID NEW'!$E$67<6.5,K160*(1-'AVOID NEW'!$E$67),K160-6.5),"NA") -> 36.3032 | N160: 33.49 | O160: =IF(OR('Input - Capacity Factors'!$C$3="Wind"),IF(N160*'AVOID NEW'!$E$67<6.5,N160*(1-'AVOID NEW'!$E$67),N160-6.5),"NA") -> 30.8108 | P160: 34.89 | Q160: =IF(OR('Input - Capacity Factors'!$C$3="Wind"),IF(P160*'AVOID NEW'!$E$67<6.5,P160*(1-'AVOID NEW'!$E$67),P160-6.5),"NA") -> 32.0988 | R160: 30.69 | S160: =IF(OR('Input - Capacity Factors'!$C$3="Wind"),IF(R160*'AVOID NEW'!$E$67<6.5,R160*(1-'AVOID NEW'!$E$67),R160-6.5),"NA") -> 28.2348 | V160: 39.87 | W160: =IF(OR('Input - Capacity Factors'!$C$3="Wind"),IF(V160*'AVOID NEW'!$E$67<6.5,V160*(1-'AVOID NEW'!$E$67),V160-6.5),"NA") -> 36.6804 | X160: 41.54 | Y160: =IF(OR('Input - Capacity Factors'!$C$3="Wind"),IF(X160*'AVOID NEW'!$E$67<6.5,X160*(1-'AVOID NEW'!$E$67),X160-6.5),"NA") -> 38.2168 | Z160: 36.54 | AA160: =IF(OR('Input - Capacity Factors'!$C$3="Wind"),IF(Z160*'AVOID NEW'!$E$67<6.5,Z160*(1-'AVOID NEW'!$E$67),Z160-6.5),"NA") -> 33.6168
B161: 13 | C161: ='AVOID NEW'!AR21 -> 40.6019208 | D161: 42.2719208 | E161: 37.2719208 | G161: 43.85 | H161: =IF(OR('Input - Capacity Factors'!$C$3="Wind"),IF(G161*'AVOID NEW'!$E$67<6.5,G161*(1-'AVOID NEW'!$E$67),G161-6.5),"NA") -> 40.342 | I161: 45.65 | J161: =IF(OR('Input - Capacity Factors'!$C$3="Wind"),IF(I161*'AVOID NEW'!$E$67<6.5,I161*(1-'AVOID NEW'!$E$67),I161-6.5),"NA") -> 41.998 | K161: 40.25 | L161: =IF(OR('Input - Capacity Factors'!$C$3="Wind"),IF(K161*'AVOID NEW'!$E$67<6.5,K161*(1-'AVOID NEW'!$E$67),K161-6.5),"NA") -> 37.03 | N161: 34.11 | O161: =IF(OR('Input - Capacity Factors'!$C$3="Wind"),IF(N161*'AVOID NEW'!$E$67<6.5,N161*(1-'AVOID NEW'!$E$67),N161-6.5),"NA") -> 31.3812 | P161: 35.51 | Q161: =IF(OR('Input - Capacity Factors'!$C$3="Wind"),IF(P161*'AVOID NEW'!$E$67<6.5,P161*(1-'AVOID NEW'!$E$67),P161-6.5),"NA") -> 32.6692 | R161: 31.31 | S161: =IF(OR('Input - Capacity Factors'!$C$3="Wind"),IF(R161*'AVOID NEW'!$E$67<6.5,R161*(1-'AVOID NEW'!$E$67),R161-6.5),"NA") -> 28.8052 | V161: 40.6 | W161: =IF(OR('Input - Capacity Factors'!$C$3="Wind"),IF(V161*'AVOID NEW'!$E$67<6.5,V161*(1-'AVOID NEW'!$E$67),V161-6.5),"NA") -> 37.352 | X161: 42.27 | Y161: =IF(OR('Input - Capacity Factors'!$C$3="Wind"),IF(X161*'AVOID NEW'!$E$67<6.5,X161*(1-'AVOID NEW'!$E$67),X161-6.5),"NA") -> 38.8884 | Z161: 37.27 | AA161: =IF(OR('Input - Capacity Factors'!$C$3="Wind"),IF(Z161*'AVOID NEW'!$E$67<6.5,Z161*(1-'AVOID NEW'!$E$67),Z161-6.5),"NA") -> 34.2884
B162: 14 | C162: ='AVOID NEW'!AR22 -> 41.31604354 | D162: 42.98604354 | E162: 37.98604354 | G162: 44.62 | H162: =IF(OR('Input - Capacity Factors'!$C$3="Wind"),IF(G162*'AVOID NEW'!$E$67<6.5,G162*(1-'AVOID NEW'!$E$67),G162-6.5),"NA") -> 41.0504 | I162: 46.42 | J162: =IF(OR('Input - Capacity Factors'!$C$3="Wind"),IF(I162*'AVOID NEW'!$E$67<6.5,I162*(1-'AVOID NEW'!$E$67),I162-6.5),"NA") -> 42.7064 | K162: 41.02 | L162: =IF(OR('Input - Capacity Factors'!$C$3="Wind"),IF(K162*'AVOID NEW'!$E$67<6.5,K162*(1-'AVOID NEW'!$E$67),K162-6.5),"NA") -> 37.7384 | N162: 34.71 | O162: =IF(OR('Input - Capacity Factors'!$C$3="Wind"),IF(N162*'AVOID NEW'!$E$67<6.5,N162*(1-'AVOID NEW'!$E$67),N162-6.5),"NA") -> 31.9332 | P162: 36.11 | Q162: =IF(OR('Input - Capacity Factors'!$C$3="Wind"),IF(P162*'AVOID NEW'!$E$67<6.5,P162*(1-'AVOID NEW'!$E$67),P162-6.5),"NA") -> 33.2212 | R162: 31.91 | S162: =IF(OR('Input - Capacity Factors'!$C$3="Wind"),IF(R162*'AVOID NEW'!$E$67<6.5,R162*(1-'AVOID NEW'!$E$67),R162-6.5),"NA") -> 29.3572 | V162: 41.32 | W162: =IF(OR('Input - Capacity Factors'!$C$3="Wind"),IF(V162*'AVOID NEW'!$E$67<6.5,V162*(1-'AVOID NEW'!$E$67),V162-6.5),"NA") -> 38.0144 | X162: 42.99 | Y162: =IF(OR('Input - Capacity Factors'!$C$3="Wind"),IF(X162*'AVOID NEW'!$E$67<6.5,X162*(1-'AVOID NEW'!$E$67),X162-6.5),"NA") -> 39.5508 | Z162: 37.99 | AA162: =IF(OR('Input - Capacity Factors'!$C$3="Wind"),IF(Z162*'AVOID NEW'!$E$67<6.5,Z162*(1-'AVOID NEW'!$E$67),Z162-6.5),"NA") -> 34.9508
B163: 15 | C163: ='AVOID NEW'!AR23 -> 41.97887246 | D163: 43.64887246 | E163: 38.64887246 | G163: 45.34 | H163: =IF(OR('Input - Capacity Factors'!$C$3="Wind"),IF(G163*'AVOID NEW'!$E$67<6.5,G163*(1-'AVOID NEW'!$E$67),G163-6.5),"NA") -> 41.7128 | I163: 47.14 | J163: =IF(OR('Input - Capacity Factors'!$C$3="Wind"),IF(I163*'AVOID NEW'!$E$67<6.5,I163*(1-'AVOID NEW'!$E$67),I163-6.5),"NA") -> 43.3688 | K163: 41.74 | L163: =IF(OR('Input - Capacity Factors'!$C$3="Wind"),IF(K163*'AVOID NEW'!$E$67<6.5,K163*(1-'AVOID NEW'!$E$67),K163-6.5),"NA") -> 38.4008 | N163: 35.26 | O163: =IF(OR('Input - Capacity Factors'!$C$3="Wind"),IF(N163*'AVOID NEW'!$E$67<6.5,N163*(1-'AVOID NEW'!$E$67),N163-6.5),"NA") -> 32.4392 | P163: 36.67 | Q163: =IF(OR('Input - Capacity Factors'!$C$3="Wind"),IF(P163*'AVOID NEW'!$E$67<6.5,P163*(1-'AVOID NEW'!$E$67),P163-6.5),"NA") -> 33.7364 | R163: 32.47 | S163: =IF(OR('Input - Capacity Factors'!$C$3="Wind"),IF(R163*'AVOID NEW'!$E$67<6.5,R163*(1-'AVOID NEW'!$E$67),R163-6.5),"NA") -> 29.8724 | V163: 41.98 | W163: =IF(OR('Input - Capacity Factors'!$C$3="Wind"),IF(V163*'AVOID NEW'!$E$67<6.5,V163*(1-'AVOID NEW'!$E$67),V163-6.5),"NA") -> 38.6216 | X163: 43.65 | Y163: =IF(OR('Input - Capacity Factors'!$C$3="Wind"),IF(X163*'AVOID NEW'!$E$67<6.5,X163*(1-'AVOID NEW'!$E$67),X163-6.5),"NA") -> 40.158 | Z163: 38.65 | AA163: =IF(OR('Input - Capacity Factors'!$C$3="Wind"),IF(Z163*'AVOID NEW'!$E$67<6.5,Z163*(1-'AVOID NEW'!$E$67),Z163-6.5),"NA") -> 35.558
B164: 16 | C164: ='AVOID NEW'!AR24 -> 42.577661 | D164: 44.247661 | E164: 39.247661 | G164: 45.98 | H164: =IF(OR('Input - Capacity Factors'!$C$3="Wind"),IF(G164*'AVOID NEW'!$E$67<6.5,G164*(1-'AVOID NEW'!$E$67),G164-6.5),"NA") -> 42.3016 | I164: 47.79 | J164: =IF(OR('Input - Capacity Factors'!$C$3="Wind"),IF(I164*'AVOID NEW'!$E$67<6.5,I164*(1-'AVOID NEW'!$E$67),I164-6.5),"NA") -> 43.9668 | K164: 42.39 | L164: =IF(OR('Input - Capacity Factors'!$C$3="Wind"),IF(K164*'AVOID NEW'!$E$67<6.5,K164*(1-'AVOID NEW'!$E$67),K164-6.5),"NA") -> 38.9988 | N164: 35.77 | O164: =IF(OR('Input - Capacity Factors'!$C$3="Wind"),IF(N164*'AVOID NEW'!$E$67<6.5,N164*(1-'AVOID NEW'!$E$67),N164-6.5),"NA") -> 32.9084 | P164: 37.17 | Q164: =IF(OR('Input - Capacity Factors'!$C$3="Wind"),IF(P164*'AVOID NEW'!$E$67<6.5,P164*(1-'AVOID NEW'!$E$67),P164-6.5),"NA") -> 34.1964 | R164: 32.97 | S164: =IF(OR('Input - Capacity Factors'!$C$3="Wind"),IF(R164*'AVOID NEW'!$E$67<6.5,R164*(1-'AVOID NEW'!$E$67),R164-6.5),"NA") -> 30.3324 | V164: 42.58 | W164: =IF(OR('Input - Capacity Factors'!$C$3="Wind"),IF(V164*'AVOID NEW'!$E$67<6.5,V164*(1-'AVOID NEW'!$E$67),V164-6.5),"NA") -> 39.1736 | X164: 44.25 | Y164: =IF(OR('Input - Capacity Factors'!$C$3="Wind"),IF(X164*'AVOID NEW'!$E$67<6.5,X164*(1-'AVOID NEW'!$E$67),X164-6.5),"NA") -> 40.71 | Z164: 39.25 | AA164: =IF(OR('Input - Capacity Factors'!$C$3="Wind"),IF(Z164*'AVOID NEW'!$E$67<6.5,Z164*(1-'AVOID NEW'!$E$67),Z164-6.5),"NA") -> 36.11
B165: 17 | C165: ='AVOID NEW'!AR25 -> 43.13224911 | D165: 44.80224911 | E165: 39.80224911 | G165: 46.58 | H165: =IF(OR('Input - Capacity Factors'!$C$3="Wind"),IF(G165*'AVOID NEW'!$E$67<6.5,G165*(1-'AVOID NEW'!$E$67),G165-6.5),"NA") -> 42.8536 | I165: 48.39 | J165: =IF(OR('Input - Capacity Factors'!$C$3="Wind"),IF(I165*'AVOID NEW'!$E$67<6.5,I165*(1-'AVOID NEW'!$E$67),I165-6.5),"NA") -> 44.5188 | K165: 42.99 | L165: =IF(OR('Input - Capacity Factors'!$C$3="Wind"),IF(K165*'AVOID NEW'!$E$67<6.5,K165*(1-'AVOID NEW'!$E$67),K165-6.5),"NA") -> 39.5508 | N165: 36.23 | O165: =IF(OR('Input - Capacity Factors'!$C$3="Wind"),IF(N165*'AVOID NEW'!$E$67<6.5,N165*(1-'AVOID NEW'!$E$67),N165-6.5),"NA") -> 33.3316 | P165: 37.63 | Q165: =IF(OR('Input - Capacity Factors'!$C$3="Wind"),IF(P165*'AVOID NEW'!$E$67<6.5,P165*(1-'AVOID NEW'!$E$67),P165-6.5),"NA") -> 34.6196 | R165: 33.43 | S165: =IF(OR('Input - Capacity Factors'!$C$3="Wind"),IF(R165*'AVOID NEW'!$E$67<6.5,R165*(1-'AVOID NEW'!$E$67),R165-6.5),"NA") -> 30.7556 | V165: 43.13 | W165: =IF(OR('Input - Capacity Factors'!$C$3="Wind"),IF(V165*'AVOID NEW'!$E$67<6.5,V165*(1-'AVOID NEW'!$E$67),V165-6.5),"NA") -> 39.6796 | X165: 44.8 | Y165: =IF(OR('Input - Capacity Factors'!$C$3="Wind"),IF(X165*'AVOID NEW'!$E$67<6.5,X165*(1-'AVOID NEW'!$E$67),X165-6.5),"NA") -> 41.216 | Z165: 39.8 | AA165: =IF(OR('Input - Capacity Factors'!$C$3="Wind"),IF(Z165*'AVOID NEW'!$E$67<6.5,Z165*(1-'AVOID NEW'!$E$67),Z165-6.5),"NA") -> 36.616
B166: 18 | C166: ='AVOID NEW'!AR26 -> 43.65297227 | D166: 45.32297227 | E166: 40.32297227 | G166: 47.15 | H166: =IF(OR('Input - Capacity Factors'!$C$3="Wind"),IF(G166*'AVOID NEW'!$E$67<6.5,G166*(1-'AVOID NEW'!$E$67),G166-6.5),"NA") -> 43.378 | I166: 48.95 | J166: =IF(OR('Input - Capacity Factors'!$C$3="Wind"),IF(I166*'AVOID NEW'!$E$67<6.5,I166*(1-'AVOID NEW'!$E$67),I166-6.5),"NA") -> 45.034 | K166: 43.55 | L166: =IF(OR('Input - Capacity Factors'!$C$3="Wind"),IF(K166*'AVOID NEW'!$E$67<6.5,K166*(1-'AVOID NEW'!$E$67),K166-6.5),"NA") -> 40.066 | N166: 36.67 | O166: =IF(OR('Input - Capacity Factors'!$C$3="Wind"),IF(N166*'AVOID NEW'!$E$67<6.5,N166*(1-'AVOID NEW'!$E$67),N166-6.5),"NA") -> 33.7364 | P166: 38.07 | Q166: =IF(OR('Input - Capacity Factors'!$C$3="Wind"),IF(P166*'AVOID NEW'!$E$67<6.5,P166*(1-'AVOID NEW'!$E$67),P166-6.5),"NA") -> 35.0244 | R166: 33.87 | S166: =IF(OR('Input - Capacity Factors'!$C$3="Wind"),IF(R166*'AVOID NEW'!$E$67<6.5,R166*(1-'AVOID NEW'!$E$67),R166-6.5),"NA") -> 31.1604 | V166: 43.65 | W166: =IF(OR('Input - Capacity Factors'!$C$3="Wind"),IF(V166*'AVOID NEW'!$E$67<6.5,V166*(1-'AVOID NEW'!$E$67),V166-6.5),"NA") -> 40.158 | X166: 45.32 | Y166: =IF(OR('Input - Capacity Factors'!$C$3="Wind"),IF(X166*'AVOID NEW'!$E$67<6.5,X166*(1-'AVOID NEW'!$E$67),X166-6.5),"NA") -> 41.6944 | Z166: 40.32 | AA166: =IF(OR('Input - Capacity Factors'!$C$3="Wind"),IF(Z166*'AVOID NEW'!$E$67<6.5,Z166*(1-'AVOID NEW'!$E$67),Z166-6.5),"NA") -> 37.0944
B167: 19 | C167: ='AVOID NEW'!AR27 -> 44.1422942 | D167: 45.8122942 | E167: 40.8122942 | G167: 47.67 | H167: =IF(OR('Input - Capacity Factors'!$C$3="Wind"),IF(G167*'AVOID NEW'!$E$67<6.5,G167*(1-'AVOID NEW'!$E$67),G167-6.5),"NA") -> 43.8564 | I167: 49.48 | J167: =IF(OR('Input - Capacity Factors'!$C$3="Wind"),IF(I167*'AVOID NEW'!$E$67<6.5,I167*(1-'AVOID NEW'!$E$67),I167-6.5),"NA") -> 45.5216 | K167: 44.08 | L167: =IF(OR('Input - Capacity Factors'!$C$3="Wind"),IF(K167*'AVOID NEW'!$E$67<6.5,K167*(1-'AVOID NEW'!$E$67),K167-6.5),"NA") -> 40.5536 | N167: 37.08 | O167: =IF(OR('Input - Capacity Factors'!$C$3="Wind"),IF(N167*'AVOID NEW'!$E$67<6.5,N167*(1-'AVOID NEW'!$E$67),N167-6.5),"NA") -> 34.1136 | P167: 38.48 | Q167: =IF(OR('Input - Capacity Factors'!$C$3="Wind"),IF(P167*'AVOID NEW'!$E$67<6.5,P167*(1-'AVOID NEW'!$E$67),P167-6.5),"NA") -> 35.4016 | R167: 34.28 | S167: =IF(OR('Input - Capacity Factors'!$C$3="Wind"),IF(R167*'AVOID NEW'!$E$67<6.5,R167*(1-'AVOID NEW'!$E$67),R167-6.5),"NA") -> 31.5376 | V167: 44.14 | W167: =IF(OR('Input - Capacity Factors'!$C$3="Wind"),IF(V167*'AVOID NEW'!$E$67<6.5,V167*(1-'AVOID NEW'!$E$67),V167-6.5),"NA") -> 40.6088 | X167: 45.81 | Y167: =IF(OR('Input - Capacity Factors'!$C$3="Wind"),IF(X167*'AVOID NEW'!$E$67<6.5,X167*(1-'AVOID NEW'!$E$67),X167-6.5),"NA") -> 42.1452 | Z167: 40.81 | AA167: =IF(OR('Input - Capacity Factors'!$C$3="Wind"),IF(Z167*'AVOID NEW'!$E$67<6.5,Z167*(1-'AVOID NEW'!$E$67),Z167-6.5),"NA") -> 37.5452
B168: 20 | C168: ='AVOID NEW'!AR28 -> 44.60873599 | D168: 46.27873599 | E168: 41.27873599 | G168: 48.18 | H168: =IF(OR('Input - Capacity Factors'!$C$3="Wind"),IF(G168*'AVOID NEW'!$E$67<6.5,G168*(1-'AVOID NEW'!$E$67),G168-6.5),"NA") -> 44.3256 | I168: 49.98 | J168: =IF(OR('Input - Capacity Factors'!$C$3="Wind"),IF(I168*'AVOID NEW'!$E$67<6.5,I168*(1-'AVOID NEW'!$E$67),I168-6.5),"NA") -> 45.9816 | K168: 44.58 | L168: =IF(OR('Input - Capacity Factors'!$C$3="Wind"),IF(K168*'AVOID NEW'!$E$67<6.5,K168*(1-'AVOID NEW'!$E$67),K168-6.5),"NA") -> 41.0136 | N168: 37.47 | O168: =IF(OR('Input - Capacity Factors'!$C$3="Wind"),IF(N168*'AVOID NEW'!$E$67<6.5,N168*(1-'AVOID NEW'!$E$67),N168-6.5),"NA") -> 34.4724 | P168: 38.87 | Q168: =IF(OR('Input - Capacity Factors'!$C$3="Wind"),IF(P168*'AVOID NEW'!$E$67<6.5,P168*(1-'AVOID NEW'!$E$67),P168-6.5),"NA") -> 35.7604 | R168: 34.67 | S168: =IF(OR('Input - Capacity Factors'!$C$3="Wind"),IF(R168*'AVOID NEW'!$E$67<6.5,R168*(1-'AVOID NEW'!$E$67),R168-6.5),"NA") -> 31.8964 | V168: 44.61 | W168: =IF(OR('Input - Capacity Factors'!$C$3="Wind"),IF(V168*'AVOID NEW'!$E$67<6.5,V168*(1-'AVOID NEW'!$E$67),V168-6.5),"NA") -> 41.0412 | X168: 46.28 | Y168: =IF(OR('Input - Capacity Factors'!$C$3="Wind"),IF(X168*'AVOID NEW'!$E$67<6.5,X168*(1-'AVOID NEW'!$E$67),X168-6.5),"NA") -> 42.5776 | Z168: 41.28 | AA168: =IF(OR('Input - Capacity Factors'!$C$3="Wind"),IF(Z168*'AVOID NEW'!$E$67<6.5,Z168*(1-'AVOID NEW'!$E$67),Z168-6.5),"NA") -> 37.9776
B172: =$B$1 -> THESE RATES ARE NOT VALID
B173: LEVELIZED RATES
B174: ="PROJECT ON-LINE IN "& 'AVOID NEW'!$D$54+5 -> PROJECT ON-LINE IN 2029
B175: ="Rate Effective Date: "&'AVOID NEW'!$E$69 -> Rate Effective Date: XXXX, 2024
B176: ="Resource: "&'Input - Capacity Factors'!$C$3 -> Resource: Wind
C177: Levelized Price | G177: ="Season 1 Pricing ("&$D$7*100&"%)" -> Season 1 Pricing (108%) | N177: ="Season 2 Pricing ("&100*$D$8&"%)" -> Season 2 Pricing (84%) | V177: Non-Seasonalized Pricing
C178: Heavy and Light Load Hour Differential | D178: ='AVOID NEW'!$E$66 -> 5 | G178: Flat | I178: Heavy Load Hour | K178: Light Load Hour | N178: Flat | P178: Heavy Load Hour | R178: Light Load Hour | V178: Flat | X178: Heavy Load Hour | Z178: Light Load Hour
D179: =ROUND(D178/3,2) -> 1.67 | E179: =-ROUND((D178*2)/3,2) -> -3.33 | H179: Price less wind integration adjustment | J179: Price less wind integration adjustment | L179: Price less wind integration adjustment | O179: Price less wind integration adjustment | Q179: Price less wind integration adjustment | S179: Price less wind integration adjustment | W179: Price less wind integration adjustment | Y179: Price less wind integration adjustment | AA179: Price less wind integration adjustment
B180: Contract Length | C180: Flat | D180: Heavy Load Hour | E180: Light Load Hour | G180: Price | I180: Price | K180: Price | N180: Price | P180: Price | R180: Price | V180: Price | X180: Price | Z180: Price
B181: 1 | C181: ='AVOID NEW'!AS9 -> 32.64339472 | D181: =C181+D$83 -> 34.31339472 | E181: =C181+E$83 -> 29.31339472 | G181: =ROUND((+$C181*$D$7),2) -> 35.25 | H181: =IF(OR('Input - Capacity Factors'!$C$3="Wind"),IF(G181*'AVOID NEW'!$E$67<6.5,G181*(1-'AVOID NEW'!$E$67),G181-6.5),"NA") -> 32.43 | I181: =ROUND((+$D181*$D$7),2) -> 37.06 | J181: =IF(OR('Input - Capacity Factors'!$C$3="Wind"),IF(I181*'AVOID NEW'!$E$67<6.5,I181*(1-'AVOID NEW'!$E$67),I181-6.5),"NA") -> 34.0952 | K181: =ROUND((+$E181*$D$7),2) -> 31.66 | L181: =IF(OR('Input - Capacity Factors'!$C$3="Wind"),IF(K181*'AVOID NEW'!$E$67<6.5,K181*(1-'AVOID NEW'!$E$67),K181-6.5),"NA") -> 29.1272 | N181: =ROUND((+$C181*$D$8),2) -> 27.42 | O181: =IF(OR('Input - Capacity Factors'!$C$3="Wind"),IF(N181*'AVOID NEW'!$E$67<6.5,N181*(1-'AVOID NEW'!$E$67),N181-6.5),"NA") -> 25.2264 | P181: =ROUND((+$D181*$D$8),2) -> 28.82 | Q181: =IF(OR('Input - Capacity Factors'!$C$3="Wind"),IF(P181*'AVOID NEW'!$E$67<6.5,P181*(1-'AVOID NEW'!$E$67),P181-6.5),"NA") -> 26.5144 | R181: =ROUND((+$E181*$D$8),2) -> 24.62 | S181: =IF(OR('Input - Capacity Factors'!$C$3="Wind"),IF(R181*'AVOID NEW'!$E$67<6.5,R181*(1-'AVOID NEW'!$E$67),R181-6.5),"NA") -> 22.6504 | V181: =ROUND((+$C181),2) -> 32.64 | W181: =IF(OR('Input - Capacity Factors'!$C$3="Wind"),IF(V181*'AVOID NEW'!$E$67<6.5,V181*(1-'AVOID NEW'!$E$67),V181-6.5),"NA") -> 30.0288 | X181: =ROUND((+$D181),2) -> 34.31 | Y181: =IF(OR('Input - Capacity Factors'!$C$3="Wind"),IF(X181*'AVOID NEW'!$E$67<6.5,X181*(1-'AVOID NEW'!$E$67),X181-6.5),"NA") -> 31.5652 | Z181: =ROUND((+$E181),2) -> 29.31 | AA181: =IF(OR('Input - Capacity Factors'!$C$3="Wind"),IF(Z181*'AVOID NEW'!$E$67<6.5,Z181*(1-'AVOID NEW'!$E$67),Z181-6.5),"NA") -> 26.9652
B182: 2 | C182: ='AVOID NEW'!AS10 -> 33.13833859 | D182: 34.80833859 | E182: 29.80833859 | G182: 35.79 | H182: =IF(OR('Input - Capacity Factors'!$C$3="Wind"),IF(G182*'AVOID NEW'!$E$67<6.5,G182*(1-'AVOID NEW'!$E$67),G182-6.5),"NA") -> 32.9268 | I182: 37.59 | J182: =IF(OR('Input - Capacity Factors'!$C$3="Wind"),IF(I182*'AVOID NEW'!$E$67<6.5,I182*(1-'AVOID NEW'!$E$67),I182-6.5),"NA") -> 34.5828 | K182: 32.19 | L182: =IF(OR('Input - Capacity Factors'!$C$3="Wind"),IF(K182*'AVOID NEW'!$E$67<6.5,K182*(1-'AVOID NEW'!$E$67),K182-6.5),"NA") -> 29.6148 | N182: 27.84 | O182: =IF(OR('Input - Capacity Factors'!$C$3="Wind"),IF(N182*'AVOID NEW'!$E$67<6.5,N182*(1-'AVOID NEW'!$E$67),N182-6.5),"NA") -> 25.6128 | P182: 29.24 | Q182: =IF(OR('Input - Capacity Factors'!$C$3="Wind"),IF(P182*'AVOID NEW'!$E$67<6.5,P182*(1-'AVOID NEW'!$E$67),P182-6.5),"NA") -> 26.9008 | R182: 25.04 | S182: =IF(OR('Input - Capacity Factors'!$C$3="Wind"),IF(R182*'AVOID NEW'!$E$67<6.5,R182*(1-'AVOID NEW'!$E$67),R182-6.5),"NA") -> 23.0368 | V182: =ROUND((+$C182),2) -> 33.14 | W182: =IF(OR('Input - Capacity Factors'!$C$3="Wind"),IF(V182*'AVOID NEW'!$E$67<6.5,V182*(1-'AVOID NEW'!$E$67),V182-6.5),"NA") -> 30.4888 | X182: =ROUND((+$D182),2) -> 34.81 | Y182: =IF(OR('Input - Capacity Factors'!$C$3="Wind"),IF(X182*'AVOID NEW'!$E$67<6.5,X182*(1-'AVOID NEW'!$E$67),X182-6.5),"NA") -> 32.0252 | Z182: =ROUND((+$E182),2) -> 29.81 | AA182: =IF(OR('Input - Capacity Factors'!$C$3="Wind"),IF(Z182*'AVOID NEW'!$E$67<6.5,Z182*(1-'AVOID NEW'!$E$67),Z182-6.5),"NA") -> 27.4252
B183: 3 | C183: ='AVOID NEW'!AS11 -> 33.85164139 | D183: 35.52164139 | E183: 30.52164139 | G183: 36.56 | H183: =IF(OR('Input - Capacity Factors'!$C$3="Wind"),IF(G183*'AVOID NEW'!$E$67<6.5,G183*(1-'AVOID NEW'!$E$67),G183-6.5),"NA") -> 33.6352 | I183: 38.36 | J183: =IF(OR('Input - Capacity Factors'!$C$3="Wind"),IF(I183*'AVOID NEW'!$E$67<6.5,I183*(1-'AVOID NEW'!$E$67),I183-6.5),"NA") -> 35.2912 | K183: 32.96 | L183: =IF(OR('Input - Capacity Factors'!$C$3="Wind"),IF(K183*'AVOID NEW'!$E$67<6.5,K183*(1-'AVOID NEW'!$E$67),K183-6.5),"NA") -> 30.3232 | N183: 28.44 | O183: =IF(OR('Input - Capacity Factors'!$C$3="Wind"),IF(N183*'AVOID NEW'!$E$67<6.5,N183*(1-'AVOID NEW'!$E$67),N183-6.5),"NA") -> 26.1648 | P183: 29.84 | Q183: =IF(OR('Input - Capacity Factors'!$C$3="Wind"),IF(P183*'AVOID NEW'!$E$67<6.5,P183*(1-'AVOID NEW'!$E$67),P183-6.5),"NA") -> 27.4528 | R183: 25.64 | S183: =IF(OR('Input - Capacity Factors'!$C$3="Wind"),IF(R183*'AVOID NEW'!$E$67<6.5,R183*(1-'AVOID NEW'!$E$67),R183-6.5),"NA") -> 23.5888 | V183: 33.85 | W183: =IF(OR('Input - Capacity Factors'!$C$3="Wind"),IF(V183*'AVOID NEW'!$E$67<6.5,V183*(1-'AVOID NEW'!$E$67),V183-6.5),"NA") -> 31.142 | X183: 35.52 | Y183: =IF(OR('Input - Capacity Factors'!$C$3="Wind"),IF(X183*'AVOID NEW'!$E$67<6.5,X183*(1-'AVOID NEW'!$E$67),X183-6.5),"NA") -> 32.6784 | Z183: 30.52 | AA183: =IF(OR('Input - Capacity Factors'!$C$3="Wind"),IF(Z183*'AVOID NEW'!$E$67<6.5,Z183*(1-'AVOID NEW'!$E$67),Z183-6.5),"NA") -> 28.0784
B184: 4 | C184: ='AVOID NEW'!AS12 -> 34.71335073 | D184: 36.38335073 | E184: 31.38335073 | G184: 37.49 | H184: =IF(OR('Input - Capacity Factors'!$C$3="Wind"),IF(G184*'AVOID NEW'!$E$67<6.5,G184*(1-'AVOID NEW'!$E$67),G184-6.5),"NA") -> 34.4908 | I184: 39.29 | J184: =IF(OR('Input - Capacity Factors'!$C$3="Wind"),IF(I184*'AVOID NEW'!$E$67<6.5,I184*(1-'AVOID NEW'!$E$67),I184-6.5),"NA") -> 36.1468 | K184: 33.89 | L184: =IF(OR('Input - Capacity Factors'!$C$3="Wind"),IF(K184*'AVOID NEW'!$E$67<6.5,K184*(1-'AVOID NEW'!$E$67),K184-6.5),"NA") -> 31.1788 | N184: 29.16 | O184: =IF(OR('Input - Capacity Factors'!$C$3="Wind"),IF(N184*'AVOID NEW'!$E$67<6.5,N184*(1-'AVOID NEW'!$E$67),N184-6.5),"NA") -> 26.8272 | P184: 30.56 | Q184: =IF(OR('Input - Capacity Factors'!$C$3="Wind"),IF(P184*'AVOID NEW'!$E$67<6.5,P184*(1-'AVOID NEW'!$E$67),P184-6.5),"NA") -> 28.1152 | R184: 26.36 | S184: =IF(OR('Input - Capacity Factors'!$C$3="Wind"),IF(R184*'AVOID NEW'!$E$67<6.5,R184*(1-'AVOID NEW'!$E$67),R184-6.5),"NA") -> 24.2512 | V184: 34.71 | W184: =IF(OR('Input - Capacity Factors'!$C$3="Wind"),IF(V184*'AVOID NEW'!$E$67<6.5,V184*(1-'AVOID NEW'!$E$67),V184-6.5),"NA") -> 31.9332 | X184: 36.38 | Y184: =IF(OR('Input - Capacity Factors'!$C$3="Wind"),IF(X184*'AVOID NEW'!$E$67<6.5,X184*(1-'AVOID NEW'!$E$67),X184-6.5),"NA") -> 33.4696 | Z184: 31.38 | AA184: =IF(OR('Input - Capacity Factors'!$C$3="Wind"),IF(Z184*'AVOID NEW'!$E$67<6.5,Z184*(1-'AVOID NEW'!$E$67),Z184-6.5),"NA") -> 28.8696
B185: 5 | C185: ='AVOID NEW'!AS13 -> 35.65971915 | D185: 37.32971915 | E185: 32.32971915 | G185: 38.51 | H185: =IF(OR('Input - Capacity Factors'!$C$3="Wind"),IF(G185*'AVOID NEW'!$E$67<6.5,G185*(1-'AVOID NEW'!$E$67),G185-6.5),"NA") -> 35.4292 | I185: 40.32 | J185: =IF(OR('Input - Capacity Factors'!$C$3="Wind"),IF(I185*'AVOID NEW'!$E$67<6.5,I185*(1-'AVOID NEW'!$E$67),I185-6.5),"NA") -> 37.0944 | K185: 34.92 | L185: =IF(OR('Input - Capacity Factors'!$C$3="Wind"),IF(K185*'AVOID NEW'!$E$67<6.5,K185*(1-'AVOID NEW'!$E$67),K185-6.5),"NA") -> 32.1264 | N185: 29.95 | O185: =IF(OR('Input - Capacity Factors'!$C$3="Wind"),IF(N185*'AVOID NEW'!$E$67<6.5,N185*(1-'AVOID NEW'!$E$67),N185-6.5),"NA") -> 27.554 | P185: 31.36 | Q185: =IF(OR('Input - Capacity Factors'!$C$3="Wind"),IF(P185*'AVOID NEW'!$E$67<6.5,P185*(1-'AVOID NEW'!$E$67),P185-6.5),"NA") -> 28.8512 | R185: 27.16 | S185: =IF(OR('Input - Capacity Factors'!$C$3="Wind"),IF(R185*'AVOID NEW'!$E$67<6.5,R185*(1-'AVOID NEW'!$E$67),R185-6.5),"NA") -> 24.9872 | V185: 35.66 | W185: =IF(OR('Input - Capacity Factors'!$C$3="Wind"),IF(V185*'AVOID NEW'!$E$67<6.5,V185*(1-'AVOID NEW'!$E$67),V185-6.5),"NA") -> 32.8072 | X185: 37.33 | Y185: =IF(OR('Input - Capacity Factors'!$C$3="Wind"),IF(X185*'AVOID NEW'!$E$67<6.5,X185*(1-'AVOID NEW'!$E$67),X185-6.5),"NA") -> 34.3436 | Z185: 32.33 | AA185: =IF(OR('Input - Capacity Factors'!$C$3="Wind"),IF(Z185*'AVOID NEW'!$E$67<6.5,Z185*(1-'AVOID NEW'!$E$67),Z185-6.5),"NA") -> 29.7436
B186: 6 | C186: ='AVOID NEW'!AS14 -> 36.64833179 | D186: 38.31833179 | E186: 33.31833179 | G186: 39.58 | H186: =IF(OR('Input - Capacity Factors'!$C$3="Wind"),IF(G186*'AVOID NEW'!$E$67<6.5,G186*(1-'AVOID NEW'!$E$67),G186-6.5),"NA") -> 36.4136 | I186: 41.38 | J186: =IF(OR('Input - Capacity Factors'!$C$3="Wind"),IF(I186*'AVOID NEW'!$E$67<6.5,I186*(1-'AVOID NEW'!$E$67),I186-6.5),"NA") -> 38.0696 | K186: 35.98 | L186: =IF(OR('Input - Capacity Factors'!$C$3="Wind"),IF(K186*'AVOID NEW'!$E$67<6.5,K186*(1-'AVOID NEW'!$E$67),K186-6.5),"NA") -> 33.1016 | N186: 30.78 | O186: =IF(OR('Input - Capacity Factors'!$C$3="Wind"),IF(N186*'AVOID NEW'!$E$67<6.5,N186*(1-'AVOID NEW'!$E$67),N186-6.5),"NA") -> 28.3176 | P186: 32.19 | Q186: =IF(OR('Input - Capacity Factors'!$C$3="Wind"),IF(P186*'AVOID NEW'!$E$67<6.5,P186*(1-'AVOID NEW'!$E$67),P186-6.5),"NA") -> 29.6148 | R186: 27.99 | S186: =IF(OR('Input - Capacity Factors'!$C$3="Wind"),IF(R186*'AVOID NEW'!$E$67<6.5,R186*(1-'AVOID NEW'!$E$67),R186-6.5),"NA") -> 25.7508 | V186: 36.65 | W186: =IF(OR('Input - Capacity Factors'!$C$3="Wind"),IF(V186*'AVOID NEW'!$E$67<6.5,V186*(1-'AVOID NEW'!$E$67),V186-6.5),"NA") -> 33.718 | X186: 38.32 | Y186: =IF(OR('Input - Capacity Factors'!$C$3="Wind"),IF(X186*'AVOID NEW'!$E$67<6.5,X186*(1-'AVOID NEW'!$E$67),X186-6.5),"NA") -> 35.2544 | Z186: 33.32 | AA186: =IF(OR('Input - Capacity Factors'!$C$3="Wind"),IF(Z186*'AVOID NEW'!$E$67<6.5,Z186*(1-'AVOID NEW'!$E$67),Z186-6.5),"NA") -> 30.6544
B187: 7 | C187: ='AVOID NEW'!AS15 -> 37.64882216 | D187: 39.31882216 | E187: 34.31882216 | G187: 40.66 | H187: =IF(OR('Input - Capacity Factors'!$C$3="Wind"),IF(G187*'AVOID NEW'!$E$67<6.5,G187*(1-'AVOID NEW'!$E$67),G187-6.5),"NA") -> 37.4072 | I187: 42.46 | J187: =IF(OR('Input - Capacity Factors'!$C$3="Wind"),IF(I187*'AVOID NEW'!$E$67<6.5,I187*(1-'AVOID NEW'!$E$67),I187-6.5),"NA") -> 39.0632 | K187: 37.06 | L187: =IF(OR('Input - Capacity Factors'!$C$3="Wind"),IF(K187*'AVOID NEW'!$E$67<6.5,K187*(1-'AVOID NEW'!$E$67),K187-6.5),"NA") -> 34.0952 | N187: 31.63 | O187: =IF(OR('Input - Capacity Factors'!$C$3="Wind"),IF(N187*'AVOID NEW'!$E$67<6.5,N187*(1-'AVOID NEW'!$E$67),N187-6.5),"NA") -> 29.0996 | P187: 33.03 | Q187: =IF(OR('Input - Capacity Factors'!$C$3="Wind"),IF(P187*'AVOID NEW'!$E$67<6.5,P187*(1-'AVOID NEW'!$E$67),P187-6.5),"NA") -> 30.3876 | R187: 28.83 | S187: =IF(OR('Input - Capacity Factors'!$C$3="Wind"),IF(R187*'AVOID NEW'!$E$67<6.5,R187*(1-'AVOID NEW'!$E$67),R187-6.5),"NA") -> 26.5236 | V187: 37.65 | W187: =IF(OR('Input - Capacity Factors'!$C$3="Wind"),IF(V187*'AVOID NEW'!$E$67<6.5,V187*(1-'AVOID NEW'!$E$67),V187-6.5),"NA") -> 34.638 | X187: 39.32 | Y187: =IF(OR('Input - Capacity Factors'!$C$3="Wind"),IF(X187*'AVOID NEW'!$E$67<6.5,X187*(1-'AVOID NEW'!$E$67),X187-6.5),"NA") -> 36.1744 | Z187: 34.32 | AA187: =IF(OR('Input - Capacity Factors'!$C$3="Wind"),IF(Z187*'AVOID NEW'!$E$67<6.5,Z187*(1-'AVOID NEW'!$E$67),Z187-6.5),"NA") -> 31.5744
B188: 8 | C188: ='AVOID NEW'!AS16 -> 38.53698516 | D188: 40.20698516 | E188: 35.20698516 | G188: 41.62 | H188: =IF(OR('Input - Capacity Factors'!$C$3="Wind"),IF(G188*'AVOID NEW'!$E$67<6.5,G188*(1-'AVOID NEW'!$E$67),G188-6.5),"NA") -> 38.2904 | I188: 43.42 | J188: =IF(OR('Input - Capacity Factors'!$C$3="Wind"),IF(I188*'AVOID NEW'!$E$67<6.5,I188*(1-'AVOID NEW'!$E$67),I188-6.5),"NA") -> 39.9464 | K188: 38.02 | L188: =IF(OR('Input - Capacity Factors'!$C$3="Wind"),IF(K188*'AVOID NEW'!$E$67<6.5,K188*(1-'AVOID NEW'!$E$67),K188-6.5),"NA") -> 34.9784 | N188: 32.37 | O188: =IF(OR('Input - Capacity Factors'!$C$3="Wind"),IF(N188*'AVOID NEW'!$E$67<6.5,N188*(1-'AVOID NEW'!$E$67),N188-6.5),"NA") -> 29.7804 | P188: 33.77 | Q188: =IF(OR('Input - Capacity Factors'!$C$3="Wind"),IF(P188*'AVOID NEW'!$E$67<6.5,P188*(1-'AVOID NEW'!$E$67),P188-6.5),"NA") -> 31.0684 | R188: 29.57 | S188: =IF(OR('Input - Capacity Factors'!$C$3="Wind"),IF(R188*'AVOID NEW'!$E$67<6.5,R188*(1-'AVOID NEW'!$E$67),R188-6.5),"NA") -> 27.2044 | V188: 38.54 | W188: =IF(OR('Input - Capacity Factors'!$C$3="Wind"),IF(V188*'AVOID NEW'!$E$67<6.5,V188*(1-'AVOID NEW'!$E$67),V188-6.5),"NA") -> 35.4568 | X188: 40.21 | Y188: =IF(OR('Input - Capacity Factors'!$C$3="Wind"),IF(X188*'AVOID NEW'!$E$67<6.5,X188*(1-'AVOID NEW'!$E$67),X188-6.5),"NA") -> 36.9932 | Z188: 35.21 | AA188: =IF(OR('Input - Capacity Factors'!$C$3="Wind"),IF(Z188*'AVOID NEW'!$E$67<6.5,Z188*(1-'AVOID NEW'!$E$67),Z188-6.5),"NA") -> 32.3932
B189: 9 | C189: ='AVOID NEW'!AS17 -> 39.33733312 | D189: 41.00733312 | E189: 36.00733312 | G189: 42.48 | H189: =IF(OR('Input - Capacity Factors'!$C$3="Wind"),IF(G189*'AVOID NEW'!$E$67<6.5,G189*(1-'AVOID NEW'!$E$67),G189-6.5),"NA") -> 39.0816 | I189: 44.29 | J189: =IF(OR('Input - Capacity Factors'!$C$3="Wind"),IF(I189*'AVOID NEW'!$E$67<6.5,I189*(1-'AVOID NEW'!$E$67),I189-6.5),"NA") -> 40.7468 | K189: 38.89 | L189: =IF(OR('Input - Capacity Factors'!$C$3="Wind"),IF(K189*'AVOID NEW'!$E$67<6.5,K189*(1-'AVOID NEW'!$E$67),K189-6.5),"NA") -> 35.7788 | N189: 33.04 | O189: =IF(OR('Input - Capacity Factors'!$C$3="Wind"),IF(N189*'AVOID NEW'!$E$67<6.5,N189*(1-'AVOID NEW'!$E$67),N189-6.5),"NA") -> 30.3968 | P189: 34.45 | Q189: =IF(OR('Input - Capacity Factors'!$C$3="Wind"),IF(P189*'AVOID NEW'!$E$67<6.5,P189*(1-'AVOID NEW'!$E$67),P189-6.5),"NA") -> 31.694 | R189: 30.25 | S189: =IF(OR('Input - Capacity Factors'!$C$3="Wind"),IF(R189*'AVOID NEW'!$E$67<6.5,R189*(1-'AVOID NEW'!$E$67),R189-6.5),"NA") -> 27.83 | V189: 39.34 | W189: =IF(OR('Input - Capacity Factors'!$C$3="Wind"),IF(V189*'AVOID NEW'!$E$67<6.5,V189*(1-'AVOID NEW'!$E$67),V189-6.5),"NA") -> 36.1928 | X189: 41.01 | Y189: =IF(OR('Input - Capacity Factors'!$C$3="Wind"),IF(X189*'AVOID NEW'!$E$67<6.5,X189*(1-'AVOID NEW'!$E$67),X189-6.5),"NA") -> 37.7292 | Z189: 36.01 | AA189: =IF(OR('Input - Capacity Factors'!$C$3="Wind"),IF(Z189*'AVOID NEW'!$E$67<6.5,Z189*(1-'AVOID NEW'!$E$67),Z189-6.5),"NA") -> 33.1292
